Workbook

Sheet Fecha (hidden)
A1: EDECHI | B1: 1 | H1: =+B1+1 -> 2 | N1: =+H1+1 -> 3 | T1: =+N1+1 -> 4 | Z1: =+T1+1 -> 5 | AF1: =+Z1+1 -> 6 | AL1: =+AF1+1 -> 7 | AR1: =+AL1+1 -> 8 | AX1: =+AR1+1 -> 9 | BD1: =+AX1+1 -> 10 | BJ1: =+BD1+1 -> 11 | BP1: =+BJ1+1 -> 12 | BV1: =+BP1+1 -> 13 | CB1: =+BV1+1 -> 14 | CH1: =+CB1+1 -> 15 | CN1: =+CH1+1 -> 16 | CT1: =+CN1+1 -> 17 | CZ1: =+CT1+1 -> 18 | DF1: =+CZ1+1 -> 19 | DL1: =+DF1+1 -> 20 | DR1: =+DL1+1 -> 21
A2: Períodos | B2: Fechas | H2: Fechas | N2: Fechas | T2: Fechas | Z2: Fechas | AF2: Fechas | AL2: Fechas | AR2: Fechas | AX2: Fechas | BD2: Fechas | BJ2: Fechas | BP2: Fechas | BV2: Fechas | CB2: Fechas | CH2: Fechas | CN2: Fechas | CT2: Fechas | CZ2: Fechas | DF2: Fechas | DL2: Fechas | DR2: Fechas
A3: Mes Inicial | B3: 2017-01-01 | H3: 2017-07-01 | N3: 2018-01-01 | T3: 2018-07-01 | Z3: 2019-01-01 | AF3: 2019-07-01 | AL3: 2020-01-01 | AR3: 2020-07-01 | AX3: 2021-01-01 | BD3: 2021-07-01 | BJ3: 2022-01-01 | BP3: 2022-07-01 | BV3: 2023-01-01 | CB3: 2023-07-01 | CH3: 2024-01-01 | CN3: 2024-07-01 | CT3: 2025-01-01 | CZ3: 2025-07-01 | DF3: 2026-01-01 | DL3: 2026-07-01 | DR3: 2027-01-01
A4: período p | B4: =+IF(MONTH(B3)=1,"Ene",IF(MONTH(B3)=7,"Jul","Error Fecha"))&"-"&IF(MONTH(B3)=1,"Jun","Dic")&"/"&YEAR(B3) -> Ene-Jun/2017 | H4: =+IF(MONTH(H3)=1,"Ene",IF(MONTH(H3)=7,"Jul","Error Fecha"))&"-"&IF(MONTH(H3)=1,"Jun","Dic")&"/"&YEAR(H3) -> Jul-Dic/2017 | N4: =+IF(MONTH(N3)=1,"Ene",IF(MONTH(N3)=7,"Jul","Error Fecha"))&"-"&IF(MONTH(N3)=1,"Jun","Dic")&"/"&YEAR(N3) -> Ene-Jun/2018 | T4: =+IF(MONTH(T3)=1,"Ene",IF(MONTH(T3)=7,"Jul","Error Fecha"))&"-"&IF(MONTH(T3)=1,"Jun","Dic")&"/"&YEAR(T3) -> Jul-Dic/2018 | Z4: =+IF(MONTH(Z3)=1,"Ene",IF(MONTH(Z3)=7,"Jul","Error Fecha"))&"-"&IF(MONTH(Z3)=1,"Jun","Dic")&"/"&YEAR(Z3) -> Ene-Jun/2019 | AF4: =+IF(MONTH(AF3)=1,"Ene",IF(MONTH(AF3)=7,"Jul","Error Fecha"))&"-"&IF(MONTH(AF3)=1,"Jun","Dic")&"/"&YEAR(AF3) -> Jul-Dic/2019 | AL4: =+IF(MONTH(AL3)=1,"Ene",IF(MONTH(AL3)=7,"Jul","Error Fecha"))&"-"&IF(MONTH(AL3)=1,"Jun","Dic")&"/"&YEAR(AL3) -> Ene-Jun/2020 | AR4: =+IF(MONTH(AR3)=1,"Ene",IF(MONTH(AR3)=7,"Jul","Error Fecha"))&"-"&IF(MONTH(AR3)=1,"Jun","Dic")&"/"&YEAR(AR3) -> Jul-Dic/2020 | AX4: =+IF(MONTH(AX3)=1,"Ene",IF(MONTH(AX3)=7,"Jul","Error Fecha"))&"-"&IF(MONTH(AX3)=1,"Jun","Dic")&"/"&YEAR(AX3) -> Ene-Jun/2021 | BD4: =+IF(MONTH(BD3)=1,"Ene",IF(MONTH(BD3)=7,"Jul","Error Fecha"))&"-"&IF(MONTH(BD3)=1,"Jun","Dic")&"/"&YEAR(BD3) -> Jul-Dic/2021 | BJ4: =+IF(MONTH(BJ3)=1,"Ene",IF(MONTH(BJ3)=7,"Jul","Error Fecha"))&"-"&IF(MONTH(BJ3)=1,"Jun","Dic")&"/"&YEAR(BJ3) -> Ene-Jun/2022 | BP4: =+IF(MONTH(BP3)=1,"Ene",IF(MONTH(BP3)=7,"Jul","Error Fecha"))&"-"&IF(MONTH(BP3)=1,"Jun","Dic")&"/"&YEAR(BP3) -> Jul-Dic/2022 | BV4: =+IF(MONTH(BV3)=1,"Ene",IF(MONTH(BV3)=7,"Jul","Error Fecha"))&"-"&IF(MONTH(BV3)=1,"Jun","Dic")&"/"&YEAR(BV3) -> Ene-Jun/2023 | CB4: =+IF(MONTH(CB3)=1,"Ene",IF(MONTH(CB3)=7,"Jul","Error Fecha"))&"-"&IF(MONTH(CB3)=1,"Jun","Dic")&"/"&YEAR(CB3) -> Jul-Dic/2023 | CH4: =+IF(MONTH(CH3)=1,"Ene",IF(MONTH(CH3)=7,"Jul","Error Fecha"))&"-"&IF(MONTH(CH3)=1,"Jun","Dic")&"/"&YEAR(CH3) -> Ene-Jun/2024 | CN4: =+IF(MONTH(CN3)=1,"Ene",IF(MONTH(CN3)=7,"Jul","Error Fecha"))&"-"&IF(MONTH(CN3)=1,"Jun","Dic")&"/"&YEAR(CN3) -> Jul-Dic/2024 | CT4: =+IF(MONTH(CT3)=1,"Ene",IF(MONTH(CT3)=7,"Jul","Error Fecha"))&"-"&IF(MONTH(CT3)=1,"Jun","Dic")&"/"&YEAR(CT3) -> Ene-Jun/2025 | CZ4: =+IF(MONTH(CZ3)=1,"Ene",IF(MONTH(CZ3)=7,"Jul","Error Fecha"))&"-"&IF(MONTH(CZ3)=1,"Jun","Dic")&"/"&YEAR(CZ3) -> Jul-Dic/2025 | DF4: =+IF(MONTH(DF3)=1,"Ene",IF(MONTH(DF3)=7,"Jul","Error Fecha"))&"-"&IF(MONTH(DF3)=1,"Jun","Dic")&"/"&YEAR(DF3) -> Ene-Jun/2026 | DL4: =+IF(MONTH(DL3)=1,"Ene",IF(MONTH(DL3)=7,"Jul","Error Fecha"))&"-"&IF(MONTH(DL3)=1,"Jun","Dic")&"/"&YEAR(DL3) -> Jul-Dic/2026 | DR4: =+IF(MONTH(DR3)=1,"Ene",IF(MONTH(DR3)=7,"Jul","Error Fecha"))&"-"&IF(MONTH(DR3)=1,"Jun","Dic")&"/"&YEAR(DR3) -> Ene-Jun/2027
B5: =+IF(MONTH(B3)=1,"Ene",IF(MONTH(B3)=7,"Jul","Error Fecha"))&"-"&IF(MONTH(B3)=1,"Mar","Sep")&"/"&YEAR(B3) -> Ene-Mar/2017 | H5: =+IF(MONTH(H3)=1,"Ene",IF(MONTH(H3)=7,"Jul","Error Fecha"))&"-"&IF(MONTH(H3)=1,"Mar","Sep")&"/"&YEAR(H3) -> Jul-Sep/2017 | N5: =+IF(MONTH(N3)=1,"Ene",IF(MONTH(N3)=7,"Jul","Error Fecha"))&"-"&IF(MONTH(N3)=1,"Mar","Sep")&"/"&YEAR(N3) -> Ene-Mar/2018 | T5: =+IF(MONTH(T3)=1,"Ene",IF(MONTH(T3)=7,"Jul","Error Fecha"))&"-"&IF(MONTH(T3)=1,"Mar","Sep")&"/"&YEAR(T3) -> Jul-Sep/2018 | Z5: =+IF(MONTH(Z3)=1,"Ene",IF(MONTH(Z3)=7,"Jul","Error Fecha"))&"-"&IF(MONTH(Z3)=1,"Mar","Sep")&"/"&YEAR(Z3) -> Ene-Mar/2019 | AF5: =+IF(MONTH(AF3)=1,"Ene",IF(MONTH(AF3)=7,"Jul","Error Fecha"))&"-"&IF(MONTH(AF3)=1,"Mar","Sep")&"/"&YEAR(AF3) -> Jul-Sep/2019 | AL5: =+IF(MONTH(AL3)=1,"Ene",IF(MONTH(AL3)=7,"Jul","Error Fecha"))&"-"&IF(MONTH(AL3)=1,"Mar","Sep")&"/"&YEAR(AL3) -> Ene-Mar/2020 | AR5: =+IF(MONTH(AR3)=1,"Ene",IF(MONTH(AR3)=7,"Jul","Error Fecha"))&"-"&IF(MONTH(AR3)=1,"Mar","Sep")&"/"&YEAR(AR3) -> Jul-Sep/2020 | AX5: =+IF(MONTH(AX3)=1,"Ene",IF(MONTH(AX3)=7,"Jul","Error Fecha"))&"-"&IF(MONTH(AX3)=1,"Mar","Sep")&"/"&YEAR(AX3) -> Ene-Mar/2021 | BD5: =+IF(MONTH(BD3)=1,"Ene",IF(MONTH(BD3)=7,"Jul","Error Fecha"))&"-"&IF(MONTH(BD3)=1,"Mar","Sep")&"/"&YEAR(BD3) -> Jul-Sep/2021 | BJ5: =+IF(MONTH(BJ3)=1,"Ene",IF(MONTH(BJ3)=7,"Jul","Error Fecha"))&"-"&IF(MONTH(BJ3)=1,"Mar","Sep")&"/"&YEAR(BJ3) -> Ene-Mar/2022 | BP5: =+IF(MONTH(BP3)=1,"Ene",IF(MONTH(BP3)=7,"Jul","Error Fecha"))&"-"&IF(MONTH(BP3)=1,"Mar","Sep")&"/"&YEAR(BP3) -> Jul-Sep/2022 | BV5: =+IF(MONTH(BV3)=1,"Ene",IF(MONTH(BV3)=7,"Jul","Error Fecha"))&"-"&IF(MONTH(BV3)=1,"Mar","Sep")&"/"&YEAR(BV3) -> Ene-Mar/2023 | CB5: =+IF(MONTH(CB3)=1,"Ene",IF(MONTH(CB3)=7,"Jul","Error Fecha"))&"-"&IF(MONTH(CB3)=1,"Mar","Sep")&"/"&YEAR(CB3) -> Jul-Sep/2023 | CH5: =+IF(MONTH(CH3)=1,"Ene",IF(MONTH(CH3)=7,"Jul","Error Fecha"))&"-"&IF(MONTH(CH3)=1,"Mar","Sep")&"/"&YEAR(CH3) -> Ene-Mar/2024 | CN5: =+IF(MONTH(CN3)=1,"Ene",IF(MONTH(CN3)=7,"Jul","Error Fecha"))&"-"&IF(MONTH(CN3)=1,"Mar","Sep")&"/"&YEAR(CN3) -> Jul-Sep/2024 | CT5: =+IF(MONTH(CT3)=1,"Ene",IF(MONTH(CT3)=7,"Jul","Error Fecha"))&"-"&IF(MONTH(CT3)=1,"Mar","Sep")&"/"&YEAR(CT3) -> Ene-Mar/2025 | CZ5: =+IF(MONTH(CZ3)=1,"Ene",IF(MONTH(CZ3)=7,"Jul","Error Fecha"))&"-"&IF(MONTH(CZ3)=1,"Mar","Sep")&"/"&YEAR(CZ3) -> Jul-Sep/2025 | DF5: =+IF(MONTH(DF3)=1,"Ene",IF(MONTH(DF3)=7,"Jul","Error Fecha"))&"-"&IF(MONTH(DF3)=1,"Mar","Sep")&"/"&YEAR(DF3) -> Ene-Mar/2026 | DL5: =+IF(MONTH(DL3)=1,"Ene",IF(MONTH(DL3)=7,"Jul","Error Fecha"))&"-"&IF(MONTH(DL3)=1,"Mar","Sep")&"/"&YEAR(DL3) -> Jul-Sep/2026 | DR5: =+IF(MONTH(DR3)=1,"Ene",IF(MONTH(DR3)=7,"Jul","Error Fecha"))&"-"&IF(MONTH(DR3)=1,"Mar","Sep")&"/"&YEAR(DR3) -> Ene-Mar/2027
A6: período p-1 | B6: =+IF(MONTH(B3)=1,"Jul","Ene")&"-"&IF(MONTH(B3)=1,"Sep","Mar")&"/"&YEAR(B3-180) -> Jul-Sep/2016 | H6: =+IF(MONTH(H3)=1,"Jul","Ene")&"-"&IF(MONTH(H3)=1,"Sep","Mar")&"/"&YEAR(H3-180) -> Ene-Mar/2017 | N6: =+IF(MONTH(N3)=1,"Jul","Ene")&"-"&IF(MONTH(N3)=1,"Sep","Mar")&"/"&YEAR(N3-180) -> Jul-Sep/2017 | T6: =+IF(MONTH(T3)=1,"Jul","Ene")&"-"&IF(MONTH(T3)=1,"Sep","Mar")&"/"&YEAR(T3-180) -> Ene-Mar/2018 | Z6: =+IF(MONTH(Z3)=1,"Jul","Ene")&"-"&IF(MONTH(Z3)=1,"Sep","Mar")&"/"&YEAR(Z3-180) -> Jul-Sep/2018 | AF6: =+IF(MONTH(AF3)=1,"Jul","Ene")&"-"&IF(MONTH(AF3)=1,"Sep","Mar")&"/"&YEAR(AF3-180) -> Ene-Mar/2019 | AL6: =+IF(MONTH(AL3)=1,"Jul","Ene")&"-"&IF(MONTH(AL3)=1,"Sep","Mar")&"/"&YEAR(AL3-180) -> Jul-Sep/2019 | AR6: =+IF(MONTH(AR3)=1,"Jul","Ene")&"-"&IF(MONTH(AR3)=1,"Sep","Mar")&"/"&YEAR(AR3-180) -> Ene-Mar/2020 | AX6: =+IF(MONTH(AX3)=1,"Jul","Ene")&"-"&IF(MONTH(AX3)=1,"Sep","Mar")&"/"&YEAR(AX3-180) -> Jul-Sep/2020 | BD6: =+IF(MONTH(BD3)=1,"Jul","Ene")&"-"&IF(MONTH(BD3)=1,"Sep","Mar")&"/"&YEAR(BD3-180) -> Ene-Mar/2021 | BJ6: =+IF(MONTH(BJ3)=1,"Jul","Ene")&"-"&IF(MONTH(BJ3)=1,"Sep","Mar")&"/"&YEAR(BJ3-180) -> Jul-Sep/2021 | BP6: =+IF(MONTH(BP3)=1,"Jul","Ene")&"-"&IF(MONTH(BP3)=1,"Sep","Mar")&"/"&YEAR(BP3-180) -> Ene-Mar/2022 | BV6: =+IF(MONTH(BV3)=1,"Jul","Ene")&"-"&IF(MONTH(BV3)=1,"Sep","Mar")&"/"&YEAR(BV3-180) -> Jul-Sep/2022 | CB6: =+IF(MONTH(CB3)=1,"Jul","Ene")&"-"&IF(MONTH(CB3)=1,"Sep","Mar")&"/"&YEAR(CB3-180) -> Ene-Mar/2023 | CH6: =+IF(MONTH(CH3)=1,"Jul","Ene")&"-"&IF(MONTH(CH3)=1,"Sep","Mar")&"/"&YEAR(CH3-180) -> Jul-Sep/2023 | CN6: =+IF(MONTH(CN3)=1,"Jul","Ene")&"-"&IF(MONTH(CN3)=1,"Sep","Mar")&"/"&YEAR(CN3-180) -> Ene-Mar/2024 | CT6: =+IF(MONTH(CT3)=1,"Jul","Ene")&"-"&IF(MONTH(CT3)=1,"Sep","Mar")&"/"&YEAR(CT3-180) -> Jul-Sep/2024 | CZ6: =+IF(MONTH(CZ3)=1,"Jul","Ene")&"-"&IF(MONTH(CZ3)=1,"Sep","Mar")&"/"&YEAR(CZ3-180) -> Ene-Mar/2025 | DF6: =+IF(MONTH(DF3)=1,"Jul","Ene")&"-"&IF(MONTH(DF3)=1,"Sep","Mar")&"/"&YEAR(DF3-180) -> Jul-Sep/2025 | DL6: =+IF(MONTH(DL3)=1,"Jul","Ene")&"-"&IF(MONTH(DL3)=1,"Sep","Mar")&"/"&YEAR(DL3-180) -> Ene-Mar/2026 | DR6: =+IF(MONTH(DR3)=1,"Jul","Ene")&"-"&IF(MONTH(DR3)=1,"Sep","Mar")&"/"&YEAR(DR3-180) -> Jul-Sep/2026
B7: =+IF(MONTH(B3)=1,"Jul","Ene")&"-"&IF(MONTH(B3)=1,"Dic","Jun")&"/"&YEAR(B3-180) -> Jul-Dic/2016 | H7: =+IF(MONTH(H3)=1,"Jul","Ene")&"-"&IF(MONTH(H3)=1,"Dic","Jun")&"/"&YEAR(H3-180) -> Ene-Jun/2017 | N7: =+IF(MONTH(N3)=1,"Jul","Ene")&"-"&IF(MONTH(N3)=1,"Dic","Jun")&"/"&YEAR(N3-180) -> Jul-Dic/2017 | T7: =+IF(MONTH(T3)=1,"Jul","Ene")&"-"&IF(MONTH(T3)=1,"Dic","Jun")&"/"&YEAR(T3-180) -> Ene-Jun/2018 | Z7: =+IF(MONTH(Z3)=1,"Jul","Ene")&"-"&IF(MONTH(Z3)=1,"Dic","Jun")&"/"&YEAR(Z3-180) -> Jul-Dic/2018 | AF7: =+IF(MONTH(AF3)=1,"Jul","Ene")&"-"&IF(MONTH(AF3)=1,"Dic","Jun")&"/"&YEAR(AF3-180) -> Ene-Jun/2019 | AL7: =+IF(MONTH(AL3)=1,"Jul","Ene")&"-"&IF(MONTH(AL3)=1,"Dic","Jun")&"/"&YEAR(AL3-180) -> Jul-Dic/2019 | AR7: =+IF(MONTH(AR3)=1,"Jul","Ene")&"-"&IF(MONTH(AR3)=1,"Dic","Jun")&"/"&YEAR(AR3-180) -> Ene-Jun/2020 | AX7: =+IF(MONTH(AX3)=1,"Jul","Ene")&"-"&IF(MONTH(AX3)=1,"Dic","Jun")&"/"&YEAR(AX3-180) -> Jul-Dic/2020 | BD7: =+IF(MONTH(BD3)=1,"Jul","Ene")&"-"&IF(MONTH(BD3)=1,"Dic","Jun")&"/"&YEAR(BD3-180) -> Ene-Jun/2021 | BJ7: =+IF(MONTH(BJ3)=1,"Jul","Ene")&"-"&IF(MONTH(BJ3)=1,"Dic","Jun")&"/"&YEAR(BJ3-180) -> Jul-Dic/2021 | BP7: =+IF(MONTH(BP3)=1,"Jul","Ene")&"-"&IF(MONTH(BP3)=1,"Dic","Jun")&"/"&YEAR(BP3-180) -> Ene-Jun/2022 | BV7: =+IF(MONTH(BV3)=1,"Jul","Ene")&"-"&IF(MONTH(BV3)=1,"Dic","Jun")&"/"&YEAR(BV3-180) -> Jul-Dic/2022 | CB7: =+IF(MONTH(CB3)=1,"Jul","Ene")&"-"&IF(MONTH(CB3)=1,"Dic","Jun")&"/"&YEAR(CB3-180) -> Ene-Jun/2023 | CH7: =+IF(MONTH(CH3)=1,"Jul","Ene")&"-"&IF(MONTH(CH3)=1,"Dic","Jun")&"/"&YEAR(CH3-180) -> Jul-Dic/2023 | CN7: =+IF(MONTH(CN3)=1,"Jul","Ene")&"-"&IF(MONTH(CN3)=1,"Dic","Jun")&"/"&YEAR(CN3-180) -> Ene-Jun/2024 | CT7: =+IF(MONTH(CT3)=1,"Jul","Ene")&"-"&IF(MONTH(CT3)=1,"Dic","Jun")&"/"&YEAR(CT3-180) -> Jul-Dic/2024 | CZ7: =+IF(MONTH(CZ3)=1,"Jul","Ene")&"-"&IF(MONTH(CZ3)=1,"Dic","Jun")&"/"&YEAR(CZ3-180) -> Ene-Jun/2025 | DF7: =+IF(MONTH(DF3)=1,"Jul","Ene")&"-"&IF(MONTH(DF3)=1,"Dic","Jun")&"/"&YEAR(DF3-180) -> Jul-Dic/2025 | DL7: =+IF(MONTH(DL3)=1,"Jul","Ene")&"-"&IF(MONTH(DL3)=1,"Dic","Jun")&"/"&YEAR(DL3-180) -> Ene-Jun/2026 | DR7: =+IF(MONTH(DR3)=1,"Jul","Ene")&"-"&IF(MONTH(DR3)=1,"Dic","Jun")&"/"&YEAR(DR3-180) -> Jul-Dic/2026
A8: período p-2 | B8: =+IF(MONTH(B3)=1,"Ene",IF(MONTH(B3)=7,"Jul","Error Fecha"))&"-"&IF(MONTH(B3)=1,"Jun","Dic")&"/"&YEAR(B3-365) -> Ene-Jun/2016 | H8: =+IF(MONTH(H3)=1,"Ene",IF(MONTH(H3)=7,"Jul","Error Fecha"))&"-"&IF(MONTH(H3)=1,"Jun","Dic")&"/"&YEAR(H3-365) -> Jul-Dic/2016 | N8: =+IF(MONTH(N3)=1,"Ene",IF(MONTH(N3)=7,"Jul","Error Fecha"))&"-"&IF(MONTH(N3)=1,"Jun","Dic")&"/"&YEAR(N3-365) -> Ene-Jun/2017 | T8: =+IF(MONTH(T3)=1,"Ene",IF(MONTH(T3)=7,"Jul","Error Fecha"))&"-"&IF(MONTH(T3)=1,"Jun","Dic")&"/"&YEAR(T3-365) -> Jul-Dic/2017 | Z8: =+IF(MONTH(Z3)=1,"Ene",IF(MONTH(Z3)=7,"Jul","Error Fecha"))&"-"&IF(MONTH(Z3)=1,"Jun","Dic")&"/"&YEAR(Z3-365) -> Ene-Jun/2018 | AF8: =+IF(MONTH(AF3)=1,"Ene",IF(MONTH(AF3)=7,"Jul","Error Fecha"))&"-"&IF(MONTH(AF3)=1,"Jun","Dic")&"/"&YEAR(AF3-365) -> Jul-Dic/2018 | AL8: =+IF(MONTH(AL3)=1,"Ene",IF(MONTH(AL3)=7,"Jul","Error Fecha"))&"-"&IF(MONTH(AL3)=1,"Jun","Dic")&"/"&YEAR(AL3-365) -> Ene-Jun/2019 | AR8: =+IF(MONTH(AR3)=1,"Ene",IF(MONTH(AR3)=7,"Jul","Error Fecha"))&"-"&IF(MONTH(AR3)=1,"Jun","Dic")&"/"&YEAR(AR3-365) -> Jul-Dic/2019 | AX8: =+IF(MONTH(AX3)=1,"Ene",IF(MONTH(AX3)=7,"Jul","Error Fecha"))&"-"&IF(MONTH(AX3)=1,"Jun","Dic")&"/"&YEAR(AX3-365) -> Ene-Jun/2020 | BD8: =+IF(MONTH(BD3)=1,"Ene",IF(MONTH(BD3)=7,"Jul","Error Fecha"))&"-"&IF(MONTH(BD3)=1,"Jun","Dic")&"/"&YEAR(BD3-365) -> Jul-Dic/2020 | BJ8: =+IF(MONTH(BJ3)=1,"Ene",IF(MONTH(BJ3)=7,"Jul","Error Fecha"))&"-"&IF(MONTH(BJ3)=1,"Jun","Dic")&"/"&YEAR(BJ3-365) -> Ene-Jun/2021 | BP8: =+IF(MONTH(BP3)=1,"Ene",IF(MONTH(BP3)=7,"Jul","Error Fecha"))&"-"&IF(MONTH(BP3)=1,"Jun","Dic")&"/"&YEAR(BP3-365) -> Jul-Dic/2021 | BV8: =+IF(MONTH(BV3)=1,"Ene",IF(MONTH(BV3)=7,"Jul","Error Fecha"))&"-"&IF(MONTH(BV3)=1,"Jun","Dic")&"/"&YEAR(BV3-365) -> Ene-Jun/2022 | CB8: =+IF(MONTH(CB3)=1,"Ene",IF(MONTH(CB3)=7,"Jul","Error Fecha"))&"-"&IF(MONTH(CB3)=1,"Jun","Dic")&"/"&YEAR(CB3-365) -> Jul-Dic/2022 | CH8: =+IF(MONTH(CH3)=1,"Ene",IF(MONTH(CH3)=7,"Jul","Error Fecha"))&"-"&IF(MONTH(CH3)=1,"Jun","Dic")&"/"&YEAR(CH3-365) -> Ene-Jun/2023 | CN8: =+IF(MONTH(CN3)=1,"Ene",IF(MONTH(CN3)=7,"Jul","Error Fecha"))&"-"&IF(MONTH(CN3)=1,"Jun","Dic")&"/"&YEAR(CN3-365) -> Jul-Dic/2023 | CT8: =+IF(MONTH(CT3)=1,"Ene",IF(MONTH(CT3)=7,"Jul","Error Fecha"))&"-"&IF(MONTH(CT3)=1,"Jun","Dic")&"/"&YEAR(CT3-365) -> Ene-Jun/2024 | CZ8: =+IF(MONTH(CZ3)=1,"Ene",IF(MONTH(CZ3)=7,"Jul","Error Fecha"))&"-"&IF(MONTH(CZ3)=1,"Jun","Dic")&"/"&YEAR(CZ3-365) -> Jul-Dic/2024 | DF8: =+IF(MONTH(DF3)=1,"Ene",IF(MONTH(DF3)=7,"Jul","Error Fecha"))&"-"&IF(MONTH(DF3)=1,"Jun","Dic")&"/"&YEAR(DF3-365) -> Ene-Jun/2025 | DL8: =+IF(MONTH(DL3)=1,"Ene",IF(MONTH(DL3)=7,"Jul","Error Fecha"))&"-"&IF(MONTH(DL3)=1,"Jun","Dic")&"/"&YEAR(DL3-365) -> Jul-Dic/2025 | DR8: =+IF(MONTH(DR3)=1,"Ene",IF(MONTH(DR3)=7,"Jul","Error Fecha"))&"-"&IF(MONTH(DR3)=1,"Jun","Dic")&"/"&YEAR(DR3-365) -> Ene-Jun/2026
A9: período p-3 | B9: =+IF(MONTH(B3)=1,"Jul","Ene")&"-"&IF(MONTH(B3)=1,"Dic","Jun")&"/"&YEAR(B3-369) -> Jul-Dic/2015 | H9: =+IF(MONTH(H3)=1,"Jul","Ene")&"-"&IF(MONTH(H3)=1,"Dic","Jun")&"/"&YEAR(H3-369) -> Ene-Jun/2016 | N9: =+IF(MONTH(N3)=1,"Jul","Ene")&"-"&IF(MONTH(N3)=1,"Dic","Jun")&"/"&YEAR(N3-369) -> Jul-Dic/2016 | T9: =+IF(MONTH(T3)=1,"Jul","Ene")&"-"&IF(MONTH(T3)=1,"Dic","Jun")&"/"&YEAR(T3-369) -> Ene-Jun/2017 | Z9: =+IF(MONTH(Z3)=1,"Jul","Ene")&"-"&IF(MONTH(Z3)=1,"Dic","Jun")&"/"&YEAR(Z3-369) -> Jul-Dic/2017 | AF9: =+IF(MONTH(AF3)=1,"Jul","Ene")&"-"&IF(MONTH(AF3)=1,"Dic","Jun")&"/"&YEAR(AF3-369) -> Ene-Jun/2018 | AL9: =+IF(MONTH(AL3)=1,"Jul","Ene")&"-"&IF(MONTH(AL3)=1,"Dic","Jun")&"/"&YEAR(AL3-369) -> Jul-Dic/2018 | AR9: =+IF(MONTH(AR3)=1,"Jul","Ene")&"-"&IF(MONTH(AR3)=1,"Dic","Jun")&"/"&YEAR(AR3-369) -> Ene-Jun/2019 | AX9: =+IF(MONTH(AX3)=1,"Jul","Ene")&"-"&IF(MONTH(AX3)=1,"Dic","Jun")&"/"&YEAR(AX3-369) -> Jul-Dic/2019 | BD9: =+IF(MONTH(BD3)=1,"Jul","Ene")&"-"&IF(MONTH(BD3)=1,"Dic","Jun")&"/"&YEAR(BD3-369) -> Ene-Jun/2020 | BJ9: =+IF(MONTH(BJ3)=1,"Jul","Ene")&"-"&IF(MONTH(BJ3)=1,"Dic","Jun")&"/"&YEAR(BJ3-369) -> Jul-Dic/2020 | BP9: =+IF(MONTH(BP3)=1,"Jul","Ene")&"-"&IF(MONTH(BP3)=1,"Dic","Jun")&"/"&YEAR(BP3-369) -> Ene-Jun/2021 | BV9: =+IF(MONTH(BV3)=1,"Jul","Ene")&"-"&IF(MONTH(BV3)=1,"Dic","Jun")&"/"&YEAR(BV3-369) -> Jul-Dic/2021 | CB9: =+IF(MONTH(CB3)=1,"Jul","Ene")&"-"&IF(MONTH(CB3)=1,"Dic","Jun")&"/"&YEAR(CB3-369) -> Ene-Jun/2022 | CH9: =+IF(MONTH(CH3)=1,"Jul","Ene")&"-"&IF(MONTH(CH3)=1,"Dic","Jun")&"/"&YEAR(CH3-369) -> Jul-Dic/2022 | CN9: =+IF(MONTH(CN3)=1,"Jul","Ene")&"-"&IF(MONTH(CN3)=1,"Dic","Jun")&"/"&YEAR(CN3-369) -> Ene-Jun/2023 | CT9: =+IF(MONTH(CT3)=1,"Jul","Ene")&"-"&IF(MONTH(CT3)=1,"Dic","Jun")&"/"&YEAR(CT3-369) -> Jul-Dic/2023 | CZ9: =+IF(MONTH(CZ3)=1,"Jul","Ene")&"-"&IF(MONTH(CZ3)=1,"Dic","Jun")&"/"&YEAR(CZ3-369) -> Ene-Jun/2024 | DF9: =+IF(MONTH(DF3)=1,"Jul","Ene")&"-"&IF(MONTH(DF3)=1,"Dic","Jun")&"/"&YEAR(DF3-369) -> Jul-Dic/2024 | DL9: =+IF(MONTH(DL3)=1,"Jul","Ene")&"-"&IF(MONTH(DL3)=1,"Dic","Jun")&"/"&YEAR(DL3-369) -> Ene-Jun/2025 | DR9: =+IF(MONTH(DR3)=1,"Jul","Ene")&"-"&IF(MONTH(DR3)=1,"Dic","Jun")&"/"&YEAR(DR3-369) -> Jul-Dic/2025
B10: 2015-07-01 | H10: =+DATE(YEAR(B10),MONTH(B10)+6,1) -> 2016-01-01 | N10: =+DATE(YEAR(H10),MONTH(H10)+6,1) -> 2016-07-01 | T10: =+DATE(YEAR(N10),MONTH(N10)+6,1) -> 2017-01-01 | Z10: =+DATE(YEAR(T10),MONTH(T10)+6,1) -> 2017-07-01 | AF10: =+DATE(YEAR(Z10),MONTH(Z10)+6,1) -> 2018-01-01 | AL10: =+DATE(YEAR(AF10),MONTH(AF10)+6,1) -> 2018-07-01 | AR10: =+DATE(YEAR(AL10),MONTH(AL10)+6,1) -> 2019-01-01 | AX10: =+DATE(YEAR(AR10),MONTH(AR10)+6,1) -> 2019-07-01 | BD10: =+DATE(YEAR(AX10),MONTH(AX10)+6,1) -> 2020-01-01 | BJ10: =+DATE(YEAR(BD10),MONTH(BD10)+6,1) -> 2020-07-01 | BP10: =+DATE(YEAR(BJ10),MONTH(BJ10)+6,1) -> 2021-01-01 | BV10: =+DATE(YEAR(BP10),MONTH(BP10)+6,1) -> 2021-07-01 | CB10: =+DATE(YEAR(BV10),MONTH(BV10)+6,1) -> 2022-01-01 | CH10: =+DATE(YEAR(CB10),MONTH(CB10)+6,1) -> 2022-07-01 | CN10: =+DATE(YEAR(CH10),MONTH(CH10)+6,1) -> 2023-01-01 | CT10: =+DATE(YEAR(CN10),MONTH(CN10)+6,1) -> 2023-07-01 | CZ10: =+DATE(YEAR(CT10),MONTH(CT10)+6,1) -> 2024-01-01 | DF10: =+DATE(YEAR(CZ10),MONTH(CZ10)+6,1) -> 2024-07-01 | DL10: =+DATE(YEAR(DF10),MONTH(DF10)+6,1) -> 2025-01-01 | DR10: =+DATE(YEAR(DL10),MONTH(DL10)+6,1) -> 2025-07-01
B11: 2016-06-01 | H11: =+DATE(YEAR(B11),MONTH(B11)+6,1) -> 2016-12-01 | N11: =+DATE(YEAR(H11),MONTH(H11)+6,1) -> 2017-06-01 | T11: =+DATE(YEAR(N11),MONTH(N11)+6,1) -> 2017-12-01 | Z11: =+DATE(YEAR(T11),MONTH(T11)+6,1) -> 2018-06-01 | AF11: =+DATE(YEAR(Z11),MONTH(Z11)+6,1) -> 2018-12-01 | AL11: =+DATE(YEAR(AF11),MONTH(AF11)+6,1) -> 2019-06-01 | AR11: =+DATE(YEAR(AL11),MONTH(AL11)+6,1) -> 2019-12-01 | AX11: =+DATE(YEAR(AR11),MONTH(AR11)+6,1) -> 2020-06-01 | BD11: =+DATE(YEAR(AX11),MONTH(AX11)+6,1) -> 2020-12-01 | BJ11: =+DATE(YEAR(BD11),MONTH(BD11)+6,1) -> 2021-06-01 | BP11: =+DATE(YEAR(BJ11),MONTH(BJ11)+6,1) -> 2021-12-01 | BV11: =+DATE(YEAR(BP11),MONTH(BP11)+6,1) -> 2022-06-01 | CB11: =+DATE(YEAR(BV11),MONTH(BV11)+6,1) -> 2022-12-01 | CH11: =+DATE(YEAR(CB11),MONTH(CB11)+6,1) -> 2023-06-01 | CN11: =+DATE(YEAR(CH11),MONTH(CH11)+6,1) -> 2023-12-01 | CT11: =+DATE(YEAR(CN11),MONTH(CN11)+6,1) -> 2024-06-01 | CZ11: =+DATE(YEAR(CT11),MONTH(CT11)+6,1) -> 2024-12-01 | DF11: =+DATE(YEAR(CZ11),MONTH(CZ11)+6,1) -> 2025-06-01 | DL11: =+DATE(YEAR(DF11),MONTH(DF11)+6,1) -> 2025-12-01 | DR11: =+DATE(YEAR(DL11),MONTH(DL11)+6,1) -> 2026-06-01
B12: jul/15-jun/16 | H12: =+TEXT(H10,"mmm/yy")&"-"&+TEXT(H11,"mmm/yy") -> ene/16-dic/16 | N12: =+TEXT(N10,"mmm/yy")&"-"&+TEXT(N11,"mmm/yy") -> jul/16-jun/17 | T12: =+TEXT(T10,"mmm/yy")&"-"&+TEXT(T11,"mmm/yy") -> ene/17-dic/17 | Z12: =+TEXT(Z10,"mmm/yy")&"-"&+TEXT(Z11,"mmm/yy") -> jul/17-jun/18 | AF12: =+TEXT(AF10,"mmm/yy")&"-"&+TEXT(AF11,"mmm/yy") -> ene/18-dic/18 | AL12: =+TEXT(AL10,"mmm/yy")&"-"&+TEXT(AL11,"mmm/yy") -> jul/18-jun/19 | AR12: =+TEXT(AR10,"mmm/yy")&"-"&+TEXT(AR11,"mmm/yy") -> ene/19-dic/19 | AX12: =+TEXT(AX10,"mmm/yy")&"-"&+TEXT(AX11,"mmm/yy") -> jul/19-jun/20 | BD12: =+TEXT(BD10,"mmm/yy")&"-"&+TEXT(BD11,"mmm/yy") -> ene/20-dic/20 | BJ12: =+TEXT(BJ10,"mmm/yy")&"-"&+TEXT(BJ11,"mmm/yy") -> jul/20-jun/21 | BP12: =+TEXT(BP10,"mmm/yy")&"-"&+TEXT(BP11,"mmm/yy") -> ene/21-dic/21 | BV12: =+TEXT(BV10,"mmm/yy")&"-"&+TEXT(BV11,"mmm/yy") -> jul/21-jun/22 | CB12: =+TEXT(CB10,"mmm/yy")&"-"&+TEXT(CB11,"mmm/yy") -> ene/22-dic/22 | CH12: =+TEXT(CH10,"mmm/yy")&"-"&+TEXT(CH11,"mmm/yy") -> jul/22-jun/23 | CN12: =+TEXT(CN10,"mmm/yy")&"-"&+TEXT(CN11,"mmm/yy") -> ene/23-dic/23 | CT12: =+TEXT(CT10,"mmm/yy")&"-"&+TEXT(CT11,"mmm/yy") -> jul/23-jun/24 | CZ12: =+TEXT(CZ10,"mmm/yy")&"-"&+TEXT(CZ11,"mmm/yy") -> ene/24-dic/24 | DF12: =+TEXT(DF10,"mmm/yy")&"-"&+TEXT(DF11,"mmm/yy") -> jul/24-jun/25 | DL12: =+TEXT(DL10,"mmm/yy")&"-"&+TEXT(DL11,"mmm/yy") -> ene/25-dic/25 | DR12: =+TEXT(DR10,"mmm/yy")&"-"&+TEXT(DR11,"mmm/yy") -> jul/25-jun/26

Sheet Compras (p)
A1: COSTOS DE COMPRA DE ENERGÍA
A2: EDECHI
A4: Datos | B4: 2026-07-01 | C4: 2026-08-01 | D4: 2026-09-01 | E4: 2026-10-01 | F4: 2026-11-01 | G4: 2026-12-01
A5: Energía Facturada | B5: =+B7*(1-B6) -> 86340.6851 | C5: =+C7*(1-C6) -> 86451.54769 | D5: =+D7*(1-D6) -> 84375.13209 | E5: 85280.94129 | F5: 76105.6225 | G5: 86061.19337
A6: Pérdidas | B6: 0.12 | C6: =+B6 -> 0.12 | D6: =+C6 -> 0.12 | E6: =+D6 -> 0.12 | F6: =+E6 -> 0.12 | G6: =+F6 -> 0.12
A7: Energía Requerida Puesta en Red | B7: 98114.41489 | C7: 98240.39511 | D7: 95880.83192 | E7: 96910.16056 | F7: 86483.66194 | G7: 97796.81065
A8: Generación Propia | B8: =+'GEN-502 Gen_P'!H9+'GEN-502 Gen_FP'!H9 -> 0 | C8: =+'GEN-502 Gen_P'!I9+'GEN-502 Gen_FP'!I9 -> 0 | D8: =+'GEN-502 Gen_P'!J9+'GEN-502 Gen_FP'!J9 -> 0 | E8: =+'GEN-502 Gen_P'!K9+'GEN-502 Gen_FP'!K9 -> 0 | F8: =+'GEN-502 Gen_P'!L9+'GEN-502 Gen_FP'!L9 -> 0 | G8: =+'GEN-502 Gen_P'!M9+'GEN-502 Gen_FP'!M9 -> 0
A9: Compras a Nivel de Distribución
A10: Compra de Energía GC | B10: =+('Ventas (p)'!N57+'Ventas (p)'!N111)/1000 -> 8035.716 | C10: =+('Ventas (p)'!O57+'Ventas (p)'!O111)/1000 -> 8035.716 | D10: =+('Ventas (p)'!P57+'Ventas (p)'!P111)/1000 -> 8035.716 | E10: =+('Ventas (p)'!Q57+'Ventas (p)'!Q111)/1000 -> 8035.716 | F10: =+('Ventas (p)'!R57+'Ventas (p)'!R111)/1000 -> 8035.716 | G10: =+('Ventas (p)'!S57+'Ventas (p)'!S111)/1000 -> 8035.716
A11: Energía del Mercado Mayorista | B11: =+B7-B8-B9 -> 98114.41489 | C11: =+C7-C8-C9 -> 98240.39511 | D11: 95880.83192 | E11: 96910.16056 | F11: 86483.66194 | G11: 97796.81065
A14: Pérdidas de Transmisión | B14: 2026-01-01 | C14: 2026-02-01 | D14: 2026-03-01 | E14: 2026-04-01 | F14: 2026-05-01 | G14: 2026-06-01
A15: Energía Pérdidas de Transmisión (MWh) | B15: =+AVERAGE('Compras (r)'!B15:G15) -> 119.159 | C15: =+B15 -> 119.159 | D15: =+C15 -> 119.159 | E15: =+D15 -> 119.159 | F15: =+E15 -> 119.159 | G15: =+F15 -> 119.159
A16: Precio Medio de las Pérdidas (US$/MWh) | B16: =+AVERAGE('Compras (r)'!B16:G16)*0+80 -> 80 | C16: =+B16 -> 80 | D16: =+C16 -> 80 | E16: 80 | F16: 80 | G16: 80
A17: Costo de las Pérdidas de Transmisión (B/.) | B17: =+B15*B16 -> 9532.72 | C17: 9532.72 | D17: 9532.72 | E17: 9532.72 | F17: 9532.72 | G17: 9532.72
A20: Precio del Combustible | B20: 2026-07-01 | C20: 2026-08-01 | D20: 2026-09-01 | E20: 2026-10-01 | F20: 2026-11-01 | G20: 2026-12-01
A21: GNL ($/MMBTU) | B21: 3 | C21: =+B21 -> 3 | D21: =+C21 -> 3 | E21: =+D21 -> 3 | F21: =+E21 -> 3 | G21: =+F21 -> 3
A22: Diesel (US$/bl) | B22: 84 | C22: =+B22 -> 84 | D22: 84 | E22: 84 | F22: 84 | G22: 84
A23: Bunker C (US$/bl) | B23: 62.58643579 | C23: 62.58643579 | D23: 62.58643579 | E23: 62.58643579 | F23: 62.58643579 | G23: 62.58643579
A25: CMG | B25: =+AVERAGE('GEN-522 Pre_Gen'!B16:G16)*0+60 -> 60 | C25: =+B25 -> 60 | D25: =+C25 -> 60 | E25: =+D25 -> 60 | F25: =+E25 -> 60 | G25: =+F25 -> 60
A27: Ajuste Potencia G.C. | B27: 2026-07-01 | C27: 2026-08-01 | D27: 2026-09-01 | E27: 2026-10-01 | F27: 2026-11-01 | G27: 2026-12-01
A28: Factor de Ajuste | B28: =+(1+B29)*(1+B30) -> 1.13565088 | C28: =+(1+C29)*(1+C30) -> 1.13565088 | D28: 1.13565088 | E28: 1.13565088 | F28: 1.13565088 | G28: 1.13565088
A29: Reserva para Confiabilidad de Largo Plazo | B29: 0.0738 | C29: =+B29 -> 0.0738 | D29: =+C29 -> 0.0738 | E29: =+D29 -> 0.0738 | F29: =+E29 -> 0.0738 | G29: =+F29 -> 0.0738
A30: Pérdidas Típicas en Punta | B30: 0.0576 | C30: =+B30 -> 0.0576 | D30: 0.0576 | E30: 0.0576 | F30: 0.0576 | G30: 0.0576
A32: Ajuste Potencia G.C. | B32: 2026-07-01 | C32: 2026-08-01 | D32: 2026-09-01 | E32: 2026-10-01 | F32: 2026-11-01 | G32: 2026-12-01
A33: Factor de Ajuste | B33: =+(1+B34)*(1+B35) -> 1.13565088 | C33: =+(1+C34)*(1+C35) -> 1.13565088 | D33: 1.13565088 | E33: 1.13565088 | F33: 1.13565088 | G33: 1.13565088
A34: Reserva para Confiabilidad de Largo Plazo | B34: 0.0738 | C34: =+B34 -> 0.0738 | D34: =+C34 -> 0.0738 | E34: =+D34 -> 0.0738 | F34: =+E34 -> 0.0738 | G34: =+F34 -> 0.0738
A35: Pérdidas Típicas en Punta | B35: 0.0576 | C35: =+B35 -> 0.0576 | D35: 0.0576 | E35: 0.0576 | F35: 0.0576 | G35: 0.0576

Sheet GEN-502 Contratos
A1: INFORMACION PARA ACTUALIZAR: CARGO POR GENERACION
A2: =+'Compras (p)'!A2 -> EDECHI
A3: Porción de Potencia Contratada Mensual para atender Clientes Regulados (MW)
U21: 69
U22: 23
U23: 5
A24: Sub-Total Contratos | B24: INICIO | C24: FIN | D24: Cálculo Energía Asociada | H24: 2010-01-01 | I24: 2010-02-01 | J24: 2010-03-01 | K24: 2010-04-01 | L24: 2010-05-01 | M24: 2010-06-01 | N24: 2010-07-01 | O24: 2010-08-01 | P24: 2010-09-01 | Q24: 2010-10-01 | R24: 2010-11-01 | S24: 2010-12-01 | T24: 2011-01-01 | U24: 2011-02-01 | V24: 2011-03-01 | W24: 2011-04-01 | X24: 2011-05-01 | Y24: 2011-06-01 | Z24: 2011-07-01 | AA24: 2011-08-01 | AB24: 2011-09-01 | AC24: 2011-10-01 | AD24: 2011-11-01 | AE24: 2011-12-01 | AF24: 2012-01-01 | AG24: 2012-02-01 | AH24: 2012-03-01 | AI24: 2012-04-01 | AJ24: 2012-05-01 | AK24: 2012-06-01 | AL24: 2012-07-01 | AM24: 2012-08-01 | AN24: 2012-09-01 | AO24: 2012-10-01 | AP24: 2012-11-01 | AQ24: 2012-12-01 | AR24: 2013-01-01 | AS24: 2013-02-01 | AT24: 2013-03-01 | AU24: 2013-04-01 | AV24: 2013-05-01 | AW24: 2013-06-01 | AX24: 2013-07-01 | AY24: 2013-08-01 | AZ24: 2013-09-01 | BA24: 2013-10-01 | BB24: 2013-11-01 | BC24: 2013-12-01 | BD24: 2014-01-01 | BE24: 2014-02-01 | BF24: 2014-03-01 | BG24: 2014-04-01 | BH24: 2014-05-01 | BI24: 2014-06-01 | BJ24: 2014-07-01 | BK24: 2014-08-01 | BL24: 2014-09-01 | BM24: 2014-10-01 | BN24: 2014-11-01 | BO24: 2014-12-01 | BP24: 2015-01-01 | BQ24: 2015-02-01 | BR24: 2015-03-01 | BS24: 2015-04-01 | BT24: 2015-05-01 | BU24: 2015-06-01 | BV24: 2015-07-01 | BW24: 2015-08-01 | BX24: 2015-09-01 | BY24: 2015-10-01 | BZ24: 2015-11-01 | CA24: 2015-12-01 | CB24: 2016-01-01 | CC24: 2016-02-01 | CD24: 2016-03-01 | CE24: 2016-04-01 | CF24: 2016-05-01 | CG24: 2016-06-01 | CH24: 2016-07-01 | CI24: 2016-08-01 | CJ24: 2016-09-01 | CK24: 2016-10-01 | CL24: 2016-11-01 | CM24: 2016-12-01 | CN24: 2017-01-01 | CO24: 2017-02-01 | CP24: 2017-03-01 | CQ24: 2017-04-01 | CR24: 2017-05-01 | CS24: 2017-06-01 | CT24: 2017-07-01 | CU24: 2017-08-01 | CV24: 2017-09-01 | CW24: 2017-10-01 | CX24: 2017-11-01
A25: PTP-Isla Colón Nº 001-00 (1) & PTP 05-04 (3,2) | B25: 2004-09-01 | C25: 2013-12-31 | D25: Energía Medida | E25: 1 | H25: =+IF(AND(H$24>=$B25,H$24<=$C25),"X","") -> X | I25: X | J25: X | K25: X | L25: X | M25: X | N25: X | O25: X | P25: X | Q25: X | R25: X | S25: X | T25: X | U25: X | V25: X | W25: X | X25: =+IF(AND(X$24>=$B25,X$24<=$C25),"X","") -> X | Y25: X | Z25: X | AA25: X | AB25: X | AC25: X | AD25: X | AE25: X | AF25: X | AG25: X | AH25: X | AI25: X | AJ25: X | AK25: X | AL25: X | AM25: X | AN25: =+IF(AND(AN$24>=$B25,AN$24<=$C25),"X","") -> X | AO25: X | AP25: X | AQ25: X | AR25: X | AS25: X | AT25: X | AU25: X | AV25: X | AW25: X | AX25: X | AY25: X | AZ25: X | BA25: X | BB25: X | BC25: X | BD25: =+IF(AND(BD$24>=$B25,BD$24<=$C25),"X","") ->  | BT25: =+IF(AND(BT$24>=$B25,BT$24<=$C25),"X","") ->  | CB25: =+IF(AND(CB$24>=$B25,CB$24<=$C25),"X","") ->  | CR25: =+IF(AND(CR$24>=$B25,CR$24<=$C25),"X","") ->  | CT25: =+IF(AND(CT$24>=$B25,CT$24<=$C25),"X","") -> 
A26: PTP-Chiriquí Grande Nº 001-99 (0.7) & 06-04 | B26: 2004-11-01 | C26: 2013-12-31 | D26: Energía Medida | E26: 1 | H26: X | I26: X | J26: X | K26: X | L26: X | M26: X | N26: X | O26: X | P26: X | Q26: X | R26: X | S26: X | T26: X | U26: X | V26: X | W26: X | X26: X | Y26: X | Z26: X | AA26: X | AB26: X | AC26: X | AD26: X | AE26: X | AF26: X | AG26: X | AH26: X | AI26: X | AJ26: X | AK26: X | AL26: X | AM26: X | AN26: X | AO26: X | AP26: X | AQ26: X | AR26: X | AS26: X | AT26: X | AU26: X | AV26: X | AW26: X | AX26: X | AY26: X | AZ26: X | BA26: X | BB26: X | BC26: X
A27: Edemet | B27: 00:00:00 | C27: 00:00:00 | D27: 00:00:00 | E27: 1
A28: Autoridad del Canal No. 04-03 (30) Gen | B28: 00:00:00 | C28: 00:00:00 | D28: 00:00:00 | E28: 1
A29: Autoridad del Canal No. 04-03 (30) Trans | B29: 00:00:00 | C29: 00:00:00 | D29: 00:00:00 | E29: 1
A30: PTP-Isla Colón Nº 05-04 (3,2) | B30: 2004-09-01 | C30: 2013-12-31 | D30: 00:00:00 | E30: 1 | H30: X | I30: X | J30: X | K30: X | L30: X | M30: X | N30: X | O30: X | P30: X | Q30: X | R30: X | S30: X | T30: X | U30: X | V30: X | W30: X | X30: X | Y30: X | Z30: X | AA30: X | AB30: X | AC30: X | AD30: X | AE30: X | AF30: X | AG30: X | AH30: X | AI30: X | AJ30: X | AK30: X | AL30: X | AM30: X | AN30: X | AO30: X | AP30: X | AQ30: X | AR30: X | AS30: X | AT30: X | AU30: X | AV30: X | AW30: X | AX30: X | AY30: X | AZ30: X | BA30: X | BB30: X | BC30: X
A31: Fortuna No. 12-98 (24) | B31: 00:00:00 | C31: 00:00:00 | D31: 00:00:00 | E31: 1
A32: Aes No.13-98 (22) | B32: 00:00:00 | C32: 00:00:00 | D32: 00:00:00 | E32: 1
A33: Fortuna No.09-04 (10) | B33: 00:00:00 | C33: 00:00:00 | D33: 00:00:00 | E33: 1
A34: Fortuna No.15-04 (5 y 34) | B34: 00:00:00 | C34: 00:00:00 | D34: 00:00:00 | E34: 1
A35: Fortuna No.15-04 (19, 4, 0 y 7) | B35: 00:00:00 | C35: 00:00:00 | D35: 00:00:00 | E35: 1
A36: ACP No. 07-05 (Solo Energía) | B36: 00:00:00 | C36: 00:00:00 | D36: 00:00:00 | E36: 1
A37: BLM No.15-05 (Solo Energía) | B37: 00:00:00 | C37: 00:00:00 | D37: 00:00:00 | E37: 1
A38: Arkapal No.10-05 | B38: 2007-10-01 | C38: 2008-09-30 | D38: Energía Medida | E38: 0 | CM38: =+IF(AND(CM$24>=$B38,CM$24<=$C38),"X","") -> 
A39: Fortuna No.09-04 (71) | B39: 2005-01-01 | C39: 2008-12-31 | D39: DMG Anual | E39: 1
A40: AES No.13-05 (16, 17, 29) | B40: 2009-01-01 | C40: 2018-12-31 | D40: DMG Anual | E40: 1 | H40: X | I40: X | J40: X | K40: X | L40: X | M40: X | N40: X | O40: X | P40: X | Q40: X | R40: X | S40: X | T40: X | U40: X | V40: X | W40: =+IF(AND(W$24>=$B40,W$24<=$C40),"X","") -> X | X40: X | Y40: X | Z40: X | AA40: X | AB40: X | AC40: X | AD40: X | AE40: X | AF40: X | AG40: X | AH40: X | AI40: X | AJ40: X | AK40: X | AL40: X | AM40: X | AN40: X | AO40: X | AP40: X | AQ40: X | AR40: X | AS40: X | AT40: X | AU40: X | AV40: X | AW40: X | AX40: X | AY40: X | AZ40: X | BA40: X | BB40: X | BC40: =+IF(AND(BC$24>=$B40,BC$24<=$C40),"X","") -> X | BD40: X | BE40: X | BF40: X | BG40: X | BH40: X | BI40: X | BJ40: X | BK40: X | BL40: X | BM40: X | BN40: X | BO40: X | BP40: X | BQ40: X | BR40: X | BS40: X | BT40: X | BU40: X | BV40: X | BW40: X | BX40: X | BY40: X | BZ40: X | CA40: X | CB40: X | CC40: X | CD40: X | CE40: X | CF40: X | CG40: X | CH40: X | CI40: X | CJ40: X | CK40: X | CL40: X | CM40: X | CN40: X | CO40: X | CP40: X | CQ40: X | CR40: X | CS40: X | CT40: X | CU40: X | CV40: X | CW40: X | CX40: X
A41: Fortuna No. 15-05 | B41: 2009-01-01 | C41: 2018-12-31 | D41: DMG Anual | E41: 1 | H41: =+IF(AND(H$24>=$B41,H$24<=$C41),"X","") -> X | I41: X | J41: X | K41: X | L41: X | M41: X | N41: X | O41: X | P41: X | Q41: X | R41: X | S41: X | T41: X | U41: X | V41: X | W41: X | X41: X | Y41: X | Z41: X | AA41: X | AB41: X | AC41: X | AD41: X | AE41: =+IF(AND(AE$24>=$B41,AE$24<=$C41),"X","") -> X | AF41: X | AG41: X | AH41: X | AI41: X | AJ41: X | AK41: X | AL41: X | AM41: X | AN41: X | AO41: X | AP41: X | AQ41: X | AR41: X | AS41: X | AT41: X | AU41: X | AV41: X | AW41: X | AX41: X | AY41: X | AZ41: X | BA41: X | BB41: X | BC41: X | BD41: X | BE41: X | BF41: X | BG41: X | BH41: X | BI41: X | BJ41: X | BK41: X | BL41: X | BM41: X | BN41: X | BO41: X | BP41: X | BQ41: X | BR41: X | BS41: X | BT41: X | BU41: X | BV41: X | BW41: X | BX41: X | BY41: X | BZ41: X | CA41: =+IF(AND(CA$24>=$B41,CA$24<=$C41),"X","") -> X | CB41: X | CC41: X | CD41: X | CE41: X | CF41: X | CG41: X | CH41: X | CI41: X | CJ41: X | CK41: X | CL41: X | CM41: X | CN41: =+IF(AND(CN$24>=$B41,CN$24<=$C41),"X","") -> X | CO41: X | CP41: X | CQ41: X | CR41: X | CS41: X | CT41: X | CU41: X | CV41: X | CW41: X | CX41: X
A42: Los Estrechos No. 17-06 (2,5) | B42: 2011-01-01 | C42: 2011-06-30 | D42: DMG Anual | E42: 1 | T42: X | U42: X | V42: X | W42: X | X42: X | Y42: X
A43: Saltos de Francolí No. 18-06 (0,7125) | B43: 2009-09-01 | C43: 2019-07-31 | D43: DMG Anual | E43: 1 | H43: X | I43: X | J43: X | K43: X | L43: X | M43: X | N43: X | O43: X | P43: X | Q43: X | R43: X | S43: X | T43: X | U43: X | V43: X | W43: X | X43: X | Y43: X | Z43: X | AA43: X | AB43: X | AC43: X | AD43: X | AE43: X | AF43: X | AG43: X | AH43: X | AI43: X | AJ43: X | AK43: X | AL43: X | AM43: X | AN43: X | AO43: X | AP43: X | AQ43: X | AR43: X | AS43: X | AT43: X | AU43: X | AV43: X | AW43: X | AX43: X | AY43: X | AZ43: X | BA43: X | BB43: X | BC43: X | BD43: X | BE43: X | BF43: X | BG43: X | BH43: X | BI43: X | BJ43: X | BK43: X | BL43: X | BM43: X | BN43: X | BO43: X | BP43: X | BQ43: X | BR43: X | BS43: X | BT43: X | BU43: X | BV43: X | BW43: X | BX43: X | BY43: X | BZ43: X | CA43: X | CB43: X | CC43: X | CD43: X | CE43: X | CF43: X | CG43: X | CH43: X | CI43: X | CJ43: X | CK43: X | CL43: X | CM43: X | CN43: X | CO43: X | CP43: X | CQ43: X | CR43: X | CS43: X | CT43: X | CU43: X | CV43: X | CW43: X | CX43: X
A44: AES No. 19-06 (35) | B44: 2011-01-01 | C44: 2020-12-31 | D44: DMG Anual | E44: 1 | T44: X | U44: X | V44: X | W44: X | X44: X | Y44: X | Z44: X | AA44: X | AB44: X | AC44: X | AD44: X | AE44: X | AF44: X | AG44: X | AH44: X | AI44: X | AJ44: X | AK44: X | AL44: X | AM44: X | AN44: X | AO44: X | AP44: X | AQ44: X | AR44: X | AS44: X | AT44: X | AU44: X | AV44: X | AW44: X | AX44: X | AY44: X | AZ44: X | BA44: X | BB44: X | BC44: X | BD44: X | BE44: X | BF44: X | BG44: X | BH44: X | BI44: X | BJ44: X | BK44: X | BL44: X | BM44: X | BN44: X | BO44: X | BP44: X | BQ44: X | BR44: X | BS44: X | BT44: X | BU44: X | BV44: X | BW44: X | BX44: X | BY44: X | BZ44: X | CA44: X | CB44: X | CC44: X | CD44: X | CE44: X | CF44: X | CG44: X | CH44: X | CI44: X | CJ44: X | CK44: X | CL44: X | CM44: X | CN44: X | CO44: X | CP44: X | CQ44: X | CR44: X | CS44: X | CT44: X | CU44: X | CV44: X | CW44: X | CX44: X
A45: Generadora del Atlantico No. 05-07 | B45: 2009-06-01 | C45: 2010-12-31 | D45: DMG Mensual sin RC | E45: 1 | H45: X | I45: X | J45: X | K45: X | L45: X | M45: X | N45: X | O45: X | P45: X | Q45: X | R45: X | S45: X
A46: Inversiones y Desarrollo Balboa No. 06-07 | B46: 2008-08-01 | C46: 2008-12-31 | D46: DMG Mensual sin RC | E46: 1 | BM46: =+IF(AND(BM$24>=$B46,BM$24<=$C46),"X","") -> 
A47: Térmica del Cariba No. 07-07 (4,275) | B47: 2009-03-01 | C47: 2014-06-30 | D47: DMG Mensual sin RC | E47: 1 | H47: X | I47: X | J47: X | K47: X | L47: X | M47: X | N47: X | O47: X | P47: X | Q47: X | R47: X | S47: X | T47: X | U47: X | V47: X | W47: X | X47: X | Y47: X | Z47: X | AA47: X | AB47: X | AC47: X | AD47: X | AE47: X | AF47: X | AG47: X | AH47: X | AI47: X | AJ47: X | AK47: X | AL47: X | AM47: X | AN47: X | AO47: X | AP47: X | AQ47: X | AR47: X | AS47: X | AT47: X | AU47: X | AV47: X | AW47: X | AX47: X | AY47: X | AZ47: X | BA47: X | BB47: X | BC47: X | BD47: X | BE47: X | BF47: =+IF(AND(BF$24>=$B47,BF$24<=$C47),"X","") -> X | BG47: X | BH47: X | BI47: X
A48: Fortuna No. 15-05 (Traspaso) | B48: 2009-01-01 | C48: 2012-12-31 | D48: DMG Anual | E48: 1 | H48: X | I48: X | J48: X | K48: X | L48: X | M48: X | N48: X | O48: X | P48: X | Q48: X | R48: X | S48: X | T48: X | U48: X | V48: X | W48: X | X48: X | Y48: X | Z48: X | AA48: X | AB48: X | AC48: X | AD48: X | AE48: X | AF48: X | AG48: X | AH48: X | AI48: X | AJ48: X | AK48: X | AL48: X | AM48: X | AN48: X | AO48: X | AP48: X | AQ48: X
A49: ACP No. 12-08 (Sólo Energía) | B49: 2009-01-01 | C49: 2009-12-31 | D49: Excedente*(%Distr.* %Exced) | E49: 0
A50: ACP No. 13-08 (Sólo Energía) | B50: 2009-01-01 | C50: 2009-12-31 | D50: Excedente*(%Distr.* %Exced) | E50: 0
A51: ACP No 15-08 (Sólo Energía) | B51: 2009-01-01 | C51: 2009-12-31 | D51: Excedente*(%Distr.* %Exced) | E51: 0 | CT51: =+IF(AND(CT$24>=$B51,CT$24<=$C51),"X","") -> 
E52: 0 | AT52: =+IF(AND(AT$24>=$B52,AT$24<=$C52),"X","") -> 
E53: 0 | AM53: =+IF(AND(AM$24>=$B53,AM$24<=$C53),"X","") -> 
E54: 0
E55: 0
E56: 0 | X56: =+IF(AND(X$24>=$B56,X$24<=$C56),"X","") -> 
E57: 0 | I57: =+IF(AND(I$24>=$B57,I$24<=$C57),"X","") ->  | BV57: =+IF(AND(BV$24>=$B57,BV$24<=$C57),"X","") ->  | CN57: =+IF(AND(CN$24>=$B57,CN$24<=$C57),"X","") -> 
E58: 0
E59: 0
E60: 0
E61: 0
E62: 0
E63: 0
E64: 0 | BS64: =+IF(AND(BS$24>=$B64,BS$24<=$C64),"X","") ->  | CT64: =+IF(AND(CT$24>=$B64,CT$24<=$C64),"X","") -> 
E65: 0 | BJ65: =+IF(AND(BJ$24>=$B65,BJ$24<=$C65),"X","") -> 
E66: 0
E67: 0
E68: 0 | BB68: =+IF(AND(BB$24>=$B68,BB$24<=$C68),"X","") -> 
E69: 0 | AN69: =+IF(AND(AN$24>=$B69,AN$24<=$C69),"X","") -> 
E70: 0
E71: 0
E72: 0 | X72: =+IF(AND(X$24>=$B72,X$24<=$C72),"X","") -> 
E73: 0 | I73: =+IF(AND(I$24>=$B73,I$24<=$C73),"X","") -> 
E74: 0
E75: 0
E76: 0
E77: 0
E78: 0
E79: 0
E80: 0
E81: 0
E82: 0
E83: 0
E84: 0
E85: 0
E86: 0
E87: 0
E88: 0
E89: 0
E90: 0
E91: 0
E92: 0
E93: 0
E94: 0
E95: 0
E96: 0
E97: 0
E98: 0
E99: 0
E100: 0
E101: 0
E102: 0
E103: 0
E104: 0
E105: 0
E106: 0
E107: 0
A108: ESEPSA No. 18-10 | B108: 2014-01-01 | C108: 2014-12-31 | D108: Potencia | E108: 1 | H108: =+IF(AND(H$24>=$B108,H$24<=$C108),"X","") ->  | X108: =+IF(AND(X$24>=$B108,X$24<=$C108),"X","") ->  | AN108: =+IF(AND(AN$24>=$B108,AN$24<=$C108),"X","") ->  | BD108: =+IF(AND(BD$24>=$B108,BD$24<=$C108),"X","") -> X | BE108: X | BF108: X | BG108: X | BH108: X | BI108: X | BJ108: X | BK108: X | BL108: X | BM108: X | BN108: X | BO108: X | BT108: =+IF(AND(BT$24>=$B108,BT$24<=$C108),"X","") ->  | CG108: =+IF(AND(CG$24>=$B108,CG$24<=$C108),"X","") ->  | CN108: =+IF(AND(CN$24>=$B108,CN$24<=$C108),"X","") -> 
A109: Enel Fortuna No. 20-10 | B109: 2014-01-01 | C109: 2014-12-31 | D109: Potencia | E109: 1 | BD109: X | BE109: X | BF109: X | BG109: X | BH109: X | BI109: X | BJ109: X | BK109: X | BL109: X | BM109: X | BN109: X | BO109: X
A110: GENA No. 22-10 | B110: 2014-01-01 | C110: 2014-12-31 | D110: Potencia | E110: 1 | BD110: X | BE110: X | BF110: X | BG110: X | BH110: X | BI110: X | BJ110: X | BK110: X | BL110: X | BM110: X | BN110: X | BO110: X
A111: ACP No. 24-10 | B111: 2014-01-01 | C111: 2014-12-31 | D111: Potencia | E111: 1 | BD111: X | BE111: X | BF111: X | BG111: X | BH111: X | BI111: X | BJ111: X | BK111: X | BL111: X | BM111: X | BN111: X | BO111: X
A112: Fortuna No.14-05 Tras | B112: 2011-01-01 | C112: 2011-06-30 | D112: DMG Anual | E112: 1 | T112: X | U112: X | V112: X | W112: X | X112: X | Y112: X
A113: Enel Fortuna No. 64-11 | B113: 2011-07-01 | C113: 2012-06-30 | D113: Excedente | E113: 0 | Z113: X | AA113: X | AB113: X | AC113: X | AD113: X | AE113: X | AF113: X | AG113: X | AH113: X | AI113: X | AJ113: X | AK113: X
A114: AES PANAMA No. 61-11 | B114: 2011-07-01 | C114: 2012-06-30 | D114: Excedente | E114: 0 | Z114: X | AA114: X | AB114: X | AC114: X | AD114: X | AE114: X | AF114: X | AG114: X | AH114: X | AI114: X | AJ114: X | AK114: X
A115: ESEPSA (La Yeguada) No. 62-11 | B115: 2011-07-01 | C115: 2012-06-30 | D115: Excedente | E115: 0 | Z115: X | AA115: X | AB115: X | AC115: X | AD115: X | AE115: X | AF115: X | AG115: X | AH115: X | AI115: X | AJ115: X | AK115: X
A116: Pedregalito No.18-11 | B116: 2012-01-01 | C116: 2014-12-31 | D116: DMG Mensual sin RC | E116: 1 | AF116: X | AG116: X | AH116: X | AI116: X | AJ116: X | AK116: X | AL116: X | AM116: X | AN116: X | AO116: X | AP116: X | AQ116: X | AR116: X | AS116: X | AT116: X | AU116: X | AV116: X | AW116: X | AX116: X | AY116: X | AZ116: X | BA116: X | BB116: X | BC116: X | BD116: X | BE116: X | BF116: X | BG116: X | BH116: X | BI116: X | BJ116: X | BK116: X | BL116: X | BM116: X | BN116: X | BO116: X
A117: Rio Chico No. 19-11 | B117: 2012-01-01 | C117: 2014-12-31 | D117: DMG Mensual sin RC | E117: 1 | AF117: X | AG117: X | AH117: X | AI117: X | AJ117: X | AK117: X | AL117: X | AM117: X | AN117: X | AO117: X | AP117: X | AQ117: X | AR117: X | AS117: X | AT117: X | AU117: X | AV117: X | AW117: X | AX117: X | AY117: X | AZ117: X | BA117: X | BB117: X | BC117: X | BD117: X | BE117: X | BF117: X | BG117: X | BH117: X | BI117: X | BJ117: X | BK117: X | BL117: X | BM117: X | BN117: X | BO117: X
A118: Alto Valle No. 20-11 | B118: 2012-01-01 | C118: 2015-06-30 | D118: DMG Mensual sin RC | E118: 1 | AF118: X | AG118: X | AH118: X | AI118: X | AJ118: X | AK118: X | AL118: X | AM118: X | AN118: X | AO118: X | AP118: X | AQ118: X | AR118: X | AS118: X | AT118: X | AU118: X | AV118: X | AW118: X | AX118: X | AY118: X | AZ118: X | BA118: X | BB118: X | BC118: X | BD118: X | BE118: X | BF118: X | BG118: X | BH118: X | BI118: X | BJ118: X | BK118: X | BL118: X | BM118: X | BN118: X | BO118: X | BP118: X | BQ118: X | BR118: X | BS118: X | BT118: X | BU118: X
A119: Electrogeneradora del Istmo No. 21-11 | B119: 2012-01-01 | C119: 2014-12-31 | D119: DMG Mensual sin RC | E119: 1 | AF119: X | AG119: X | AH119: X | AI119: X | AJ119: X | AK119: X | AL119: X | AM119: X | AN119: X | AO119: X | AP119: X | AQ119: X | AR119: X | AS119: X | AT119: X | AU119: X | AV119: X | AW119: X | AX119: X | AY119: X | AZ119: X | BA119: X | BB119: X | BC119: X | BD119: X | BE119: X | BF119: X | BG119: X | BH119: X | BI119: X | BJ119: X | BK119: X | BL119: X | BM119: X | BN119: X | BO119: X
A120: Caldera Energy Corp. No. 22-11 | B120: 2012-01-01 | C120: 2014-12-31 | D120: DMG Mensual sin RC | E120: 1 | AF120: X | AG120: X | AH120: X | AI120: X | AJ120: X | AK120: X | AL120: X | AM120: X | AN120: X | AO120: X | AP120: X | AQ120: X | AR120: X | AS120: X | AT120: X | AU120: X | AV120: X | AW120: X | AX120: X | AY120: X | AZ120: X | BA120: X | BB120: X | BC120: X | BD120: X | BE120: X | BF120: X | BG120: X | BH120: X | BI120: X | BJ120: X | BK120: X | BL120: X | BM120: X | BN120: X | BO120: X | CV120: =+IF(AND(CV$24>=$B120,CV$24<=$C120),"X","") -> 
A121: Hidro Piedra No. 23-11 | B121: 2012-01-01 | C121: 2014-12-31 | D121: DMG Mensual sin RC | E121: 1 | AF121: X | AG121: X | AH121: X | AI121: X | AJ121: X | AK121: X | AL121: X | AM121: X | AN121: X | AO121: X | AP121: X | AQ121: X | AR121: X | AS121: X | AT121: X | AU121: X | AV121: X | AW121: X | AX121: X | AY121: X | AZ121: X | BA121: X | BB121: X | BC121: X | BD121: X | BE121: X | BF121: X | BG121: X | BH121: X | BI121: X | BJ121: X | BK121: X | BL121: X | BM121: X | BN121: X | BO121: X
A122: Empresa Nacional de Energía No. 36-11 (Cesión) | B122: 2016-09-01 | C122: 2029-12-31 | D122: DMG Mensual sin RC | E122: 1 | CJ122: X | CK122: X | CL122: X | CM122: X | CN122: X | CO122: X | CP122: X | CQ122: X | CR122: X | CS122: X | CT122: X | CU122: X | CV122: X | CW122: X | CX122: X
A123: Enel Fortuna No. 37-11 | B123: 2015-01-01 | C123: 2029-12-31 | D123: DMG Mensual sin RC | E123: 1 | W123: =+IF(AND(W$24>=$B123,W$24<=$C123),"X","") ->  | AM123: =+IF(AND(AM$24>=$B123,AM$24<=$C123),"X","") ->  | BC123: =+IF(AND(BC$24>=$B123,BC$24<=$C123),"X","") ->  | BP123: X | BQ123: X | BR123: X | BS123: X | BT123: X | BU123: X | BV123: X | BW123: X | BX123: X | BY123: X | BZ123: X | CA123: X | CB123: X | CC123: X | CD123: X | CE123: X | CF123: X | CG123: X | CH123: X | CI123: X | CJ123: X | CK123: X | CL123: X | CM123: X | CN123: X | CO123: X | CP123: X | CQ123: X | CR123: X | CS123: X | CT123: X | CU123: X | CV123: X | CW123: X | CX123: X
A124: Electrogeneradora del Istmo No. 38-11 | B124: 2015-01-01 | C124: 2029-12-31 | D124: DMG Mensual sin RC | E124: 1 | H124: =+IF(AND(H$24>=$B124,H$24<=$C124),"X","") ->  | X124: =+IF(AND(X$24>=$B124,X$24<=$C124),"X","") ->  | AN124: =+IF(AND(AN$24>=$B124,AN$24<=$C124),"X","") ->  | BD124: =+IF(AND(BD$24>=$B124,BD$24<=$C124),"X","") ->  | BP124: X | BQ124: X | BR124: X | BS124: X | BT124: =+IF(AND(BT$24>=$B124,BT$24<=$C124),"X","") -> X | BU124: X | BV124: X | BW124: X | BX124: X | BY124: X | BZ124: X | CA124: X | CB124: X | CC124: X | CD124: X | CE124: X | CF124: X | CG124: X | CH124: X | CI124: X | CJ124: X | CK124: X | CL124: X | CM124: X | CN124: =+IF(AND(CN$24>=$B124,CN$24<=$C124),"X","") -> X | CO124: X | CP124: X | CQ124: X | CR124: X | CS124: X | CT124: X | CU124: X | CV124: X | CW124: X | CX124: X
A125: ESEPSA No. 39-11 | B125: 2015-01-01 | C125: 2029-12-31 | D125: DMG Mensual sin RC | E125: 1 | BP125: X | BQ125: X | BR125: X | BS125: X | BT125: X | BU125: X | BV125: X | BW125: X | BX125: X | BY125: X | BZ125: X | CA125: X | CB125: X | CC125: X | CD125: X | CE125: X | CF125: X | CG125: X | CH125: X | CI125: X | CJ125: X | CK125: X | CL125: X | CM125: X | CN125: X | CO125: X | CP125: X | CQ125: X | CR125: X | CS125: X | CT125: X | CU125: X | CV125: X | CW125: X | CX125: X
A126: Pedregalito No. 40-11 | B126: 2015-01-01 | C126: 2029-12-31 | D126: DMG Mensual sin RC | E126: 1 | BP126: X | BQ126: X | BR126: X | BS126: X | BT126: X | BU126: X | BV126: X | BW126: X | BX126: X | BY126: X | BZ126: X | CA126: X | CB126: X | CC126: X | CD126: X | CE126: X | CF126: X | CG126: X | CH126: X | CI126: X | CJ126: X | CK126: X | CL126: X | CM126: X | CN126: X | CO126: X | CP126: X | CQ126: X | CR126: X | CS126: X | CT126: X | CU126: X | CV126: X | CW126: X | CX126: X
A127: Río Chico No. 41-11 | B127: 2015-01-01 | C127: 2029-12-31 | D127: DMG Mensual sin RC | E127: 1 | BP127: X | BQ127: X | BR127: X | BS127: X | BT127: X | BU127: X | BV127: X | BW127: X | BX127: X | BY127: X | BZ127: X | CA127: X | CB127: X | CC127: X | CD127: X | CE127: X | CF127: X | CG127: X | CH127: X | CI127: X | CJ127: X | CK127: X | CL127: X | CM127: X | CN127: X | CO127: X | CP127: X | CQ127: X | CR127: X | CS127: X | CT127: X | CU127: X | CV127: X | CW127: X | CX127: X
A128: Alto Valle No. 42-11 | B128: 2015-01-01 | C128: 2029-12-31 | D128: DMG Mensual sin RC | E128: 1 | BP128: X | BQ128: X | BR128: X | BS128: X | BT128: X | BU128: X | BV128: X | BW128: X | BX128: X | BY128: X | BZ128: X | CA128: X | CB128: X | CC128: X | CD128: X | CE128: X | CF128: X | CG128: X | CH128: X | CI128: X | CJ128: X | CK128: X | CL128: X | CM128: X | CN128: X | CO128: X | CP128: X | CQ128: X | CR128: X | CS128: X | CT128: X | CU128: X | CV128: X | CW128: X | CX128: X
A129: Hidroecológica del Teribe No. 43-11 | B129: 2015-01-01 | C129: 2029-12-31 | D129: DMG Mensual sin RC | E129: 1 | BP129: X | BQ129: X | BR129: X | BS129: X | BT129: X | BU129: X | BV129: X | BW129: X | BX129: X | BY129: X | BZ129: X | CA129: X | CB129: X | CC129: X | CD129: X | CE129: X | CF129: X | CG129: X | CH129: X | CI129: X | CJ129: X | CK129: X | CL129: X | CM129: X | CN129: X | CO129: X | CP129: X | CQ129: X | CR129: X | CS129: X | CT129: X | CU129: X | CV129: X | CW129: X | CX129: X
A130: Desarrollos Hidroeléctricos Corp. No. 44-11 | B130: 2015-01-01 | C130: 2029-12-31 | D130: DMG Mensual sin RC | E130: 1 | BP130: X | BQ130: X | BR130: X | BS130: X | BT130: X | BU130: X | BV130: X | BW130: X | BX130: X | BY130: X | BZ130: X | CA130: X | CB130: X | CC130: X | CD130: X | CE130: X | CF130: X | CG130: X | CH130: X | CI130: X | CJ130: X | CK130: X | CL130: X | CM130: X | CN130: X | CO130: X | CP130: X | CQ130: X | CR130: X | CS130: X | CT130: X | CU130: X | CV130: X | CW130: X | CX130: X
A131: Las Perlas Norte No. 45-11 | B131: 2016-08-06 | C131: 2029-12-31 | D131: DMG Mensual sin RC | E131: 1 | CJ131: X | CK131: X | CL131: X | CM131: X | CN131: X | CO131: X | CP131: X | CQ131: X | CR131: X | CS131: X | CT131: X | CU131: X | CV131: X | CW131: X | CX131: X
A132: Hidroeléctrica San Lorenzo No. 46-11 | B132: 2015-01-01 | C132: 2029-12-31 | D132: DMG Mensual sin RC | E132: 1 | BP132: X | BQ132: X | BR132: X | BS132: X | BT132: X | BU132: X | BV132: X | BW132: X | BX132: X | BY132: X | BZ132: X | CA132: X | CB132: X | CC132: X | CD132: X | CE132: X | CF132: X | CG132: X | CH132: X | CI132: X | CJ132: X | CK132: X | CL132: X | CM132: X | CN132: X | CO132: X | CP132: X | CQ132: X | CR132: X | CS132: X | CT132: X | CU132: X | CV132: X | CW132: X | CX132: X
A133: Caldera Energy Corp. No. 47-11 | B133: 2015-01-01 | C133: 2029-12-31 | D133: DMG Mensual sin RC | E133: 1 | BP133: X | BQ133: X | BR133: X | BS133: X | BT133: X | BU133: X | BV133: X | BW133: X | BX133: X | BY133: X | BZ133: X | CA133: X | CB133: X | CC133: X | CD133: X | CE133: X | CF133: X | CG133: X | CH133: X | CI133: X | CJ133: X | CK133: X | CL133: X | CM133: X | CN133: X | CO133: X | CP133: X | CQ133: X | CR133: X | CS133: X | CT133: =+IF(AND(CT$24>=$B133,CT$24<=$C133),"X","") -> X | CU133: X | CV133: X | CW133: X | CX133: X
A134: ACP No. 63-11 Motores | B134: 2011-07-01 | C134: 2012-06-30 | D134: Excedente | E134: 0 | Z134: X | AA134: X | AB134: X | AC134: X | AD134: X | AE134: X | AF134: X | AG134: X | AH134: X | AI134: X | AJ134: X | AK134: X
A135: ACP No. 63-11 Hidro | B135: 2011-07-01 | C135: 2012-06-30 | D135: Excedente | E135: 0 | Z135: X | AA135: X | AB135: X | AC135: X | AD135: X | AE135: X | AF135: X | AG135: X | AH135: X | AI135: X | AJ135: X | AK135: X
A136: Hidro Caldera No. 65-11 | B136: 2011-07-01 | C136: 2012-06-30 | D136: Excedente | E136: 0 | Z136: X | AA136: X | AB136: X | AC136: X | AD136: X | AE136: X | AF136: X | AG136: X | AH136: X | AI136: X | AJ136: X | AK136: X
A137: Pedregalito No.66-11 | B137: 2011-07-01 | C137: 2012-06-30 | D137: Excedente | E137: 0 | Z137: X | AA137: X | AB137: X | AC137: X | AD137: X | AE137: X | AF137: X | AG137: X | AH137: X | AI137: X | AJ137: X | AK137: X
A138: Rio Chico No. 67-11 | B138: 2011-07-01 | C138: 2012-06-30 | D138: Excedente | E138: 0 | Z138: X | AA138: X | AB138: X | AC138: X | AD138: X | AE138: X | AF138: X | AG138: X | AH138: X | AI138: X | AJ138: X | AK138: X
A139: Alternegy No. 68-11 | B139: 2011-07-01 | C139: 2012-06-30 | D139: Excedente | E139: 0 | W139: =+IF(AND(W$24>=$B139,W$24<=$C139),"X","") ->  | Z139: X | AA139: X | AB139: X | AC139: X | AD139: X | AE139: X | AF139: X | AG139: X | AH139: X | AI139: X | AJ139: X | AK139: X | AM139: =+IF(AND(AM$24>=$B139,AM$24<=$C139),"X","") ->  | BC139: =+IF(AND(BC$24>=$B139,BC$24<=$C139),"X","") -> 
A140: Bontex No. 69-11 | B140: 2011-07-01 | C140: 2012-06-30 | D140: Excedente | E140: 0 | H140: =+IF(AND(H$24>=$B140,H$24<=$C140),"X","") ->  | X140: =+IF(AND(X$24>=$B140,X$24<=$C140),"X","") ->  | Z140: X | AA140: X | AB140: X | AC140: X | AD140: X | AE140: X | AF140: X | AG140: X | AH140: X | AI140: X | AJ140: X | AK140: X | AN140: =+IF(AND(AN$24>=$B140,AN$24<=$C140),"X","") ->  | BD140: =+IF(AND(BD$24>=$B140,BD$24<=$C140),"X","") ->  | BT140: =+IF(AND(BT$24>=$B140,BT$24<=$C140),"X","") ->  | CN140: =+IF(AND(CN$24>=$B140,CN$24<=$C140),"X","") -> 
A141: Istmus No. 70-11 | B141: 2011-07-01 | C141: 2012-06-30 | D141: Excedente | E141: 0 | Z141: X | AA141: X | AB141: X | AC141: X | AD141: X | AE141: X | AF141: X | AG141: X | AH141: X | AI141: X | AJ141: X | AK141: X
A142: BLM (Carbón) No. 71-11 | B142: 2011-07-01 | C142: 2012-06-30 | D142: Excedente | E142: 0 | Z142: X | AA142: X | AB142: X | AC142: X | AD142: X | AE142: X | AF142: X | AG142: X | AH142: X | AI142: X | AJ142: X | AK142: X
A143: IDB No. 72-11 | B143: 2011-07-01 | C143: 2012-06-30 | D143: Excedente | E143: 0 | Z143: X | AA143: X | AB143: X | AC143: X | AD143: X | AE143: X | AF143: X | AG143: X | AH143: X | AI143: X | AJ143: X | AK143: X
A144: Pedregal No. 73-11 | B144: 2011-07-01 | C144: 2012-06-30 | D144: Excedente | E144: 0 | Z144: X | AA144: X | AB144: X | AC144: X | AD144: X | AE144: X | AF144: X | AG144: X | AH144: X | AI144: X | AJ144: X | AK144: X
A145: ESEPSA (Algarrobos) No. 62-11 | B145: 2011-07-01 | C145: 2012-06-30 | D145: Excedente | E145: 0 | Z145: X | AA145: X | AB145: X | AC145: X | AD145: X | AE145: X | AF145: X | AG145: X | AH145: X | AI145: X | AJ145: X | AK145: X
A146: ESEPSA (Dolega) No. 62-11 | B146: 2011-07-01 | C146: 2012-06-30 | D146: Excedente | E146: 0 | Z146: X | AA146: X | AB146: X | AC146: X | AD146: X | AE146: X | AF146: X | AG146: X | AH146: X | AI146: X | AJ146: X | AK146: X | CT146: =+IF(AND(CT$24>=$B146,CT$24<=$C146),"X","") -> 
A147: ESEPSA (Macho de Monte) No. 62-11 | B147: 2011-07-01 | C147: 2012-06-30 | D147: Excedente | E147: 0 | Z147: X | AA147: X | AB147: X | AC147: X | AD147: X | AE147: X | AF147: X | AG147: X | AH147: X | AI147: X | AJ147: X | AK147: X
A148: Hidroibérica No. 80-11 | B148: 2012-01-01 | C148: 2014-12-31 | D148: Potencia | E148: 1 | AF148: X | AG148: X | AH148: X | AI148: X | AJ148: X | AK148: X | AL148: X | AM148: X | AN148: X | AO148: X | AP148: X | AQ148: X | AR148: X | AS148: X | AT148: X | AU148: X | AV148: X | AW148: X | AX148: X | AY148: X | AZ148: X | BA148: X | BB148: X | BC148: X | BD148: X | BE148: X | BF148: X | BG148: X | BH148: X | BI148: X | BJ148: X | BK148: X | BL148: X | BM148: X | BN148: X | BO148: X
A149: Enel Fortuna No. 81-11 | B149: 2012-01-01 | C149: 2014-12-31 | D149: Potencia | E149: 1 | AF149: X | AG149: X | AH149: X | AI149: X | AJ149: X | AK149: X | AL149: X | AM149: X | AN149: X | AO149: X | AP149: X | AQ149: X | AR149: X | AS149: X | AT149: X | AU149: X | AV149: X | AW149: X | AX149: X | AY149: X | AZ149: X | BA149: X | BB149: X | BC149: X | BD149: X | BE149: X | BF149: X | BG149: X | BH149: X | BI149: X | BJ149: X | BK149: X | BL149: X | BM149: X | BN149: X | BO149: X
A150: Hidro Boquerón No. 82-11 | B150: 2012-01-01 | C150: 2014-12-31 | D150: Potencia | E150: 1 | AF150: X | AG150: X | AH150: X | AI150: X | AJ150: X | AK150: X | AL150: X | AM150: X | AN150: X | AO150: X | AP150: X | AQ150: X | AR150: X | AS150: X | AT150: X | AU150: X | AV150: X | AW150: X | AX150: X | AY150: X | AZ150: X | BA150: X | BB150: X | BC150: X | BD150: X | BE150: X | BF150: X | BG150: X | BH150: X | BI150: X | BJ150: X | BK150: X | BL150: X | BM150: X | BN150: X | BO150: X
A151: Pedregal Power No. 83-11 | B151: 2012-01-01 | C151: 2014-12-31 | D151: Potencia | E151: 1 | AF151: X | AG151: X | AH151: X | AI151: X | AJ151: X | AK151: X | AL151: X | AM151: X | AN151: X | AO151: X | AP151: X | AQ151: X | AR151: X | AS151: X | AT151: X | AU151: X | AV151: X | AW151: X | AX151: X | AY151: X | AZ151: X | BA151: X | BB151: X | BC151: X | BD151: X | BE151: X | BF151: X | BG151: X | BH151: X | BI151: X | BJ151: X | BK151: X | BL151: X | BM151: X | BN151: X | BO151: X
A152: EGESA No. 84-11 | B152: 2012-01-01 | C152: 2014-12-31 | D152: Potencia | E152: 1 | AF152: X | AG152: X | AH152: X | AI152: X | AJ152: X | AK152: X | AL152: X | AM152: X | AN152: X | AO152: X | AP152: X | AQ152: X | AR152: X | AS152: X | AT152: X | AU152: X | AV152: X | AW152: X | AX152: X | AY152: X | AZ152: X | BA152: X | BB152: X | BC152: X | BD152: X | BE152: X | BF152: X | BG152: X | BH152: X | BI152: X | BJ152: X | BK152: X | BL152: X | BM152: X | BN152: X | BO152: X
A153: ACP No. 85-11 | B153: 2012-01-01 | C153: 2014-12-31 | D153: Potencia | E153: 1 | AF153: X | AG153: X | AH153: X | AI153: X | AJ153: X | AK153: X | AL153: X | AM153: X | AN153: X | AO153: X | AP153: X | AQ153: X | AR153: X | AS153: X | AT153: X | AU153: X | AV153: X | AW153: X | AX153: X | AY153: X | AZ153: X | BA153: X | BB153: X | BC153: X | BD153: X | BE153: X | BF153: X | BG153: X | BH153: X | BI153: X | BJ153: X | BK153: X | BL153: X | BM153: X | BN153: X | BO153: X
A154: Istmus Hydro Power No. 08-12 | B154: 2012-01-01 | C154: 2012-12-31 | D154: Potencia | E154: 1 | AF154: X | AG154: X | AH154: X | AI154: X | AJ154: X | AK154: X | AL154: X | AM154: X | AN154: X | AO154: X | AP154: X | AQ154: X
A155: Hidro Panamá No. 09-12 | B155: 2012-01-01 | C155: 2012-12-31 | D155: Potencia | E155: 1 | W155: =+IF(AND(W$24>=$B155,W$24<=$C155),"X","") ->  | AF155: X | AG155: X | AH155: X | AI155: X | AJ155: X | AK155: X | AL155: X | AM155: =+IF(AND(AM$24>=$B155,AM$24<=$C155),"X","") -> X | AN155: X | AO155: X | AP155: X | AQ155: X | BC155: =+IF(AND(BC$24>=$B155,BC$24<=$C155),"X","") -> 
A156: Pedregal Power No. 10-12 | B156: 2012-01-01 | C156: 2012-12-31 | D156: Potencia | E156: 1 | H156: =+IF(AND(H$24>=$B156,H$24<=$C156),"X","") ->  | X156: =+IF(AND(X$24>=$B156,X$24<=$C156),"X","") ->  | AF156: X | AG156: X | AH156: X | AI156: X | AJ156: X | AK156: X | AL156: X | AM156: X | AN156: =+IF(AND(AN$24>=$B156,AN$24<=$C156),"X","") -> X | AO156: X | AP156: X | AQ156: X | BD156: =+IF(AND(BD$24>=$B156,BD$24<=$C156),"X","") ->  | BT156: =+IF(AND(BT$24>=$B156,BT$24<=$C156),"X","") ->  | CN156: =+IF(AND(CN$24>=$B156,CN$24<=$C156),"X","") -> 
A157: Pedregal Power No. 11-12 | B157: 2012-01-01 | C157: 2012-12-31 | D157: Potencia | E157: 1 | AF157: X | AG157: X | AH157: X | AI157: X | AJ157: X | AK157: X | AL157: X | AM157: X | AN157: X | AO157: X | AP157: X | AQ157: X
A158: Café de Eleta No. 12-12 | B158: 2012-01-01 | C158: 2012-12-31 | D158: Potencia | E158: 1 | AF158: X | AG158: X | AH158: X | AI158: X | AJ158: X | AK158: X | AL158: X | AM158: X | AN158: X | AO158: X | AP158: X | AQ158: X
A159: Bahías Las Minas No. 13-12 | B159: 2012-01-01 | C159: 2012-12-31 | D159: Potencia | E159: 1 | AF159: X | AG159: X | AH159: X | AI159: X | AJ159: X | AK159: X | AL159: X | AM159: X | AN159: X | AO159: X | AP159: X | AQ159: X | CJ159: =+IF(AND(CJ$24>=$B159,CJ$24<=$C159),"X","") -> 
A160: Generadora del Atlántico No. 14-12 | B160: 2012-01-01 | C160: 2012-12-31 | D160: Potencia | E160: 1 | AF160: X | AG160: X | AH160: X | AI160: X | AJ160: X | AK160: X | AL160: X | AM160: X | AN160: X | AO160: X | AP160: X | AQ160: X
A161: Unión Eólica de Panamá (PE Nuevo Chagres) No. 19-12' | B161: 2014-01-01 | C161: 2028-12-31 | D161: Min ((PE/DMG mensual s/r)*E o G*%D)) | E161: 0 | BD161: X | BE161: X | BF161: X | BG161: X | BH161: X | BI161: X | BJ161: X | BK161: X | BL161: X | BM161: X | BN161: X | BO161: X | BP161: X | BQ161: X | BR161: X | BS161: X | BT161: X | BU161: X | BV161: X | BW161: X | BX161: X | BY161: X | BZ161: X | CA161: X | CB161: X | CC161: X | CD161: X | CE161: X | CF161: X | CG161: X | CH161: X | CI161: X | CJ161: X | CK161: X | CL161: X | CM161: X | CN161: X | CO161: X | CP161: X | CQ161: X | CR161: X | CS161: X | CT161: X | CU161: X | CV161: X | CW161: X | CX161: X
A162: Unión Eólica de Panamá (PE Rosa de los Vientos) No. 20-12' | B162: 2014-01-01 | C162: 2028-12-31 | D162: Min ((PE/DMG mensual s/r)*E o G*%D)) | E162: 0 | BD162: X | BE162: X | BF162: X | BG162: X | BH162: X | BI162: X | BJ162: X | BK162: X | BL162: X | BM162: X | BN162: X | BO162: X | BP162: X | BQ162: X | BR162: X | BS162: X | BT162: X | BU162: X | BV162: X | BW162: X | BX162: X | BY162: X | BZ162: X | CA162: X | CB162: X | CC162: X | CD162: X | CE162: X | CF162: X | CG162: X | CH162: X | CI162: X | CJ162: X | CK162: X | CL162: X | CM162: X | CN162: X | CO162: X | CP162: X | CQ162: X | CR162: X | CS162: X | CT162: X | CU162: X | CV162: X | CW162: X | CX162: X
A163: Unión Eólica de Panamá (PE Portobelo Ballestillas) No. 21-12' | B163: 2014-01-01 | C163: 2028-12-31 | D163: Min ((PE/DMG mensual s/r)*E o G*%D)) | E163: 0 | BD163: X | BE163: X | BF163: X | BG163: X | BH163: X | BI163: X | BJ163: X | BK163: X | BL163: X | BM163: X | BN163: X | BO163: X | BP163: X | BQ163: X | BR163: X | BS163: X | BT163: X | BU163: X | BV163: X | BW163: X | BX163: X | BY163: X | BZ163: X | CA163: X | CB163: X | CC163: X | CD163: X | CE163: X | CF163: X | CG163: X | CH163: X | CI163: X | CJ163: X | CK163: X | CL163: X | CM163: X | CN163: X | CO163: X | CP163: X | CQ163: X | CR163: X | CS163: X | CT163: X | CU163: X | CV163: X | CW163: X | CX163: X
A164: Unión Eólica de Panamá (PE Marañon) No. 22-12' | B164: 2014-01-01 | C164: 2028-12-31 | D164: Min ((PE/DMG mensual s/r)*E o G*%D)) | E164: 0 | BD164: X | BE164: X | BF164: X | BG164: X | BH164: X | BI164: X | BJ164: X | BK164: X | BL164: X | BM164: X | BN164: X | BO164: X | BP164: X | BQ164: X | BR164: X | BS164: X | BT164: X | BU164: X | BV164: X | BW164: X | BX164: X | BY164: X | BZ164: X | CA164: X | CB164: X | CC164: X | CD164: X | CE164: X | CF164: X | CG164: X | CH164: X | CI164: X | CJ164: X | CK164: X | CL164: X | CM164: X | CN164: X | CO164: X | CP164: X | CQ164: X | CR164: X | CS164: X | CT164: X | CU164: X | CV164: X | CW164: X | CX164: X
A165: Autoridad del Canal de Panamá No. 44-12 | B165: 2012-07-01 | C165: 2015-12-31 | D165: Excedente | E165: 0 | AL165: X | AM165: X | AN165: X | AO165: X | AP165: X | AQ165: X | AR165: X | AS165: X | AT165: X | AU165: X | AV165: X | AW165: X | AX165: X | AY165: X | AZ165: X | BA165: X | BB165: X | BC165: X | BD165: X | BE165: X | BF165: X | BG165: X | BH165: X | BI165: X | BJ165: X | BK165: X | BL165: X | BM165: X | BN165: X | BO165: X | BP165: X | BQ165: X | BR165: X | BS165: X | BT165: X | BU165: X | BV165: X | BW165: X | BX165: X | BY165: X | BZ165: X | CA165: X
A166: AES Panamá No. 45-12 | B166: 2012-07-01 | C166: 2015-12-31 | D166: Excedente | E166: 0 | AL166: X | AM166: X | AN166: X | AO166: X | AP166: X | AQ166: X | AR166: X | AS166: X | AT166: X | AU166: X | AV166: X | AW166: X | AX166: X | AY166: X | AZ166: X | BA166: X | BB166: X | BC166: X | BD166: X | BE166: X | BF166: X | BG166: X | BH166: X | BI166: X | BJ166: X | BK166: X | BL166: X | BM166: X | BN166: X | BO166: X | BP166: X | BQ166: X | BR166: X | BS166: X | BT166: X | BU166: X | BV166: X | BW166: X | BX166: X | BY166: X | BZ166: X | CA166: X
A167: Energía y Servicios de Panamá, S.A. No. 46-12 (La Yeguada) | B167: 2012-07-01 | C167: 2015-12-31 | D167: Excedente | E167: 0 | AL167: X | AM167: X | AN167: X | AO167: X | AP167: X | AQ167: X | AR167: X | AS167: X | AT167: X | AU167: X | AV167: X | AW167: X | AX167: X | AY167: X | AZ167: X | BA167: X | BB167: X | BC167: X | BD167: X | BE167: X | BF167: X | BG167: X | BH167: X | BI167: X | BJ167: X | BK167: X | BL167: X | BM167: X | BN167: X | BO167: X | BP167: X | BQ167: X | BR167: X | BS167: X | BT167: X | BU167: X | BV167: X | BW167: X | BX167: X | BY167: X | BZ167: X | CA167: X
A168: Enel Fortuna No. 47-12 | B168: 2012-07-01 | C168: 2015-12-31 | D168: Excedente | E168: 0 | AL168: X | AM168: X | AN168: X | AO168: X | AP168: X | AQ168: X | AR168: X | AS168: X | AT168: X | AU168: X | AV168: X | AW168: X | AX168: X | AY168: X | AZ168: X | BA168: X | BB168: X | BC168: X | BD168: X | BE168: X | BF168: X | BG168: X | BH168: X | BI168: X | BJ168: X | BK168: X | BL168: X | BM168: X | BN168: X | BO168: X | BP168: X | BQ168: X | BR168: X | BS168: X | BT168: X | BU168: X | BV168: X | BW168: X | BX168: X | BY168: X | BZ168: X | CA168: X
A169: FERSA Panamá, S.A. No. 48-12 | B169: 2012-07-01 | C169: 2015-12-31 | D169: Excedente | E169: 0 | AL169: X | AM169: X | AN169: X | AO169: X | AP169: X | AQ169: X | AR169: X | AS169: X | AT169: X | AU169: X | AV169: X | AW169: X | AX169: X | AY169: X | AZ169: X | BA169: X | BB169: X | BC169: X | BD169: X | BE169: X | BF169: X | BG169: X | BH169: X | BI169: X | BJ169: X | BK169: X | BL169: X | BM169: X | BN169: X | BO169: X | BP169: X | BQ169: X | BR169: X | BS169: X | BT169: X | BU169: X | BV169: X | BW169: X | BX169: X | BY169: X | BZ169: X | CA169: X
A170: Caldera Energy Corp. No. 49-12 | B170: 2012-07-01 | C170: 2015-12-31 | D170: Excedente | E170: 0 | AL170: X | AM170: X | AN170: X | AO170: X | AP170: X | AQ170: X | AR170: X | AS170: X | AT170: X | AU170: X | AV170: X | AW170: X | AX170: X | AY170: X | AZ170: X | BA170: X | BB170: X | BC170: X | BD170: X | BE170: X | BF170: X | BG170: X | BH170: X | BI170: X | BJ170: X | BK170: X | BL170: X | BM170: X | BN170: X | BO170: X | BP170: X | BQ170: X | BR170: X | BS170: X | BT170: X | BU170: X | BV170: X | BW170: X | BX170: X | BY170: X | BZ170: X | CA170: X
A171: Electrogeneradora del Istmo No. 50-12 | B171: 2012-07-01 | C171: 2015-12-31 | D171: Excedente | E171: 0 | AL171: X | AM171: X | AN171: X | AO171: X | AP171: X | AQ171: X | AR171: X | AS171: X | AT171: X | AU171: X | AV171: X | AW171: X | AX171: X | AY171: X | AZ171: X | BA171: X | BB171: X | BC171: =+IF(AND(BC$24>=$B171,BC$24<=$C171),"X","") -> X | BD171: X | BE171: X | BF171: X | BG171: X | BH171: X | BI171: X | BJ171: X | BK171: X | BL171: X | BM171: X | BN171: X | BO171: X | BP171: X | BQ171: X | BR171: X | BS171: X | BT171: X | BU171: X | BV171: X | BW171: X | BX171: X | BY171: X | BZ171: X | CA171: X
A172: Paso Ancho Hydro Power No. 51-12 | B172: 2012-07-01 | C172: 2015-12-31 | D172: Excedente | E172: 0 | Z172: =+IF(AND(Z$24>=$B172,Z$24<=$C172),"X","") ->  | AL172: X | AM172: X | AN172: X | AO172: X | AP172: =+IF(AND(AP$24>=$B172,AP$24<=$C172),"X","") -> X | AQ172: X | AR172: X | AS172: X | AT172: X | AU172: X | AV172: X | AW172: X | AX172: X | AY172: X | AZ172: X | BA172: X | BB172: X | BC172: X | BD172: X | BE172: X | BF172: =+IF(AND(BF$24>=$B172,BF$24<=$C172),"X","") -> X | BG172: X | BH172: X | BI172: X | BJ172: X | BK172: X | BL172: X | BM172: X | BN172: X | BO172: X | BP172: X | BQ172: X | BR172: X | BS172: X | BT172: X | BU172: X | BV172: X | BW172: =+IF(AND(BW$24>=$B172,BW$24<=$C172),"X","") -> X | BX172: X | BY172: X | BZ172: X | CA172: X | CL172: =+IF(AND(CL$24>=$B172,CL$24<=$C172),"X","") ->  | CN172: =+IF(AND(CN$24>=$B172,CN$24<=$C172),"X","") -> 
A173: Café de Eleta No. 52-12 | B173: 2012-07-01 | C173: 2015-12-31 | D173: Excedente | E173: 0 | AL173: X | AM173: X | AN173: X | AO173: X | AP173: X | AQ173: X | AR173: X | AS173: X | AT173: X | AU173: X | AV173: X | AW173: X | AX173: X | AY173: X | AZ173: X | BA173: X | BB173: X | BC173: X | BD173: X | BE173: X | BF173: X | BG173: X | BH173: X | BI173: X | BJ173: X | BK173: X | BL173: X | BM173: X | BN173: X | BO173: X | BP173: X | BQ173: X | BR173: X | BS173: X | BT173: X | BU173: X | BV173: X | BW173: X | BX173: X | BY173: X | BZ173: X | CA173: X
A174: Generadora del Istmo, S.A. No. 53-12 | B174: 2012-07-01 | C174: 2015-12-31 | D174: Excedente | E174: 0 | AL174: X | AM174: X | AN174: X | AO174: X | AP174: X | AQ174: X | AR174: X | AS174: X | AT174: X | AU174: X | AV174: X | AW174: X | AX174: X | AY174: X | AZ174: X | BA174: X | BB174: X | BC174: X | BD174: X | BE174: X | BF174: X | BG174: X | BH174: X | BI174: X | BJ174: X | BK174: X | BL174: X | BM174: X | BN174: X | BO174: X | BP174: X | BQ174: X | BR174: X | BS174: X | BT174: X | BU174: X | BV174: X | BW174: X | BX174: X | BY174: X | BZ174: X | CA174: X
A175: Bontex, S.A. No. 54-12 | B175: 2012-07-01 | C175: 2015-12-31 | D175: Excedente | E175: 0 | AL175: X | AM175: X | AN175: X | AO175: X | AP175: X | AQ175: X | AR175: X | AS175: X | AT175: X | AU175: X | AV175: X | AW175: X | AX175: X | AY175: X | AZ175: X | BA175: X | BB175: X | BC175: X | BD175: X | BE175: X | BF175: X | BG175: X | BH175: X | BI175: X | BJ175: X | BK175: X | BL175: X | BM175: X | BN175: X | BO175: X | BP175: X | BQ175: X | BR175: X | BS175: X | BT175: X | BU175: X | BV175: X | BW175: X | BX175: X | BY175: X | BZ175: X | CA175: X
A176: Alternegy, S.A. No. 55-12 | B176: 2012-07-01 | C176: 2015-12-31 | D176: Excedente | E176: 0 | AL176: X | AM176: X | AN176: X | AO176: X | AP176: X | AQ176: X | AR176: X | AS176: X | AT176: X | AU176: X | AV176: X | AW176: X | AX176: X | AY176: X | AZ176: X | BA176: X | BB176: X | BC176: X | BD176: X | BE176: X | BF176: X | BG176: X | BH176: X | BI176: X | BJ176: X | BK176: X | BL176: X | BM176: X | BN176: X | BO176: X | BP176: X | BQ176: X | BR176: X | BS176: X | BT176: X | BU176: X | BV176: X | BW176: X | BX176: X | BY176: X | BZ176: X | CA176: X
A177: Hidro Panamá, S.A. No. 56-12 | B177: 2012-07-01 | C177: 2015-12-31 | D177: Excedente | E177: 0 | AL177: X | AM177: X | AN177: X | AO177: X | AP177: X | AQ177: X | AR177: X | AS177: X | AT177: X | AU177: X | AV177: X | AW177: X | AX177: X | AY177: X | AZ177: X | BA177: X | BB177: X | BC177: X | BD177: X | BE177: X | BF177: X | BG177: X | BH177: X | BI177: X | BJ177: X | BK177: X | BL177: X | BM177: X | BN177: X | BO177: X | BP177: X | BQ177: X | BR177: X | BS177: X | BT177: X | BU177: X | BV177: X | BW177: X | BX177: X | BY177: X | BZ177: X | CA177: X
A178: Electron Investment, S.A. No. 57-12 | B178: 2012-07-01 | C178: 2015-12-31 | D178: Excedente | E178: 0 | AL178: X | AM178: X | AN178: X | AO178: X | AP178: X | AQ178: X | AR178: X | AS178: X | AT178: X | AU178: X | AV178: X | AW178: X | AX178: X | AY178: X | AZ178: X | BA178: X | BB178: X | BC178: X | BD178: X | BE178: X | BF178: X | BG178: X | BH178: X | BI178: X | BJ178: X | BK178: X | BL178: X | BM178: X | BN178: X | BO178: X | BP178: X | BQ178: X | BR178: X | BS178: X | BT178: X | BU178: X | BV178: X | BW178: X | BX178: X | BY178: X | BZ178: X | CA178: X
A179: Istmus Hydro Power No. 58-12 | B179: 2012-07-01 | C179: 2015-12-31 | D179: Excedente | E179: 0 | AL179: X | AM179: X | AN179: X | AO179: X | AP179: X | AQ179: X | AR179: X | AS179: X | AT179: X | AU179: X | AV179: X | AW179: X | AX179: X | AY179: X | AZ179: X | BA179: X | BB179: X | BC179: X | BD179: X | BE179: X | BF179: X | BG179: X | BH179: X | BI179: X | BJ179: X | BK179: X | BL179: X | BM179: X | BN179: X | BO179: X | BP179: X | BQ179: X | BR179: X | BS179: X | BT179: X | BU179: X | BV179: X | BW179: X | BX179: X | BY179: X | BZ179: X | CA179: X
A180: Las Perlas Norte, S.A. No. 59-12 | B180: 2012-07-01 | C180: 2015-12-31 | D180: Excedente | E180: 0 | AL180: X | AM180: X | AN180: X | AO180: X | AP180: X | AQ180: X | AR180: X | AS180: X | AT180: X | AU180: X | AV180: X | AW180: X | AX180: X | AY180: X | AZ180: X | BA180: X | BB180: X | BC180: X | BD180: X | BE180: X | BF180: X | BG180: X | BH180: X | BI180: X | BJ180: X | BK180: X | BL180: X | BM180: X | BN180: X | BO180: X | BP180: X | BQ180: X | BR180: X | BS180: X | BT180: X | BU180: X | BV180: X | BW180: X | BX180: X | BY180: X | BZ180: X | CA180: X
A181: Las Perlas Sur, S.A. No. 60-12 | B181: 2012-07-01 | C181: 2015-12-31 | D181: Excedente | E181: 0 | AL181: X | AM181: X | AN181: X | AO181: X | AP181: X | AQ181: X | AR181: X | AS181: X | AT181: X | AU181: X | AV181: X | AW181: X | AX181: X | AY181: X | AZ181: X | BA181: X | BB181: X | BC181: X | BD181: X | BE181: X | BF181: X | BG181: X | BH181: X | BI181: X | BJ181: X | BK181: X | BL181: X | BM181: X | BN181: X | BO181: X | BP181: X | BQ181: X | BR181: X | BS181: X | BT181: X | BU181: X | BV181: X | BW181: X | BX181: X | BY181: X | BZ181: X | CA181: X
A182: Generadora Río Chico No. 61-12 | B182: 2012-07-01 | C182: 2015-12-31 | D182: Excedente | E182: 0 | AL182: X | AM182: X | AN182: X | AO182: X | AP182: X | AQ182: X | AR182: X | AS182: X | AT182: X | AU182: X | AV182: X | AW182: X | AX182: X | AY182: X | AZ182: X | BA182: X | BB182: X | BC182: X | BD182: X | BE182: X | BF182: X | BG182: X | BH182: X | BI182: X | BJ182: X | BK182: X | BL182: X | BM182: X | BN182: X | BO182: X | BP182: X | BQ182: X | BR182: X | BS182: X | BT182: X | BU182: X | BV182: X | BW182: X | BX182: X | BY182: X | BZ182: X | CA182: X
A183: Generadora Alto Valle No. 62-12 | B183: 2012-07-01 | C183: 2015-12-31 | D183: Excedente | E183: 0 | AL183: X | AM183: X | AN183: X | AO183: X | AP183: X | AQ183: X | AR183: X | AS183: X | AT183: X | AU183: X | AV183: X | AW183: X | AX183: X | AY183: X | AZ183: X | BA183: X | BB183: X | BC183: X | BD183: X | BE183: X | BF183: X | BG183: X | BH183: X | BI183: X | BJ183: X | BK183: X | BL183: X | BM183: X | BN183: X | BO183: X | BP183: X | BQ183: X | BR183: X | BS183: X | BT183: X | BU183: X | BV183: X | BW183: X | BX183: X | BY183: X | BZ183: X | CA183: X
A184: Generadora Pedregalito No. 63-12 | B184: 2012-07-01 | C184: 2015-12-31 | D184: Excedente | E184: 0 | AL184: X | AM184: X | AN184: X | AO184: X | AP184: X | AQ184: X | AR184: X | AS184: X | AT184: X | AU184: X | AV184: X | AW184: X | AX184: X | AY184: X | AZ184: X | BA184: X | BB184: X | BC184: X | BD184: X | BE184: X | BF184: X | BG184: X | BH184: X | BI184: X | BJ184: X | BK184: X | BL184: X | BM184: X | BN184: X | BO184: X | BP184: X | BQ184: X | BR184: X | BS184: X | BT184: X | BU184: X | BV184: X | BW184: X | BX184: X | BY184: X | BZ184: X | CA184: X
A185: Hydro Caisán No. 64-12 | B185: 2012-07-01 | C185: 2015-12-31 | D185: Excedente | E185: 0 | Z185: =+IF(AND(Z$24>=$B185,Z$24<=$C185),"X","") ->  | AL185: X | AM185: X | AN185: X | AO185: X | AP185: X | AQ185: X | AR185: X | AS185: X | AT185: X | AU185: X | AV185: X | AW185: X | AX185: X | AY185: X | AZ185: X | BA185: X | BB185: X | BC185: X | BD185: X | BE185: X | BF185: X | BG185: X | BH185: X | BI185: X | BJ185: X | BK185: X | BL185: X | BM185: X | BN185: X | BO185: X | BP185: X | BQ185: X | BR185: X | BS185: X | BT185: X | BU185: X | BV185: X | BW185: X | BX185: X | BY185: X | BZ185: X | CA185: X | CG185: =+IF(AND(CG$24>=$B185,CG$24<=$C185),"X","") -> 
A186: Hidro Piedra No. 66-12 | B186: 2013-01-01 | C186: 2015-12-31 | D186: DMG Mensual sin RC | E186: 1 | AR186: X | AS186: X | AT186: X | AU186: X | AV186: X | AW186: X | AX186: X | AY186: X | AZ186: X | BA186: X | BB186: X | BC186: X | BD186: X | BE186: X | BF186: X | BG186: X | BH186: X | BI186: X | BJ186: X | BK186: X | BL186: X | BM186: X | BN186: X | BO186: X | BP186: X | BQ186: X | BR186: X | BS186: X | BT186: X | BU186: X | BV186: X | BW186: X | BX186: X | BY186: X | BZ186: X | CA186: X
A187: Hidro Panamá, S.A. No. 77-12 | B187: 2013-01-01 | C187: 2015-12-31 | D187: Potencia | E187: 1 | AR187: X | AS187: X | AT187: X | AU187: X | AV187: X | AW187: X | AX187: X | AY187: X | AZ187: X | BA187: X | BB187: X | BC187: X | BD187: X | BE187: =+IF(AND(BE$24>=$B187,BE$24<=$C187),"X","") -> X | BF187: X | BG187: X | BH187: X | BI187: X | BJ187: X | BK187: X | BL187: X | BM187: X | BN187: X | BO187: X | BP187: X | BQ187: X | BR187: X | BS187: X | BT187: X | BU187: X | BV187: X | BW187: X | BX187: X | BY187: X | BZ187: X | CA187: X
A188: Hidroecológica del Teribe No. 78-12 | B188: 2013-01-01 | C188: 2015-12-31 | D188: Potencia | E188: 1 | Z188: =+IF(AND(Z$24>=$B188,Z$24<=$C188),"X","") ->  | AP188: =+IF(AND(AP$24>=$B188,AP$24<=$C188),"X","") ->  | AR188: X | AS188: X | AT188: X | AU188: X | AV188: X | AW188: X | AX188: X | AY188: X | AZ188: X | BA188: X | BB188: X | BC188: X | BD188: X | BE188: X | BF188: X | BG188: X | BH188: X | BI188: X | BJ188: X | BK188: X | BL188: X | BM188: X | BN188: X | BO188: X | BP188: X | BQ188: X | BR188: X | BS188: X | BT188: =+IF(AND(BT$24>=$B188,BT$24<=$C188),"X","") -> X | BU188: X | BV188: X | BW188: X | BX188: X | BY188: X | BZ188: X | CA188: X | CB188: =+IF(AND(CB$24>=$B188,CB$24<=$C188),"X","") ->  | CR188: =+IF(AND(CR$24>=$B188,CR$24<=$C188),"X","") -> 
A189: Ideal Panamá No. 79-12 | B189: 2013-01-01 | C189: 2015-12-31 | D189: Potencia | E189: 1 | AR189: X | AS189: X | AT189: X | AU189: X | AV189: X | AW189: X | AX189: X | AY189: X | AZ189: X | BA189: X | BB189: X | BC189: X | BD189: X | BE189: X | BF189: X | BG189: X | BH189: X | BI189: X | BJ189: X | BK189: X | BL189: X | BM189: X | BN189: X | BO189: X | BP189: X | BQ189: X | BR189: X | BS189: X | BT189: X | BU189: X | BV189: X | BW189: X | BX189: X | BY189: X | BZ189: X | CA189: X
A190: Istmus Hydro Power No. 80-12 | B190: 2013-01-01 | C190: 2015-12-31 | D190: Potencia | E190: 1 | AR190: X | AS190: X | AT190: X | AU190: X | AV190: X | AW190: X | AX190: X | AY190: X | AZ190: X | BA190: X | BB190: X | BC190: X | BD190: X | BE190: X | BF190: X | BG190: X | BH190: X | BI190: X | BJ190: X | BK190: X | BL190: X | BM190: X | BN190: X | BO190: X | BP190: X | BQ190: X | BR190: X | BS190: X | BT190: X | BU190: X | BV190: X | BW190: X | BX190: X | BY190: X | BZ190: X | CA190: X
A191: Las Perlas Norte, S.A. No. 81-12 | B191: 2013-01-01 | C191: 2015-12-31 | D191: Potencia | E191: 1 | AR191: X | AS191: X | AT191: X | AU191: X | AV191: X | AW191: X | AX191: X | AY191: X | AZ191: X | BA191: X | BB191: X | BC191: X | BD191: X | BE191: X | BF191: X | BG191: X | BH191: X | BI191: X | BJ191: X | BK191: X | BL191: X | BM191: X | BN191: X | BO191: X | BP191: X | BQ191: X | BR191: X | BS191: X | BT191: X | BU191: X | BV191: X | BW191: X | BX191: X | BY191: X | BZ191: X | CA191: X
A192: Las Perlas Sur, S.A. No. 82-12 | B192: 2013-01-01 | C192: 2015-12-31 | D192: Potencia | E192: 1 | AR192: X | AS192: X | AT192: X | AU192: X | AV192: X | AW192: X | AX192: X | AY192: X | AZ192: X | BA192: X | BB192: X | BC192: X | BD192: X | BE192: X | BF192: X | BG192: X | BH192: X | BI192: X | BJ192: X | BK192: X | BL192: X | BM192: X | BN192: X | BO192: X | BP192: X | BQ192: X | BR192: X | BS192: X | BT192: X | BU192: X | BV192: X | BW192: X | BX192: X | BY192: X | BZ192: X | CA192: X
A193: Café de Eleta No. 83-12 | B193: 2013-01-01 | C193: 2015-12-31 | D193: Potencia | E193: 1 | AR193: X | AS193: X | AT193: X | AU193: X | AV193: X | AW193: X | AX193: X | AY193: X | AZ193: X | BA193: X | BB193: X | BC193: X | BD193: X | BE193: X | BF193: X | BG193: X | BH193: X | BI193: X | BJ193: X | BK193: X | BL193: X | BM193: X | BN193: X | BO193: X | BP193: X | BQ193: X | BR193: X | BS193: X | BT193: X | BU193: X | BV193: X | BW193: X | BX193: X | BY193: X | BZ193: X | CA193: X
A194: Enel Fortuna No. 84-12 | B194: 2013-01-01 | C194: 2015-12-31 | D194: Potencia | E194: 1 | AR194: X | AS194: X | AT194: X | AU194: X | AV194: X | AW194: X | AX194: X | AY194: X | AZ194: X | BA194: X | BB194: X | BC194: X | BD194: X | BE194: X | BF194: X | BG194: X | BH194: X | BI194: X | BJ194: X | BK194: X | BL194: X | BM194: X | BN194: X | BO194: X | BP194: X | BQ194: X | BR194: X | BS194: X | BT194: X | BU194: X | BV194: X | BW194: X | BX194: X | BY194: X | BZ194: X | CA194: X
A195: Generadora del Atlántico No. 85-12 | B195: 2013-01-01 | C195: 2015-12-31 | D195: Potencia | E195: 1 | AR195: X | AS195: X | AT195: X | AU195: X | AV195: X | AW195: X | AX195: X | AY195: X | AZ195: X | BA195: X | BB195: X | BC195: X | BD195: X | BE195: X | BF195: X | BG195: X | BH195: X | BI195: X | BJ195: X | BK195: X | BL195: X | BM195: X | BN195: X | BO195: X | BP195: X | BQ195: X | BR195: X | BS195: X | BT195: X | BU195: X | BV195: X | BW195: X | BX195: X | BY195: X | BZ195: X | CA195: X
A196: Autoridad del Canal de Panamá No. 86-12 | B196: 2013-01-01 | C196: 2015-12-31 | D196: Potencia | E196: 1 | AR196: X | AS196: X | AT196: X | AU196: X | AV196: X | AW196: X | AX196: X | AY196: X | AZ196: X | BA196: X | BB196: X | BC196: X | BD196: X | BE196: X | BF196: X | BG196: X | BH196: X | BI196: X | BJ196: X | BK196: X | BL196: X | BM196: X | BN196: X | BO196: X | BP196: X | BQ196: X | BR196: X | BS196: X | BT196: X | BU196: X | BV196: X | BW196: X | BX196: X | BY196: X | BZ196: X | CA196: X
A197: Hydro Caisán No. 101-12 | B197: 2012-07-01 | C197: 2015-12-31 | D197: DMG mensual PF Equivalente | E197: 0 | AL197: X | AM197: X | AN197: X | AO197: X | AP197: X | AQ197: X | AR197: X | AS197: X | AT197: X | AU197: X | AV197: X | AW197: X | AX197: X | AY197: X | AZ197: X | BA197: X | BB197: X | BC197: X | BD197: X | BE197: X | BF197: X | BG197: X | BH197: X | BI197: X | BJ197: X | BK197: X | BL197: X | BM197: X | BN197: X | BO197: X | BP197: X | BQ197: X | BR197: X | BS197: X | BT197: X | BU197: X | BV197: X | BW197: X | BX197: X | BY197: X | BZ197: X | CA197: X
A198: Caldera Energy Corp. No. 102-12 | B198: 2012-07-01 | C198: 2015-12-31 | D198: DMG mensual PF Equivalente | E198: 0 | AL198: X | AM198: X | AN198: X | AO198: X | AP198: X | AQ198: X | AR198: X | AS198: X | AT198: X | AU198: X | AV198: X | AW198: X | AX198: X | AY198: X | AZ198: X | BA198: X | BB198: X | BC198: X | BD198: X | BE198: X | BF198: X | BG198: X | BH198: X | BI198: X | BJ198: X | BK198: X | BL198: X | BM198: X | BN198: X | BO198: X | BP198: X | BQ198: X | BR198: X | BS198: X | BT198: X | BU198: X | BV198: X | BW198: X | BX198: X | BY198: X | BZ198: X | CA198: X | CK198: =+IF(AND(CK$24>=$B198,CK$24<=$C198),"X","") -> 
A199: Electrogeneradora del Istmo No. 103-12 | B199: 2012-07-01 | C199: 2015-12-31 | D199: DMG mensual PF Equivalente | E199: 0 | AL199: X | AM199: X | AN199: X | AO199: X | AP199: X | AQ199: X | AR199: X | AS199: X | AT199: X | AU199: X | AV199: X | AW199: X | AX199: X | AY199: X | AZ199: X | BA199: X | BB199: X | BC199: X | BD199: X | BE199: X | BF199: X | BG199: X | BH199: X | BI199: X | BJ199: X | BK199: X | BL199: X | BM199: X | BN199: X | BO199: X | BP199: X | BQ199: X | BR199: X | BS199: X | BT199: X | BU199: X | BV199: X | BW199: X | BX199: X | BY199: X | BZ199: X | CA199: X
A200: Generadora Pedregalito No. 104-12 | B200: 2012-07-01 | C200: 2015-12-31 | D200: DMG mensual PF Equivalente | E200: 0 | AL200: X | AM200: X | AN200: X | AO200: X | AP200: X | AQ200: X | AR200: X | AS200: X | AT200: X | AU200: X | AV200: X | AW200: X | AX200: X | AY200: X | AZ200: X | BA200: X | BB200: X | BC200: X | BD200: X | BE200: X | BF200: X | BG200: X | BH200: X | BI200: X | BJ200: X | BK200: X | BL200: X | BM200: X | BN200: X | BO200: X | BP200: X | BQ200: X | BR200: X | BS200: X | BT200: X | BU200: X | BV200: X | BW200: X | BX200: X | BY200: X | BZ200: X | CA200: X
A201: Generadora Río Chico No. 105-12 | B201: 2012-07-01 | C201: 2015-12-31 | D201: DMG mensual PF Equivalente | E201: 0 | AL201: X | AM201: X | AN201: X | AO201: X | AP201: X | AQ201: X | AR201: X | AS201: X | AT201: X | AU201: X | AV201: X | AW201: X | AX201: X | AY201: X | AZ201: X | BA201: X | BB201: X | BC201: X | BD201: X | BE201: X | BF201: X | BG201: X | BH201: X | BI201: X | BJ201: X | BK201: X | BL201: X | BM201: X | BN201: X | BO201: X | BP201: X | BQ201: X | BR201: X | BS201: X | BT201: X | BU201: X | BV201: X | BW201: X | BX201: X | BY201: X | BZ201: X | CA201: X
A202: Hidroibérica No. 106-12 | B202: 2012-07-01 | C202: 2015-12-31 | D202: DMG mensual PF Equivalente | E202: 0 | AL202: X | AM202: X | AN202: X | AO202: X | AP202: X | AQ202: X | AR202: X | AS202: X | AT202: X | AU202: X | AV202: X | AW202: X | AX202: X | AY202: X | AZ202: X | BA202: X | BB202: X | BC202: X | BD202: X | BE202: X | BF202: X | BG202: X | BH202: X | BI202: X | BJ202: X | BK202: X | BL202: X | BM202: X | BN202: X | BO202: X | BP202: X | BQ202: X | BR202: X | BS202: X | BT202: X | BU202: X | BV202: X | BW202: X | BX202: X | BY202: X | BZ202: X | CA202: X
A203: Generadora Alto Valle No. 107-12 | B203: 2012-07-01 | C203: 2015-12-31 | D203: DMG mensual PF Equivalente | E203: 0 | AL203: X | AM203: X | AN203: X | AO203: =+IF(AND(AO$24>=$B203,AO$24<=$C203),"X","") -> X | AP203: X | AQ203: X | AR203: X | AS203: X | AT203: X | AU203: X | AV203: X | AW203: X | AX203: X | AY203: X | AZ203: X | BA203: X | BB203: X | BC203: X | BD203: X | BE203: =+IF(AND(BE$24>=$B203,BE$24<=$C203),"X","") -> X | BF203: X | BG203: X | BH203: X | BI203: X | BJ203: X | BK203: X | BL203: X | BM203: X | BN203: X | BO203: X | BP203: X | BQ203: X | BR203: X | BS203: X | BT203: X | BU203: X | BV203: X | BW203: X | BX203: X | BY203: X | BZ203: X | CA203: X
A204: Energía y Servicios de Panamá, S.A. No. 108-12 | B204: 2012-07-01 | C204: 2015-12-31 | D204: DMG mensual PF Equivalente | E204: 0 | Z204: =+IF(AND(Z$24>=$B204,Z$24<=$C204),"X","") ->  | AL204: X | AM204: X | AN204: X | AO204: X | AP204: X | AQ204: X | AR204: X | AS204: X | AT204: X | AU204: X | AV204: X | AW204: X | AX204: X | AY204: X | AZ204: X | BA204: X | BB204: X | BC204: X | BD204: X | BE204: X | BF204: X | BG204: X | BH204: X | BI204: X | BJ204: X | BK204: X | BL204: X | BM204: X | BN204: X | BO204: X | BP204: X | BQ204: X | BR204: X | BS204: X | BT204: X | BU204: X | BV204: X | BW204: X | BX204: X | BY204: X | BZ204: X | CA204: =+IF(AND(CA$24>=$B204,CA$24<=$C204),"X","") -> X | CN204: =+IF(AND(CN$24>=$B204,CN$24<=$C204),"X","") -> 
A205: Hidro Panamá, S.A. No. 109-12 | B205: 2012-07-01 | C205: 2015-12-31 | D205: DMG mensual PF Equivalente | E205: 0 | AL205: X | AM205: X | AN205: X | AO205: X | AP205: X | AQ205: X | AR205: X | AS205: X | AT205: X | AU205: X | AV205: X | AW205: X | AX205: X | AY205: X | AZ205: X | BA205: X | BB205: X | BC205: X | BD205: X | BE205: X | BF205: X | BG205: X | BH205: X | BI205: X | BJ205: X | BK205: X | BL205: X | BM205: X | BN205: X | BO205: X | BP205: X | BQ205: X | BR205: X | BS205: X | BT205: X | BU205: X | BV205: X | BW205: X | BX205: X | BY205: X | BZ205: X | CA205: X
A206: Las Perlas Norte, S.A. No. 110-12 | B206: 2012-07-01 | C206: 2015-12-31 | D206: DMG mensual PF Equivalente | E206: 0 | AL206: X | AM206: X | AN206: X | AO206: X | AP206: X | AQ206: X | AR206: X | AS206: X | AT206: X | AU206: X | AV206: X | AW206: X | AX206: X | AY206: X | AZ206: X | BA206: X | BB206: X | BC206: X | BD206: X | BE206: X | BF206: X | BG206: X | BH206: X | BI206: X | BJ206: X | BK206: X | BL206: X | BM206: X | BN206: X | BO206: X | BP206: X | BQ206: X | BR206: X | BS206: X | BT206: X | BU206: X | BV206: X | BW206: X | BX206: X | BY206: X | BZ206: X | CA206: X
A207: Las Perlas Sur, S.A. No. 111-12 | B207: 2012-07-01 | C207: 2015-12-31 | D207: DMG mensual PF Equivalente | E207: 0 | AL207: X | AM207: X | AN207: X | AO207: X | AP207: X | AQ207: X | AR207: X | AS207: X | AT207: X | AU207: X | AV207: X | AW207: X | AX207: X | AY207: X | AZ207: X | BA207: X | BB207: X | BC207: X | BD207: X | BE207: X | BF207: X | BG207: X | BH207: X | BI207: X | BJ207: X | BK207: X | BL207: X | BM207: X | BN207: X | BO207: X | BP207: X | BQ207: X | BR207: X | BS207: X | BT207: X | BU207: X | BV207: X | BW207: X | BX207: X | BY207: X | BZ207: X | CA207: X
A208: Generadora del Istmo, S.A. No. 112-12 | B208: 2012-07-01 | C208: 2015-12-31 | D208: DMG mensual PF Equivalente | E208: 0 | AL208: X | AM208: X | AN208: X | AO208: X | AP208: X | AQ208: X | AR208: X | AS208: X | AT208: X | AU208: X | AV208: X | AW208: X | AX208: X | AY208: X | AZ208: X | BA208: X | BB208: X | BC208: X | BD208: X | BE208: X | BF208: X | BG208: X | BH208: X | BI208: X | BJ208: X | BK208: X | BL208: X | BM208: X | BN208: X | BO208: X | BP208: X | BQ208: X | BR208: X | BS208: X | BT208: X | BU208: X | BV208: X | BW208: X | BX208: X | BY208: X | BZ208: X | CA208: X
A209: Istmus Hydro Power No. 113-12 | B209: 2012-07-01 | C209: 2015-12-31 | D209: DMG mensual PF Equivalente | E209: 0 | AL209: X | AM209: X | AN209: X | AO209: X | AP209: X | AQ209: X | AR209: X | AS209: X | AT209: X | AU209: X | AV209: X | AW209: X | AX209: X | AY209: X | AZ209: X | BA209: X | BB209: X | BC209: X | BD209: X | BE209: X | BF209: X | BG209: X | BH209: X | BI209: X | BJ209: X | BK209: X | BL209: X | BM209: X | BN209: X | BO209: X | BP209: X | BQ209: X | BR209: X | BS209: X | BT209: X | BU209: X | BV209: X | BW209: X | BX209: X | BY209: X | BZ209: X | CA209: X
A210: Fountain Intertrade Corp. No. 114-12 | B210: 2012-07-01 | C210: 2015-12-31 | D210: DMG mensual PF Equivalente | E210: 0 | AL210: X | AM210: X | AN210: X | AO210: X | AP210: X | AQ210: X | AR210: X | AS210: X | AT210: X | AU210: X | AV210: X | AW210: X | AX210: X | AY210: X | AZ210: X | BA210: X | BB210: X | BC210: X | BD210: X | BE210: X | BF210: X | BG210: X | BH210: X | BI210: X | BJ210: X | BK210: X | BL210: X | BM210: X | BN210: X | BO210: X | BP210: X | BQ210: X | BR210: X | BS210: X | BT210: X | BU210: X | BV210: X | BW210: X | BX210: X | BY210: X | BZ210: X | CA210: X
A211: Energía y Servicios de Panamá, S.A. No. 46-12 (Algarrobos) | B211: 2012-07-01 | C211: 2015-07-31 | D211: Excedente | E211: 0 | AL211: X | AM211: X | AN211: X | AO211: X | AP211: X | AQ211: X | AR211: X | AS211: X | AT211: X | AU211: X | AV211: X | AW211: X | AX211: X | AY211: X | AZ211: X | BA211: X | BB211: X | BC211: X | BD211: X | BE211: X | BF211: X | BG211: X | BH211: X | BI211: X | BJ211: X | BK211: X | BL211: X | BM211: X | BN211: X | BO211: X | BP211: X | BQ211: X | BR211: X | BS211: X | BT211: X | BU211: X | BV211: X | CL211: =+IF(AND(CL$24>=$B211,CL$24<=$C211),"X","") -> 
A212: Energía y Servicios de Panamá, S.A. No. 46-12 (Dolega) | B212: 2012-07-01 | C212: 2015-07-31 | D212: Excedente | E212: 0 | AL212: X | AM212: X | AN212: X | AO212: X | AP212: X | AQ212: X | AR212: X | AS212: X | AT212: X | AU212: X | AV212: X | AW212: X | AX212: X | AY212: X | AZ212: X | BA212: X | BB212: X | BC212: X | BD212: X | BE212: X | BF212: X | BG212: X | BH212: X | BI212: X | BJ212: X | BK212: X | BL212: X | BM212: X | BN212: X | BO212: X | BP212: X | BQ212: X | BR212: X | BS212: X | BT212: X | BU212: X | BV212: X
A213: Energía y Servicios de Panamá, S.A. No. 46-12 (Macho de Monte) | B213: 2012-07-01 | C213: 2015-07-31 | D213: Excedente | E213: 0 | AL213: X | AM213: X | AN213: X | AO213: X | AP213: X | AQ213: X | AR213: X | AS213: X | AT213: X | AU213: X | AV213: X | AW213: X | AX213: X | AY213: X | AZ213: X | BA213: X | BB213: X | BC213: X | BD213: X | BE213: X | BF213: X | BG213: X | BH213: X | BI213: X | BJ213: X | BK213: X | BL213: X | BM213: X | BN213: X | BO213: X | BP213: X | BQ213: X | BR213: X | BS213: X | BT213: X | BU213: X | BV213: X
A214: Ideal Panamá No. 116-12 | B214: 2012-06-16 | C214: 2012-12-31 | D214: Potencia | E214: 1 | AL214: X | AM214: X | AN214: X | AO214: X | AP214: X | AQ214: X
A215: AES No. 122-12 | B215: 2016-01-01 | C215: 2030-12-31 | D215: DMG Mensual sin RC | E215: 1 | BT215: =+IF(AND(BT$24>=$B215,BT$24<=$C215),"X","") ->  | CB215: X | CC215: X | CD215: X | CE215: X | CF215: X | CG215: X | CH215: X | CI215: X | CJ215: X | CK215: X | CL215: X | CM215: X | CN215: X | CO215: X | CP215: X | CQ215: X | CR215: X | CS215: X | CT215: X | CU215: X | CV215: X | CW215: X | CX215: X
A216: HIDRO PIEDRA No. 123-12 | B216: 2016-01-01 | C216: 2030-12-31 | D216: DMG Mensual sin RC | E216: 1 | CB216: X | CC216: X | CD216: X | CE216: X | CF216: X | CG216: X | CH216: X | CI216: X | CJ216: X | CK216: X | CL216: X | CM216: X | CN216: X | CO216: X | CP216: X | CQ216: X | CR216: X | CS216: X | CT216: X | CU216: X | CV216: X | CW216: X | CX216: X
A217: Corp. Energ. Del Istmo No. 124-12 | B217: 2016-01-01 | C217: 2030-12-31 | D217: DMG Mensual sin RC | E217: 1 | CB217: X | CC217: X | CD217: X | CE217: X | CF217: X | CG217: X | CH217: X | CI217: X | CJ217: X | CK217: X | CL217: X | CM217: X | CN217: X | CO217: X | CP217: X | CQ217: X | CR217: X | CS217: X | CT217: X | CU217: X | CV217: X | CW217: X | CX217: X
... 263 more rows

Sheet GEN-502 Pot
A1: INFORMACION PARA ACTUALIZAR: CARGO POR GENERACION
A2: =+'Compras (p)'!A2 -> EDECHI
A3: =+'GEN-502 Contratos'!$C$155 -> 41274
B4: POTENCIA CONTRATADA
A5: Detalle | B5: 2026-07-01 | C5: 2026-08-01 | D5: 2026-09-01 | E5: 2026-10-01 | F5: 2026-11-01 | G5: 2026-12-01
A6: Demanda Máxima Mensual | B6: 196.194351 | C6: 203.342551 | D6: 198.3442809 | E6: 191.2112516 | F6: 177.7501676 | G6: 190.5020527
A7: Demanda Máxima de Generación (DMG) | B7: 203.342551 | C7: =+B7 -> 203.342551 | D7: =+C7 -> 203.342551 | E7: =+D7 -> 203.342551 | F7: =+E7 -> 203.342551 | G7: =+F7 -> 203.342551
A8: TOTAL | B8: =+B9+B15 -> 216.3696779 | C8: 227.370158 | D8: 225.9050617 | E8: 246.9095658 | F8: 226.7463654 | G8: 208.9645691
A9: Generación Propia
B12: 0 | C12: 0 | D12: 0 | E12: 0 | F12: 0 | G12: 0
B13: 0 | C13: 0 | D13: 0 | E13: 0 | F13: 0 | G13: 0
A15: Sub-Total Mercado Mayorista | B15: =+SUM(B16:B24) -> 216.3696779 | C15: 227.370158 | D15: 225.9050617 | E15: 246.9095658 | F15: 226.7463654 | G15: 208.9645691
A16: Reserva de largo Plazo | B16: =+IF('GEN-502 Pot'!B6-'GEN-502 Pot'!B24-'GEN-502 Pot'!B9+B247<0,0,'GEN-502 Pot'!B6-'GEN-502 Pot'!B24-'GEN-502 Pot'!B9+B247) -> 0 | C16: =+IF('GEN-502 Pot'!C6-'GEN-502 Pot'!C24-'GEN-502 Pot'!C9+C247<0,0,'GEN-502 Pot'!C6-'GEN-502 Pot'!C24-'GEN-502 Pot'!C9+C247) -> 0 | D16: =+IF('GEN-502 Pot'!D6-'GEN-502 Pot'!D24-'GEN-502 Pot'!D9+D247<0,0,'GEN-502 Pot'!D6-'GEN-502 Pot'!D24-'GEN-502 Pot'!D9+D247) -> 0 | E16: =+IF('GEN-502 Pot'!E6-'GEN-502 Pot'!E24-'GEN-502 Pot'!E9+E247<0,0,'GEN-502 Pot'!E6-'GEN-502 Pot'!E24-'GEN-502 Pot'!E9+E247) -> 0 | F16: =+IF('GEN-502 Pot'!F6-'GEN-502 Pot'!F24-'GEN-502 Pot'!F9+F247<0,0,'GEN-502 Pot'!F6-'GEN-502 Pot'!F24-'GEN-502 Pot'!F9+F247) -> 0 | G16: =+IF('GEN-502 Pot'!G6-'GEN-502 Pot'!G24-'GEN-502 Pot'!G9+G247<0,0,'GEN-502 Pot'!G6-'GEN-502 Pot'!G24-'GEN-502 Pot'!G9+G247) -> 0
A17: Compensacion de Potencia
A24: Sub-Total Contratos | B24: =+SUMPRODUCT('GEN-502 Pot'!B25:B480,'GEN-502 Contratos'!$E$25:$E$480) -> 216.3696779 | C24: =+SUMPRODUCT('GEN-502 Pot'!C25:C480,'GEN-502 Contratos'!$E$25:$E$480) -> 227.370158 | D24: =+SUMPRODUCT('GEN-502 Pot'!D25:D480,'GEN-502 Contratos'!$E$25:$E$480) -> 225.9050617 | E24: =+SUMPRODUCT('GEN-502 Pot'!E25:E480,'GEN-502 Contratos'!$E$25:$E$480) -> 246.9095658 | F24: =+SUMPRODUCT('GEN-502 Pot'!F25:F480,'GEN-502 Contratos'!$E$25:$E$480) -> 226.7463654 | G24: =+SUMPRODUCT('GEN-502 Pot'!G25:G480,'GEN-502 Contratos'!$E$25:$E$480) -> 208.9645691
A25: PTP-Isla Colón Nº 001-00 (1) & PTP 05-04 (3,2)
A26: PTP-Chiriquí Grande Nº 001-99 (0.7) & 06-04
A27: Edemet
A28: Autoridad del Canal No. 04-03 (30) Gen
A29: Autoridad del Canal No. 04-03 (30) Trans
A30: PTP-Isla Colón Nº 05-04 (3,2)
A31: Fortuna No. 12-98 (24)
A32: Aes No.13-98 (22)
A33: Fortuna No.09-04 (10)
A34: Fortuna No.15-04 (5 y 34)
A35: Fortuna No.15-04 (19, 4, 0 y 7)
A36: ACP No. 07-05 (Solo Energía)
A37: BLM No.15-05 (Solo Energía)
A38: Arkapal No.10-05
A39: Fortuna No.09-04 (71)
A40: AES No.13-05 (16, 17, 29)
A41: Fortuna No. 15-05
A42: Los Estrechos No. 17-06 (2,5)
A43: Saltos de Francolí No. 18-06 (0,7125)
A44: AES No. 19-06 (35)
A45: Generadora del Atlantico No. 05-07
A46: Inversiones y Desarrollo Balboa No. 06-07
A47: Térmica del Cariba No. 07-07 (4,275)
A48: Fortuna No. 15-05 (Traspaso)
A49: ACP No. 12-08 (Sólo Energía)
A50: ACP No. 13-08 (Sólo Energía)
A51: ACP No 15-08 (Sólo Energía)
A52: ACP(H)
A53: Fortuna
A54: AES
A55: Mendre
A56: ACP
A57: GenPro
A58: Concepción
A59: ESEPSA
A60: EGESA
A61: MER
A62: TerCar
A63: IDB
A64: Pan Am
A65: COPESA
A66: BLM
A67: Pedregal
A68: GENA
A108: ESEPSA No. 18-10
A109: Enel Fortuna No. 20-10
A110: GENA No. 22-10
A111: ACP No. 24-10
A112: Fortuna No.14-05 Tras
A113: Enel Fortuna No. 64-11
A114: AES PANAMA No. 61-11
A115: ESEPSA (La Yeguada) No. 62-11
A116: Pedregalito No.18-11
A117: Rio Chico No. 19-11
A118: Alto Valle No. 20-11
A119: Electrogeneradora del Istmo No. 21-11
A120: Caldera Energy Corp. No. 22-11
A121: Hidro Piedra No. 23-11
A122: Empresa Nacional de Energía No. 36-11 (Cesión) | B122: 0.666 | C122: 0.666 | D122: 0.666 | E122: 0.666 | F122: 0.666 | G122: 0.666
A123: Enel Fortuna No. 37-11 | B123: 1.96603 | C123: 1.96603 | D123: 1.96603 | E123: 1.96603 | F123: 1.96603 | G123: 1.96603
A124: Electrogeneradora del Istmo No. 38-11 | B124: 0.08325 | C124: 0.08325 | D124: 0.08325 | E124: 0.08325 | F124: 0.08325 | G124: 0.08325
A125: ESEPSA No. 39-11 | B125: 0.36497 | C125: 0.36497 | D125: 0.36497 | E125: 0.36497 | F125: 0.36497 | G125: 0.36497
A126: Pedregalito No. 40-11 | B126: 0.26227 | C126: 0.26227 | D126: 0.26227 | E126: 0.26227 | F126: 0.26227 | G126: 0.26227
A127: Río Chico No. 41-11 | B127: 0.16084 | C127: 0.16084 | D127: 0.16084 | E127: 0.16084 | F127: 0.16084 | G127: 0.16084
A128: Alto Valle No. 42-11 | B128: 0.15305 | C128: 0.15305 | D128: 0.15305 | E128: 0.15305 | F128: 0.15305 | G128: 0.15305
A129: Hidroecológica del Teribe No. 43-11 | B129: 0.666 | C129: 0.666 | D129: 0.666 | E129: 0.666 | F129: 0.666 | G129: 0.666
A130: Desarrollos Hidroeléctricos Corp. No. 44-11 | B130: 0.12674 | C130: 0.12674 | D130: 0.12674 | E130: 0.12674 | F130: 0.12674 | G130: 0.12674
A131: Las Perlas Norte No. 45-11 | B131: 0.79254 | C131: 0.79254 | D131: 0.79254 | E131: 0.79254 | F131: 0.79254 | G131: 0.79254
A132: Hidroeléctrica San Lorenzo No. 46-11 | B132: 0.08878 | C132: 0.08878 | D132: 0.08878 | E132: 0.08878 | F132: 0.08878 | G132: 0.08878
A133: Caldera Energy Corp. No. 47-11 | B133: 0.1998 | C133: 0.1998 | D133: 0.1998 | E133: 0.1998 | F133: 0.1998 | G133: 0.1998
A134: ACP No. 63-11 Motores
A135: ACP No. 63-11 Hidro
A136: Hidro Caldera No. 65-11
A137: Pedregalito No.66-11
A138: Rio Chico No. 67-11
A139: Alternegy No. 68-11
A140: Bontex No. 69-11
A141: Istmus No. 70-11
A142: BLM (Carbón) No. 71-11
A143: IDB No. 72-11
A144: Pedregal No. 73-11
A145: ESEPSA (Algarrobos) No. 62-11
A146: ESEPSA (Dolega) No. 62-11
A147: ESEPSA (Macho de Monte) No. 62-11
A148: Hidroibérica No. 80-11
A149: Enel Fortuna No. 81-11
A150: Hidro Boquerón No. 82-11
A151: Pedregal Power No. 83-11
A152: EGESA No. 84-11
A153: ACP No. 85-11
A154: Istmus Hydro Power No. 08-12
A155: Hidro Panamá No. 09-12
A156: Pedregal Power No. 10-12
A157: Pedregal Power No. 11-12
A158: Café de Eleta No. 12-12
A159: Bahías Las Minas No. 13-12
A160: Generadora del Atlántico No. 14-12
A161: Unión Eólica de Panamá (PE Nuevo Chagres) No. 19-12' | B161: 1.7647 | C161: 1.5637 | D161: 0.8833 | E161: 1.1406 | F161: 2.5472 | G161: 5.9323
A162: Unión Eólica de Panamá (PE Rosa de los Vientos) No. 20-12' | B162: 1.4823 | C162: 1.3265 | D162: 0.75 | E162: 0.9687 | F162: 2.1566 | G162: 4.9584
A163: Unión Eólica de Panamá (PE Portobelo Ballestillas) No. 21-12' | B163: 0.0017 | C163: 0.0018 | D163: 0.0017 | E163: 0.0016 | F163: 0.0017 | G163: 0.0018
A164: Unión Eólica de Panamá (PE Marañon) No. 22-12' | B164: 0.0017 | C164: 0.0018 | D164: 0.0017 | E164: 0.0016 | F164: 0.0017 | G164: 0.0018
A165: Autoridad del Canal de Panamá No. 44-12
A166: AES Panamá No. 45-12
A167: Energía y Servicios de Panamá, S.A. No. 46-12 (La Yeguada)
A168: Enel Fortuna No. 47-12
A169: FERSA Panamá, S.A. No. 48-12
A170: Caldera Energy Corp. No. 49-12
A171: Electrogeneradora del Istmo No. 50-12
A172: Paso Ancho Hydro Power No. 51-12
A173: Café de Eleta No. 52-12
A174: Generadora del Istmo, S.A. No. 53-12
A175: Bontex, S.A. No. 54-12
A176: Alternegy, S.A. No. 55-12
A177: Hidro Panamá, S.A. No. 56-12
A178: Electron Investment, S.A. No. 57-12
A179: Istmus Hydro Power No. 58-12
A180: Las Perlas Norte, S.A. No. 59-12
A181: Las Perlas Sur, S.A. No. 60-12
A182: Generadora Río Chico No. 61-12
A183: Generadora Alto Valle No. 62-12
A184: Generadora Pedregalito No. 63-12
A185: Hydro Caisán No. 64-12
A186: Hidro Piedra No. 66-12
A187: Hidro Panamá, S.A. No. 77-12
A188: Hidroecológica del Teribe No. 78-12
A189: Ideal Panamá No. 79-12
A190: Istmus Hydro Power No. 80-12
A191: Las Perlas Norte, S.A. No. 81-12
A192: Las Perlas Sur, S.A. No. 82-12
A193: Café de Eleta No. 83-12
A194: Enel Fortuna No. 84-12
A195: Generadora del Atlántico No. 85-12
A196: Autoridad del Canal de Panamá No. 86-12
A197: Hydro Caisán No. 101-12
A198: Caldera Energy Corp. No. 102-12
A199: Electrogeneradora del Istmo No. 103-12
A200: Generadora Pedregalito No. 104-12
A201: Generadora Río Chico No. 105-12
A202: Hidroibérica No. 106-12
A203: Generadora Alto Valle No. 107-12
A204: Energía y Servicios de Panamá, S.A. No. 108-12
A205: Hidro Panamá, S.A. No. 109-12
A206: Las Perlas Norte, S.A. No. 110-12
A207: Las Perlas Sur, S.A. No. 111-12
A208: Generadora del Istmo, S.A. No. 112-12
A209: Istmus Hydro Power No. 113-12
A210: Fountain Intertrade Corp. No. 114-12
A211: Energía y Servicios de Panamá, S.A. No. 46-12 (Algarrobos)
A212: Energía y Servicios de Panamá, S.A. No. 46-12 (Dolega)
A213: Energía y Servicios de Panamá, S.A. No. 46-12 (Macho de Monte)
A214: Ideal Panamá No. 116-12
A215: AES No. 122-12 | B215: 24.5 | C215: 24.5 | D215: 24.5 | E215: 24.5 | F215: 24.5 | G215: 24.5
A216: HIDRO PIEDRA No. 123-12 | B216: 0.125 | C216: 0.125 | D216: 0.125 | E216: 0.125 | F216: 0.125 | G216: 0.125
A217: Corp. Energ. Del Istmo No. 124-12 | B217: 0.6167 | C217: 0.6167 | D217: 0.6167 | E217: 0.6167 | F217: 0.6167 | G217: 0.6167
A218: Saltos del Francolí No. 126-12 | B218: 0.0645 | C218: 0.0645 | D218: 0.0645 | E218: 0.0645 | F218: 0.0645 | G218: 0.0645
A219: Generadora del Atlántico No. 133-12
A220: BLM No. 134-12
A221: ACP No. 135-12
A222: IDB No. 136-12
A223: AES No.12-05 Trasp (0)
A224: PASO ANCHO No. 88-11
A225: Hidroecológica del Teribe No. 89-11 | B225: 0 | C225: 0 | D225: 0 | E225: 0 | F225: 0 | G225: 0
A226: Pedregal Power No. 139-12
A227: Contrato ACP No. 128-12
A228: ISTMUS HYDRO POWER CORP. No.10-13 | B228: 0.756 | C228: 0.7581 | D228: 0.7886 | E228: 0.7213 | F228: 0.6876 | G228: 0.6849
A229: CALDERA ENERGY CORP. No.11-13 | B229: 0.855 | C229: 1.6 | D229: 1.9 | E229: 2.6 | F229: 1.615 | G229: 0.475
A230: ELECTROGENERADORA DEL ISTMO, S.A. No.12-13 | B230: 0.285 | C230: 0.5 | D230: 0.75 | E230: 0.9 | F230: 0.6175 | G230: 0.2375
A231: FOUNTAIN INTERTRADE CORP. No.13-13 | B231: 3.5955 | C231: 4.2197 | D231: 6.114 | E231: 8.2765 | F231: 5.2713 | G231: 2.9481
A232: HIDROIBERICA, S.A. No.14-13 | B232: 0.0779 | C232: 0.132 | D232: 0.16 | E232: 0.202 | F232: 0.1767 | G232: 0.1634
A233: NAVITAS INTERNACIONAL, S.A. No.15-13 | B233: 0.7588 | C233: 0.846 | D233: 1.0298 | E233: 1.0587 | F233: 0.877 | G233: 0.6489
A234: HIDROECOLÓGICA DEL TERIBE, S.A. No.16-13 | B234: 0.95 | C234: 1 | D234: 1.2 | E234: 2 | F234: 1.33 | G234: 1.33
A235: HIDRONORTH CORP. No.17-13 | B235: 0.0912 | C235: 0.112 | D235: 0.136 | E235: 0.136 | F235: 0.1273 | G235: 0.095
A236: TERMO ENERGÍA, S.A. No.19-13
A237: PASO ANCHO HYDRO POWER No.32-13 | B237: 0.5737 | C237: 0.5834 | D237: 0.105635 | E237: 0 | F237: 0.665 | G237: 0.665
A238: EMPRESA NACIONAL DE ENERGÍA, S.A. No.33-13 | B238: 0.3648 | C238: 0.654 | D238: 0.4906 | E238: 0.4906 | F238: 0.6213 | G238: 0.4123
A239: FUERZA ELÉCTRICA DEL ISTMO, S.A. No.34-13 | B239: 0.1425 | C239: 0.15 | D239: 0.1126 | E239: 0.1126 | F239: 0.1425 | G239: 0.1425
A240: CAFÉ DE ELETA, S.A. No.35-13 | B240: 0.04371 | C240: 0.049 | D240: 0.03546 | E240: 0.04847 | F240: 0.06951 | G240: 0.05179
A241: ENERGÍA Y SERVICIOS DE PANAMÁ, S.A. No.36-13 | B241: 2.11679 | C241: 2.66949 | D241: 2.1511 | E241: 2.44762 | F241: 2.59738 | G241: 1.89687
A242: GENERADORA PEDREGALITO, S.A. No.37-13 | B242: 0.87913 | C242: 1.1854 | D242: 1.1856 | E242: 1.4055 | F242: 1.02757 | G242: 0.64334
A243: GENERADORA RIO CHICO, S.A. No.38-13 | B243: 0.54207 | C243: 0.73057 | D243: 0.73036 | E243: 0.86558 | F243: 0.63303 | G243: 0.39705
A244: GENERADORA ALTO VALLE, S.A. No.39-13 | B244: 0.77441 | C244: 1.0677 | D244: 1.07206 | E244: 1.14692 | F244: 0.73839 | G244: 0.49692
A245: HYDRO CAISÁN, S.A. No.40-13 | B245: 1.92448 | C245: 3.31082 | D245: 3.71687 | E245: 0.84941 | F245: 3.38544 | G245: 1.02961
A246: Generadora de Gatún, S.A. No. 21-13 | B246: 40 | C246: 40 | D246: 40 | E246: 40 | F246: 40 | G246: 40
A247: SIGSA, S.A. No. 137-12 | B247: 0 | C247: 0 | D247: 0 | E247: 0 | F247: 0 | G247: 0
A248: AGGREKO No. 43-13
... 232 more rows

Sheet GEN-502 Pre_Pot
A1: INFORMACION PARA ACTUALIZAR: CARGO POR GENERACION
A2: =+'Compras (p)'!A2 -> EDECHI
A3: Precio Mensual de la Potencia Contratada (B/./KW/Mes)
B4: PRECIO ESTIMADO DE POTENCIA
A5: Detalle | B5: 2026-07-01 | C5: 2026-08-01 | D5: 2026-09-01 | E5: 2026-10-01 | F5: 2026-11-01 | G5: 2026-12-01
A8: TOTAL | B8: =+IF('GEN-502 Pot'!B8=0,0,'GEN-502 Cos_Pot'!B8/'GEN-502 Pot'!B8/1000) -> 16.50515783 | C8: =+IF('GEN-502 Pot'!C8=0,0,'GEN-502 Cos_Pot'!C8/'GEN-502 Pot'!C8/1000) -> 15.91253971 | D8: =+IF('GEN-502 Pot'!D8=0,0,'GEN-502 Cos_Pot'!D8/'GEN-502 Pot'!D8/1000) -> 15.95203661 | E8: =+IF('GEN-502 Pot'!E8=0,0,'GEN-502 Cos_Pot'!E8/'GEN-502 Pot'!E8/1000) -> 14.9202541 | F8: =+IF('GEN-502 Pot'!F8=0,0,'GEN-502 Cos_Pot'!F8/'GEN-502 Pot'!F8/1000) -> 15.80898867 | G8: =+IF('GEN-502 Pot'!G8=0,0,'GEN-502 Cos_Pot'!G8/'GEN-502 Pot'!G8/1000) -> 16.93669007
A9: Generación Propia | B9: =+'GEN-502 Pre_Pot'!B24 -> 16.28428385 | C9: =+'GEN-502 Pre_Pot'!C24 -> 15.70235191 | D9: =+'GEN-502 Pre_Pot'!D24 -> 15.74048566 | E9: =+'GEN-502 Pre_Pot'!E24 -> 14.7266997 | F9: =+'GEN-502 Pre_Pot'!F24 -> 15.59822263 | G9: =+'GEN-502 Pre_Pot'!G24 -> 16.70798895
A10: =+'GEN-502 Pot'!A10 -> 0
A11: =+'GEN-502 Pot'!A11 -> 0
A12: =+'GEN-502 Pot'!A12 -> 0
A13: =+'GEN-502 Pot'!A13 -> 0
A14: =+'GEN-502 Pot'!A14 -> 0
A15: Sub-Total Mercado Mayorista | B15: =+IF('GEN-502 Pot'!B15=0,0,'GEN-502 Cos_Pot'!B15/'GEN-502 Pot'!B15/1000) -> 16.50515783 | C15: =+IF('GEN-502 Pot'!C15=0,0,'GEN-502 Cos_Pot'!C15/'GEN-502 Pot'!C15/1000) -> 15.91253971 | D15: =+IF('GEN-502 Pot'!D15=0,0,'GEN-502 Cos_Pot'!D15/'GEN-502 Pot'!D15/1000) -> 15.95203661 | E15: =+IF('GEN-502 Pot'!E15=0,0,'GEN-502 Cos_Pot'!E15/'GEN-502 Pot'!E15/1000) -> 14.9202541 | F15: =+IF('GEN-502 Pot'!F15=0,0,'GEN-502 Cos_Pot'!F15/'GEN-502 Pot'!F15/1000) -> 15.80898867 | G15: =+IF('GEN-502 Pot'!G15=0,0,'GEN-502 Cos_Pot'!G15/'GEN-502 Pot'!G15/1000) -> 16.93669007
A16: Reserva de largo Plazo | B16: 8.96 | C16: =+B16 -> 8.96 | D16: =+C16 -> 8.96 | E16: =+D16 -> 8.96 | F16: =+E16 -> 8.96 | G16: =+F16 -> 8.96
A17: Compensacion de Potencia
A24: Sub-Total Contratos | B24: =+IF('GEN-502 Pot'!B24=0,0,'GEN-502 Cos_Pot'!B24/'GEN-502 Pot'!B24/1000) -> 16.28428385 | C24: =+IF('GEN-502 Pot'!C24=0,0,'GEN-502 Cos_Pot'!C24/'GEN-502 Pot'!C24/1000) -> 15.70235191 | D24: =+IF('GEN-502 Pot'!D24=0,0,'GEN-502 Cos_Pot'!D24/'GEN-502 Pot'!D24/1000) -> 15.74048566 | E24: =+IF('GEN-502 Pot'!E24=0,0,'GEN-502 Cos_Pot'!E24/'GEN-502 Pot'!E24/1000) -> 14.7266997 | F24: =+IF('GEN-502 Pot'!F24=0,0,'GEN-502 Cos_Pot'!F24/'GEN-502 Pot'!F24/1000) -> 15.59822263 | G24: =+IF('GEN-502 Pot'!G24=0,0,'GEN-502 Cos_Pot'!G24/'GEN-502 Pot'!G24/1000) -> 16.70798895
A25: =+'GEN-502 Pot'!A25 -> PTP-Isla Colón Nº 001-00 (1) & PTP 05-04 (3,2)
A26: =+'GEN-502 Pot'!A26 -> PTP-Chiriquí Grande Nº 001-99 (0.7) & 06-04
A27: =+'GEN-502 Pot'!A27 -> Edemet
A28: =+'GEN-502 Pot'!A28 -> Autoridad del Canal No. 04-03 (30) Gen
A29: =+'GEN-502 Pot'!A29 -> Autoridad del Canal No. 04-03 (30) Trans
A30: =+'GEN-502 Pot'!A30 -> PTP-Isla Colón Nº 05-04 (3,2)
A31: =+'GEN-502 Pot'!A31 -> Fortuna No. 12-98 (24)
A32: =+'GEN-502 Pot'!A32 -> Aes No.13-98 (22)
A33: =+'GEN-502 Pot'!A33 -> Fortuna No.09-04 (10)
A34: =+'GEN-502 Pot'!A34 -> Fortuna No.15-04 (5 y 34)
A35: =+'GEN-502 Pot'!A35 -> Fortuna No.15-04 (19, 4, 0 y 7)
A36: =+'GEN-502 Pot'!A36 -> ACP No. 07-05 (Solo Energía)
A37: =+'GEN-502 Pot'!A37 -> BLM No.15-05 (Solo Energía)
A38: =+'GEN-502 Pot'!A38 -> Arkapal No.10-05
A39: =+'GEN-502 Pot'!A39 -> Fortuna No.09-04 (71)
A40: =+'GEN-502 Pot'!A40 -> AES No.13-05 (16, 17, 29)
A41: =+'GEN-502 Pot'!A41 -> Fortuna No. 15-05
A42: =+'GEN-502 Pot'!A42 -> Los Estrechos No. 17-06 (2,5)
A43: =+'GEN-502 Pot'!A43 -> Saltos de Francolí No. 18-06 (0,7125)
A44: =+'GEN-502 Pot'!A44 -> AES No. 19-06 (35)
A45: =+'GEN-502 Pot'!A45 -> Generadora del Atlantico No. 05-07
A46: =+'GEN-502 Pot'!A46 -> Inversiones y Desarrollo Balboa No. 06-07
A47: =+'GEN-502 Pot'!A47 -> Térmica del Cariba No. 07-07 (4,275)
A48: =+'GEN-502 Pot'!A48 -> Fortuna No. 15-05 (Traspaso)
A49: =+'GEN-502 Pot'!A49 -> ACP No. 12-08 (Sólo Energía)
A50: =+'GEN-502 Pot'!A50 -> ACP No. 13-08 (Sólo Energía)
A51: =+'GEN-502 Pot'!A51 -> ACP No 15-08 (Sólo Energía)
A52: =+'GEN-502 Pot'!A52 -> ACP(H)
A53: =+'GEN-502 Pot'!A53 -> Fortuna
A54: =+'GEN-502 Pot'!A54 -> AES
A55: =+'GEN-502 Pot'!A55 -> Mendre
A56: =+'GEN-502 Pot'!A56 -> ACP
A57: =+'GEN-502 Pot'!A57 -> GenPro
A58: =+'GEN-502 Pot'!A58 -> Concepción
A59: =+'GEN-502 Pot'!A59 -> ESEPSA
A60: =+'GEN-502 Pot'!A60 -> EGESA
A61: =+'GEN-502 Pot'!A61 -> MER
A62: =+'GEN-502 Pot'!A62 -> TerCar
A63: =+'GEN-502 Pot'!A63 -> IDB
A64: =+'GEN-502 Pot'!A64 -> Pan Am
A65: =+'GEN-502 Pot'!A65 -> COPESA
A66: =+'GEN-502 Pot'!A66 -> BLM
A67: =+'GEN-502 Pot'!A67 -> Pedregal
A68: =+'GEN-502 Pot'!A68 -> GENA
A69: =+'GEN-502 Pot'!A69 -> 0
A70: =+'GEN-502 Pot'!A70 -> 0
A71: =+'GEN-502 Pot'!A71 -> 0
A72: =+'GEN-502 Pot'!A72 -> 0
A73: =+'GEN-502 Pot'!A73 -> 0
A74: =+'GEN-502 Pot'!A74 -> 0
A75: =+'GEN-502 Pot'!A75 -> 0
A76: =+'GEN-502 Pot'!A76 -> 0
A77: =+'GEN-502 Pot'!A77 -> 0
A78: =+'GEN-502 Pot'!A78 -> 0
A79: =+'GEN-502 Pot'!A79 -> 0
A80: =+'GEN-502 Pot'!A80 -> 0
A81: =+'GEN-502 Pot'!A81 -> 0
A82: =+'GEN-502 Pot'!A82 -> 0
A83: =+'GEN-502 Pot'!A83 -> 0
A84: =+'GEN-502 Pot'!A84 -> 0
A85: =+'GEN-502 Pot'!A85 -> 0
A86: =+'GEN-502 Pot'!A86 -> 0
A87: =+'GEN-502 Pot'!A87 -> 0
A88: =+'GEN-502 Pot'!A88 -> 0
A89: =+'GEN-502 Pot'!A89 -> 0
A90: =+'GEN-502 Pot'!A90 -> 0
A91: =+'GEN-502 Pot'!A91 -> 0
A92: =+'GEN-502 Pot'!A92 -> 0
A93: =+'GEN-502 Pot'!A93 -> 0
A94: =+'GEN-502 Pot'!A94 -> 0
A95: =+'GEN-502 Pot'!A95 -> 0
A96: =+'GEN-502 Pot'!A96 -> 0
A97: =+'GEN-502 Pot'!A97 -> 0
A98: =+'GEN-502 Pot'!A98 -> 0
A99: =+'GEN-502 Pot'!A99 -> 0
A100: =+'GEN-502 Pot'!A100 -> 0
A101: =+'GEN-502 Pot'!A101 -> 0
A102: =+'GEN-502 Pot'!A102 -> 0
A103: =+'GEN-502 Pot'!A103 -> 0
A104: =+'GEN-502 Pot'!A104 -> 0
A105: =+'GEN-502 Pot'!A105 -> 0
A106: =+'GEN-502 Pot'!A106 -> 0
A107: =+'GEN-502 Pot'!A107 -> 0
A108: =+'GEN-502 Pot'!A108 -> ESEPSA No. 18-10
A109: =+'GEN-502 Pot'!A109 -> Enel Fortuna No. 20-10
A110: =+'GEN-502 Pot'!A110 -> GENA No. 22-10
A111: =+'GEN-502 Pot'!A111 -> ACP No. 24-10
A112: =+'GEN-502 Pot'!A112 -> Fortuna No.14-05 Tras
A113: =+'GEN-502 Pot'!A113 -> Enel Fortuna No. 64-11
A114: =+'GEN-502 Pot'!A114 -> AES PANAMA No. 61-11
A115: =+'GEN-502 Pot'!A115 -> ESEPSA (La Yeguada) No. 62-11
A116: =+'GEN-502 Pot'!A116 -> Pedregalito No.18-11
A117: =+'GEN-502 Pot'!A117 -> Rio Chico No. 19-11
A118: =+'GEN-502 Pot'!A118 -> Alto Valle No. 20-11
A119: =+'GEN-502 Pot'!A119 -> Electrogeneradora del Istmo No. 21-11
A120: =+'GEN-502 Pot'!A120 -> Caldera Energy Corp. No. 22-11
A121: =+'GEN-502 Pot'!A121 -> Hidro Piedra No. 23-11
A122: =+'GEN-502 Pot'!A122 -> Empresa Nacional de Energía No. 36-11 (Cesión) | B122: 10.25 | C122: 10.25 | D122: 10.25 | E122: 10.25 | F122: 10.25 | G122: 10.25
A123: =+'GEN-502 Pot'!A123 -> Enel Fortuna No. 37-11 | B123: 7.49 | C123: 7.49 | D123: 7.49 | E123: 7.49 | F123: 7.49 | G123: 7.49
A124: =+'GEN-502 Pot'!A124 -> Electrogeneradora del Istmo No. 38-11 | B124: 25 | C124: 25 | D124: 25 | E124: 25 | F124: 25 | G124: 25
A125: =+'GEN-502 Pot'!A125 -> ESEPSA No. 39-11 | B125: 12 | C125: 12 | D125: 12 | E125: 12 | F125: 12 | G125: 12
A126: =+'GEN-502 Pot'!A126 -> Pedregalito No. 40-11 | B126: 30 | C126: 30 | D126: 30 | E126: 30 | F126: 30 | G126: 30
A127: =+'GEN-502 Pot'!A127 -> Río Chico No. 41-11 | B127: 30 | C127: 30 | D127: 30 | E127: 30 | F127: 30 | G127: 30
A128: =+'GEN-502 Pot'!A128 -> Alto Valle No. 42-11 | B128: 30 | C128: 30 | D128: 30 | E128: 30 | F128: 30 | G128: 30
A129: =+'GEN-502 Pot'!A129 -> Hidroecológica del Teribe No. 43-11 | B129: 8.5 | C129: 8.5 | D129: 8.5 | E129: 8.5 | F129: 8.5 | G129: 8.5
A130: =+'GEN-502 Pot'!A130 -> Desarrollos Hidroeléctricos Corp. No. 44-11 | B130: 10.35 | C130: 10.35 | D130: 10.35 | E130: 10.35 | F130: 10.35 | G130: 10.35
A131: =+'GEN-502 Pot'!A131 -> Las Perlas Norte No. 45-11 | B131: 9 | C131: 9 | D131: 9 | E131: 9 | F131: 9 | G131: 9
A132: =+'GEN-502 Pot'!A132 -> Hidroeléctrica San Lorenzo No. 46-11 | B132: 15 | C132: 15 | D132: 15 | E132: 15 | F132: 15 | G132: 15
A133: =+'GEN-502 Pot'!A133 -> Caldera Energy Corp. No. 47-11 | B133: 25 | C133: 25 | D133: 25 | E133: 25 | F133: 25 | G133: 25
A134: =+'GEN-502 Pot'!A134 -> ACP No. 63-11 Motores
A135: =+'GEN-502 Pot'!A135 -> ACP No. 63-11 Hidro
A136: =+'GEN-502 Pot'!A136 -> Hidro Caldera No. 65-11
A137: =+'GEN-502 Pot'!A137 -> Pedregalito No.66-11
A138: =+'GEN-502 Pot'!A138 -> Rio Chico No. 67-11
A139: =+'GEN-502 Pot'!A139 -> Alternegy No. 68-11
A140: =+'GEN-502 Pot'!A140 -> Bontex No. 69-11
A141: =+'GEN-502 Pot'!A141 -> Istmus No. 70-11
A142: =+'GEN-502 Pot'!A142 -> BLM (Carbón) No. 71-11
A143: =+'GEN-502 Pot'!A143 -> IDB No. 72-11
A144: =+'GEN-502 Pot'!A144 -> Pedregal No. 73-11
A145: =+'GEN-502 Pot'!A145 -> ESEPSA (Algarrobos) No. 62-11
A146: =+'GEN-502 Pot'!A146 -> ESEPSA (Dolega) No. 62-11
A147: =+'GEN-502 Pot'!A147 -> ESEPSA (Macho de Monte) No. 62-11
A148: =+'GEN-502 Pot'!A148 -> Hidroibérica No. 80-11
A149: =+'GEN-502 Pot'!A149 -> Enel Fortuna No. 81-11
A150: =+'GEN-502 Pot'!A150 -> Hidro Boquerón No. 82-11
A151: =+'GEN-502 Pot'!A151 -> Pedregal Power No. 83-11
A152: =+'GEN-502 Pot'!A152 -> EGESA No. 84-11
A153: =+'GEN-502 Pot'!A153 -> ACP No. 85-11
A154: =+'GEN-502 Pot'!A154 -> Istmus Hydro Power No. 08-12
A155: =+'GEN-502 Pot'!A155 -> Hidro Panamá No. 09-12
A156: =+'GEN-502 Pot'!A156 -> Pedregal Power No. 10-12
A157: =+'GEN-502 Pot'!A157 -> Pedregal Power No. 11-12
A158: =+'GEN-502 Pot'!A158 -> Café de Eleta No. 12-12
A159: =+'GEN-502 Pot'!A159 -> Bahías Las Minas No. 13-12
A160: =+'GEN-502 Pot'!A160 -> Generadora del Atlántico No. 14-12
A161: =+'GEN-502 Pot'!A161 -> Unión Eólica de Panamá (PE Nuevo Chagres) No. 19-12'
A162: =+'GEN-502 Pot'!A162 -> Unión Eólica de Panamá (PE Rosa de los Vientos) No. 20-12'
A163: =+'GEN-502 Pot'!A163 -> Unión Eólica de Panamá (PE Portobelo Ballestillas) No. 21-12'
A164: =+'GEN-502 Pot'!A164 -> Unión Eólica de Panamá (PE Marañon) No. 22-12'
A165: =+'GEN-502 Pot'!A165 -> Autoridad del Canal de Panamá No. 44-12
A166: =+'GEN-502 Pot'!A166 -> AES Panamá No. 45-12
A167: =+'GEN-502 Pot'!A167 -> Energía y Servicios de Panamá, S.A. No. 46-12 (La Yeguada)
A168: =+'GEN-502 Pot'!A168 -> Enel Fortuna No. 47-12
A169: =+'GEN-502 Pot'!A169 -> FERSA Panamá, S.A. No. 48-12
A170: =+'GEN-502 Pot'!A170 -> Caldera Energy Corp. No. 49-12
A171: =+'GEN-502 Pot'!A171 -> Electrogeneradora del Istmo No. 50-12
A172: =+'GEN-502 Pot'!A172 -> Paso Ancho Hydro Power No. 51-12
A173: =+'GEN-502 Pot'!A173 -> Café de Eleta No. 52-12
A174: =+'GEN-502 Pot'!A174 -> Generadora del Istmo, S.A. No. 53-12
A175: =+'GEN-502 Pot'!A175 -> Bontex, S.A. No. 54-12
A176: =+'GEN-502 Pot'!A176 -> Alternegy, S.A. No. 55-12
A177: =+'GEN-502 Pot'!A177 -> Hidro Panamá, S.A. No. 56-12
A178: =+'GEN-502 Pot'!A178 -> Electron Investment, S.A. No. 57-12
A179: =+'GEN-502 Pot'!A179 -> Istmus Hydro Power No. 58-12
A180: =+'GEN-502 Pot'!A180 -> Las Perlas Norte, S.A. No. 59-12
A181: =+'GEN-502 Pot'!A181 -> Las Perlas Sur, S.A. No. 60-12
A182: =+'GEN-502 Pot'!A182 -> Generadora Río Chico No. 61-12
A183: =+'GEN-502 Pot'!A183 -> Generadora Alto Valle No. 62-12
A184: =+'GEN-502 Pot'!A184 -> Generadora Pedregalito No. 63-12
A185: =+'GEN-502 Pot'!A185 -> Hydro Caisán No. 64-12
A186: =+'GEN-502 Pot'!A186 -> Hidro Piedra No. 66-12
A187: =+'GEN-502 Pot'!A187 -> Hidro Panamá, S.A. No. 77-12
A188: =+'GEN-502 Pot'!A188 -> Hidroecológica del Teribe No. 78-12
A189: =+'GEN-502 Pot'!A189 -> Ideal Panamá No. 79-12
A190: =+'GEN-502 Pot'!A190 -> Istmus Hydro Power No. 80-12
A191: =+'GEN-502 Pot'!A191 -> Las Perlas Norte, S.A. No. 81-12
A192: =+'GEN-502 Pot'!A192 -> Las Perlas Sur, S.A. No. 82-12
A193: =+'GEN-502 Pot'!A193 -> Café de Eleta No. 83-12
A194: =+'GEN-502 Pot'!A194 -> Enel Fortuna No. 84-12
A195: =+'GEN-502 Pot'!A195 -> Generadora del Atlántico No. 85-12
A196: =+'GEN-502 Pot'!A196 -> Autoridad del Canal de Panamá No. 86-12
A197: =+'GEN-502 Pot'!A197 -> Hydro Caisán No. 101-12
A198: =+'GEN-502 Pot'!A198 -> Caldera Energy Corp. No. 102-12
A199: =+'GEN-502 Pot'!A199 -> Electrogeneradora del Istmo No. 103-12
A200: =+'GEN-502 Pot'!A200 -> Generadora Pedregalito No. 104-12
A201: =+'GEN-502 Pot'!A201 -> Generadora Río Chico No. 105-12
A202: =+'GEN-502 Pot'!A202 -> Hidroibérica No. 106-12
A203: =+'GEN-502 Pot'!A203 -> Generadora Alto Valle No. 107-12
A204: =+'GEN-502 Pot'!A204 -> Energía y Servicios de Panamá, S.A. No. 108-12
A205: =+'GEN-502 Pot'!A205 -> Hidro Panamá, S.A. No. 109-12
A206: =+'GEN-502 Pot'!A206 -> Las Perlas Norte, S.A. No. 110-12
A207: =+'GEN-502 Pot'!A207 -> Las Perlas Sur, S.A. No. 111-12
A208: =+'GEN-502 Pot'!A208 -> Generadora del Istmo, S.A. No. 112-12
... 274 more rows

Sheet GEN-502 Cos_Pot
A1: INFORMACION PARA ACTUALIZAR: CARGO POR GENERACION
A2: =+'Compras (p)'!A2 -> EDECHI
A3: Estimación de Facturación Mensual de Potencia para suministrar Clientes Regulados (B/.)
B4: ESTIMACION DEL COSTO DE POTENCIA
A5: Detalle | B5: 2026-07-01 | C5: 2026-08-01 | D5: 2026-09-01 | E5: 2026-10-01 | F5: 2026-11-01 | G5: 2026-12-01
A8: TOTAL COSTO DE POTENCIA | B8: =+B9+B15 -> 3571215.683 | C8: 3618036.666 | D8: 3603645.815 | E8: 3683953.462 | F8: 3584630.72 | G8: 3539168.142
A9: Generación Propia | B9: =+'GEN-502 Pot'!B9*'GEN-502 Pre_Pot'!B9*1000 -> 0 | C9: =+'GEN-502 Pot'!C9*'GEN-502 Pre_Pot'!C9*1000 -> 0 | D9: =+'GEN-502 Pot'!D9*'GEN-502 Pre_Pot'!D9*1000 -> 0 | E9: =+'GEN-502 Pot'!E9*'GEN-502 Pre_Pot'!E9*1000 -> 0 | F9: =+'GEN-502 Pot'!F9*'GEN-502 Pre_Pot'!F9*1000 -> 0 | G9: =+'GEN-502 Pot'!G9*'GEN-502 Pre_Pot'!G9*1000 -> 0
A10: =+'GEN-502 Pot'!A10 -> 0 | B10: =+'GEN-502 Pot'!B10*'GEN-502 Pre_Pot'!B10*1000 -> 0 | C10: =+'GEN-502 Pot'!C10*'GEN-502 Pre_Pot'!C10*1000 -> 0 | D10: =+'GEN-502 Pot'!D10*'GEN-502 Pre_Pot'!D10*1000 -> 0 | E10: =+'GEN-502 Pot'!E10*'GEN-502 Pre_Pot'!E10*1000 -> 0 | F10: =+'GEN-502 Pot'!F10*'GEN-502 Pre_Pot'!F10*1000 -> 0 | G10: =+'GEN-502 Pot'!G10*'GEN-502 Pre_Pot'!G10*1000 -> 0
A11: =+'GEN-502 Pot'!A11 -> 0 | B11: =+'GEN-502 Pot'!B11*'GEN-502 Pre_Pot'!B11*1000 -> 0 | C11: =+'GEN-502 Pot'!C11*'GEN-502 Pre_Pot'!C11*1000 -> 0 | D11: =+'GEN-502 Pot'!D11*'GEN-502 Pre_Pot'!D11*1000 -> 0 | E11: =+'GEN-502 Pot'!E11*'GEN-502 Pre_Pot'!E11*1000 -> 0 | F11: =+'GEN-502 Pot'!F11*'GEN-502 Pre_Pot'!F11*1000 -> 0 | G11: =+'GEN-502 Pot'!G11*'GEN-502 Pre_Pot'!G11*1000 -> 0
A12: =+'GEN-502 Pot'!A12 -> 0 | B12: =+'GEN-502 Pot'!B12*'GEN-502 Pre_Pot'!B12*1000 -> 0 | C12: =+'GEN-502 Pot'!C12*'GEN-502 Pre_Pot'!C12*1000 -> 0 | D12: =+'GEN-502 Pot'!D12*'GEN-502 Pre_Pot'!D12*1000 -> 0 | E12: =+'GEN-502 Pot'!E12*'GEN-502 Pre_Pot'!E12*1000 -> 0 | F12: =+'GEN-502 Pot'!F12*'GEN-502 Pre_Pot'!F12*1000 -> 0 | G12: =+'GEN-502 Pot'!G12*'GEN-502 Pre_Pot'!G12*1000 -> 0
A13: =+'GEN-502 Pot'!A13 -> 0
A14: =+'GEN-502 Pot'!A14 -> 0
A15: Sub-Total Mercado Mayorista | B15: =+SUM(B16:B24) -> 3571215.683 | C15: 3618036.666 | D15: 3603645.815 | E15: 3683953.462 | F15: 3584630.72 | G15: 3539168.142
A16: Reserva de largo Plazo | B16: =+'GEN-502 Pot'!B16*'GEN-502 Pre_Pot'!B16*1000 -> 0 | C16: =+'GEN-502 Pot'!C16*'GEN-502 Pre_Pot'!C16*1000 -> 0 | D16: =+'GEN-502 Pot'!D16*'GEN-502 Pre_Pot'!D16*1000 -> 0 | E16: =+'GEN-502 Pot'!E16*'GEN-502 Pre_Pot'!E16*1000 -> 0 | F16: =+'GEN-502 Pot'!F16*'GEN-502 Pre_Pot'!F16*1000 -> 0 | G16: =+'GEN-502 Pot'!G16*'GEN-502 Pre_Pot'!G16*1000 -> 0
A17: Compensacion de Potencia
A18: Seguimiento de la Demanda | B18: =+AVERAGE('GEN-522 Cos_Pot'!B18:G18) -> 47790.43167 | C18: =+B18 -> 47790.43167 | D18: =+C18 -> 47790.43167 | E18: =+D18 -> 47790.43167 | F18: =+E18 -> 47790.43167 | G18: =+F18 -> 47790.43167
A24: Sub-Total Contratos | B24: =+SUM(B25:B480) -> 3523425.252 | C24: 3570246.235 | D24: 3555855.383 | E24: 3636163.03 | F24: 3536840.289 | G24: 3491377.71
A25: =+'GEN-502 Pot'!A25 -> PTP-Isla Colón Nº 001-00 (1) & PTP 05-04 (3,2)
A26: =+'GEN-502 Pot'!A26 -> PTP-Chiriquí Grande Nº 001-99 (0.7) & 06-04
A27: =+'GEN-502 Pot'!A27 -> Edemet
A28: =+'GEN-502 Pot'!A28 -> Autoridad del Canal No. 04-03 (30) Gen
A29: =+'GEN-502 Pot'!A29 -> Autoridad del Canal No. 04-03 (30) Trans
A30: =+'GEN-502 Pot'!A30 -> PTP-Isla Colón Nº 05-04 (3,2)
A31: =+'GEN-502 Pot'!A31 -> Fortuna No. 12-98 (24)
A32: =+'GEN-502 Pot'!A32 -> Aes No.13-98 (22)
A33: =+'GEN-502 Pot'!A33 -> Fortuna No.09-04 (10)
A34: =+'GEN-502 Pot'!A34 -> Fortuna No.15-04 (5 y 34)
A35: =+'GEN-502 Pot'!A35 -> Fortuna No.15-04 (19, 4, 0 y 7)
A36: =+'GEN-502 Pot'!A36 -> ACP No. 07-05 (Solo Energía)
A37: =+'GEN-502 Pot'!A37 -> BLM No.15-05 (Solo Energía)
A38: =+'GEN-502 Pot'!A38 -> Arkapal No.10-05
A39: =+'GEN-502 Pot'!A39 -> Fortuna No.09-04 (71)
A40: =+'GEN-502 Pot'!A40 -> AES No.13-05 (16, 17, 29)
A41: =+'GEN-502 Pot'!A41 -> Fortuna No. 15-05
A42: =+'GEN-502 Pot'!A42 -> Los Estrechos No. 17-06 (2,5)
A43: =+'GEN-502 Pot'!A43 -> Saltos de Francolí No. 18-06 (0,7125)
A44: =+'GEN-502 Pot'!A44 -> AES No. 19-06 (35)
A45: =+'GEN-502 Pot'!A45 -> Generadora del Atlantico No. 05-07
A46: =+'GEN-502 Pot'!A46 -> Inversiones y Desarrollo Balboa No. 06-07
A47: =+'GEN-502 Pot'!A47 -> Térmica del Cariba No. 07-07 (4,275)
A48: =+'GEN-502 Pot'!A48 -> Fortuna No. 15-05 (Traspaso)
A49: =+'GEN-502 Pot'!A49 -> ACP No. 12-08 (Sólo Energía)
A50: =+'GEN-502 Pot'!A50 -> ACP No. 13-08 (Sólo Energía)
A51: =+'GEN-502 Pot'!A51 -> ACP No 15-08 (Sólo Energía)
A52: =+'GEN-502 Pot'!A52 -> ACP(H)
A53: =+'GEN-502 Pot'!A53 -> Fortuna
A54: =+'GEN-502 Pot'!A54 -> AES
A55: =+'GEN-502 Pot'!A55 -> Mendre
A56: =+'GEN-502 Pot'!A56 -> ACP
A57: =+'GEN-502 Pot'!A57 -> GenPro
A58: =+'GEN-502 Pot'!A58 -> Concepción
A59: =+'GEN-502 Pot'!A59 -> ESEPSA
A60: =+'GEN-502 Pot'!A60 -> EGESA
A61: =+'GEN-502 Pot'!A61 -> MER
A62: =+'GEN-502 Pot'!A62 -> TerCar
A63: =+'GEN-502 Pot'!A63 -> IDB
A64: =+'GEN-502 Pot'!A64 -> Pan Am
A65: =+'GEN-502 Pot'!A65 -> COPESA
A66: =+'GEN-502 Pot'!A66 -> BLM
A67: =+'GEN-502 Pot'!A67 -> Pedregal
A68: =+'GEN-502 Pot'!A68 -> GENA
A69: =+'GEN-502 Pot'!A69 -> 0
A70: =+'GEN-502 Pot'!A70 -> 0
A71: =+'GEN-502 Pot'!A71 -> 0
A72: =+'GEN-502 Pot'!A72 -> 0
A73: =+'GEN-502 Pot'!A73 -> 0
A74: =+'GEN-502 Pot'!A74 -> 0
A75: =+'GEN-502 Pot'!A75 -> 0
A76: =+'GEN-502 Pot'!A76 -> 0
A77: =+'GEN-502 Pot'!A77 -> 0
A78: =+'GEN-502 Pot'!A78 -> 0
A79: =+'GEN-502 Pot'!A79 -> 0
A80: =+'GEN-502 Pot'!A80 -> 0
A81: =+'GEN-502 Pot'!A81 -> 0
A82: =+'GEN-502 Pot'!A82 -> 0
A83: =+'GEN-502 Pot'!A83 -> 0
A84: =+'GEN-502 Pot'!A84 -> 0
A85: =+'GEN-502 Pot'!A85 -> 0
A86: =+'GEN-502 Pot'!A86 -> 0
A87: =+'GEN-502 Pot'!A87 -> 0
A88: =+'GEN-502 Pot'!A88 -> 0
A89: =+'GEN-502 Pot'!A89 -> 0
A90: =+'GEN-502 Pot'!A90 -> 0
A91: =+'GEN-502 Pot'!A91 -> 0
A92: =+'GEN-502 Pot'!A92 -> 0
A93: =+'GEN-502 Pot'!A93 -> 0
A94: =+'GEN-502 Pot'!A94 -> 0
A95: =+'GEN-502 Pot'!A95 -> 0
A96: =+'GEN-502 Pot'!A96 -> 0
A97: =+'GEN-502 Pot'!A97 -> 0
A98: =+'GEN-502 Pot'!A98 -> 0
A99: =+'GEN-502 Pot'!A99 -> 0
A100: =+'GEN-502 Pot'!A100 -> 0
A101: =+'GEN-502 Pot'!A101 -> 0
A102: =+'GEN-502 Pot'!A102 -> 0
A103: =+'GEN-502 Pot'!A103 -> 0
A104: =+'GEN-502 Pot'!A104 -> 0
A105: =+'GEN-502 Pot'!A105 -> 0
A106: =+'GEN-502 Pot'!A106 -> 0
A107: =+'GEN-502 Pot'!A107 -> 0
A108: =+'GEN-502 Pot'!A108 -> ESEPSA No. 18-10
A109: =+'GEN-502 Pot'!A109 -> Enel Fortuna No. 20-10
A110: =+'GEN-502 Pot'!A110 -> GENA No. 22-10
A111: =+'GEN-502 Pot'!A111 -> ACP No. 24-10
A112: =+'GEN-502 Pot'!A112 -> Fortuna No.14-05 Tras
A113: =+'GEN-502 Pot'!A113 -> Enel Fortuna No. 64-11
A114: =+'GEN-502 Pot'!A114 -> AES PANAMA No. 61-11
A115: =+'GEN-502 Pot'!A115 -> ESEPSA (La Yeguada) No. 62-11
A116: =+'GEN-502 Pot'!A116 -> Pedregalito No.18-11
A117: =+'GEN-502 Pot'!A117 -> Rio Chico No. 19-11
A118: =+'GEN-502 Pot'!A118 -> Alto Valle No. 20-11
A119: =+'GEN-502 Pot'!A119 -> Electrogeneradora del Istmo No. 21-11
A120: =+'GEN-502 Pot'!A120 -> Caldera Energy Corp. No. 22-11
A121: =+'GEN-502 Pot'!A121 -> Hidro Piedra No. 23-11
A122: =+'GEN-502 Pot'!A122 -> Empresa Nacional de Energía No. 36-11 (Cesión) | B122: =+'GEN-502 Pot'!B122*'GEN-502 Pre_Pot'!B122*1000 -> 6826.5 | C122: =+'GEN-502 Pot'!C122*'GEN-502 Pre_Pot'!C122*1000 -> 6826.5 | D122: =+'GEN-502 Pot'!D122*'GEN-502 Pre_Pot'!D122*1000 -> 6826.5 | E122: =+'GEN-502 Pot'!E122*'GEN-502 Pre_Pot'!E122*1000 -> 6826.5 | F122: =+'GEN-502 Pot'!F122*'GEN-502 Pre_Pot'!F122*1000 -> 6826.5 | G122: =+'GEN-502 Pot'!G122*'GEN-502 Pre_Pot'!G122*1000 -> 6826.5
A123: =+'GEN-502 Pot'!A123 -> Enel Fortuna No. 37-11 | B123: =+'GEN-502 Pot'!B123*'GEN-502 Pre_Pot'!B123*1000 -> 14725.5647 | C123: =+'GEN-502 Pot'!C123*'GEN-502 Pre_Pot'!C123*1000 -> 14725.5647 | D123: =+'GEN-502 Pot'!D123*'GEN-502 Pre_Pot'!D123*1000 -> 14725.5647 | E123: =+'GEN-502 Pot'!E123*'GEN-502 Pre_Pot'!E123*1000 -> 14725.5647 | F123: =+'GEN-502 Pot'!F123*'GEN-502 Pre_Pot'!F123*1000 -> 14725.5647 | G123: =+'GEN-502 Pot'!G123*'GEN-502 Pre_Pot'!G123*1000 -> 14725.5647
A124: =+'GEN-502 Pot'!A124 -> Electrogeneradora del Istmo No. 38-11 | B124: =+'GEN-502 Pot'!B124*'GEN-502 Pre_Pot'!B124*1000 -> 2081.25 | C124: =+'GEN-502 Pot'!C124*'GEN-502 Pre_Pot'!C124*1000 -> 2081.25 | D124: =+'GEN-502 Pot'!D124*'GEN-502 Pre_Pot'!D124*1000 -> 2081.25 | E124: =+'GEN-502 Pot'!E124*'GEN-502 Pre_Pot'!E124*1000 -> 2081.25 | F124: =+'GEN-502 Pot'!F124*'GEN-502 Pre_Pot'!F124*1000 -> 2081.25 | G124: =+'GEN-502 Pot'!G124*'GEN-502 Pre_Pot'!G124*1000 -> 2081.25
A125: =+'GEN-502 Pot'!A125 -> ESEPSA No. 39-11 | B125: =+'GEN-502 Pot'!B125*'GEN-502 Pre_Pot'!B125*1000 -> 4379.64 | C125: =+'GEN-502 Pot'!C125*'GEN-502 Pre_Pot'!C125*1000 -> 4379.64 | D125: =+'GEN-502 Pot'!D125*'GEN-502 Pre_Pot'!D125*1000 -> 4379.64 | E125: =+'GEN-502 Pot'!E125*'GEN-502 Pre_Pot'!E125*1000 -> 4379.64 | F125: =+'GEN-502 Pot'!F125*'GEN-502 Pre_Pot'!F125*1000 -> 4379.64 | G125: =+'GEN-502 Pot'!G125*'GEN-502 Pre_Pot'!G125*1000 -> 4379.64
A126: =+'GEN-502 Pot'!A126 -> Pedregalito No. 40-11 | B126: =+'GEN-502 Pot'!B126*'GEN-502 Pre_Pot'!B126*1000 -> 7868.1 | C126: =+'GEN-502 Pot'!C126*'GEN-502 Pre_Pot'!C126*1000 -> 7868.1 | D126: =+'GEN-502 Pot'!D126*'GEN-502 Pre_Pot'!D126*1000 -> 7868.1 | E126: =+'GEN-502 Pot'!E126*'GEN-502 Pre_Pot'!E126*1000 -> 7868.1 | F126: =+'GEN-502 Pot'!F126*'GEN-502 Pre_Pot'!F126*1000 -> 7868.1 | G126: =+'GEN-502 Pot'!G126*'GEN-502 Pre_Pot'!G126*1000 -> 7868.1
A127: =+'GEN-502 Pot'!A127 -> Río Chico No. 41-11 | B127: =+'GEN-502 Pot'!B127*'GEN-502 Pre_Pot'!B127*1000 -> 4825.2 | C127: =+'GEN-502 Pot'!C127*'GEN-502 Pre_Pot'!C127*1000 -> 4825.2 | D127: =+'GEN-502 Pot'!D127*'GEN-502 Pre_Pot'!D127*1000 -> 4825.2 | E127: =+'GEN-502 Pot'!E127*'GEN-502 Pre_Pot'!E127*1000 -> 4825.2 | F127: =+'GEN-502 Pot'!F127*'GEN-502 Pre_Pot'!F127*1000 -> 4825.2 | G127: =+'GEN-502 Pot'!G127*'GEN-502 Pre_Pot'!G127*1000 -> 4825.2
A128: =+'GEN-502 Pot'!A128 -> Alto Valle No. 42-11 | B128: =+'GEN-502 Pot'!B128*'GEN-502 Pre_Pot'!B128*1000 -> 4591.5 | C128: =+'GEN-502 Pot'!C128*'GEN-502 Pre_Pot'!C128*1000 -> 4591.5 | D128: =+'GEN-502 Pot'!D128*'GEN-502 Pre_Pot'!D128*1000 -> 4591.5 | E128: =+'GEN-502 Pot'!E128*'GEN-502 Pre_Pot'!E128*1000 -> 4591.5 | F128: =+'GEN-502 Pot'!F128*'GEN-502 Pre_Pot'!F128*1000 -> 4591.5 | G128: =+'GEN-502 Pot'!G128*'GEN-502 Pre_Pot'!G128*1000 -> 4591.5
A129: =+'GEN-502 Pot'!A129 -> Hidroecológica del Teribe No. 43-11 | B129: =+'GEN-502 Pot'!B129*'GEN-502 Pre_Pot'!B129*1000 -> 5661 | C129: =+'GEN-502 Pot'!C129*'GEN-502 Pre_Pot'!C129*1000 -> 5661 | D129: =+'GEN-502 Pot'!D129*'GEN-502 Pre_Pot'!D129*1000 -> 5661 | E129: =+'GEN-502 Pot'!E129*'GEN-502 Pre_Pot'!E129*1000 -> 5661 | F129: =+'GEN-502 Pot'!F129*'GEN-502 Pre_Pot'!F129*1000 -> 5661 | G129: =+'GEN-502 Pot'!G129*'GEN-502 Pre_Pot'!G129*1000 -> 5661
A130: =+'GEN-502 Pot'!A130 -> Desarrollos Hidroeléctricos Corp. No. 44-11 | B130: =+'GEN-502 Pot'!B130*'GEN-502 Pre_Pot'!B130*1000 -> 1311.759 | C130: =+'GEN-502 Pot'!C130*'GEN-502 Pre_Pot'!C130*1000 -> 1311.759 | D130: =+'GEN-502 Pot'!D130*'GEN-502 Pre_Pot'!D130*1000 -> 1311.759 | E130: =+'GEN-502 Pot'!E130*'GEN-502 Pre_Pot'!E130*1000 -> 1311.759 | F130: =+'GEN-502 Pot'!F130*'GEN-502 Pre_Pot'!F130*1000 -> 1311.759 | G130: =+'GEN-502 Pot'!G130*'GEN-502 Pre_Pot'!G130*1000 -> 1311.759
A131: =+'GEN-502 Pot'!A131 -> Las Perlas Norte No. 45-11 | B131: =+'GEN-502 Pot'!B131*'GEN-502 Pre_Pot'!B131*1000 -> 7132.86 | C131: =+'GEN-502 Pot'!C131*'GEN-502 Pre_Pot'!C131*1000 -> 7132.86 | D131: =+'GEN-502 Pot'!D131*'GEN-502 Pre_Pot'!D131*1000 -> 7132.86 | E131: =+'GEN-502 Pot'!E131*'GEN-502 Pre_Pot'!E131*1000 -> 7132.86 | F131: =+'GEN-502 Pot'!F131*'GEN-502 Pre_Pot'!F131*1000 -> 7132.86 | G131: =+'GEN-502 Pot'!G131*'GEN-502 Pre_Pot'!G131*1000 -> 7132.86
A132: =+'GEN-502 Pot'!A132 -> Hidroeléctrica San Lorenzo No. 46-11 | B132: =+'GEN-502 Pot'!B132*'GEN-502 Pre_Pot'!B132*1000 -> 1331.7 | C132: =+'GEN-502 Pot'!C132*'GEN-502 Pre_Pot'!C132*1000 -> 1331.7 | D132: =+'GEN-502 Pot'!D132*'GEN-502 Pre_Pot'!D132*1000 -> 1331.7 | E132: =+'GEN-502 Pot'!E132*'GEN-502 Pre_Pot'!E132*1000 -> 1331.7 | F132: =+'GEN-502 Pot'!F132*'GEN-502 Pre_Pot'!F132*1000 -> 1331.7 | G132: =+'GEN-502 Pot'!G132*'GEN-502 Pre_Pot'!G132*1000 -> 1331.7
A133: =+'GEN-502 Pot'!A133 -> Caldera Energy Corp. No. 47-11 | B133: =+'GEN-502 Pot'!B133*'GEN-502 Pre_Pot'!B133*1000 -> 4995 | C133: =+'GEN-502 Pot'!C133*'GEN-502 Pre_Pot'!C133*1000 -> 4995 | D133: =+'GEN-502 Pot'!D133*'GEN-502 Pre_Pot'!D133*1000 -> 4995 | E133: =+'GEN-502 Pot'!E133*'GEN-502 Pre_Pot'!E133*1000 -> 4995 | F133: =+'GEN-502 Pot'!F133*'GEN-502 Pre_Pot'!F133*1000 -> 4995 | G133: =+'GEN-502 Pot'!G133*'GEN-502 Pre_Pot'!G133*1000 -> 4995
A134: =+'GEN-502 Pot'!A134 -> ACP No. 63-11 Motores
A135: =+'GEN-502 Pot'!A135 -> ACP No. 63-11 Hidro
A136: =+'GEN-502 Pot'!A136 -> Hidro Caldera No. 65-11
A137: =+'GEN-502 Pot'!A137 -> Pedregalito No.66-11
A138: =+'GEN-502 Pot'!A138 -> Rio Chico No. 67-11
A139: =+'GEN-502 Pot'!A139 -> Alternegy No. 68-11
A140: =+'GEN-502 Pot'!A140 -> Bontex No. 69-11
A141: =+'GEN-502 Pot'!A141 -> Istmus No. 70-11
A142: =+'GEN-502 Pot'!A142 -> BLM (Carbón) No. 71-11
A143: =+'GEN-502 Pot'!A143 -> IDB No. 72-11
A144: =+'GEN-502 Pot'!A144 -> Pedregal No. 73-11
A145: =+'GEN-502 Pot'!A145 -> ESEPSA (Algarrobos) No. 62-11
A146: =+'GEN-502 Pot'!A146 -> ESEPSA (Dolega) No. 62-11
A147: =+'GEN-502 Pot'!A147 -> ESEPSA (Macho de Monte) No. 62-11
A148: =+'GEN-502 Pot'!A148 -> Hidroibérica No. 80-11
A149: =+'GEN-502 Pot'!A149 -> Enel Fortuna No. 81-11
A150: =+'GEN-502 Pot'!A150 -> Hidro Boquerón No. 82-11
A151: =+'GEN-502 Pot'!A151 -> Pedregal Power No. 83-11
A152: =+'GEN-502 Pot'!A152 -> EGESA No. 84-11
A153: =+'GEN-502 Pot'!A153 -> ACP No. 85-11
A154: =+'GEN-502 Pot'!A154 -> Istmus Hydro Power No. 08-12
A155: =+'GEN-502 Pot'!A155 -> Hidro Panamá No. 09-12
A156: =+'GEN-502 Pot'!A156 -> Pedregal Power No. 10-12
A157: =+'GEN-502 Pot'!A157 -> Pedregal Power No. 11-12
A158: =+'GEN-502 Pot'!A158 -> Café de Eleta No. 12-12
A159: =+'GEN-502 Pot'!A159 -> Bahías Las Minas No. 13-12
A160: =+'GEN-502 Pot'!A160 -> Generadora del Atlántico No. 14-12
A161: =+'GEN-502 Pot'!A161 -> Unión Eólica de Panamá (PE Nuevo Chagres) No. 19-12'
A162: =+'GEN-502 Pot'!A162 -> Unión Eólica de Panamá (PE Rosa de los Vientos) No. 20-12'
A163: =+'GEN-502 Pot'!A163 -> Unión Eólica de Panamá (PE Portobelo Ballestillas) No. 21-12'
A164: =+'GEN-502 Pot'!A164 -> Unión Eólica de Panamá (PE Marañon) No. 22-12'
A165: =+'GEN-502 Pot'!A165 -> Autoridad del Canal de Panamá No. 44-12
A166: =+'GEN-502 Pot'!A166 -> AES Panamá No. 45-12
A167: =+'GEN-502 Pot'!A167 -> Energía y Servicios de Panamá, S.A. No. 46-12 (La Yeguada)
A168: =+'GEN-502 Pot'!A168 -> Enel Fortuna No. 47-12
A169: =+'GEN-502 Pot'!A169 -> FERSA Panamá, S.A. No. 48-12
A170: =+'GEN-502 Pot'!A170 -> Caldera Energy Corp. No. 49-12
A171: =+'GEN-502 Pot'!A171 -> Electrogeneradora del Istmo No. 50-12
A172: =+'GEN-502 Pot'!A172 -> Paso Ancho Hydro Power No. 51-12
A173: =+'GEN-502 Pot'!A173 -> Café de Eleta No. 52-12
A174: =+'GEN-502 Pot'!A174 -> Generadora del Istmo, S.A. No. 53-12
A175: =+'GEN-502 Pot'!A175 -> Bontex, S.A. No. 54-12
A176: =+'GEN-502 Pot'!A176 -> Alternegy, S.A. No. 55-12
A177: =+'GEN-502 Pot'!A177 -> Hidro Panamá, S.A. No. 56-12
A178: =+'GEN-502 Pot'!A178 -> Electron Investment, S.A. No. 57-12
A179: =+'GEN-502 Pot'!A179 -> Istmus Hydro Power No. 58-12
A180: =+'GEN-502 Pot'!A180 -> Las Perlas Norte, S.A. No. 59-12
A181: =+'GEN-502 Pot'!A181 -> Las Perlas Sur, S.A. No. 60-12
A182: =+'GEN-502 Pot'!A182 -> Generadora Río Chico No. 61-12
A183: =+'GEN-502 Pot'!A183 -> Generadora Alto Valle No. 62-12
A184: =+'GEN-502 Pot'!A184 -> Generadora Pedregalito No. 63-12
A185: =+'GEN-502 Pot'!A185 -> Hydro Caisán No. 64-12
A186: =+'GEN-502 Pot'!A186 -> Hidro Piedra No. 66-12
A187: =+'GEN-502 Pot'!A187 -> Hidro Panamá, S.A. No. 77-12
A188: =+'GEN-502 Pot'!A188 -> Hidroecológica del Teribe No. 78-12
A189: =+'GEN-502 Pot'!A189 -> Ideal Panamá No. 79-12
A190: =+'GEN-502 Pot'!A190 -> Istmus Hydro Power No. 80-12
A191: =+'GEN-502 Pot'!A191 -> Las Perlas Norte, S.A. No. 81-12
A192: =+'GEN-502 Pot'!A192 -> Las Perlas Sur, S.A. No. 82-12
A193: =+'GEN-502 Pot'!A193 -> Café de Eleta No. 83-12
A194: =+'GEN-502 Pot'!A194 -> Enel Fortuna No. 84-12
A195: =+'GEN-502 Pot'!A195 -> Generadora del Atlántico No. 85-12
A196: =+'GEN-502 Pot'!A196 -> Autoridad del Canal de Panamá No. 86-12
A197: =+'GEN-502 Pot'!A197 -> Hydro Caisán No. 101-12
A198: =+'GEN-502 Pot'!A198 -> Caldera Energy Corp. No. 102-12
A199: =+'GEN-502 Pot'!A199 -> Electrogeneradora del Istmo No. 103-12
A200: =+'GEN-502 Pot'!A200 -> Generadora Pedregalito No. 104-12
A201: =+'GEN-502 Pot'!A201 -> Generadora Río Chico No. 105-12
A202: =+'GEN-502 Pot'!A202 -> Hidroibérica No. 106-12
A203: =+'GEN-502 Pot'!A203 -> Generadora Alto Valle No. 107-12
A204: =+'GEN-502 Pot'!A204 -> Energía y Servicios de Panamá, S.A. No. 108-12
A205: =+'GEN-502 Pot'!A205 -> Hidro Panamá, S.A. No. 109-12
A206: =+'GEN-502 Pot'!A206 -> Las Perlas Norte, S.A. No. 110-12
A207: =+'GEN-502 Pot'!A207 -> Las Perlas Sur, S.A. No. 111-12
... 273 more rows

Sheet GEN-502 Gen
A1: INFORMACION PARA ACTUALIZAR: CARGO POR GENERACION
A2: =+'Compras (p)'!A2 -> EDECHI | B2: =+B24-B246 -> 81931.36048 | C2: =+C24-C246 -> 82039.3118 | D2: 81422.01029 | E2: 100529.19 | F2: 84852.09735 | G2: 79166.33192
A3: Compra Mensual de Energía para atender Clientes Regulados (MWh) | B3: =+B16/B15 -> -0.05398513295 | C3: =+C16/C15 -> -0.04631712468 | D3: -0.06575283422 | E3: -0.2619753021 | F3: -0.2227769471 | G3: -0.03496548189
B4: COMPRA DE ENERGIA
A5: Detalle | B5: 2026-07-01 | C5: 2026-08-01 | D5: 2026-09-01 | E5: 2026-10-01 | F5: 2026-11-01 | G5: 2026-12-01
A7: Generación en Punta
A8: Total Compra de Energía en Horas de Punta | B8: =+B9+B15 -> 98114.41489 | C8: 98240.39511 | D8: 95880.83192 | E8: 96910.16056 | F8: 86483.66194 | G8: 97796.81065
A9: Generación Propia
A15: Sub-Total Mercado Mayorista | B15: =+SUM(B16:B24) -> 98114.41489 | C15: 98240.39511 | D15: 95880.83192 | E15: 96910.16056 | F15: 86483.66194 | G15: 97796.81065
A16: Mercado Ocasional | B16: =+'GEN-502 Gen_P'!B16+'GEN-502 Gen_FP'!B16 -> -5296.719732 | C16: =+'GEN-502 Gen_P'!C16+'GEN-502 Gen_FP'!C16 -> -4550.212629 | D16: =+'GEN-502 Gen_P'!D16+'GEN-502 Gen_FP'!D16 -> -6304.436446 | E16: =+'GEN-502 Gen_P'!E16+'GEN-502 Gen_FP'!E16 -> -25388.06859 | F16: =+'GEN-502 Gen_P'!F16+'GEN-502 Gen_FP'!F16 -> -19266.56618 | G16: =+'GEN-502 Gen_P'!G16+'GEN-502 Gen_FP'!G16 -> -3419.512612
A17: =+'GEN-502 Gen_P'!A17 -> 0 | B17: =+'GEN-502 Gen_P'!B17+'GEN-502 Gen_FP'!B17 -> 0 | C17: =+'GEN-502 Gen_P'!C17+'GEN-502 Gen_FP'!C17 -> 0 | D17: =+'GEN-502 Gen_P'!D17+'GEN-502 Gen_FP'!D17 -> 0 | E17: =+'GEN-502 Gen_P'!E17+'GEN-502 Gen_FP'!E17 -> 0 | F17: =+'GEN-502 Gen_P'!F17+'GEN-502 Gen_FP'!F17 -> 0 | G17: =+'GEN-502 Gen_P'!G17+'GEN-502 Gen_FP'!G17 -> 0
A24: Sub-Total Contratros | B24: =+SUM(B25:B480) -> 103411.1346 | C24: 102790.6077 | D24: 102185.2684 | E24: 122298.2291 | F24: 105750.2281 | G24: 101216.3233
A25: =+'GEN-502 Pot'!A25 -> PTP-Isla Colón Nº 001-00 (1) & PTP 05-04 (3,2) | B25: =+'GEN-502 Gen_P'!B25+'GEN-502 Gen_FP'!B25 -> 0 | C25: =+'GEN-502 Gen_P'!C25+'GEN-502 Gen_FP'!C25 -> 0 | D25: =+'GEN-502 Gen_P'!D25+'GEN-502 Gen_FP'!D25 -> 0 | E25: =+'GEN-502 Gen_P'!E25+'GEN-502 Gen_FP'!E25 -> 0 | F25: =+'GEN-502 Gen_P'!F25+'GEN-502 Gen_FP'!F25 -> 0 | G25: =+'GEN-502 Gen_P'!G25+'GEN-502 Gen_FP'!G25 -> 0
A26: =+'GEN-502 Pot'!A26 -> PTP-Chiriquí Grande Nº 001-99 (0.7) & 06-04 | B26: =+'GEN-502 Gen_P'!B26+'GEN-502 Gen_FP'!B26 -> 0 | C26: =+'GEN-502 Gen_P'!C26+'GEN-502 Gen_FP'!C26 -> 0 | D26: =+'GEN-502 Gen_P'!D26+'GEN-502 Gen_FP'!D26 -> 0 | E26: =+'GEN-502 Gen_P'!E26+'GEN-502 Gen_FP'!E26 -> 0 | F26: =+'GEN-502 Gen_P'!F26+'GEN-502 Gen_FP'!F26 -> 0 | G26: =+'GEN-502 Gen_P'!G26+'GEN-502 Gen_FP'!G26 -> 0
A27: =+'GEN-502 Pot'!A27 -> Edemet | B27: =+'GEN-502 Gen_P'!B27+'GEN-502 Gen_FP'!B27 -> 0 | C27: =+'GEN-502 Gen_P'!C27+'GEN-502 Gen_FP'!C27 -> 0 | D27: =+'GEN-502 Gen_P'!D27+'GEN-502 Gen_FP'!D27 -> 0 | E27: =+'GEN-502 Gen_P'!E27+'GEN-502 Gen_FP'!E27 -> 0 | F27: =+'GEN-502 Gen_P'!F27+'GEN-502 Gen_FP'!F27 -> 0 | G27: =+'GEN-502 Gen_P'!G27+'GEN-502 Gen_FP'!G27 -> 0
A28: =+'GEN-502 Pot'!A28 -> Autoridad del Canal No. 04-03 (30) Gen | B28: =+'GEN-502 Gen_P'!B28+'GEN-502 Gen_FP'!B28 -> 0 | C28: =+'GEN-502 Gen_P'!C28+'GEN-502 Gen_FP'!C28 -> 0 | D28: =+'GEN-502 Gen_P'!D28+'GEN-502 Gen_FP'!D28 -> 0 | E28: =+'GEN-502 Gen_P'!E28+'GEN-502 Gen_FP'!E28 -> 0 | F28: =+'GEN-502 Gen_P'!F28+'GEN-502 Gen_FP'!F28 -> 0 | G28: =+'GEN-502 Gen_P'!G28+'GEN-502 Gen_FP'!G28 -> 0
A29: =+'GEN-502 Pot'!A29 -> Autoridad del Canal No. 04-03 (30) Trans | B29: =+'GEN-502 Gen_P'!B29+'GEN-502 Gen_FP'!B29 -> 0 | C29: =+'GEN-502 Gen_P'!C29+'GEN-502 Gen_FP'!C29 -> 0 | D29: =+'GEN-502 Gen_P'!D29+'GEN-502 Gen_FP'!D29 -> 0 | E29: =+'GEN-502 Gen_P'!E29+'GEN-502 Gen_FP'!E29 -> 0 | F29: =+'GEN-502 Gen_P'!F29+'GEN-502 Gen_FP'!F29 -> 0 | G29: =+'GEN-502 Gen_P'!G29+'GEN-502 Gen_FP'!G29 -> 0
A30: =+'GEN-502 Pot'!A30 -> PTP-Isla Colón Nº 05-04 (3,2) | B30: =+'GEN-502 Gen_P'!B30+'GEN-502 Gen_FP'!B30 -> 0 | C30: =+'GEN-502 Gen_P'!C30+'GEN-502 Gen_FP'!C30 -> 0 | D30: =+'GEN-502 Gen_P'!D30+'GEN-502 Gen_FP'!D30 -> 0 | E30: =+'GEN-502 Gen_P'!E30+'GEN-502 Gen_FP'!E30 -> 0 | F30: =+'GEN-502 Gen_P'!F30+'GEN-502 Gen_FP'!F30 -> 0 | G30: =+'GEN-502 Gen_P'!G30+'GEN-502 Gen_FP'!G30 -> 0
A31: =+'GEN-502 Pot'!A31 -> Fortuna No. 12-98 (24) | B31: =+'GEN-502 Gen_P'!B31+'GEN-502 Gen_FP'!B31 -> 0 | C31: =+'GEN-502 Gen_P'!C31+'GEN-502 Gen_FP'!C31 -> 0 | D31: =+'GEN-502 Gen_P'!D31+'GEN-502 Gen_FP'!D31 -> 0 | E31: =+'GEN-502 Gen_P'!E31+'GEN-502 Gen_FP'!E31 -> 0 | F31: =+'GEN-502 Gen_P'!F31+'GEN-502 Gen_FP'!F31 -> 0 | G31: =+'GEN-502 Gen_P'!G31+'GEN-502 Gen_FP'!G31 -> 0
A32: =+'GEN-502 Pot'!A32 -> Aes No.13-98 (22) | B32: =+'GEN-502 Gen_P'!B32+'GEN-502 Gen_FP'!B32 -> 0 | C32: =+'GEN-502 Gen_P'!C32+'GEN-502 Gen_FP'!C32 -> 0 | D32: =+'GEN-502 Gen_P'!D32+'GEN-502 Gen_FP'!D32 -> 0 | E32: =+'GEN-502 Gen_P'!E32+'GEN-502 Gen_FP'!E32 -> 0 | F32: =+'GEN-502 Gen_P'!F32+'GEN-502 Gen_FP'!F32 -> 0 | G32: =+'GEN-502 Gen_P'!G32+'GEN-502 Gen_FP'!G32 -> 0
A33: =+'GEN-502 Pot'!A33 -> Fortuna No.09-04 (10) | B33: =+'GEN-502 Gen_P'!B33+'GEN-502 Gen_FP'!B33 -> 0 | C33: =+'GEN-502 Gen_P'!C33+'GEN-502 Gen_FP'!C33 -> 0 | D33: =+'GEN-502 Gen_P'!D33+'GEN-502 Gen_FP'!D33 -> 0 | E33: =+'GEN-502 Gen_P'!E33+'GEN-502 Gen_FP'!E33 -> 0 | F33: =+'GEN-502 Gen_P'!F33+'GEN-502 Gen_FP'!F33 -> 0 | G33: =+'GEN-502 Gen_P'!G33+'GEN-502 Gen_FP'!G33 -> 0
A34: =+'GEN-502 Pot'!A34 -> Fortuna No.15-04 (5 y 34) | B34: =+'GEN-502 Gen_P'!B34+'GEN-502 Gen_FP'!B34 -> 0 | C34: =+'GEN-502 Gen_P'!C34+'GEN-502 Gen_FP'!C34 -> 0 | D34: =+'GEN-502 Gen_P'!D34+'GEN-502 Gen_FP'!D34 -> 0 | E34: =+'GEN-502 Gen_P'!E34+'GEN-502 Gen_FP'!E34 -> 0 | F34: =+'GEN-502 Gen_P'!F34+'GEN-502 Gen_FP'!F34 -> 0 | G34: =+'GEN-502 Gen_P'!G34+'GEN-502 Gen_FP'!G34 -> 0
A35: =+'GEN-502 Pot'!A35 -> Fortuna No.15-04 (19, 4, 0 y 7) | B35: =+'GEN-502 Gen_P'!B35+'GEN-502 Gen_FP'!B35 -> 0 | C35: =+'GEN-502 Gen_P'!C35+'GEN-502 Gen_FP'!C35 -> 0 | D35: =+'GEN-502 Gen_P'!D35+'GEN-502 Gen_FP'!D35 -> 0 | E35: =+'GEN-502 Gen_P'!E35+'GEN-502 Gen_FP'!E35 -> 0 | F35: =+'GEN-502 Gen_P'!F35+'GEN-502 Gen_FP'!F35 -> 0 | G35: =+'GEN-502 Gen_P'!G35+'GEN-502 Gen_FP'!G35 -> 0
A36: =+'GEN-502 Pot'!A36 -> ACP No. 07-05 (Solo Energía) | B36: =+'GEN-502 Gen_P'!B36+'GEN-502 Gen_FP'!B36 -> 0 | C36: =+'GEN-502 Gen_P'!C36+'GEN-502 Gen_FP'!C36 -> 0 | D36: =+'GEN-502 Gen_P'!D36+'GEN-502 Gen_FP'!D36 -> 0 | E36: =+'GEN-502 Gen_P'!E36+'GEN-502 Gen_FP'!E36 -> 0 | F36: =+'GEN-502 Gen_P'!F36+'GEN-502 Gen_FP'!F36 -> 0 | G36: =+'GEN-502 Gen_P'!G36+'GEN-502 Gen_FP'!G36 -> 0
A37: =+'GEN-502 Pot'!A37 -> BLM No.15-05 (Solo Energía) | B37: =+'GEN-502 Gen_P'!B37+'GEN-502 Gen_FP'!B37 -> 0 | C37: =+'GEN-502 Gen_P'!C37+'GEN-502 Gen_FP'!C37 -> 0 | D37: =+'GEN-502 Gen_P'!D37+'GEN-502 Gen_FP'!D37 -> 0 | E37: =+'GEN-502 Gen_P'!E37+'GEN-502 Gen_FP'!E37 -> 0 | F37: =+'GEN-502 Gen_P'!F37+'GEN-502 Gen_FP'!F37 -> 0 | G37: =+'GEN-502 Gen_P'!G37+'GEN-502 Gen_FP'!G37 -> 0
A38: =+'GEN-502 Pot'!A38 -> Arkapal No.10-05 | B38: =+'GEN-502 Gen_P'!B38+'GEN-502 Gen_FP'!B38 -> 0 | C38: =+'GEN-502 Gen_P'!C38+'GEN-502 Gen_FP'!C38 -> 0 | D38: =+'GEN-502 Gen_P'!D38+'GEN-502 Gen_FP'!D38 -> 0 | E38: =+'GEN-502 Gen_P'!E38+'GEN-502 Gen_FP'!E38 -> 0 | F38: =+'GEN-502 Gen_P'!F38+'GEN-502 Gen_FP'!F38 -> 0 | G38: =+'GEN-502 Gen_P'!G38+'GEN-502 Gen_FP'!G38 -> 0
A39: =+'GEN-502 Pot'!A39 -> Fortuna No.09-04 (71) | B39: =+'GEN-502 Gen_P'!B39+'GEN-502 Gen_FP'!B39 -> 0 | C39: =+'GEN-502 Gen_P'!C39+'GEN-502 Gen_FP'!C39 -> 0 | D39: =+'GEN-502 Gen_P'!D39+'GEN-502 Gen_FP'!D39 -> 0 | E39: =+'GEN-502 Gen_P'!E39+'GEN-502 Gen_FP'!E39 -> 0 | F39: =+'GEN-502 Gen_P'!F39+'GEN-502 Gen_FP'!F39 -> 0 | G39: =+'GEN-502 Gen_P'!G39+'GEN-502 Gen_FP'!G39 -> 0
A40: =+'GEN-502 Pot'!A40 -> AES No.13-05 (16, 17, 29) | B40: =+'GEN-502 Gen_P'!B40+'GEN-502 Gen_FP'!B40 -> 0 | C40: =+'GEN-502 Gen_P'!C40+'GEN-502 Gen_FP'!C40 -> 0 | D40: =+'GEN-502 Gen_P'!D40+'GEN-502 Gen_FP'!D40 -> 0 | E40: =+'GEN-502 Gen_P'!E40+'GEN-502 Gen_FP'!E40 -> 0 | F40: =+'GEN-502 Gen_P'!F40+'GEN-502 Gen_FP'!F40 -> 0 | G40: =+'GEN-502 Gen_P'!G40+'GEN-502 Gen_FP'!G40 -> 0
A41: =+'GEN-502 Pot'!A41 -> Fortuna No. 15-05 | B41: =+'GEN-502 Gen_P'!B41+'GEN-502 Gen_FP'!B41 -> 0 | C41: =+'GEN-502 Gen_P'!C41+'GEN-502 Gen_FP'!C41 -> 0 | D41: =+'GEN-502 Gen_P'!D41+'GEN-502 Gen_FP'!D41 -> 0 | E41: =+'GEN-502 Gen_P'!E41+'GEN-502 Gen_FP'!E41 -> 0 | F41: =+'GEN-502 Gen_P'!F41+'GEN-502 Gen_FP'!F41 -> 0 | G41: =+'GEN-502 Gen_P'!G41+'GEN-502 Gen_FP'!G41 -> 0
A42: =+'GEN-502 Pot'!A42 -> Los Estrechos No. 17-06 (2,5) | B42: =+'GEN-502 Gen_P'!B42+'GEN-502 Gen_FP'!B42 -> 0 | C42: =+'GEN-502 Gen_P'!C42+'GEN-502 Gen_FP'!C42 -> 0 | D42: =+'GEN-502 Gen_P'!D42+'GEN-502 Gen_FP'!D42 -> 0 | E42: =+'GEN-502 Gen_P'!E42+'GEN-502 Gen_FP'!E42 -> 0 | F42: =+'GEN-502 Gen_P'!F42+'GEN-502 Gen_FP'!F42 -> 0 | G42: =+'GEN-502 Gen_P'!G42+'GEN-502 Gen_FP'!G42 -> 0
A43: =+'GEN-502 Pot'!A43 -> Saltos de Francolí No. 18-06 (0,7125) | B43: =+'GEN-502 Gen_P'!B43+'GEN-502 Gen_FP'!B43 -> 0 | C43: =+'GEN-502 Gen_P'!C43+'GEN-502 Gen_FP'!C43 -> 0 | D43: =+'GEN-502 Gen_P'!D43+'GEN-502 Gen_FP'!D43 -> 0 | E43: =+'GEN-502 Gen_P'!E43+'GEN-502 Gen_FP'!E43 -> 0 | F43: =+'GEN-502 Gen_P'!F43+'GEN-502 Gen_FP'!F43 -> 0 | G43: =+'GEN-502 Gen_P'!G43+'GEN-502 Gen_FP'!G43 -> 0
A44: =+'GEN-502 Pot'!A44 -> AES No. 19-06 (35) | B44: =+'GEN-502 Gen_P'!B44+'GEN-502 Gen_FP'!B44 -> 0 | C44: =+'GEN-502 Gen_P'!C44+'GEN-502 Gen_FP'!C44 -> 0 | D44: =+'GEN-502 Gen_P'!D44+'GEN-502 Gen_FP'!D44 -> 0 | E44: =+'GEN-502 Gen_P'!E44+'GEN-502 Gen_FP'!E44 -> 0 | F44: =+'GEN-502 Gen_P'!F44+'GEN-502 Gen_FP'!F44 -> 0 | G44: =+'GEN-502 Gen_P'!G44+'GEN-502 Gen_FP'!G44 -> 0
A45: =+'GEN-502 Pot'!A45 -> Generadora del Atlantico No. 05-07 | B45: =+'GEN-502 Gen_P'!B45+'GEN-502 Gen_FP'!B45 -> 0 | C45: =+'GEN-502 Gen_P'!C45+'GEN-502 Gen_FP'!C45 -> 0 | D45: =+'GEN-502 Gen_P'!D45+'GEN-502 Gen_FP'!D45 -> 0 | E45: =+'GEN-502 Gen_P'!E45+'GEN-502 Gen_FP'!E45 -> 0 | F45: =+'GEN-502 Gen_P'!F45+'GEN-502 Gen_FP'!F45 -> 0 | G45: =+'GEN-502 Gen_P'!G45+'GEN-502 Gen_FP'!G45 -> 0
A46: =+'GEN-502 Pot'!A46 -> Inversiones y Desarrollo Balboa No. 06-07 | B46: =+'GEN-502 Gen_P'!B46+'GEN-502 Gen_FP'!B46 -> 0 | C46: =+'GEN-502 Gen_P'!C46+'GEN-502 Gen_FP'!C46 -> 0 | D46: =+'GEN-502 Gen_P'!D46+'GEN-502 Gen_FP'!D46 -> 0 | E46: =+'GEN-502 Gen_P'!E46+'GEN-502 Gen_FP'!E46 -> 0 | F46: =+'GEN-502 Gen_P'!F46+'GEN-502 Gen_FP'!F46 -> 0 | G46: =+'GEN-502 Gen_P'!G46+'GEN-502 Gen_FP'!G46 -> 0
A47: =+'GEN-502 Pot'!A47 -> Térmica del Cariba No. 07-07 (4,275) | B47: =+'GEN-502 Gen_P'!B47+'GEN-502 Gen_FP'!B47 -> 0 | C47: =+'GEN-502 Gen_P'!C47+'GEN-502 Gen_FP'!C47 -> 0 | D47: =+'GEN-502 Gen_P'!D47+'GEN-502 Gen_FP'!D47 -> 0 | E47: =+'GEN-502 Gen_P'!E47+'GEN-502 Gen_FP'!E47 -> 0 | F47: =+'GEN-502 Gen_P'!F47+'GEN-502 Gen_FP'!F47 -> 0 | G47: =+'GEN-502 Gen_P'!G47+'GEN-502 Gen_FP'!G47 -> 0
A48: =+'GEN-502 Pot'!A48 -> Fortuna No. 15-05 (Traspaso) | B48: =+'GEN-502 Gen_P'!B48+'GEN-502 Gen_FP'!B48 -> 0 | C48: =+'GEN-502 Gen_P'!C48+'GEN-502 Gen_FP'!C48 -> 0 | D48: =+'GEN-502 Gen_P'!D48+'GEN-502 Gen_FP'!D48 -> 0 | E48: =+'GEN-502 Gen_P'!E48+'GEN-502 Gen_FP'!E48 -> 0 | F48: =+'GEN-502 Gen_P'!F48+'GEN-502 Gen_FP'!F48 -> 0 | G48: =+'GEN-502 Gen_P'!G48+'GEN-502 Gen_FP'!G48 -> 0
A49: =+'GEN-502 Pot'!A49 -> ACP No. 12-08 (Sólo Energía) | B49: =+'GEN-502 Gen_P'!B49+'GEN-502 Gen_FP'!B49 -> 0 | C49: =+'GEN-502 Gen_P'!C49+'GEN-502 Gen_FP'!C49 -> 0 | D49: =+'GEN-502 Gen_P'!D49+'GEN-502 Gen_FP'!D49 -> 0 | E49: =+'GEN-502 Gen_P'!E49+'GEN-502 Gen_FP'!E49 -> 0 | F49: =+'GEN-502 Gen_P'!F49+'GEN-502 Gen_FP'!F49 -> 0 | G49: =+'GEN-502 Gen_P'!G49+'GEN-502 Gen_FP'!G49 -> 0
A50: =+'GEN-502 Pot'!A50 -> ACP No. 13-08 (Sólo Energía) | B50: =+'GEN-502 Gen_P'!B50+'GEN-502 Gen_FP'!B50 -> 0 | C50: =+'GEN-502 Gen_P'!C50+'GEN-502 Gen_FP'!C50 -> 0 | D50: =+'GEN-502 Gen_P'!D50+'GEN-502 Gen_FP'!D50 -> 0 | E50: =+'GEN-502 Gen_P'!E50+'GEN-502 Gen_FP'!E50 -> 0 | F50: =+'GEN-502 Gen_P'!F50+'GEN-502 Gen_FP'!F50 -> 0 | G50: =+'GEN-502 Gen_P'!G50+'GEN-502 Gen_FP'!G50 -> 0
A51: =+'GEN-502 Pot'!A51 -> ACP No 15-08 (Sólo Energía) | B51: =+'GEN-502 Gen_P'!B51+'GEN-502 Gen_FP'!B51 -> 0 | C51: =+'GEN-502 Gen_P'!C51+'GEN-502 Gen_FP'!C51 -> 0 | D51: =+'GEN-502 Gen_P'!D51+'GEN-502 Gen_FP'!D51 -> 0 | E51: =+'GEN-502 Gen_P'!E51+'GEN-502 Gen_FP'!E51 -> 0 | F51: =+'GEN-502 Gen_P'!F51+'GEN-502 Gen_FP'!F51 -> 0 | G51: =+'GEN-502 Gen_P'!G51+'GEN-502 Gen_FP'!G51 -> 0
A52: =+'GEN-502 Pot'!A52 -> ACP(H) | B52: =+'GEN-502 Gen_P'!B52+'GEN-502 Gen_FP'!B52 -> 0 | C52: =+'GEN-502 Gen_P'!C52+'GEN-502 Gen_FP'!C52 -> 0 | D52: =+'GEN-502 Gen_P'!D52+'GEN-502 Gen_FP'!D52 -> 0 | E52: =+'GEN-502 Gen_P'!E52+'GEN-502 Gen_FP'!E52 -> 0 | F52: =+'GEN-502 Gen_P'!F52+'GEN-502 Gen_FP'!F52 -> 0 | G52: =+'GEN-502 Gen_P'!G52+'GEN-502 Gen_FP'!G52 -> 0
A53: =+'GEN-502 Pot'!A53 -> Fortuna | B53: =+'GEN-502 Gen_P'!B53+'GEN-502 Gen_FP'!B53 -> 0 | C53: =+'GEN-502 Gen_P'!C53+'GEN-502 Gen_FP'!C53 -> 0 | D53: =+'GEN-502 Gen_P'!D53+'GEN-502 Gen_FP'!D53 -> 0 | E53: =+'GEN-502 Gen_P'!E53+'GEN-502 Gen_FP'!E53 -> 0 | F53: =+'GEN-502 Gen_P'!F53+'GEN-502 Gen_FP'!F53 -> 0 | G53: =+'GEN-502 Gen_P'!G53+'GEN-502 Gen_FP'!G53 -> 0
A54: =+'GEN-502 Pot'!A54 -> AES | B54: =+'GEN-502 Gen_P'!B54+'GEN-502 Gen_FP'!B54 -> 0 | C54: =+'GEN-502 Gen_P'!C54+'GEN-502 Gen_FP'!C54 -> 0 | D54: =+'GEN-502 Gen_P'!D54+'GEN-502 Gen_FP'!D54 -> 0 | E54: =+'GEN-502 Gen_P'!E54+'GEN-502 Gen_FP'!E54 -> 0 | F54: =+'GEN-502 Gen_P'!F54+'GEN-502 Gen_FP'!F54 -> 0 | G54: =+'GEN-502 Gen_P'!G54+'GEN-502 Gen_FP'!G54 -> 0
A55: =+'GEN-502 Pot'!A55 -> Mendre | B55: =+'GEN-502 Gen_P'!B55+'GEN-502 Gen_FP'!B55 -> 0 | C55: =+'GEN-502 Gen_P'!C55+'GEN-502 Gen_FP'!C55 -> 0 | D55: =+'GEN-502 Gen_P'!D55+'GEN-502 Gen_FP'!D55 -> 0 | E55: =+'GEN-502 Gen_P'!E55+'GEN-502 Gen_FP'!E55 -> 0 | F55: =+'GEN-502 Gen_P'!F55+'GEN-502 Gen_FP'!F55 -> 0 | G55: =+'GEN-502 Gen_P'!G55+'GEN-502 Gen_FP'!G55 -> 0
A56: =+'GEN-502 Pot'!A56 -> ACP | B56: =+'GEN-502 Gen_P'!B56+'GEN-502 Gen_FP'!B56 -> 0 | C56: =+'GEN-502 Gen_P'!C56+'GEN-502 Gen_FP'!C56 -> 0 | D56: =+'GEN-502 Gen_P'!D56+'GEN-502 Gen_FP'!D56 -> 0 | E56: =+'GEN-502 Gen_P'!E56+'GEN-502 Gen_FP'!E56 -> 0 | F56: =+'GEN-502 Gen_P'!F56+'GEN-502 Gen_FP'!F56 -> 0 | G56: =+'GEN-502 Gen_P'!G56+'GEN-502 Gen_FP'!G56 -> 0
A57: =+'GEN-502 Pot'!A57 -> GenPro | B57: =+'GEN-502 Gen_P'!B57+'GEN-502 Gen_FP'!B57 -> 0 | C57: =+'GEN-502 Gen_P'!C57+'GEN-502 Gen_FP'!C57 -> 0 | D57: =+'GEN-502 Gen_P'!D57+'GEN-502 Gen_FP'!D57 -> 0 | E57: =+'GEN-502 Gen_P'!E57+'GEN-502 Gen_FP'!E57 -> 0 | F57: =+'GEN-502 Gen_P'!F57+'GEN-502 Gen_FP'!F57 -> 0 | G57: =+'GEN-502 Gen_P'!G57+'GEN-502 Gen_FP'!G57 -> 0
A58: =+'GEN-502 Pot'!A58 -> Concepción | B58: =+'GEN-502 Gen_P'!B58+'GEN-502 Gen_FP'!B58 -> 0 | C58: =+'GEN-502 Gen_P'!C58+'GEN-502 Gen_FP'!C58 -> 0 | D58: =+'GEN-502 Gen_P'!D58+'GEN-502 Gen_FP'!D58 -> 0 | E58: =+'GEN-502 Gen_P'!E58+'GEN-502 Gen_FP'!E58 -> 0 | F58: =+'GEN-502 Gen_P'!F58+'GEN-502 Gen_FP'!F58 -> 0 | G58: =+'GEN-502 Gen_P'!G58+'GEN-502 Gen_FP'!G58 -> 0
A59: =+'GEN-502 Pot'!A59 -> ESEPSA | B59: =+'GEN-502 Gen_P'!B59+'GEN-502 Gen_FP'!B59 -> 0 | C59: =+'GEN-502 Gen_P'!C59+'GEN-502 Gen_FP'!C59 -> 0 | D59: =+'GEN-502 Gen_P'!D59+'GEN-502 Gen_FP'!D59 -> 0 | E59: =+'GEN-502 Gen_P'!E59+'GEN-502 Gen_FP'!E59 -> 0 | F59: =+'GEN-502 Gen_P'!F59+'GEN-502 Gen_FP'!F59 -> 0 | G59: =+'GEN-502 Gen_P'!G59+'GEN-502 Gen_FP'!G59 -> 0
A60: =+'GEN-502 Pot'!A60 -> EGESA | B60: =+'GEN-502 Gen_P'!B60+'GEN-502 Gen_FP'!B60 -> 0 | C60: =+'GEN-502 Gen_P'!C60+'GEN-502 Gen_FP'!C60 -> 0 | D60: =+'GEN-502 Gen_P'!D60+'GEN-502 Gen_FP'!D60 -> 0 | E60: =+'GEN-502 Gen_P'!E60+'GEN-502 Gen_FP'!E60 -> 0 | F60: =+'GEN-502 Gen_P'!F60+'GEN-502 Gen_FP'!F60 -> 0 | G60: =+'GEN-502 Gen_P'!G60+'GEN-502 Gen_FP'!G60 -> 0
A61: =+'GEN-502 Pot'!A61 -> MER | B61: =+'GEN-502 Gen_P'!B61+'GEN-502 Gen_FP'!B61 -> 0 | C61: =+'GEN-502 Gen_P'!C61+'GEN-502 Gen_FP'!C61 -> 0 | D61: =+'GEN-502 Gen_P'!D61+'GEN-502 Gen_FP'!D61 -> 0 | E61: =+'GEN-502 Gen_P'!E61+'GEN-502 Gen_FP'!E61 -> 0 | F61: =+'GEN-502 Gen_P'!F61+'GEN-502 Gen_FP'!F61 -> 0 | G61: =+'GEN-502 Gen_P'!G61+'GEN-502 Gen_FP'!G61 -> 0
A62: =+'GEN-502 Pot'!A62 -> TerCar | B62: =+'GEN-502 Gen_P'!B62+'GEN-502 Gen_FP'!B62 -> 0 | C62: =+'GEN-502 Gen_P'!C62+'GEN-502 Gen_FP'!C62 -> 0 | D62: =+'GEN-502 Gen_P'!D62+'GEN-502 Gen_FP'!D62 -> 0 | E62: =+'GEN-502 Gen_P'!E62+'GEN-502 Gen_FP'!E62 -> 0 | F62: =+'GEN-502 Gen_P'!F62+'GEN-502 Gen_FP'!F62 -> 0 | G62: =+'GEN-502 Gen_P'!G62+'GEN-502 Gen_FP'!G62 -> 0
A63: =+'GEN-502 Pot'!A63 -> IDB | B63: =+'GEN-502 Gen_P'!B63+'GEN-502 Gen_FP'!B63 -> 0 | C63: =+'GEN-502 Gen_P'!C63+'GEN-502 Gen_FP'!C63 -> 0 | D63: =+'GEN-502 Gen_P'!D63+'GEN-502 Gen_FP'!D63 -> 0 | E63: =+'GEN-502 Gen_P'!E63+'GEN-502 Gen_FP'!E63 -> 0 | F63: =+'GEN-502 Gen_P'!F63+'GEN-502 Gen_FP'!F63 -> 0 | G63: =+'GEN-502 Gen_P'!G63+'GEN-502 Gen_FP'!G63 -> 0
A64: =+'GEN-502 Pot'!A64 -> Pan Am | B64: =+'GEN-502 Gen_P'!B64+'GEN-502 Gen_FP'!B64 -> 0 | C64: =+'GEN-502 Gen_P'!C64+'GEN-502 Gen_FP'!C64 -> 0 | D64: =+'GEN-502 Gen_P'!D64+'GEN-502 Gen_FP'!D64 -> 0 | E64: =+'GEN-502 Gen_P'!E64+'GEN-502 Gen_FP'!E64 -> 0 | F64: =+'GEN-502 Gen_P'!F64+'GEN-502 Gen_FP'!F64 -> 0 | G64: =+'GEN-502 Gen_P'!G64+'GEN-502 Gen_FP'!G64 -> 0
A65: =+'GEN-502 Pot'!A65 -> COPESA | B65: =+'GEN-502 Gen_P'!B65+'GEN-502 Gen_FP'!B65 -> 0 | C65: =+'GEN-502 Gen_P'!C65+'GEN-502 Gen_FP'!C65 -> 0 | D65: =+'GEN-502 Gen_P'!D65+'GEN-502 Gen_FP'!D65 -> 0 | E65: =+'GEN-502 Gen_P'!E65+'GEN-502 Gen_FP'!E65 -> 0 | F65: =+'GEN-502 Gen_P'!F65+'GEN-502 Gen_FP'!F65 -> 0 | G65: =+'GEN-502 Gen_P'!G65+'GEN-502 Gen_FP'!G65 -> 0
A66: =+'GEN-502 Pot'!A66 -> BLM | B66: =+'GEN-502 Gen_P'!B66+'GEN-502 Gen_FP'!B66 -> 0 | C66: =+'GEN-502 Gen_P'!C66+'GEN-502 Gen_FP'!C66 -> 0 | D66: =+'GEN-502 Gen_P'!D66+'GEN-502 Gen_FP'!D66 -> 0 | E66: =+'GEN-502 Gen_P'!E66+'GEN-502 Gen_FP'!E66 -> 0 | F66: =+'GEN-502 Gen_P'!F66+'GEN-502 Gen_FP'!F66 -> 0 | G66: =+'GEN-502 Gen_P'!G66+'GEN-502 Gen_FP'!G66 -> 0
A67: =+'GEN-502 Pot'!A67 -> Pedregal | B67: =+'GEN-502 Gen_P'!B67+'GEN-502 Gen_FP'!B67 -> 0 | C67: =+'GEN-502 Gen_P'!C67+'GEN-502 Gen_FP'!C67 -> 0 | D67: =+'GEN-502 Gen_P'!D67+'GEN-502 Gen_FP'!D67 -> 0 | E67: =+'GEN-502 Gen_P'!E67+'GEN-502 Gen_FP'!E67 -> 0 | F67: =+'GEN-502 Gen_P'!F67+'GEN-502 Gen_FP'!F67 -> 0 | G67: =+'GEN-502 Gen_P'!G67+'GEN-502 Gen_FP'!G67 -> 0
A68: =+'GEN-502 Pot'!A68 -> GENA | B68: =+'GEN-502 Gen_P'!B68+'GEN-502 Gen_FP'!B68 -> 0 | C68: =+'GEN-502 Gen_P'!C68+'GEN-502 Gen_FP'!C68 -> 0 | D68: =+'GEN-502 Gen_P'!D68+'GEN-502 Gen_FP'!D68 -> 0 | E68: =+'GEN-502 Gen_P'!E68+'GEN-502 Gen_FP'!E68 -> 0 | F68: =+'GEN-502 Gen_P'!F68+'GEN-502 Gen_FP'!F68 -> 0 | G68: =+'GEN-502 Gen_P'!G68+'GEN-502 Gen_FP'!G68 -> 0
A69: =+'GEN-502 Pot'!A69 -> 0 | B69: =+'GEN-502 Gen_P'!B69+'GEN-502 Gen_FP'!B69 -> 0 | C69: =+'GEN-502 Gen_P'!C69+'GEN-502 Gen_FP'!C69 -> 0 | D69: =+'GEN-502 Gen_P'!D69+'GEN-502 Gen_FP'!D69 -> 0 | E69: =+'GEN-502 Gen_P'!E69+'GEN-502 Gen_FP'!E69 -> 0 | F69: =+'GEN-502 Gen_P'!F69+'GEN-502 Gen_FP'!F69 -> 0 | G69: =+'GEN-502 Gen_P'!G69+'GEN-502 Gen_FP'!G69 -> 0
A70: =+'GEN-502 Pot'!A70 -> 0 | B70: =+'GEN-502 Gen_P'!B70+'GEN-502 Gen_FP'!B70 -> 0 | C70: =+'GEN-502 Gen_P'!C70+'GEN-502 Gen_FP'!C70 -> 0 | D70: =+'GEN-502 Gen_P'!D70+'GEN-502 Gen_FP'!D70 -> 0 | E70: =+'GEN-502 Gen_P'!E70+'GEN-502 Gen_FP'!E70 -> 0 | F70: =+'GEN-502 Gen_P'!F70+'GEN-502 Gen_FP'!F70 -> 0 | G70: =+'GEN-502 Gen_P'!G70+'GEN-502 Gen_FP'!G70 -> 0
A71: =+'GEN-502 Pot'!A71 -> 0 | B71: =+'GEN-502 Gen_P'!B71+'GEN-502 Gen_FP'!B71 -> 0 | C71: =+'GEN-502 Gen_P'!C71+'GEN-502 Gen_FP'!C71 -> 0 | D71: =+'GEN-502 Gen_P'!D71+'GEN-502 Gen_FP'!D71 -> 0 | E71: =+'GEN-502 Gen_P'!E71+'GEN-502 Gen_FP'!E71 -> 0 | F71: =+'GEN-502 Gen_P'!F71+'GEN-502 Gen_FP'!F71 -> 0 | G71: =+'GEN-502 Gen_P'!G71+'GEN-502 Gen_FP'!G71 -> 0
A72: =+'GEN-502 Pot'!A72 -> 0 | B72: =+'GEN-502 Gen_P'!B72+'GEN-502 Gen_FP'!B72 -> 0 | C72: =+'GEN-502 Gen_P'!C72+'GEN-502 Gen_FP'!C72 -> 0 | D72: =+'GEN-502 Gen_P'!D72+'GEN-502 Gen_FP'!D72 -> 0 | E72: =+'GEN-502 Gen_P'!E72+'GEN-502 Gen_FP'!E72 -> 0 | F72: =+'GEN-502 Gen_P'!F72+'GEN-502 Gen_FP'!F72 -> 0 | G72: =+'GEN-502 Gen_P'!G72+'GEN-502 Gen_FP'!G72 -> 0
A73: =+'GEN-502 Pot'!A73 -> 0 | B73: =+'GEN-502 Gen_P'!B73+'GEN-502 Gen_FP'!B73 -> 0 | C73: =+'GEN-502 Gen_P'!C73+'GEN-502 Gen_FP'!C73 -> 0 | D73: =+'GEN-502 Gen_P'!D73+'GEN-502 Gen_FP'!D73 -> 0 | E73: =+'GEN-502 Gen_P'!E73+'GEN-502 Gen_FP'!E73 -> 0 | F73: =+'GEN-502 Gen_P'!F73+'GEN-502 Gen_FP'!F73 -> 0 | G73: =+'GEN-502 Gen_P'!G73+'GEN-502 Gen_FP'!G73 -> 0
A74: =+'GEN-502 Pot'!A74 -> 0 | B74: =+'GEN-502 Gen_P'!B74+'GEN-502 Gen_FP'!B74 -> 0 | C74: =+'GEN-502 Gen_P'!C74+'GEN-502 Gen_FP'!C74 -> 0 | D74: =+'GEN-502 Gen_P'!D74+'GEN-502 Gen_FP'!D74 -> 0 | E74: =+'GEN-502 Gen_P'!E74+'GEN-502 Gen_FP'!E74 -> 0 | F74: =+'GEN-502 Gen_P'!F74+'GEN-502 Gen_FP'!F74 -> 0 | G74: =+'GEN-502 Gen_P'!G74+'GEN-502 Gen_FP'!G74 -> 0
A75: =+'GEN-502 Pot'!A75 -> 0 | B75: =+'GEN-502 Gen_P'!B75+'GEN-502 Gen_FP'!B75 -> 0 | C75: =+'GEN-502 Gen_P'!C75+'GEN-502 Gen_FP'!C75 -> 0 | D75: =+'GEN-502 Gen_P'!D75+'GEN-502 Gen_FP'!D75 -> 0 | E75: =+'GEN-502 Gen_P'!E75+'GEN-502 Gen_FP'!E75 -> 0 | F75: =+'GEN-502 Gen_P'!F75+'GEN-502 Gen_FP'!F75 -> 0 | G75: =+'GEN-502 Gen_P'!G75+'GEN-502 Gen_FP'!G75 -> 0
A76: =+'GEN-502 Pot'!A76 -> 0 | B76: =+'GEN-502 Gen_P'!B76+'GEN-502 Gen_FP'!B76 -> 0 | C76: =+'GEN-502 Gen_P'!C76+'GEN-502 Gen_FP'!C76 -> 0 | D76: =+'GEN-502 Gen_P'!D76+'GEN-502 Gen_FP'!D76 -> 0 | E76: =+'GEN-502 Gen_P'!E76+'GEN-502 Gen_FP'!E76 -> 0 | F76: =+'GEN-502 Gen_P'!F76+'GEN-502 Gen_FP'!F76 -> 0 | G76: =+'GEN-502 Gen_P'!G76+'GEN-502 Gen_FP'!G76 -> 0
A77: =+'GEN-502 Pot'!A77 -> 0 | B77: =+'GEN-502 Gen_P'!B77+'GEN-502 Gen_FP'!B77 -> 0 | C77: =+'GEN-502 Gen_P'!C77+'GEN-502 Gen_FP'!C77 -> 0 | D77: =+'GEN-502 Gen_P'!D77+'GEN-502 Gen_FP'!D77 -> 0 | E77: =+'GEN-502 Gen_P'!E77+'GEN-502 Gen_FP'!E77 -> 0 | F77: =+'GEN-502 Gen_P'!F77+'GEN-502 Gen_FP'!F77 -> 0 | G77: =+'GEN-502 Gen_P'!G77+'GEN-502 Gen_FP'!G77 -> 0
A78: =+'GEN-502 Pot'!A78 -> 0 | B78: =+'GEN-502 Gen_P'!B78+'GEN-502 Gen_FP'!B78 -> 0 | C78: =+'GEN-502 Gen_P'!C78+'GEN-502 Gen_FP'!C78 -> 0 | D78: =+'GEN-502 Gen_P'!D78+'GEN-502 Gen_FP'!D78 -> 0 | E78: =+'GEN-502 Gen_P'!E78+'GEN-502 Gen_FP'!E78 -> 0 | F78: =+'GEN-502 Gen_P'!F78+'GEN-502 Gen_FP'!F78 -> 0 | G78: =+'GEN-502 Gen_P'!G78+'GEN-502 Gen_FP'!G78 -> 0
A79: =+'GEN-502 Pot'!A79 -> 0 | B79: =+'GEN-502 Gen_P'!B79+'GEN-502 Gen_FP'!B79 -> 0 | C79: =+'GEN-502 Gen_P'!C79+'GEN-502 Gen_FP'!C79 -> 0 | D79: =+'GEN-502 Gen_P'!D79+'GEN-502 Gen_FP'!D79 -> 0 | E79: =+'GEN-502 Gen_P'!E79+'GEN-502 Gen_FP'!E79 -> 0 | F79: =+'GEN-502 Gen_P'!F79+'GEN-502 Gen_FP'!F79 -> 0 | G79: =+'GEN-502 Gen_P'!G79+'GEN-502 Gen_FP'!G79 -> 0
A80: =+'GEN-502 Pot'!A80 -> 0 | B80: =+'GEN-502 Gen_P'!B80+'GEN-502 Gen_FP'!B80 -> 0 | C80: =+'GEN-502 Gen_P'!C80+'GEN-502 Gen_FP'!C80 -> 0 | D80: =+'GEN-502 Gen_P'!D80+'GEN-502 Gen_FP'!D80 -> 0 | E80: =+'GEN-502 Gen_P'!E80+'GEN-502 Gen_FP'!E80 -> 0 | F80: =+'GEN-502 Gen_P'!F80+'GEN-502 Gen_FP'!F80 -> 0 | G80: =+'GEN-502 Gen_P'!G80+'GEN-502 Gen_FP'!G80 -> 0
A81: =+'GEN-502 Pot'!A81 -> 0 | B81: =+'GEN-502 Gen_P'!B81+'GEN-502 Gen_FP'!B81 -> 0 | C81: =+'GEN-502 Gen_P'!C81+'GEN-502 Gen_FP'!C81 -> 0 | D81: =+'GEN-502 Gen_P'!D81+'GEN-502 Gen_FP'!D81 -> 0 | E81: =+'GEN-502 Gen_P'!E81+'GEN-502 Gen_FP'!E81 -> 0 | F81: =+'GEN-502 Gen_P'!F81+'GEN-502 Gen_FP'!F81 -> 0 | G81: =+'GEN-502 Gen_P'!G81+'GEN-502 Gen_FP'!G81 -> 0
A82: =+'GEN-502 Pot'!A82 -> 0 | B82: =+'GEN-502 Gen_P'!B82+'GEN-502 Gen_FP'!B82 -> 0 | C82: =+'GEN-502 Gen_P'!C82+'GEN-502 Gen_FP'!C82 -> 0 | D82: =+'GEN-502 Gen_P'!D82+'GEN-502 Gen_FP'!D82 -> 0 | E82: =+'GEN-502 Gen_P'!E82+'GEN-502 Gen_FP'!E82 -> 0 | F82: =+'GEN-502 Gen_P'!F82+'GEN-502 Gen_FP'!F82 -> 0 | G82: =+'GEN-502 Gen_P'!G82+'GEN-502 Gen_FP'!G82 -> 0
A83: =+'GEN-502 Pot'!A83 -> 0 | B83: =+'GEN-502 Gen_P'!B83+'GEN-502 Gen_FP'!B83 -> 0 | C83: =+'GEN-502 Gen_P'!C83+'GEN-502 Gen_FP'!C83 -> 0 | D83: =+'GEN-502 Gen_P'!D83+'GEN-502 Gen_FP'!D83 -> 0 | E83: =+'GEN-502 Gen_P'!E83+'GEN-502 Gen_FP'!E83 -> 0 | F83: =+'GEN-502 Gen_P'!F83+'GEN-502 Gen_FP'!F83 -> 0 | G83: =+'GEN-502 Gen_P'!G83+'GEN-502 Gen_FP'!G83 -> 0
A84: =+'GEN-502 Pot'!A84 -> 0 | B84: =+'GEN-502 Gen_P'!B84+'GEN-502 Gen_FP'!B84 -> 0 | C84: =+'GEN-502 Gen_P'!C84+'GEN-502 Gen_FP'!C84 -> 0 | D84: =+'GEN-502 Gen_P'!D84+'GEN-502 Gen_FP'!D84 -> 0 | E84: =+'GEN-502 Gen_P'!E84+'GEN-502 Gen_FP'!E84 -> 0 | F84: =+'GEN-502 Gen_P'!F84+'GEN-502 Gen_FP'!F84 -> 0 | G84: =+'GEN-502 Gen_P'!G84+'GEN-502 Gen_FP'!G84 -> 0
A85: =+'GEN-502 Pot'!A85 -> 0 | B85: =+'GEN-502 Gen_P'!B85+'GEN-502 Gen_FP'!B85 -> 0 | C85: =+'GEN-502 Gen_P'!C85+'GEN-502 Gen_FP'!C85 -> 0 | D85: =+'GEN-502 Gen_P'!D85+'GEN-502 Gen_FP'!D85 -> 0 | E85: =+'GEN-502 Gen_P'!E85+'GEN-502 Gen_FP'!E85 -> 0 | F85: =+'GEN-502 Gen_P'!F85+'GEN-502 Gen_FP'!F85 -> 0 | G85: =+'GEN-502 Gen_P'!G85+'GEN-502 Gen_FP'!G85 -> 0
A86: =+'GEN-502 Pot'!A86 -> 0 | B86: =+'GEN-502 Gen_P'!B86+'GEN-502 Gen_FP'!B86 -> 0 | C86: =+'GEN-502 Gen_P'!C86+'GEN-502 Gen_FP'!C86 -> 0 | D86: =+'GEN-502 Gen_P'!D86+'GEN-502 Gen_FP'!D86 -> 0 | E86: =+'GEN-502 Gen_P'!E86+'GEN-502 Gen_FP'!E86 -> 0 | F86: =+'GEN-502 Gen_P'!F86+'GEN-502 Gen_FP'!F86 -> 0 | G86: =+'GEN-502 Gen_P'!G86+'GEN-502 Gen_FP'!G86 -> 0
A87: =+'GEN-502 Pot'!A87 -> 0 | B87: =+'GEN-502 Gen_P'!B87+'GEN-502 Gen_FP'!B87 -> 0 | C87: =+'GEN-502 Gen_P'!C87+'GEN-502 Gen_FP'!C87 -> 0 | D87: =+'GEN-502 Gen_P'!D87+'GEN-502 Gen_FP'!D87 -> 0 | E87: =+'GEN-502 Gen_P'!E87+'GEN-502 Gen_FP'!E87 -> 0 | F87: =+'GEN-502 Gen_P'!F87+'GEN-502 Gen_FP'!F87 -> 0 | G87: =+'GEN-502 Gen_P'!G87+'GEN-502 Gen_FP'!G87 -> 0
A88: =+'GEN-502 Pot'!A88 -> 0 | B88: =+'GEN-502 Gen_P'!B88+'GEN-502 Gen_FP'!B88 -> 0 | C88: =+'GEN-502 Gen_P'!C88+'GEN-502 Gen_FP'!C88 -> 0 | D88: =+'GEN-502 Gen_P'!D88+'GEN-502 Gen_FP'!D88 -> 0 | E88: =+'GEN-502 Gen_P'!E88+'GEN-502 Gen_FP'!E88 -> 0 | F88: =+'GEN-502 Gen_P'!F88+'GEN-502 Gen_FP'!F88 -> 0 | G88: =+'GEN-502 Gen_P'!G88+'GEN-502 Gen_FP'!G88 -> 0
A89: =+'GEN-502 Pot'!A89 -> 0 | B89: =+'GEN-502 Gen_P'!B89+'GEN-502 Gen_FP'!B89 -> 0 | C89: =+'GEN-502 Gen_P'!C89+'GEN-502 Gen_FP'!C89 -> 0 | D89: =+'GEN-502 Gen_P'!D89+'GEN-502 Gen_FP'!D89 -> 0 | E89: =+'GEN-502 Gen_P'!E89+'GEN-502 Gen_FP'!E89 -> 0 | F89: =+'GEN-502 Gen_P'!F89+'GEN-502 Gen_FP'!F89 -> 0 | G89: =+'GEN-502 Gen_P'!G89+'GEN-502 Gen_FP'!G89 -> 0
A90: =+'GEN-502 Pot'!A90 -> 0 | B90: =+'GEN-502 Gen_P'!B90+'GEN-502 Gen_FP'!B90 -> 0 | C90: =+'GEN-502 Gen_P'!C90+'GEN-502 Gen_FP'!C90 -> 0 | D90: =+'GEN-502 Gen_P'!D90+'GEN-502 Gen_FP'!D90 -> 0 | E90: =+'GEN-502 Gen_P'!E90+'GEN-502 Gen_FP'!E90 -> 0 | F90: =+'GEN-502 Gen_P'!F90+'GEN-502 Gen_FP'!F90 -> 0 | G90: =+'GEN-502 Gen_P'!G90+'GEN-502 Gen_FP'!G90 -> 0
A91: =+'GEN-502 Pot'!A91 -> 0 | B91: =+'GEN-502 Gen_P'!B91+'GEN-502 Gen_FP'!B91 -> 0 | C91: =+'GEN-502 Gen_P'!C91+'GEN-502 Gen_FP'!C91 -> 0 | D91: =+'GEN-502 Gen_P'!D91+'GEN-502 Gen_FP'!D91 -> 0 | E91: =+'GEN-502 Gen_P'!E91+'GEN-502 Gen_FP'!E91 -> 0 | F91: =+'GEN-502 Gen_P'!F91+'GEN-502 Gen_FP'!F91 -> 0 | G91: =+'GEN-502 Gen_P'!G91+'GEN-502 Gen_FP'!G91 -> 0
A92: =+'GEN-502 Pot'!A92 -> 0 | B92: =+'GEN-502 Gen_P'!B92+'GEN-502 Gen_FP'!B92 -> 0 | C92: =+'GEN-502 Gen_P'!C92+'GEN-502 Gen_FP'!C92 -> 0 | D92: =+'GEN-502 Gen_P'!D92+'GEN-502 Gen_FP'!D92 -> 0 | E92: =+'GEN-502 Gen_P'!E92+'GEN-502 Gen_FP'!E92 -> 0 | F92: =+'GEN-502 Gen_P'!F92+'GEN-502 Gen_FP'!F92 -> 0 | G92: =+'GEN-502 Gen_P'!G92+'GEN-502 Gen_FP'!G92 -> 0
A93: =+'GEN-502 Pot'!A93 -> 0 | B93: =+'GEN-502 Gen_P'!B93+'GEN-502 Gen_FP'!B93 -> 0 | C93: =+'GEN-502 Gen_P'!C93+'GEN-502 Gen_FP'!C93 -> 0 | D93: =+'GEN-502 Gen_P'!D93+'GEN-502 Gen_FP'!D93 -> 0 | E93: =+'GEN-502 Gen_P'!E93+'GEN-502 Gen_FP'!E93 -> 0 | F93: =+'GEN-502 Gen_P'!F93+'GEN-502 Gen_FP'!F93 -> 0 | G93: =+'GEN-502 Gen_P'!G93+'GEN-502 Gen_FP'!G93 -> 0
A94: =+'GEN-502 Pot'!A94 -> 0 | B94: =+'GEN-502 Gen_P'!B94+'GEN-502 Gen_FP'!B94 -> 0 | C94: =+'GEN-502 Gen_P'!C94+'GEN-502 Gen_FP'!C94 -> 0 | D94: =+'GEN-502 Gen_P'!D94+'GEN-502 Gen_FP'!D94 -> 0 | E94: =+'GEN-502 Gen_P'!E94+'GEN-502 Gen_FP'!E94 -> 0 | F94: =+'GEN-502 Gen_P'!F94+'GEN-502 Gen_FP'!F94 -> 0 | G94: =+'GEN-502 Gen_P'!G94+'GEN-502 Gen_FP'!G94 -> 0
A95: =+'GEN-502 Pot'!A95 -> 0 | B95: =+'GEN-502 Gen_P'!B95+'GEN-502 Gen_FP'!B95 -> 0 | C95: =+'GEN-502 Gen_P'!C95+'GEN-502 Gen_FP'!C95 -> 0 | D95: =+'GEN-502 Gen_P'!D95+'GEN-502 Gen_FP'!D95 -> 0 | E95: =+'GEN-502 Gen_P'!E95+'GEN-502 Gen_FP'!E95 -> 0 | F95: =+'GEN-502 Gen_P'!F95+'GEN-502 Gen_FP'!F95 -> 0 | G95: =+'GEN-502 Gen_P'!G95+'GEN-502 Gen_FP'!G95 -> 0
A96: =+'GEN-502 Pot'!A96 -> 0 | B96: =+'GEN-502 Gen_P'!B96+'GEN-502 Gen_FP'!B96 -> 0 | C96: =+'GEN-502 Gen_P'!C96+'GEN-502 Gen_FP'!C96 -> 0 | D96: =+'GEN-502 Gen_P'!D96+'GEN-502 Gen_FP'!D96 -> 0 | E96: =+'GEN-502 Gen_P'!E96+'GEN-502 Gen_FP'!E96 -> 0 | F96: =+'GEN-502 Gen_P'!F96+'GEN-502 Gen_FP'!F96 -> 0 | G96: =+'GEN-502 Gen_P'!G96+'GEN-502 Gen_FP'!G96 -> 0
A97: =+'GEN-502 Pot'!A97 -> 0 | B97: =+'GEN-502 Gen_P'!B97+'GEN-502 Gen_FP'!B97 -> 0 | C97: =+'GEN-502 Gen_P'!C97+'GEN-502 Gen_FP'!C97 -> 0 | D97: =+'GEN-502 Gen_P'!D97+'GEN-502 Gen_FP'!D97 -> 0 | E97: =+'GEN-502 Gen_P'!E97+'GEN-502 Gen_FP'!E97 -> 0 | F97: =+'GEN-502 Gen_P'!F97+'GEN-502 Gen_FP'!F97 -> 0 | G97: =+'GEN-502 Gen_P'!G97+'GEN-502 Gen_FP'!G97 -> 0
A98: =+'GEN-502 Pot'!A98 -> 0 | B98: =+'GEN-502 Gen_P'!B98+'GEN-502 Gen_FP'!B98 -> 0 | C98: =+'GEN-502 Gen_P'!C98+'GEN-502 Gen_FP'!C98 -> 0 | D98: =+'GEN-502 Gen_P'!D98+'GEN-502 Gen_FP'!D98 -> 0 | E98: =+'GEN-502 Gen_P'!E98+'GEN-502 Gen_FP'!E98 -> 0 | F98: =+'GEN-502 Gen_P'!F98+'GEN-502 Gen_FP'!F98 -> 0 | G98: =+'GEN-502 Gen_P'!G98+'GEN-502 Gen_FP'!G98 -> 0
A99: =+'GEN-502 Pot'!A99 -> 0 | B99: =+'GEN-502 Gen_P'!B99+'GEN-502 Gen_FP'!B99 -> 0 | C99: =+'GEN-502 Gen_P'!C99+'GEN-502 Gen_FP'!C99 -> 0 | D99: =+'GEN-502 Gen_P'!D99+'GEN-502 Gen_FP'!D99 -> 0 | E99: =+'GEN-502 Gen_P'!E99+'GEN-502 Gen_FP'!E99 -> 0 | F99: =+'GEN-502 Gen_P'!F99+'GEN-502 Gen_FP'!F99 -> 0 | G99: =+'GEN-502 Gen_P'!G99+'GEN-502 Gen_FP'!G99 -> 0
A100: =+'GEN-502 Pot'!A100 -> 0 | B100: =+'GEN-502 Gen_P'!B100+'GEN-502 Gen_FP'!B100 -> 0 | C100: =+'GEN-502 Gen_P'!C100+'GEN-502 Gen_FP'!C100 -> 0 | D100: =+'GEN-502 Gen_P'!D100+'GEN-502 Gen_FP'!D100 -> 0 | E100: =+'GEN-502 Gen_P'!E100+'GEN-502 Gen_FP'!E100 -> 0 | F100: =+'GEN-502 Gen_P'!F100+'GEN-502 Gen_FP'!F100 -> 0 | G100: =+'GEN-502 Gen_P'!G100+'GEN-502 Gen_FP'!G100 -> 0
A101: =+'GEN-502 Pot'!A101 -> 0 | B101: =+'GEN-502 Gen_P'!B101+'GEN-502 Gen_FP'!B101 -> 0 | C101: =+'GEN-502 Gen_P'!C101+'GEN-502 Gen_FP'!C101 -> 0 | D101: =+'GEN-502 Gen_P'!D101+'GEN-502 Gen_FP'!D101 -> 0 | E101: =+'GEN-502 Gen_P'!E101+'GEN-502 Gen_FP'!E101 -> 0 | F101: =+'GEN-502 Gen_P'!F101+'GEN-502 Gen_FP'!F101 -> 0 | G101: =+'GEN-502 Gen_P'!G101+'GEN-502 Gen_FP'!G101 -> 0
A102: =+'GEN-502 Pot'!A102 -> 0 | B102: =+'GEN-502 Gen_P'!B102+'GEN-502 Gen_FP'!B102 -> 0 | C102: =+'GEN-502 Gen_P'!C102+'GEN-502 Gen_FP'!C102 -> 0 | D102: =+'GEN-502 Gen_P'!D102+'GEN-502 Gen_FP'!D102 -> 0 | E102: =+'GEN-502 Gen_P'!E102+'GEN-502 Gen_FP'!E102 -> 0 | F102: =+'GEN-502 Gen_P'!F102+'GEN-502 Gen_FP'!F102 -> 0 | G102: =+'GEN-502 Gen_P'!G102+'GEN-502 Gen_FP'!G102 -> 0
A103: =+'GEN-502 Pot'!A103 -> 0 | B103: =+'GEN-502 Gen_P'!B103+'GEN-502 Gen_FP'!B103 -> 0 | C103: =+'GEN-502 Gen_P'!C103+'GEN-502 Gen_FP'!C103 -> 0 | D103: =+'GEN-502 Gen_P'!D103+'GEN-502 Gen_FP'!D103 -> 0 | E103: =+'GEN-502 Gen_P'!E103+'GEN-502 Gen_FP'!E103 -> 0 | F103: =+'GEN-502 Gen_P'!F103+'GEN-502 Gen_FP'!F103 -> 0 | G103: =+'GEN-502 Gen_P'!G103+'GEN-502 Gen_FP'!G103 -> 0
A104: =+'GEN-502 Pot'!A104 -> 0 | B104: =+'GEN-502 Gen_P'!B104+'GEN-502 Gen_FP'!B104 -> 0 | C104: =+'GEN-502 Gen_P'!C104+'GEN-502 Gen_FP'!C104 -> 0 | D104: =+'GEN-502 Gen_P'!D104+'GEN-502 Gen_FP'!D104 -> 0 | E104: =+'GEN-502 Gen_P'!E104+'GEN-502 Gen_FP'!E104 -> 0 | F104: =+'GEN-502 Gen_P'!F104+'GEN-502 Gen_FP'!F104 -> 0 | G104: =+'GEN-502 Gen_P'!G104+'GEN-502 Gen_FP'!G104 -> 0
A105: =+'GEN-502 Pot'!A105 -> 0 | B105: =+'GEN-502 Gen_P'!B105+'GEN-502 Gen_FP'!B105 -> 0 | C105: =+'GEN-502 Gen_P'!C105+'GEN-502 Gen_FP'!C105 -> 0 | D105: =+'GEN-502 Gen_P'!D105+'GEN-502 Gen_FP'!D105 -> 0 | E105: =+'GEN-502 Gen_P'!E105+'GEN-502 Gen_FP'!E105 -> 0 | F105: =+'GEN-502 Gen_P'!F105+'GEN-502 Gen_FP'!F105 -> 0 | G105: =+'GEN-502 Gen_P'!G105+'GEN-502 Gen_FP'!G105 -> 0
A106: =+'GEN-502 Pot'!A106 -> 0 | B106: =+'GEN-502 Gen_P'!B106+'GEN-502 Gen_FP'!B106 -> 0 | C106: =+'GEN-502 Gen_P'!C106+'GEN-502 Gen_FP'!C106 -> 0 | D106: =+'GEN-502 Gen_P'!D106+'GEN-502 Gen_FP'!D106 -> 0 | E106: =+'GEN-502 Gen_P'!E106+'GEN-502 Gen_FP'!E106 -> 0 | F106: =+'GEN-502 Gen_P'!F106+'GEN-502 Gen_FP'!F106 -> 0 | G106: =+'GEN-502 Gen_P'!G106+'GEN-502 Gen_FP'!G106 -> 0
A107: =+'GEN-502 Pot'!A107 -> 0 | B107: =+'GEN-502 Gen_P'!B107+'GEN-502 Gen_FP'!B107 -> 0 | C107: =+'GEN-502 Gen_P'!C107+'GEN-502 Gen_FP'!C107 -> 0 | D107: =+'GEN-502 Gen_P'!D107+'GEN-502 Gen_FP'!D107 -> 0 | E107: =+'GEN-502 Gen_P'!E107+'GEN-502 Gen_FP'!E107 -> 0 | F107: =+'GEN-502 Gen_P'!F107+'GEN-502 Gen_FP'!F107 -> 0 | G107: =+'GEN-502 Gen_P'!G107+'GEN-502 Gen_FP'!G107 -> 0
A108: =+'GEN-502 Pot'!A108 -> ESEPSA No. 18-10 | B108: =+'GEN-502 Gen_P'!B108+'GEN-502 Gen_FP'!B108 -> 0 | C108: =+'GEN-502 Gen_P'!C108+'GEN-502 Gen_FP'!C108 -> 0 | D108: =+'GEN-502 Gen_P'!D108+'GEN-502 Gen_FP'!D108 -> 0 | E108: =+'GEN-502 Gen_P'!E108+'GEN-502 Gen_FP'!E108 -> 0 | F108: =+'GEN-502 Gen_P'!F108+'GEN-502 Gen_FP'!F108 -> 0 | G108: =+'GEN-502 Gen_P'!G108+'GEN-502 Gen_FP'!G108 -> 0
A109: =+'GEN-502 Pot'!A109 -> Enel Fortuna No. 20-10 | B109: =+'GEN-502 Gen_P'!B109+'GEN-502 Gen_FP'!B109 -> 0 | C109: =+'GEN-502 Gen_P'!C109+'GEN-502 Gen_FP'!C109 -> 0 | D109: =+'GEN-502 Gen_P'!D109+'GEN-502 Gen_FP'!D109 -> 0 | E109: =+'GEN-502 Gen_P'!E109+'GEN-502 Gen_FP'!E109 -> 0 | F109: =+'GEN-502 Gen_P'!F109+'GEN-502 Gen_FP'!F109 -> 0 | G109: =+'GEN-502 Gen_P'!G109+'GEN-502 Gen_FP'!G109 -> 0
A110: =+'GEN-502 Pot'!A110 -> GENA No. 22-10 | B110: =+'GEN-502 Gen_P'!B110+'GEN-502 Gen_FP'!B110 -> 0 | C110: =+'GEN-502 Gen_P'!C110+'GEN-502 Gen_FP'!C110 -> 0 | D110: =+'GEN-502 Gen_P'!D110+'GEN-502 Gen_FP'!D110 -> 0 | E110: =+'GEN-502 Gen_P'!E110+'GEN-502 Gen_FP'!E110 -> 0 | F110: =+'GEN-502 Gen_P'!F110+'GEN-502 Gen_FP'!F110 -> 0 | G110: =+'GEN-502 Gen_P'!G110+'GEN-502 Gen_FP'!G110 -> 0
A111: =+'GEN-502 Pot'!A111 -> ACP No. 24-10 | B111: =+'GEN-502 Gen_P'!B111+'GEN-502 Gen_FP'!B111 -> 0 | C111: =+'GEN-502 Gen_P'!C111+'GEN-502 Gen_FP'!C111 -> 0 | D111: =+'GEN-502 Gen_P'!D111+'GEN-502 Gen_FP'!D111 -> 0 | E111: =+'GEN-502 Gen_P'!E111+'GEN-502 Gen_FP'!E111 -> 0 | F111: =+'GEN-502 Gen_P'!F111+'GEN-502 Gen_FP'!F111 -> 0 | G111: =+'GEN-502 Gen_P'!G111+'GEN-502 Gen_FP'!G111 -> 0
A112: =+'GEN-502 Pot'!A112 -> Fortuna No.14-05 Tras | B112: =+'GEN-502 Gen_P'!B112+'GEN-502 Gen_FP'!B112 -> 0 | C112: =+'GEN-502 Gen_P'!C112+'GEN-502 Gen_FP'!C112 -> 0 | D112: =+'GEN-502 Gen_P'!D112+'GEN-502 Gen_FP'!D112 -> 0 | E112: =+'GEN-502 Gen_P'!E112+'GEN-502 Gen_FP'!E112 -> 0 | F112: =+'GEN-502 Gen_P'!F112+'GEN-502 Gen_FP'!F112 -> 0 | G112: =+'GEN-502 Gen_P'!G112+'GEN-502 Gen_FP'!G112 -> 0
A113: =+'GEN-502 Pot'!A113 -> Enel Fortuna No. 64-11 | B113: =+'GEN-502 Gen_P'!B113+'GEN-502 Gen_FP'!B113 -> 0 | C113: =+'GEN-502 Gen_P'!C113+'GEN-502 Gen_FP'!C113 -> 0 | D113: =+'GEN-502 Gen_P'!D113+'GEN-502 Gen_FP'!D113 -> 0 | E113: =+'GEN-502 Gen_P'!E113+'GEN-502 Gen_FP'!E113 -> 0 | F113: =+'GEN-502 Gen_P'!F113+'GEN-502 Gen_FP'!F113 -> 0 | G113: =+'GEN-502 Gen_P'!G113+'GEN-502 Gen_FP'!G113 -> 0
A114: =+'GEN-502 Pot'!A114 -> AES PANAMA No. 61-11 | B114: =+'GEN-502 Gen_P'!B114+'GEN-502 Gen_FP'!B114 -> 0 | C114: =+'GEN-502 Gen_P'!C114+'GEN-502 Gen_FP'!C114 -> 0 | D114: =+'GEN-502 Gen_P'!D114+'GEN-502 Gen_FP'!D114 -> 0 | E114: =+'GEN-502 Gen_P'!E114+'GEN-502 Gen_FP'!E114 -> 0 | F114: =+'GEN-502 Gen_P'!F114+'GEN-502 Gen_FP'!F114 -> 0 | G114: =+'GEN-502 Gen_P'!G114+'GEN-502 Gen_FP'!G114 -> 0
A115: =+'GEN-502 Pot'!A115 -> ESEPSA (La Yeguada) No. 62-11 | B115: =+'GEN-502 Gen_P'!B115+'GEN-502 Gen_FP'!B115 -> 0 | C115: =+'GEN-502 Gen_P'!C115+'GEN-502 Gen_FP'!C115 -> 0 | D115: =+'GEN-502 Gen_P'!D115+'GEN-502 Gen_FP'!D115 -> 0 | E115: =+'GEN-502 Gen_P'!E115+'GEN-502 Gen_FP'!E115 -> 0 | F115: =+'GEN-502 Gen_P'!F115+'GEN-502 Gen_FP'!F115 -> 0 | G115: =+'GEN-502 Gen_P'!G115+'GEN-502 Gen_FP'!G115 -> 0
A116: =+'GEN-502 Pot'!A116 -> Pedregalito No.18-11 | B116: =+'GEN-502 Gen_P'!B116+'GEN-502 Gen_FP'!B116 -> 0 | C116: =+'GEN-502 Gen_P'!C116+'GEN-502 Gen_FP'!C116 -> 0 | D116: =+'GEN-502 Gen_P'!D116+'GEN-502 Gen_FP'!D116 -> 0 | E116: =+'GEN-502 Gen_P'!E116+'GEN-502 Gen_FP'!E116 -> 0 | F116: =+'GEN-502 Gen_P'!F116+'GEN-502 Gen_FP'!F116 -> 0 | G116: =+'GEN-502 Gen_P'!G116+'GEN-502 Gen_FP'!G116 -> 0
A117: =+'GEN-502 Pot'!A117 -> Rio Chico No. 19-11 | B117: =+'GEN-502 Gen_P'!B117+'GEN-502 Gen_FP'!B117 -> 0 | C117: =+'GEN-502 Gen_P'!C117+'GEN-502 Gen_FP'!C117 -> 0 | D117: =+'GEN-502 Gen_P'!D117+'GEN-502 Gen_FP'!D117 -> 0 | E117: =+'GEN-502 Gen_P'!E117+'GEN-502 Gen_FP'!E117 -> 0 | F117: =+'GEN-502 Gen_P'!F117+'GEN-502 Gen_FP'!F117 -> 0 | G117: =+'GEN-502 Gen_P'!G117+'GEN-502 Gen_FP'!G117 -> 0
A118: =+'GEN-502 Pot'!A118 -> Alto Valle No. 20-11 | B118: =+'GEN-502 Gen_P'!B118+'GEN-502 Gen_FP'!B118 -> 0 | C118: =+'GEN-502 Gen_P'!C118+'GEN-502 Gen_FP'!C118 -> 0 | D118: =+'GEN-502 Gen_P'!D118+'GEN-502 Gen_FP'!D118 -> 0 | E118: =+'GEN-502 Gen_P'!E118+'GEN-502 Gen_FP'!E118 -> 0 | F118: =+'GEN-502 Gen_P'!F118+'GEN-502 Gen_FP'!F118 -> 0 | G118: =+'GEN-502 Gen_P'!G118+'GEN-502 Gen_FP'!G118 -> 0
A119: =+'GEN-502 Pot'!A119 -> Electrogeneradora del Istmo No. 21-11 | B119: =+'GEN-502 Gen_P'!B119+'GEN-502 Gen_FP'!B119 -> 0 | C119: =+'GEN-502 Gen_P'!C119+'GEN-502 Gen_FP'!C119 -> 0 | D119: =+'GEN-502 Gen_P'!D119+'GEN-502 Gen_FP'!D119 -> 0 | E119: =+'GEN-502 Gen_P'!E119+'GEN-502 Gen_FP'!E119 -> 0 | F119: =+'GEN-502 Gen_P'!F119+'GEN-502 Gen_FP'!F119 -> 0 | G119: =+'GEN-502 Gen_P'!G119+'GEN-502 Gen_FP'!G119 -> 0
A120: =+'GEN-502 Pot'!A120 -> Caldera Energy Corp. No. 22-11 | B120: =+'GEN-502 Gen_P'!B120+'GEN-502 Gen_FP'!B120 -> 0 | C120: =+'GEN-502 Gen_P'!C120+'GEN-502 Gen_FP'!C120 -> 0 | D120: =+'GEN-502 Gen_P'!D120+'GEN-502 Gen_FP'!D120 -> 0 | E120: =+'GEN-502 Gen_P'!E120+'GEN-502 Gen_FP'!E120 -> 0 | F120: =+'GEN-502 Gen_P'!F120+'GEN-502 Gen_FP'!F120 -> 0 | G120: =+'GEN-502 Gen_P'!G120+'GEN-502 Gen_FP'!G120 -> 0
A121: =+'GEN-502 Pot'!A121 -> Hidro Piedra No. 23-11 | B121: =+'GEN-502 Gen_P'!B121+'GEN-502 Gen_FP'!B121 -> 0 | C121: =+'GEN-502 Gen_P'!C121+'GEN-502 Gen_FP'!C121 -> 0 | D121: =+'GEN-502 Gen_P'!D121+'GEN-502 Gen_FP'!D121 -> 0 | E121: =+'GEN-502 Gen_P'!E121+'GEN-502 Gen_FP'!E121 -> 0 | F121: =+'GEN-502 Gen_P'!F121+'GEN-502 Gen_FP'!F121 -> 0 | G121: =+'GEN-502 Gen_P'!G121+'GEN-502 Gen_FP'!G121 -> 0
A122: =+'GEN-502 Pot'!A122 -> Empresa Nacional de Energía No. 36-11 (Cesión) | B122: =+'GEN-502 Gen_P'!B122+'GEN-502 Gen_FP'!B122 -> 357.6382394 | C122: =+'GEN-502 Gen_P'!C122+'GEN-502 Gen_FP'!C122 -> 345.5090772 | D122: =+'GEN-502 Gen_P'!D122+'GEN-502 Gen_FP'!D122 -> 345.708247 | E122: =+'GEN-502 Gen_P'!E122+'GEN-502 Gen_FP'!E122 -> 362.4545013 | F122: =+'GEN-502 Gen_P'!F122+'GEN-502 Gen_FP'!F122 -> 347.9538774 | G122: =+'GEN-502 Gen_P'!G122+'GEN-502 Gen_FP'!G122 -> 367.1323557
A123: =+'GEN-502 Pot'!A123 -> Enel Fortuna No. 37-11 | B123: =+'GEN-502 Gen_P'!B123+'GEN-502 Gen_FP'!B123 -> 1055.747009 | C123: =+'GEN-502 Gen_P'!C123+'GEN-502 Gen_FP'!C123 -> 1019.941758 | D123: =+'GEN-502 Gen_P'!D123+'GEN-502 Gen_FP'!D123 -> 1020.529707 | E123: =+'GEN-502 Gen_P'!E123+'GEN-502 Gen_FP'!E123 -> 1069.964599 | F123: =+'GEN-502 Gen_P'!F123+'GEN-502 Gen_FP'!F123 -> 1027.158801 | G123: =+'GEN-502 Gen_P'!G123+'GEN-502 Gen_FP'!G123 -> 1083.773612
A124: =+'GEN-502 Pot'!A124 -> Electrogeneradora del Istmo No. 38-11 | B124: =+'GEN-502 Gen_P'!B124+'GEN-502 Gen_FP'!B124 -> 44.70477993 | C124: =+'GEN-502 Gen_P'!C124+'GEN-502 Gen_FP'!C124 -> 43.18863466 | D124: =+'GEN-502 Gen_P'!D124+'GEN-502 Gen_FP'!D124 -> 43.21353087 | E124: =+'GEN-502 Gen_P'!E124+'GEN-502 Gen_FP'!E124 -> 45.30681266 | F124: =+'GEN-502 Gen_P'!F124+'GEN-502 Gen_FP'!F124 -> 43.49423467 | G124: =+'GEN-502 Gen_P'!G124+'GEN-502 Gen_FP'!G124 -> 45.89154447
A125: =+'GEN-502 Pot'!A125 -> ESEPSA No. 39-11 | B125: =+'GEN-502 Gen_P'!B125+'GEN-502 Gen_FP'!B125 -> 195.9868292 | C125: =+'GEN-502 Gen_P'!C125+'GEN-502 Gen_FP'!C125 -> 189.3400119 | D125: =+'GEN-502 Gen_P'!D125+'GEN-502 Gen_FP'!D125 -> 189.4491575 | E125: =+'GEN-502 Gen_P'!E125+'GEN-502 Gen_FP'!E125 -> 198.6261551 | F125: =+'GEN-502 Gen_P'!F125+'GEN-502 Gen_FP'!F125 -> 190.6797697 | G125: =+'GEN-502 Gen_P'!G125+'GEN-502 Gen_FP'!G125 -> 201.1896334
A126: =+'GEN-502 Pot'!A126 -> Pedregalito No. 40-11 | B126: =+'GEN-502 Gen_P'!B126+'GEN-502 Gen_FP'!B126 -> 140.8375091 | C126: =+'GEN-502 Gen_P'!C126+'GEN-502 Gen_FP'!C126 -> 136.0610596 | D126: =+'GEN-502 Gen_P'!D126+'GEN-502 Gen_FP'!D126 -> 136.1394924 | E126: =+'GEN-502 Gen_P'!E126+'GEN-502 Gen_FP'!E126 -> 142.7341472 | F126: =+'GEN-502 Gen_P'!F126+'GEN-502 Gen_FP'!F126 -> 137.0238189 | G126: =+'GEN-502 Gen_P'!G126+'GEN-502 Gen_FP'!G126 -> 144.5762807
A127: =+'GEN-502 Pot'!A127 -> Río Chico No. 41-11 | B127: =+'GEN-502 Gen_P'!B127+'GEN-502 Gen_FP'!B127 -> 86.37017182 | C127: =+'GEN-502 Gen_P'!C127+'GEN-502 Gen_FP'!C127 -> 83.44096094 | D127: =+'GEN-502 Gen_P'!D127+'GEN-502 Gen_FP'!D127 -> 83.48906073 | E127: =+'GEN-502 Gen_P'!E127+'GEN-502 Gen_FP'!E127 -> 87.53330628 | F127: =+'GEN-502 Gen_P'!F127+'GEN-502 Gen_FP'!F127 -> 84.03138384 | G127: =+'GEN-502 Gen_P'!G127+'GEN-502 Gen_FP'!G127 -> 88.66301516
A128: =+'GEN-502 Pot'!A128 -> Alto Valle No. 42-11 | B128: =+'GEN-502 Gen_P'!B128+'GEN-502 Gen_FP'!B128 -> 82.18698581 | C128: =+'GEN-502 Gen_P'!C128+'GEN-502 Gen_FP'!C128 -> 79.39964605 | D128: =+'GEN-502 Gen_P'!D128+'GEN-502 Gen_FP'!D128 -> 79.44541622 | E128: =+'GEN-502 Gen_P'!E128+'GEN-502 Gen_FP'!E128 -> 83.29378592 | F128: =+'GEN-502 Gen_P'!F128+'GEN-502 Gen_FP'!F128 -> 79.96147287 | G128: =+'GEN-502 Gen_P'!G128+'GEN-502 Gen_FP'!G128 -> 84.36877935
A129: =+'GEN-502 Pot'!A129 -> Hidroecológica del Teribe No. 43-11 | B129: =+'GEN-502 Gen_P'!B129+'GEN-502 Gen_FP'!B129 -> 357.6382394 | C129: =+'GEN-502 Gen_P'!C129+'GEN-502 Gen_FP'!C129 -> 345.5090772 | D129: =+'GEN-502 Gen_P'!D129+'GEN-502 Gen_FP'!D129 -> 345.708247 | E129: =+'GEN-502 Gen_P'!E129+'GEN-502 Gen_FP'!E129 -> 362.4545013 | F129: =+'GEN-502 Gen_P'!F129+'GEN-502 Gen_FP'!F129 -> 347.9538774 | G129: =+'GEN-502 Gen_P'!G129+'GEN-502 Gen_FP'!G129 -> 367.1323557
A130: =+'GEN-502 Pot'!A130 -> Desarrollos Hidroeléctricos Corp. No. 44-11 | B130: =+'GEN-502 Gen_P'!B130+'GEN-502 Gen_FP'!B130 -> 68.05866436 | C130: =+'GEN-502 Gen_P'!C130+'GEN-502 Gen_FP'!C130 -> 65.75048116 | D130: =+'GEN-502 Gen_P'!D130+'GEN-502 Gen_FP'!D130 -> 65.78838322 | E130: =+'GEN-502 Gen_P'!E130+'GEN-502 Gen_FP'!E130 -> 68.97520044 | F130: =+'GEN-502 Gen_P'!F130+'GEN-502 Gen_FP'!F130 -> 66.21572735 | G130: =+'GEN-502 Gen_P'!G130+'GEN-502 Gen_FP'!G130 -> 69.86539755
A131: =+'GEN-502 Pot'!A131 -> Las Perlas Norte No. 45-11 | B131: =+'GEN-502 Gen_P'!B131+'GEN-502 Gen_FP'!B131 -> 425.5895049 | C131: =+'GEN-502 Gen_P'!C131+'GEN-502 Gen_FP'!C131 -> 411.1558019 | D131: =+'GEN-502 Gen_P'!D131+'GEN-502 Gen_FP'!D131 -> 411.3928139 | E131: =+'GEN-502 Gen_P'!E131+'GEN-502 Gen_FP'!E131 -> 431.3208565 | F131: =+'GEN-502 Gen_P'!F131+'GEN-502 Gen_FP'!F131 -> 414.0651141 | G131: =+'GEN-502 Gen_P'!G131+'GEN-502 Gen_FP'!G131 -> 436.8875033
A132: =+'GEN-502 Pot'!A132 -> Hidroeléctrica San Lorenzo No. 46-11 | B132: =+'GEN-502 Gen_P'!B132+'GEN-502 Gen_FP'!B132 -> 47.67435871 | C132: =+'GEN-502 Gen_P'!C132+'GEN-502 Gen_FP'!C132 -> 46.05750132 | D132: =+'GEN-502 Gen_P'!D132+'GEN-502 Gen_FP'!D132 -> 46.0840513 | E132: =+'GEN-502 Gen_P'!E132+'GEN-502 Gen_FP'!E132 -> 48.31638232 | F132: =+'GEN-502 Gen_P'!F132+'GEN-502 Gen_FP'!F132 -> 46.38340125 | G132: =+'GEN-502 Gen_P'!G132+'GEN-502 Gen_FP'!G132 -> 48.93995577
A133: =+'GEN-502 Pot'!A133 -> Caldera Energy Corp. No. 47-11 | B133: =+'GEN-502 Gen_P'!B133+'GEN-502 Gen_FP'!B133 -> 107.2914718 | C133: =+'GEN-502 Gen_P'!C133+'GEN-502 Gen_FP'!C133 -> 103.6527232 | D133: =+'GEN-502 Gen_P'!D133+'GEN-502 Gen_FP'!D133 -> 103.7124741 | E133: =+'GEN-502 Gen_P'!E133+'GEN-502 Gen_FP'!E133 -> 108.7363504 | F133: =+'GEN-502 Gen_P'!F133+'GEN-502 Gen_FP'!F133 -> 104.3861632 | G133: =+'GEN-502 Gen_P'!G133+'GEN-502 Gen_FP'!G133 -> 110.1397067
A134: =+'GEN-502 Pot'!A134 -> ACP No. 63-11 Motores | B134: =+'GEN-502 Gen_P'!B134+'GEN-502 Gen_FP'!B134 -> 0 | C134: =+'GEN-502 Gen_P'!C134+'GEN-502 Gen_FP'!C134 -> 0 | D134: =+'GEN-502 Gen_P'!D134+'GEN-502 Gen_FP'!D134 -> 0 | E134: =+'GEN-502 Gen_P'!E134+'GEN-502 Gen_FP'!E134 -> 0 | F134: =+'GEN-502 Gen_P'!F134+'GEN-502 Gen_FP'!F134 -> 0 | G134: =+'GEN-502 Gen_P'!G134+'GEN-502 Gen_FP'!G134 -> 0
A135: =+'GEN-502 Pot'!A135 -> ACP No. 63-11 Hidro | B135: =+'GEN-502 Gen_P'!B135+'GEN-502 Gen_FP'!B135 -> 0 | C135: =+'GEN-502 Gen_P'!C135+'GEN-502 Gen_FP'!C135 -> 0 | D135: =+'GEN-502 Gen_P'!D135+'GEN-502 Gen_FP'!D135 -> 0 | E135: =+'GEN-502 Gen_P'!E135+'GEN-502 Gen_FP'!E135 -> 0 | F135: =+'GEN-502 Gen_P'!F135+'GEN-502 Gen_FP'!F135 -> 0 | G135: =+'GEN-502 Gen_P'!G135+'GEN-502 Gen_FP'!G135 -> 0
A136: =+'GEN-502 Pot'!A136 -> Hidro Caldera No. 65-11 | B136: =+'GEN-502 Gen_P'!B136+'GEN-502 Gen_FP'!B136 -> 0 | C136: =+'GEN-502 Gen_P'!C136+'GEN-502 Gen_FP'!C136 -> 0 | D136: =+'GEN-502 Gen_P'!D136+'GEN-502 Gen_FP'!D136 -> 0 | E136: =+'GEN-502 Gen_P'!E136+'GEN-502 Gen_FP'!E136 -> 0 | F136: =+'GEN-502 Gen_P'!F136+'GEN-502 Gen_FP'!F136 -> 0 | G136: =+'GEN-502 Gen_P'!G136+'GEN-502 Gen_FP'!G136 -> 0
A137: =+'GEN-502 Pot'!A137 -> Pedregalito No.66-11 | B137: =+'GEN-502 Gen_P'!B137+'GEN-502 Gen_FP'!B137 -> 0 | C137: =+'GEN-502 Gen_P'!C137+'GEN-502 Gen_FP'!C137 -> 0 | D137: =+'GEN-502 Gen_P'!D137+'GEN-502 Gen_FP'!D137 -> 0 | E137: =+'GEN-502 Gen_P'!E137+'GEN-502 Gen_FP'!E137 -> 0 | F137: =+'GEN-502 Gen_P'!F137+'GEN-502 Gen_FP'!F137 -> 0 | G137: =+'GEN-502 Gen_P'!G137+'GEN-502 Gen_FP'!G137 -> 0
A138: =+'GEN-502 Pot'!A138 -> Rio Chico No. 67-11 | B138: =+'GEN-502 Gen_P'!B138+'GEN-502 Gen_FP'!B138 -> 0 | C138: =+'GEN-502 Gen_P'!C138+'GEN-502 Gen_FP'!C138 -> 0 | D138: =+'GEN-502 Gen_P'!D138+'GEN-502 Gen_FP'!D138 -> 0 | E138: =+'GEN-502 Gen_P'!E138+'GEN-502 Gen_FP'!E138 -> 0 | F138: =+'GEN-502 Gen_P'!F138+'GEN-502 Gen_FP'!F138 -> 0 | G138: =+'GEN-502 Gen_P'!G138+'GEN-502 Gen_FP'!G138 -> 0
A139: =+'GEN-502 Pot'!A139 -> Alternegy No. 68-11 | B139: =+'GEN-502 Gen_P'!B139+'GEN-502 Gen_FP'!B139 -> 0 | C139: =+'GEN-502 Gen_P'!C139+'GEN-502 Gen_FP'!C139 -> 0 | D139: =+'GEN-502 Gen_P'!D139+'GEN-502 Gen_FP'!D139 -> 0 | E139: =+'GEN-502 Gen_P'!E139+'GEN-502 Gen_FP'!E139 -> 0 | F139: =+'GEN-502 Gen_P'!F139+'GEN-502 Gen_FP'!F139 -> 0 | G139: =+'GEN-502 Gen_P'!G139+'GEN-502 Gen_FP'!G139 -> 0
A140: =+'GEN-502 Pot'!A140 -> Bontex No. 69-11 | B140: =+'GEN-502 Gen_P'!B140+'GEN-502 Gen_FP'!B140 -> 0 | C140: =+'GEN-502 Gen_P'!C140+'GEN-502 Gen_FP'!C140 -> 0 | D140: =+'GEN-502 Gen_P'!D140+'GEN-502 Gen_FP'!D140 -> 0 | E140: =+'GEN-502 Gen_P'!E140+'GEN-502 Gen_FP'!E140 -> 0 | F140: =+'GEN-502 Gen_P'!F140+'GEN-502 Gen_FP'!F140 -> 0 | G140: =+'GEN-502 Gen_P'!G140+'GEN-502 Gen_FP'!G140 -> 0
A141: =+'GEN-502 Pot'!A141 -> Istmus No. 70-11 | B141: =+'GEN-502 Gen_P'!B141+'GEN-502 Gen_FP'!B141 -> 0 | C141: =+'GEN-502 Gen_P'!C141+'GEN-502 Gen_FP'!C141 -> 0 | D141: =+'GEN-502 Gen_P'!D141+'GEN-502 Gen_FP'!D141 -> 0 | E141: =+'GEN-502 Gen_P'!E141+'GEN-502 Gen_FP'!E141 -> 0 | F141: =+'GEN-502 Gen_P'!F141+'GEN-502 Gen_FP'!F141 -> 0 | G141: =+'GEN-502 Gen_P'!G141+'GEN-502 Gen_FP'!G141 -> 0
A142: =+'GEN-502 Pot'!A142 -> BLM (Carbón) No. 71-11 | B142: =+'GEN-502 Gen_P'!B142+'GEN-502 Gen_FP'!B142 -> 0 | C142: =+'GEN-502 Gen_P'!C142+'GEN-502 Gen_FP'!C142 -> 0 | D142: =+'GEN-502 Gen_P'!D142+'GEN-502 Gen_FP'!D142 -> 0 | E142: =+'GEN-502 Gen_P'!E142+'GEN-502 Gen_FP'!E142 -> 0 | F142: =+'GEN-502 Gen_P'!F142+'GEN-502 Gen_FP'!F142 -> 0 | G142: =+'GEN-502 Gen_P'!G142+'GEN-502 Gen_FP'!G142 -> 0
A143: =+'GEN-502 Pot'!A143 -> IDB No. 72-11 | B143: =+'GEN-502 Gen_P'!B143+'GEN-502 Gen_FP'!B143 -> 0 | C143: =+'GEN-502 Gen_P'!C143+'GEN-502 Gen_FP'!C143 -> 0 | D143: =+'GEN-502 Gen_P'!D143+'GEN-502 Gen_FP'!D143 -> 0 | E143: =+'GEN-502 Gen_P'!E143+'GEN-502 Gen_FP'!E143 -> 0 | F143: =+'GEN-502 Gen_P'!F143+'GEN-502 Gen_FP'!F143 -> 0 | G143: =+'GEN-502 Gen_P'!G143+'GEN-502 Gen_FP'!G143 -> 0
A144: =+'GEN-502 Pot'!A144 -> Pedregal No. 73-11 | B144: =+'GEN-502 Gen_P'!B144+'GEN-502 Gen_FP'!B144 -> 0 | C144: =+'GEN-502 Gen_P'!C144+'GEN-502 Gen_FP'!C144 -> 0 | D144: =+'GEN-502 Gen_P'!D144+'GEN-502 Gen_FP'!D144 -> 0 | E144: =+'GEN-502 Gen_P'!E144+'GEN-502 Gen_FP'!E144 -> 0 | F144: =+'GEN-502 Gen_P'!F144+'GEN-502 Gen_FP'!F144 -> 0 | G144: =+'GEN-502 Gen_P'!G144+'GEN-502 Gen_FP'!G144 -> 0
A145: =+'GEN-502 Pot'!A145 -> ESEPSA (Algarrobos) No. 62-11 | B145: =+'GEN-502 Gen_P'!B145+'GEN-502 Gen_FP'!B145 -> 0 | C145: =+'GEN-502 Gen_P'!C145+'GEN-502 Gen_FP'!C145 -> 0 | D145: =+'GEN-502 Gen_P'!D145+'GEN-502 Gen_FP'!D145 -> 0 | E145: =+'GEN-502 Gen_P'!E145+'GEN-502 Gen_FP'!E145 -> 0 | F145: =+'GEN-502 Gen_P'!F145+'GEN-502 Gen_FP'!F145 -> 0 | G145: =+'GEN-502 Gen_P'!G145+'GEN-502 Gen_FP'!G145 -> 0
A146: =+'GEN-502 Pot'!A146 -> ESEPSA (Dolega) No. 62-11 | B146: =+'GEN-502 Gen_P'!B146+'GEN-502 Gen_FP'!B146 -> 0 | C146: =+'GEN-502 Gen_P'!C146+'GEN-502 Gen_FP'!C146 -> 0 | D146: =+'GEN-502 Gen_P'!D146+'GEN-502 Gen_FP'!D146 -> 0 | E146: =+'GEN-502 Gen_P'!E146+'GEN-502 Gen_FP'!E146 -> 0 | F146: =+'GEN-502 Gen_P'!F146+'GEN-502 Gen_FP'!F146 -> 0 | G146: =+'GEN-502 Gen_P'!G146+'GEN-502 Gen_FP'!G146 -> 0
A147: =+'GEN-502 Pot'!A147 -> ESEPSA (Macho de Monte) No. 62-11 | B147: =+'GEN-502 Gen_P'!B147+'GEN-502 Gen_FP'!B147 -> 0 | C147: =+'GEN-502 Gen_P'!C147+'GEN-502 Gen_FP'!C147 -> 0 | D147: =+'GEN-502 Gen_P'!D147+'GEN-502 Gen_FP'!D147 -> 0 | E147: =+'GEN-502 Gen_P'!E147+'GEN-502 Gen_FP'!E147 -> 0 | F147: =+'GEN-502 Gen_P'!F147+'GEN-502 Gen_FP'!F147 -> 0 | G147: =+'GEN-502 Gen_P'!G147+'GEN-502 Gen_FP'!G147 -> 0
A148: =+'GEN-502 Pot'!A148 -> Hidroibérica No. 80-11 | B148: =+'GEN-502 Gen_P'!B148+'GEN-502 Gen_FP'!B148 -> 0 | C148: =+'GEN-502 Gen_P'!C148+'GEN-502 Gen_FP'!C148 -> 0 | D148: =+'GEN-502 Gen_P'!D148+'GEN-502 Gen_FP'!D148 -> 0 | E148: =+'GEN-502 Gen_P'!E148+'GEN-502 Gen_FP'!E148 -> 0 | F148: =+'GEN-502 Gen_P'!F148+'GEN-502 Gen_FP'!F148 -> 0 | G148: =+'GEN-502 Gen_P'!G148+'GEN-502 Gen_FP'!G148 -> 0
A149: =+'GEN-502 Pot'!A149 -> Enel Fortuna No. 81-11 | B149: =+'GEN-502 Gen_P'!B149+'GEN-502 Gen_FP'!B149 -> 0 | C149: =+'GEN-502 Gen_P'!C149+'GEN-502 Gen_FP'!C149 -> 0 | D149: =+'GEN-502 Gen_P'!D149+'GEN-502 Gen_FP'!D149 -> 0 | E149: =+'GEN-502 Gen_P'!E149+'GEN-502 Gen_FP'!E149 -> 0 | F149: =+'GEN-502 Gen_P'!F149+'GEN-502 Gen_FP'!F149 -> 0 | G149: =+'GEN-502 Gen_P'!G149+'GEN-502 Gen_FP'!G149 -> 0
A150: =+'GEN-502 Pot'!A150 -> Hidro Boquerón No. 82-11 | B150: =+'GEN-502 Gen_P'!B150+'GEN-502 Gen_FP'!B150 -> 0 | C150: =+'GEN-502 Gen_P'!C150+'GEN-502 Gen_FP'!C150 -> 0 | D150: =+'GEN-502 Gen_P'!D150+'GEN-502 Gen_FP'!D150 -> 0 | E150: =+'GEN-502 Gen_P'!E150+'GEN-502 Gen_FP'!E150 -> 0 | F150: =+'GEN-502 Gen_P'!F150+'GEN-502 Gen_FP'!F150 -> 0 | G150: =+'GEN-502 Gen_P'!G150+'GEN-502 Gen_FP'!G150 -> 0
A151: =+'GEN-502 Pot'!A151 -> Pedregal Power No. 83-11 | B151: =+'GEN-502 Gen_P'!B151+'GEN-502 Gen_FP'!B151 -> 0 | C151: =+'GEN-502 Gen_P'!C151+'GEN-502 Gen_FP'!C151 -> 0 | D151: =+'GEN-502 Gen_P'!D151+'GEN-502 Gen_FP'!D151 -> 0 | E151: =+'GEN-502 Gen_P'!E151+'GEN-502 Gen_FP'!E151 -> 0 | F151: =+'GEN-502 Gen_P'!F151+'GEN-502 Gen_FP'!F151 -> 0 | G151: =+'GEN-502 Gen_P'!G151+'GEN-502 Gen_FP'!G151 -> 0
A152: =+'GEN-502 Pot'!A152 -> EGESA No. 84-11 | B152: =+'GEN-502 Gen_P'!B152+'GEN-502 Gen_FP'!B152 -> 0 | C152: =+'GEN-502 Gen_P'!C152+'GEN-502 Gen_FP'!C152 -> 0 | D152: =+'GEN-502 Gen_P'!D152+'GEN-502 Gen_FP'!D152 -> 0 | E152: =+'GEN-502 Gen_P'!E152+'GEN-502 Gen_FP'!E152 -> 0 | F152: =+'GEN-502 Gen_P'!F152+'GEN-502 Gen_FP'!F152 -> 0 | G152: =+'GEN-502 Gen_P'!G152+'GEN-502 Gen_FP'!G152 -> 0
A153: =+'GEN-502 Pot'!A153 -> ACP No. 85-11 | B153: =+'GEN-502 Gen_P'!B153+'GEN-502 Gen_FP'!B153 -> 0 | C153: =+'GEN-502 Gen_P'!C153+'GEN-502 Gen_FP'!C153 -> 0 | D153: =+'GEN-502 Gen_P'!D153+'GEN-502 Gen_FP'!D153 -> 0 | E153: =+'GEN-502 Gen_P'!E153+'GEN-502 Gen_FP'!E153 -> 0 | F153: =+'GEN-502 Gen_P'!F153+'GEN-502 Gen_FP'!F153 -> 0 | G153: =+'GEN-502 Gen_P'!G153+'GEN-502 Gen_FP'!G153 -> 0
A154: =+'GEN-502 Pot'!A154 -> Istmus Hydro Power No. 08-12 | B154: =+'GEN-502 Gen_P'!B154+'GEN-502 Gen_FP'!B154 -> 0 | C154: =+'GEN-502 Gen_P'!C154+'GEN-502 Gen_FP'!C154 -> 0 | D154: =+'GEN-502 Gen_P'!D154+'GEN-502 Gen_FP'!D154 -> 0 | E154: =+'GEN-502 Gen_P'!E154+'GEN-502 Gen_FP'!E154 -> 0 | F154: =+'GEN-502 Gen_P'!F154+'GEN-502 Gen_FP'!F154 -> 0 | G154: =+'GEN-502 Gen_P'!G154+'GEN-502 Gen_FP'!G154 -> 0
A155: =+'GEN-502 Pot'!A155 -> Hidro Panamá No. 09-12 | B155: =+'GEN-502 Gen_P'!B155+'GEN-502 Gen_FP'!B155 -> 0 | C155: =+'GEN-502 Gen_P'!C155+'GEN-502 Gen_FP'!C155 -> 0 | D155: =+'GEN-502 Gen_P'!D155+'GEN-502 Gen_FP'!D155 -> 0 | E155: =+'GEN-502 Gen_P'!E155+'GEN-502 Gen_FP'!E155 -> 0 | F155: =+'GEN-502 Gen_P'!F155+'GEN-502 Gen_FP'!F155 -> 0 | G155: =+'GEN-502 Gen_P'!G155+'GEN-502 Gen_FP'!G155 -> 0
A156: =+'GEN-502 Pot'!A156 -> Pedregal Power No. 10-12 | B156: =+'GEN-502 Gen_P'!B156+'GEN-502 Gen_FP'!B156 -> 0 | C156: =+'GEN-502 Gen_P'!C156+'GEN-502 Gen_FP'!C156 -> 0 | D156: =+'GEN-502 Gen_P'!D156+'GEN-502 Gen_FP'!D156 -> 0 | E156: =+'GEN-502 Gen_P'!E156+'GEN-502 Gen_FP'!E156 -> 0 | F156: =+'GEN-502 Gen_P'!F156+'GEN-502 Gen_FP'!F156 -> 0 | G156: =+'GEN-502 Gen_P'!G156+'GEN-502 Gen_FP'!G156 -> 0
A157: =+'GEN-502 Pot'!A157 -> Pedregal Power No. 11-12 | B157: =+'GEN-502 Gen_P'!B157+'GEN-502 Gen_FP'!B157 -> 0 | C157: =+'GEN-502 Gen_P'!C157+'GEN-502 Gen_FP'!C157 -> 0 | D157: =+'GEN-502 Gen_P'!D157+'GEN-502 Gen_FP'!D157 -> 0 | E157: =+'GEN-502 Gen_P'!E157+'GEN-502 Gen_FP'!E157 -> 0 | F157: =+'GEN-502 Gen_P'!F157+'GEN-502 Gen_FP'!F157 -> 0 | G157: =+'GEN-502 Gen_P'!G157+'GEN-502 Gen_FP'!G157 -> 0
A158: =+'GEN-502 Pot'!A158 -> Café de Eleta No. 12-12 | B158: =+'GEN-502 Gen_P'!B158+'GEN-502 Gen_FP'!B158 -> 0 | C158: =+'GEN-502 Gen_P'!C158+'GEN-502 Gen_FP'!C158 -> 0 | D158: =+'GEN-502 Gen_P'!D158+'GEN-502 Gen_FP'!D158 -> 0 | E158: =+'GEN-502 Gen_P'!E158+'GEN-502 Gen_FP'!E158 -> 0 | F158: =+'GEN-502 Gen_P'!F158+'GEN-502 Gen_FP'!F158 -> 0 | G158: =+'GEN-502 Gen_P'!G158+'GEN-502 Gen_FP'!G158 -> 0
A159: =+'GEN-502 Pot'!A159 -> Bahías Las Minas No. 13-12 | B159: =+'GEN-502 Gen_P'!B159+'GEN-502 Gen_FP'!B159 -> 0 | C159: =+'GEN-502 Gen_P'!C159+'GEN-502 Gen_FP'!C159 -> 0 | D159: =+'GEN-502 Gen_P'!D159+'GEN-502 Gen_FP'!D159 -> 0 | E159: =+'GEN-502 Gen_P'!E159+'GEN-502 Gen_FP'!E159 -> 0 | F159: =+'GEN-502 Gen_P'!F159+'GEN-502 Gen_FP'!F159 -> 0 | G159: =+'GEN-502 Gen_P'!G159+'GEN-502 Gen_FP'!G159 -> 0
A160: =+'GEN-502 Pot'!A160 -> Generadora del Atlántico No. 14-12 | B160: =+'GEN-502 Gen_P'!B160+'GEN-502 Gen_FP'!B160 -> 0 | C160: =+'GEN-502 Gen_P'!C160+'GEN-502 Gen_FP'!C160 -> 0 | D160: =+'GEN-502 Gen_P'!D160+'GEN-502 Gen_FP'!D160 -> 0 | E160: =+'GEN-502 Gen_P'!E160+'GEN-502 Gen_FP'!E160 -> 0 | F160: =+'GEN-502 Gen_P'!F160+'GEN-502 Gen_FP'!F160 -> 0 | G160: =+'GEN-502 Gen_P'!G160+'GEN-502 Gen_FP'!G160 -> 0
A161: =+'GEN-502 Pot'!A161 -> Unión Eólica de Panamá (PE Nuevo Chagres) No. 19-12' | B161: =+'GEN-502 Gen_P'!B161+'GEN-502 Gen_FP'!B161 -> 947.6339356 | C161: =+'GEN-502 Gen_P'!C161+'GEN-502 Gen_FP'!C161 -> 811.2200362 | D161: =+'GEN-502 Gen_P'!D161+'GEN-502 Gen_FP'!D161 -> 458.5046465 | E161: =+'GEN-502 Gen_P'!E161+'GEN-502 Gen_FP'!E161 -> 620.7441504 | F161: =+'GEN-502 Gen_P'!F161+'GEN-502 Gen_FP'!F161 -> 1330.792968 | G161: =+'GEN-502 Gen_P'!G161+'GEN-502 Gen_FP'!G161 -> 3270.17909
A162: =+'GEN-502 Pot'!A162 -> Unión Eólica de Panamá (PE Rosa de los Vientos) No. 20-12' | B162: =+'GEN-502 Gen_P'!B162+'GEN-502 Gen_FP'!B162 -> 795.9867302 | C162: =+'GEN-502 Gen_P'!C162+'GEN-502 Gen_FP'!C162 -> 688.1648513 | D162: =+'GEN-502 Gen_P'!D162+'GEN-502 Gen_FP'!D162 -> 389.311089 | E162: =+'GEN-502 Gen_P'!E162+'GEN-502 Gen_FP'!E162 -> 527.1917048 | F162: =+'GEN-502 Gen_P'!F162+'GEN-502 Gen_FP'!F162 -> 1126.722721 | G162: =+'GEN-502 Gen_P'!G162+'GEN-502 Gen_FP'!G162 -> 2733.316926
A163: =+'GEN-502 Pot'!A163 -> Unión Eólica de Panamá (PE Portobelo Ballestillas) No. 21-12' | B163: =+'GEN-502 Gen_P'!B163+'GEN-502 Gen_FP'!B163 -> 0.912890401 | C163: =+'GEN-502 Gen_P'!C163+'GEN-502 Gen_FP'!C163 -> 0.9338083169 | D163: =+'GEN-502 Gen_P'!D163+'GEN-502 Gen_FP'!D163 -> 0.8824384683 | E163: =+'GEN-502 Gen_P'!E163+'GEN-502 Gen_FP'!E163 -> 0.8707615646 | F163: =+'GEN-502 Gen_P'!F163+'GEN-502 Gen_FP'!F163 -> 0.8881705578 | G163: =+'GEN-502 Gen_P'!G163+'GEN-502 Gen_FP'!G163 -> 0.9922496101
A164: =+'GEN-502 Pot'!A164 -> Unión Eólica de Panamá (PE Marañon) No. 22-12' | B164: =+'GEN-502 Gen_P'!B164+'GEN-502 Gen_FP'!B164 -> 0.912890401 | C164: =+'GEN-502 Gen_P'!C164+'GEN-502 Gen_FP'!C164 -> 0.9338083169 | D164: =+'GEN-502 Gen_P'!D164+'GEN-502 Gen_FP'!D164 -> 0.8824384683 | E164: =+'GEN-502 Gen_P'!E164+'GEN-502 Gen_FP'!E164 -> 0.8707615646 | F164: =+'GEN-502 Gen_P'!F164+'GEN-502 Gen_FP'!F164 -> 0.8881705578 | G164: =+'GEN-502 Gen_P'!G164+'GEN-502 Gen_FP'!G164 -> 0.9922496101
A165: =+'GEN-502 Pot'!A165 -> Autoridad del Canal de Panamá No. 44-12 | B165: =+'GEN-502 Gen_P'!B165+'GEN-502 Gen_FP'!B165 -> 0 | C165: =+'GEN-502 Gen_P'!C165+'GEN-502 Gen_FP'!C165 -> 0 | D165: =+'GEN-502 Gen_P'!D165+'GEN-502 Gen_FP'!D165 -> 0 | E165: =+'GEN-502 Gen_P'!E165+'GEN-502 Gen_FP'!E165 -> 0 | F165: =+'GEN-502 Gen_P'!F165+'GEN-502 Gen_FP'!F165 -> 0 | G165: =+'GEN-502 Gen_P'!G165+'GEN-502 Gen_FP'!G165 -> 0
A166: =+'GEN-502 Pot'!A166 -> AES Panamá No. 45-12 | B166: =+'GEN-502 Gen_P'!B166+'GEN-502 Gen_FP'!B166 -> 0 | C166: =+'GEN-502 Gen_P'!C166+'GEN-502 Gen_FP'!C166 -> 0 | D166: =+'GEN-502 Gen_P'!D166+'GEN-502 Gen_FP'!D166 -> 0 | E166: =+'GEN-502 Gen_P'!E166+'GEN-502 Gen_FP'!E166 -> 0 | F166: =+'GEN-502 Gen_P'!F166+'GEN-502 Gen_FP'!F166 -> 0 | G166: =+'GEN-502 Gen_P'!G166+'GEN-502 Gen_FP'!G166 -> 0
A167: =+'GEN-502 Pot'!A167 -> Energía y Servicios de Panamá, S.A. No. 46-12 (La Yeguada) | B167: =+'GEN-502 Gen_P'!B167+'GEN-502 Gen_FP'!B167 -> 0 | C167: =+'GEN-502 Gen_P'!C167+'GEN-502 Gen_FP'!C167 -> 0 | D167: =+'GEN-502 Gen_P'!D167+'GEN-502 Gen_FP'!D167 -> 0 | E167: =+'GEN-502 Gen_P'!E167+'GEN-502 Gen_FP'!E167 -> 0 | F167: =+'GEN-502 Gen_P'!F167+'GEN-502 Gen_FP'!F167 -> 0 | G167: =+'GEN-502 Gen_P'!G167+'GEN-502 Gen_FP'!G167 -> 0
A168: =+'GEN-502 Pot'!A168 -> Enel Fortuna No. 47-12 | B168: =+'GEN-502 Gen_P'!B168+'GEN-502 Gen_FP'!B168 -> 0 | C168: =+'GEN-502 Gen_P'!C168+'GEN-502 Gen_FP'!C168 -> 0 | D168: =+'GEN-502 Gen_P'!D168+'GEN-502 Gen_FP'!D168 -> 0 | E168: =+'GEN-502 Gen_P'!E168+'GEN-502 Gen_FP'!E168 -> 0 | F168: =+'GEN-502 Gen_P'!F168+'GEN-502 Gen_FP'!F168 -> 0 | G168: =+'GEN-502 Gen_P'!G168+'GEN-502 Gen_FP'!G168 -> 0
A169: =+'GEN-502 Pot'!A169 -> FERSA Panamá, S.A. No. 48-12 | B169: =+'GEN-502 Gen_P'!B169+'GEN-502 Gen_FP'!B169 -> 0 | C169: =+'GEN-502 Gen_P'!C169+'GEN-502 Gen_FP'!C169 -> 0 | D169: =+'GEN-502 Gen_P'!D169+'GEN-502 Gen_FP'!D169 -> 0 | E169: =+'GEN-502 Gen_P'!E169+'GEN-502 Gen_FP'!E169 -> 0 | F169: =+'GEN-502 Gen_P'!F169+'GEN-502 Gen_FP'!F169 -> 0 | G169: =+'GEN-502 Gen_P'!G169+'GEN-502 Gen_FP'!G169 -> 0
A170: =+'GEN-502 Pot'!A170 -> Caldera Energy Corp. No. 49-12 | B170: =+'GEN-502 Gen_P'!B170+'GEN-502 Gen_FP'!B170 -> 0 | C170: =+'GEN-502 Gen_P'!C170+'GEN-502 Gen_FP'!C170 -> 0 | D170: =+'GEN-502 Gen_P'!D170+'GEN-502 Gen_FP'!D170 -> 0 | E170: =+'GEN-502 Gen_P'!E170+'GEN-502 Gen_FP'!E170 -> 0 | F170: =+'GEN-502 Gen_P'!F170+'GEN-502 Gen_FP'!F170 -> 0 | G170: =+'GEN-502 Gen_P'!G170+'GEN-502 Gen_FP'!G170 -> 0
A171: =+'GEN-502 Pot'!A171 -> Electrogeneradora del Istmo No. 50-12 | B171: =+'GEN-502 Gen_P'!B171+'GEN-502 Gen_FP'!B171 -> 0 | C171: =+'GEN-502 Gen_P'!C171+'GEN-502 Gen_FP'!C171 -> 0 | D171: =+'GEN-502 Gen_P'!D171+'GEN-502 Gen_FP'!D171 -> 0 | E171: =+'GEN-502 Gen_P'!E171+'GEN-502 Gen_FP'!E171 -> 0 | F171: =+'GEN-502 Gen_P'!F171+'GEN-502 Gen_FP'!F171 -> 0 | G171: =+'GEN-502 Gen_P'!G171+'GEN-502 Gen_FP'!G171 -> 0
A172: =+'GEN-502 Pot'!A172 -> Paso Ancho Hydro Power No. 51-12 | B172: =+'GEN-502 Gen_P'!B172+'GEN-502 Gen_FP'!B172 -> 0 | C172: =+'GEN-502 Gen_P'!C172+'GEN-502 Gen_FP'!C172 -> 0 | D172: =+'GEN-502 Gen_P'!D172+'GEN-502 Gen_FP'!D172 -> 0 | E172: =+'GEN-502 Gen_P'!E172+'GEN-502 Gen_FP'!E172 -> 0 | F172: =+'GEN-502 Gen_P'!F172+'GEN-502 Gen_FP'!F172 -> 0 | G172: =+'GEN-502 Gen_P'!G172+'GEN-502 Gen_FP'!G172 -> 0
A173: =+'GEN-502 Pot'!A173 -> Café de Eleta No. 52-12 | B173: =+'GEN-502 Gen_P'!B173+'GEN-502 Gen_FP'!B173 -> 0 | C173: =+'GEN-502 Gen_P'!C173+'GEN-502 Gen_FP'!C173 -> 0 | D173: =+'GEN-502 Gen_P'!D173+'GEN-502 Gen_FP'!D173 -> 0 | E173: =+'GEN-502 Gen_P'!E173+'GEN-502 Gen_FP'!E173 -> 0 | F173: =+'GEN-502 Gen_P'!F173+'GEN-502 Gen_FP'!F173 -> 0 | G173: =+'GEN-502 Gen_P'!G173+'GEN-502 Gen_FP'!G173 -> 0
A174: =+'GEN-502 Pot'!A174 -> Generadora del Istmo, S.A. No. 53-12 | B174: =+'GEN-502 Gen_P'!B174+'GEN-502 Gen_FP'!B174 -> 0 | C174: =+'GEN-502 Gen_P'!C174+'GEN-502 Gen_FP'!C174 -> 0 | D174: =+'GEN-502 Gen_P'!D174+'GEN-502 Gen_FP'!D174 -> 0 | E174: =+'GEN-502 Gen_P'!E174+'GEN-502 Gen_FP'!E174 -> 0 | F174: =+'GEN-502 Gen_P'!F174+'GEN-502 Gen_FP'!F174 -> 0 | G174: =+'GEN-502 Gen_P'!G174+'GEN-502 Gen_FP'!G174 -> 0
A175: =+'GEN-502 Pot'!A175 -> Bontex, S.A. No. 54-12 | B175: =+'GEN-502 Gen_P'!B175+'GEN-502 Gen_FP'!B175 -> 0 | C175: =+'GEN-502 Gen_P'!C175+'GEN-502 Gen_FP'!C175 -> 0 | D175: =+'GEN-502 Gen_P'!D175+'GEN-502 Gen_FP'!D175 -> 0 | E175: =+'GEN-502 Gen_P'!E175+'GEN-502 Gen_FP'!E175 -> 0 | F175: =+'GEN-502 Gen_P'!F175+'GEN-502 Gen_FP'!F175 -> 0 | G175: =+'GEN-502 Gen_P'!G175+'GEN-502 Gen_FP'!G175 -> 0
A176: =+'GEN-502 Pot'!A176 -> Alternegy, S.A. No. 55-12 | B176: =+'GEN-502 Gen_P'!B176+'GEN-502 Gen_FP'!B176 -> 0 | C176: =+'GEN-502 Gen_P'!C176+'GEN-502 Gen_FP'!C176 -> 0 | D176: =+'GEN-502 Gen_P'!D176+'GEN-502 Gen_FP'!D176 -> 0 | E176: =+'GEN-502 Gen_P'!E176+'GEN-502 Gen_FP'!E176 -> 0 | F176: =+'GEN-502 Gen_P'!F176+'GEN-502 Gen_FP'!F176 -> 0 | G176: =+'GEN-502 Gen_P'!G176+'GEN-502 Gen_FP'!G176 -> 0
A177: =+'GEN-502 Pot'!A177 -> Hidro Panamá, S.A. No. 56-12 | B177: =+'GEN-502 Gen_P'!B177+'GEN-502 Gen_FP'!B177 -> 0 | C177: =+'GEN-502 Gen_P'!C177+'GEN-502 Gen_FP'!C177 -> 0 | D177: =+'GEN-502 Gen_P'!D177+'GEN-502 Gen_FP'!D177 -> 0 | E177: =+'GEN-502 Gen_P'!E177+'GEN-502 Gen_FP'!E177 -> 0 | F177: =+'GEN-502 Gen_P'!F177+'GEN-502 Gen_FP'!F177 -> 0 | G177: =+'GEN-502 Gen_P'!G177+'GEN-502 Gen_FP'!G177 -> 0
A178: =+'GEN-502 Pot'!A178 -> Electron Investment, S.A. No. 57-12 | B178: =+'GEN-502 Gen_P'!B178+'GEN-502 Gen_FP'!B178 -> 0 | C178: =+'GEN-502 Gen_P'!C178+'GEN-502 Gen_FP'!C178 -> 0 | D178: =+'GEN-502 Gen_P'!D178+'GEN-502 Gen_FP'!D178 -> 0 | E178: =+'GEN-502 Gen_P'!E178+'GEN-502 Gen_FP'!E178 -> 0 | F178: =+'GEN-502 Gen_P'!F178+'GEN-502 Gen_FP'!F178 -> 0 | G178: =+'GEN-502 Gen_P'!G178+'GEN-502 Gen_FP'!G178 -> 0
A179: =+'GEN-502 Pot'!A179 -> Istmus Hydro Power No. 58-12 | B179: =+'GEN-502 Gen_P'!B179+'GEN-502 Gen_FP'!B179 -> 0 | C179: =+'GEN-502 Gen_P'!C179+'GEN-502 Gen_FP'!C179 -> 0 | D179: =+'GEN-502 Gen_P'!D179+'GEN-502 Gen_FP'!D179 -> 0 | E179: =+'GEN-502 Gen_P'!E179+'GEN-502 Gen_FP'!E179 -> 0 | F179: =+'GEN-502 Gen_P'!F179+'GEN-502 Gen_FP'!F179 -> 0 | G179: =+'GEN-502 Gen_P'!G179+'GEN-502 Gen_FP'!G179 -> 0
A180: =+'GEN-502 Pot'!A180 -> Las Perlas Norte, S.A. No. 59-12 | B180: =+'GEN-502 Gen_P'!B180+'GEN-502 Gen_FP'!B180 -> 0 | C180: =+'GEN-502 Gen_P'!C180+'GEN-502 Gen_FP'!C180 -> 0 | D180: =+'GEN-502 Gen_P'!D180+'GEN-502 Gen_FP'!D180 -> 0 | E180: =+'GEN-502 Gen_P'!E180+'GEN-502 Gen_FP'!E180 -> 0 | F180: =+'GEN-502 Gen_P'!F180+'GEN-502 Gen_FP'!F180 -> 0 | G180: =+'GEN-502 Gen_P'!G180+'GEN-502 Gen_FP'!G180 -> 0
A181: =+'GEN-502 Pot'!A181 -> Las Perlas Sur, S.A. No. 60-12 | B181: =+'GEN-502 Gen_P'!B181+'GEN-502 Gen_FP'!B181 -> 0 | C181: =+'GEN-502 Gen_P'!C181+'GEN-502 Gen_FP'!C181 -> 0 | D181: =+'GEN-502 Gen_P'!D181+'GEN-502 Gen_FP'!D181 -> 0 | E181: =+'GEN-502 Gen_P'!E181+'GEN-502 Gen_FP'!E181 -> 0 | F181: =+'GEN-502 Gen_P'!F181+'GEN-502 Gen_FP'!F181 -> 0 | G181: =+'GEN-502 Gen_P'!G181+'GEN-502 Gen_FP'!G181 -> 0
A182: =+'GEN-502 Pot'!A182 -> Generadora Río Chico No. 61-12 | B182: =+'GEN-502 Gen_P'!B182+'GEN-502 Gen_FP'!B182 -> 0 | C182: =+'GEN-502 Gen_P'!C182+'GEN-502 Gen_FP'!C182 -> 0 | D182: =+'GEN-502 Gen_P'!D182+'GEN-502 Gen_FP'!D182 -> 0 | E182: =+'GEN-502 Gen_P'!E182+'GEN-502 Gen_FP'!E182 -> 0 | F182: =+'GEN-502 Gen_P'!F182+'GEN-502 Gen_FP'!F182 -> 0 | G182: =+'GEN-502 Gen_P'!G182+'GEN-502 Gen_FP'!G182 -> 0
A183: =+'GEN-502 Pot'!A183 -> Generadora Alto Valle No. 62-12 | B183: =+'GEN-502 Gen_P'!B183+'GEN-502 Gen_FP'!B183 -> 0 | C183: =+'GEN-502 Gen_P'!C183+'GEN-502 Gen_FP'!C183 -> 0 | D183: =+'GEN-502 Gen_P'!D183+'GEN-502 Gen_FP'!D183 -> 0 | E183: =+'GEN-502 Gen_P'!E183+'GEN-502 Gen_FP'!E183 -> 0 | F183: =+'GEN-502 Gen_P'!F183+'GEN-502 Gen_FP'!F183 -> 0 | G183: =+'GEN-502 Gen_P'!G183+'GEN-502 Gen_FP'!G183 -> 0
A184: =+'GEN-502 Pot'!A184 -> Generadora Pedregalito No. 63-12 | B184: =+'GEN-502 Gen_P'!B184+'GEN-502 Gen_FP'!B184 -> 0 | C184: =+'GEN-502 Gen_P'!C184+'GEN-502 Gen_FP'!C184 -> 0 | D184: =+'GEN-502 Gen_P'!D184+'GEN-502 Gen_FP'!D184 -> 0 | E184: =+'GEN-502 Gen_P'!E184+'GEN-502 Gen_FP'!E184 -> 0 | F184: =+'GEN-502 Gen_P'!F184+'GEN-502 Gen_FP'!F184 -> 0 | G184: =+'GEN-502 Gen_P'!G184+'GEN-502 Gen_FP'!G184 -> 0
A185: =+'GEN-502 Pot'!A185 -> Hydro Caisán No. 64-12 | B185: =+'GEN-502 Gen_P'!B185+'GEN-502 Gen_FP'!B185 -> 0 | C185: =+'GEN-502 Gen_P'!C185+'GEN-502 Gen_FP'!C185 -> 0 | D185: =+'GEN-502 Gen_P'!D185+'GEN-502 Gen_FP'!D185 -> 0 | E185: =+'GEN-502 Gen_P'!E185+'GEN-502 Gen_FP'!E185 -> 0 | F185: =+'GEN-502 Gen_P'!F185+'GEN-502 Gen_FP'!F185 -> 0 | G185: =+'GEN-502 Gen_P'!G185+'GEN-502 Gen_FP'!G185 -> 0
A186: =+'GEN-502 Pot'!A186 -> Hidro Piedra No. 66-12 | B186: =+'GEN-502 Gen_P'!B186+'GEN-502 Gen_FP'!B186 -> 0 | C186: =+'GEN-502 Gen_P'!C186+'GEN-502 Gen_FP'!C186 -> 0 | D186: =+'GEN-502 Gen_P'!D186+'GEN-502 Gen_FP'!D186 -> 0 | E186: =+'GEN-502 Gen_P'!E186+'GEN-502 Gen_FP'!E186 -> 0 | F186: =+'GEN-502 Gen_P'!F186+'GEN-502 Gen_FP'!F186 -> 0 | G186: =+'GEN-502 Gen_P'!G186+'GEN-502 Gen_FP'!G186 -> 0
A187: =+'GEN-502 Pot'!A187 -> Hidro Panamá, S.A. No. 77-12 | B187: =+'GEN-502 Gen_P'!B187+'GEN-502 Gen_FP'!B187 -> 0 | C187: =+'GEN-502 Gen_P'!C187+'GEN-502 Gen_FP'!C187 -> 0 | D187: =+'GEN-502 Gen_P'!D187+'GEN-502 Gen_FP'!D187 -> 0 | E187: =+'GEN-502 Gen_P'!E187+'GEN-502 Gen_FP'!E187 -> 0 | F187: =+'GEN-502 Gen_P'!F187+'GEN-502 Gen_FP'!F187 -> 0 | G187: =+'GEN-502 Gen_P'!G187+'GEN-502 Gen_FP'!G187 -> 0
A188: =+'GEN-502 Pot'!A188 -> Hidroecológica del Teribe No. 78-12 | B188: =+'GEN-502 Gen_P'!B188+'GEN-502 Gen_FP'!B188 -> 0 | C188: =+'GEN-502 Gen_P'!C188+'GEN-502 Gen_FP'!C188 -> 0 | D188: =+'GEN-502 Gen_P'!D188+'GEN-502 Gen_FP'!D188 -> 0 | E188: =+'GEN-502 Gen_P'!E188+'GEN-502 Gen_FP'!E188 -> 0 | F188: =+'GEN-502 Gen_P'!F188+'GEN-502 Gen_FP'!F188 -> 0 | G188: =+'GEN-502 Gen_P'!G188+'GEN-502 Gen_FP'!G188 -> 0
A189: =+'GEN-502 Pot'!A189 -> Ideal Panamá No. 79-12 | B189: =+'GEN-502 Gen_P'!B189+'GEN-502 Gen_FP'!B189 -> 0 | C189: =+'GEN-502 Gen_P'!C189+'GEN-502 Gen_FP'!C189 -> 0 | D189: =+'GEN-502 Gen_P'!D189+'GEN-502 Gen_FP'!D189 -> 0 | E189: =+'GEN-502 Gen_P'!E189+'GEN-502 Gen_FP'!E189 -> 0 | F189: =+'GEN-502 Gen_P'!F189+'GEN-502 Gen_FP'!F189 -> 0 | G189: =+'GEN-502 Gen_P'!G189+'GEN-502 Gen_FP'!G189 -> 0
A190: =+'GEN-502 Pot'!A190 -> Istmus Hydro Power No. 80-12 | B190: =+'GEN-502 Gen_P'!B190+'GEN-502 Gen_FP'!B190 -> 0 | C190: =+'GEN-502 Gen_P'!C190+'GEN-502 Gen_FP'!C190 -> 0 | D190: =+'GEN-502 Gen_P'!D190+'GEN-502 Gen_FP'!D190 -> 0 | E190: =+'GEN-502 Gen_P'!E190+'GEN-502 Gen_FP'!E190 -> 0 | F190: =+'GEN-502 Gen_P'!F190+'GEN-502 Gen_FP'!F190 -> 0 | G190: =+'GEN-502 Gen_P'!G190+'GEN-502 Gen_FP'!G190 -> 0
A191: =+'GEN-502 Pot'!A191 -> Las Perlas Norte, S.A. No. 81-12 | B191: =+'GEN-502 Gen_P'!B191+'GEN-502 Gen_FP'!B191 -> 0 | C191: =+'GEN-502 Gen_P'!C191+'GEN-502 Gen_FP'!C191 -> 0 | D191: =+'GEN-502 Gen_P'!D191+'GEN-502 Gen_FP'!D191 -> 0 | E191: =+'GEN-502 Gen_P'!E191+'GEN-502 Gen_FP'!E191 -> 0 | F191: =+'GEN-502 Gen_P'!F191+'GEN-502 Gen_FP'!F191 -> 0 | G191: =+'GEN-502 Gen_P'!G191+'GEN-502 Gen_FP'!G191 -> 0
A192: =+'GEN-502 Pot'!A192 -> Las Perlas Sur, S.A. No. 82-12 | B192: =+'GEN-502 Gen_P'!B192+'GEN-502 Gen_FP'!B192 -> 0 | C192: =+'GEN-502 Gen_P'!C192+'GEN-502 Gen_FP'!C192 -> 0 | D192: =+'GEN-502 Gen_P'!D192+'GEN-502 Gen_FP'!D192 -> 0 | E192: =+'GEN-502 Gen_P'!E192+'GEN-502 Gen_FP'!E192 -> 0 | F192: =+'GEN-502 Gen_P'!F192+'GEN-502 Gen_FP'!F192 -> 0 | G192: =+'GEN-502 Gen_P'!G192+'GEN-502 Gen_FP'!G192 -> 0
A193: =+'GEN-502 Pot'!A193 -> Café de Eleta No. 83-12 | B193: =+'GEN-502 Gen_P'!B193+'GEN-502 Gen_FP'!B193 -> 0 | C193: =+'GEN-502 Gen_P'!C193+'GEN-502 Gen_FP'!C193 -> 0 | D193: =+'GEN-502 Gen_P'!D193+'GEN-502 Gen_FP'!D193 -> 0 | E193: =+'GEN-502 Gen_P'!E193+'GEN-502 Gen_FP'!E193 -> 0 | F193: =+'GEN-502 Gen_P'!F193+'GEN-502 Gen_FP'!F193 -> 0 | G193: =+'GEN-502 Gen_P'!G193+'GEN-502 Gen_FP'!G193 -> 0
A194: =+'GEN-502 Pot'!A194 -> Enel Fortuna No. 84-12 | B194: =+'GEN-502 Gen_P'!B194+'GEN-502 Gen_FP'!B194 -> 0 | C194: =+'GEN-502 Gen_P'!C194+'GEN-502 Gen_FP'!C194 -> 0 | D194: =+'GEN-502 Gen_P'!D194+'GEN-502 Gen_FP'!D194 -> 0 | E194: =+'GEN-502 Gen_P'!E194+'GEN-502 Gen_FP'!E194 -> 0 | F194: =+'GEN-502 Gen_P'!F194+'GEN-502 Gen_FP'!F194 -> 0 | G194: =+'GEN-502 Gen_P'!G194+'GEN-502 Gen_FP'!G194 -> 0
A195: =+'GEN-502 Pot'!A195 -> Generadora del Atlántico No. 85-12 | B195: =+'GEN-502 Gen_P'!B195+'GEN-502 Gen_FP'!B195 -> 0 | C195: =+'GEN-502 Gen_P'!C195+'GEN-502 Gen_FP'!C195 -> 0 | D195: =+'GEN-502 Gen_P'!D195+'GEN-502 Gen_FP'!D195 -> 0 | E195: =+'GEN-502 Gen_P'!E195+'GEN-502 Gen_FP'!E195 -> 0 | F195: =+'GEN-502 Gen_P'!F195+'GEN-502 Gen_FP'!F195 -> 0 | G195: =+'GEN-502 Gen_P'!G195+'GEN-502 Gen_FP'!G195 -> 0
A196: =+'GEN-502 Pot'!A196 -> Autoridad del Canal de Panamá No. 86-12 | B196: =+'GEN-502 Gen_P'!B196+'GEN-502 Gen_FP'!B196 -> 0 | C196: =+'GEN-502 Gen_P'!C196+'GEN-502 Gen_FP'!C196 -> 0 | D196: =+'GEN-502 Gen_P'!D196+'GEN-502 Gen_FP'!D196 -> 0 | E196: =+'GEN-502 Gen_P'!E196+'GEN-502 Gen_FP'!E196 -> 0 | F196: =+'GEN-502 Gen_P'!F196+'GEN-502 Gen_FP'!F196 -> 0 | G196: =+'GEN-502 Gen_P'!G196+'GEN-502 Gen_FP'!G196 -> 0
A197: =+'GEN-502 Pot'!A197 -> Hydro Caisán No. 101-12 | B197: =+'GEN-502 Gen_P'!B197+'GEN-502 Gen_FP'!B197 -> 0 | C197: =+'GEN-502 Gen_P'!C197+'GEN-502 Gen_FP'!C197 -> 0 | D197: =+'GEN-502 Gen_P'!D197+'GEN-502 Gen_FP'!D197 -> 0 | E197: =+'GEN-502 Gen_P'!E197+'GEN-502 Gen_FP'!E197 -> 0 | F197: =+'GEN-502 Gen_P'!F197+'GEN-502 Gen_FP'!F197 -> 0 | G197: =+'GEN-502 Gen_P'!G197+'GEN-502 Gen_FP'!G197 -> 0
A198: =+'GEN-502 Pot'!A198 -> Caldera Energy Corp. No. 102-12 | B198: =+'GEN-502 Gen_P'!B198+'GEN-502 Gen_FP'!B198 -> 0 | C198: =+'GEN-502 Gen_P'!C198+'GEN-502 Gen_FP'!C198 -> 0 | D198: =+'GEN-502 Gen_P'!D198+'GEN-502 Gen_FP'!D198 -> 0 | E198: =+'GEN-502 Gen_P'!E198+'GEN-502 Gen_FP'!E198 -> 0 | F198: =+'GEN-502 Gen_P'!F198+'GEN-502 Gen_FP'!F198 -> 0 | G198: =+'GEN-502 Gen_P'!G198+'GEN-502 Gen_FP'!G198 -> 0
A199: =+'GEN-502 Pot'!A199 -> Electrogeneradora del Istmo No. 103-12 | B199: =+'GEN-502 Gen_P'!B199+'GEN-502 Gen_FP'!B199 -> 0 | C199: =+'GEN-502 Gen_P'!C199+'GEN-502 Gen_FP'!C199 -> 0 | D199: =+'GEN-502 Gen_P'!D199+'GEN-502 Gen_FP'!D199 -> 0 | E199: =+'GEN-502 Gen_P'!E199+'GEN-502 Gen_FP'!E199 -> 0 | F199: =+'GEN-502 Gen_P'!F199+'GEN-502 Gen_FP'!F199 -> 0 | G199: =+'GEN-502 Gen_P'!G199+'GEN-502 Gen_FP'!G199 -> 0
A200: =+'GEN-502 Pot'!A200 -> Generadora Pedregalito No. 104-12 | B200: =+'GEN-502 Gen_P'!B200+'GEN-502 Gen_FP'!B200 -> 0 | C200: =+'GEN-502 Gen_P'!C200+'GEN-502 Gen_FP'!C200 -> 0 | D200: =+'GEN-502 Gen_P'!D200+'GEN-502 Gen_FP'!D200 -> 0 | E200: =+'GEN-502 Gen_P'!E200+'GEN-502 Gen_FP'!E200 -> 0 | F200: =+'GEN-502 Gen_P'!F200+'GEN-502 Gen_FP'!F200 -> 0 | G200: =+'GEN-502 Gen_P'!G200+'GEN-502 Gen_FP'!G200 -> 0
A201: =+'GEN-502 Pot'!A201 -> Generadora Río Chico No. 105-12 | B201: =+'GEN-502 Gen_P'!B201+'GEN-502 Gen_FP'!B201 -> 0 | C201: =+'GEN-502 Gen_P'!C201+'GEN-502 Gen_FP'!C201 -> 0 | D201: =+'GEN-502 Gen_P'!D201+'GEN-502 Gen_FP'!D201 -> 0 | E201: =+'GEN-502 Gen_P'!E201+'GEN-502 Gen_FP'!E201 -> 0 | F201: =+'GEN-502 Gen_P'!F201+'GEN-502 Gen_FP'!F201 -> 0 | G201: =+'GEN-502 Gen_P'!G201+'GEN-502 Gen_FP'!G201 -> 0
A202: =+'GEN-502 Pot'!A202 -> Hidroibérica No. 106-12 | B202: =+'GEN-502 Gen_P'!B202+'GEN-502 Gen_FP'!B202 -> 0 | C202: =+'GEN-502 Gen_P'!C202+'GEN-502 Gen_FP'!C202 -> 0 | D202: =+'GEN-502 Gen_P'!D202+'GEN-502 Gen_FP'!D202 -> 0 | E202: =+'GEN-502 Gen_P'!E202+'GEN-502 Gen_FP'!E202 -> 0 | F202: =+'GEN-502 Gen_P'!F202+'GEN-502 Gen_FP'!F202 -> 0 | G202: =+'GEN-502 Gen_P'!G202+'GEN-502 Gen_FP'!G202 -> 0
A203: =+'GEN-502 Pot'!A203 -> Generadora Alto Valle No. 107-12 | B203: =+'GEN-502 Gen_P'!B203+'GEN-502 Gen_FP'!B203 -> 0 | C203: =+'GEN-502 Gen_P'!C203+'GEN-502 Gen_FP'!C203 -> 0 | D203: =+'GEN-502 Gen_P'!D203+'GEN-502 Gen_FP'!D203 -> 0 | E203: =+'GEN-502 Gen_P'!E203+'GEN-502 Gen_FP'!E203 -> 0 | F203: =+'GEN-502 Gen_P'!F203+'GEN-502 Gen_FP'!F203 -> 0 | G203: =+'GEN-502 Gen_P'!G203+'GEN-502 Gen_FP'!G203 -> 0
A204: =+'GEN-502 Pot'!A204 -> Energía y Servicios de Panamá, S.A. No. 108-12 | B204: =+'GEN-502 Gen_P'!B204+'GEN-502 Gen_FP'!B204 -> 0 | C204: =+'GEN-502 Gen_P'!C204+'GEN-502 Gen_FP'!C204 -> 0 | D204: =+'GEN-502 Gen_P'!D204+'GEN-502 Gen_FP'!D204 -> 0 | E204: =+'GEN-502 Gen_P'!E204+'GEN-502 Gen_FP'!E204 -> 0 | F204: =+'GEN-502 Gen_P'!F204+'GEN-502 Gen_FP'!F204 -> 0 | G204: =+'GEN-502 Gen_P'!G204+'GEN-502 Gen_FP'!G204 -> 0
A205: =+'GEN-502 Pot'!A205 -> Hidro Panamá, S.A. No. 109-12 | B205: =+'GEN-502 Gen_P'!B205+'GEN-502 Gen_FP'!B205 -> 0 | C205: =+'GEN-502 Gen_P'!C205+'GEN-502 Gen_FP'!C205 -> 0 | D205: =+'GEN-502 Gen_P'!D205+'GEN-502 Gen_FP'!D205 -> 0 | E205: =+'GEN-502 Gen_P'!E205+'GEN-502 Gen_FP'!E205 -> 0 | F205: =+'GEN-502 Gen_P'!F205+'GEN-502 Gen_FP'!F205 -> 0 | G205: =+'GEN-502 Gen_P'!G205+'GEN-502 Gen_FP'!G205 -> 0
A206: =+'GEN-502 Pot'!A206 -> Las Perlas Norte, S.A. No. 110-12 | B206: =+'GEN-502 Gen_P'!B206+'GEN-502 Gen_FP'!B206 -> 0 | C206: =+'GEN-502 Gen_P'!C206+'GEN-502 Gen_FP'!C206 -> 0 | D206: =+'GEN-502 Gen_P'!D206+'GEN-502 Gen_FP'!D206 -> 0 | E206: =+'GEN-502 Gen_P'!E206+'GEN-502 Gen_FP'!E206 -> 0 | F206: =+'GEN-502 Gen_P'!F206+'GEN-502 Gen_FP'!F206 -> 0 | G206: =+'GEN-502 Gen_P'!G206+'GEN-502 Gen_FP'!G206 -> 0
A207: =+'GEN-502 Pot'!A207 -> Las Perlas Sur, S.A. No. 111-12 | B207: =+'GEN-502 Gen_P'!B207+'GEN-502 Gen_FP'!B207 -> 0 | C207: =+'GEN-502 Gen_P'!C207+'GEN-502 Gen_FP'!C207 -> 0 | D207: =+'GEN-502 Gen_P'!D207+'GEN-502 Gen_FP'!D207 -> 0 | E207: =+'GEN-502 Gen_P'!E207+'GEN-502 Gen_FP'!E207 -> 0 | F207: =+'GEN-502 Gen_P'!F207+'GEN-502 Gen_FP'!F207 -> 0 | G207: =+'GEN-502 Gen_P'!G207+'GEN-502 Gen_FP'!G207 -> 0
A208: =+'GEN-502 Pot'!A208 -> Generadora del Istmo, S.A. No. 112-12 | B208: =+'GEN-502 Gen_P'!B208+'GEN-502 Gen_FP'!B208 -> 0 | C208: =+'GEN-502 Gen_P'!C208+'GEN-502 Gen_FP'!C208 -> 0 | D208: =+'GEN-502 Gen_P'!D208+'GEN-502 Gen_FP'!D208 -> 0 | E208: =+'GEN-502 Gen_P'!E208+'GEN-502 Gen_FP'!E208 -> 0 | F208: =+'GEN-502 Gen_P'!F208+'GEN-502 Gen_FP'!F208 -> 0 | G208: =+'GEN-502 Gen_P'!G208+'GEN-502 Gen_FP'!G208 -> 0
A209: =+'GEN-502 Pot'!A209 -> Istmus Hydro Power No. 113-12 | B209: =+'GEN-502 Gen_P'!B209+'GEN-502 Gen_FP'!B209 -> 0 | C209: =+'GEN-502 Gen_P'!C209+'GEN-502 Gen_FP'!C209 -> 0 | D209: =+'GEN-502 Gen_P'!D209+'GEN-502 Gen_FP'!D209 -> 0 | E209: =+'GEN-502 Gen_P'!E209+'GEN-502 Gen_FP'!E209 -> 0 | F209: =+'GEN-502 Gen_P'!F209+'GEN-502 Gen_FP'!F209 -> 0 | G209: =+'GEN-502 Gen_P'!G209+'GEN-502 Gen_FP'!G209 -> 0
A210: =+'GEN-502 Pot'!A210 -> Fountain Intertrade Corp. No. 114-12 | B210: =+'GEN-502 Gen_P'!B210+'GEN-502 Gen_FP'!B210 -> 0 | C210: =+'GEN-502 Gen_P'!C210+'GEN-502 Gen_FP'!C210 -> 0 | D210: =+'GEN-502 Gen_P'!D210+'GEN-502 Gen_FP'!D210 -> 0 | E210: =+'GEN-502 Gen_P'!E210+'GEN-502 Gen_FP'!E210 -> 0 | F210: =+'GEN-502 Gen_P'!F210+'GEN-502 Gen_FP'!F210 -> 0 | G210: =+'GEN-502 Gen_P'!G210+'GEN-502 Gen_FP'!G210 -> 0
A211: =+'GEN-502 Pot'!A211 -> Energía y Servicios de Panamá, S.A. No. 46-12 (Algarrobos) | B211: =+'GEN-502 Gen_P'!B211+'GEN-502 Gen_FP'!B211 -> 0 | C211: =+'GEN-502 Gen_P'!C211+'GEN-502 Gen_FP'!C211 -> 0 | D211: =+'GEN-502 Gen_P'!D211+'GEN-502 Gen_FP'!D211 -> 0 | E211: =+'GEN-502 Gen_P'!E211+'GEN-502 Gen_FP'!E211 -> 0 | F211: =+'GEN-502 Gen_P'!F211+'GEN-502 Gen_FP'!F211 -> 0 | G211: =+'GEN-502 Gen_P'!G211+'GEN-502 Gen_FP'!G211 -> 0
A212: =+'GEN-502 Pot'!A212 -> Energía y Servicios de Panamá, S.A. No. 46-12 (Dolega) | B212: =+'GEN-502 Gen_P'!B212+'GEN-502 Gen_FP'!B212 -> 0 | C212: =+'GEN-502 Gen_P'!C212+'GEN-502 Gen_FP'!C212 -> 0 | D212: =+'GEN-502 Gen_P'!D212+'GEN-502 Gen_FP'!D212 -> 0 | E212: =+'GEN-502 Gen_P'!E212+'GEN-502 Gen_FP'!E212 -> 0 | F212: =+'GEN-502 Gen_P'!F212+'GEN-502 Gen_FP'!F212 -> 0 | G212: =+'GEN-502 Gen_P'!G212+'GEN-502 Gen_FP'!G212 -> 0
... 268 more rows

Sheet GEN-502 Pre_Gen
A1: INFORMACION PARA ACTUALIZAR: CARGO POR GENERACION
A2: =+'Compras (p)'!A2 -> EDECHI
A3: Precio Mensual de la Energía (B/./MWh)
B4: PRECIO ENERGIA
A5: Detalle | B5: 2026-07-01 | C5: 2026-08-01 | D5: 2026-09-01 | E5: 2026-10-01 | F5: 2026-11-01 | G5: 2026-12-01
A8: TOTAL | B8: =+'GEN-502 Cos_Gen'!B8/'GEN-502 Gen'!B8 -> 63.2446754 | C8: =+'GEN-502 Cos_Gen'!C8/'GEN-502 Gen'!C8 -> 64.05009823 | D8: =+'GEN-502 Cos_Gen'!D8/'GEN-502 Gen'!D8 -> 65.98669106 | E8: =+'GEN-502 Cos_Gen'!E8/'GEN-502 Gen'!E8 -> 58.28207934 | F8: =+'GEN-502 Cos_Gen'!F8/'GEN-502 Gen'!F8 -> 66.08821586 | G8: =+'GEN-502 Cos_Gen'!G8/'GEN-502 Gen'!G8 -> 73.21704188
A9: Generación Propia
A15: Sub-Total Mercado Mayorista | B15: =+'GEN-502 Cos_Gen'!B15/'GEN-502 Gen'!B15 -> 63.2446754 | C15: =+'GEN-502 Cos_Gen'!C15/'GEN-502 Gen'!C15 -> 64.05009823 | D15: =+'GEN-502 Cos_Gen'!D15/'GEN-502 Gen'!D15 -> 65.98669106 | E15: =+'GEN-502 Cos_Gen'!E15/'GEN-502 Gen'!E15 -> 58.28207934 | F15: =+'GEN-502 Cos_Gen'!F15/'GEN-502 Gen'!F15 -> 66.08821586 | G15: =+'GEN-502 Cos_Gen'!G15/'GEN-502 Gen'!G15 -> 73.21704188
A16: Mercado Ocasional | B16: =+'GEN-502 Cos_Gen'!B16/'GEN-502 Gen'!B16 -> 60 | C16: =+'GEN-502 Cos_Gen'!C16/'GEN-502 Gen'!C16 -> 60 | D16: =+'GEN-502 Cos_Gen'!D16/'GEN-502 Gen'!D16 -> 60 | E16: =+'GEN-502 Cos_Gen'!E16/'GEN-502 Gen'!E16 -> 60 | F16: =+'GEN-502 Cos_Gen'!F16/'GEN-502 Gen'!F16 -> 60 | G16: =+'GEN-502 Cos_Gen'!G16/'GEN-502 Gen'!G16 -> 60
A24: Sub-Total Contratos | B24: =+'GEN-502 Cos_Gen'!B24/'GEN-502 Gen'!B24 -> 61.65628686 | C24: =+'GEN-502 Cos_Gen'!C24/'GEN-502 Gen'!C24 -> 62.44003155 | D24: =+'GEN-502 Cos_Gen'!D24/'GEN-502 Gen'!D24 -> 64.17807773 | E24: =+'GEN-502 Cos_Gen'!E24/'GEN-502 Gen'!E24 -> 57.43614528 | F24: =+'GEN-502 Cos_Gen'!F24/'GEN-502 Gen'!F24 -> 63.58826911 | G24: =+'GEN-502 Cos_Gen'!G24/'GEN-502 Gen'!G24 -> 71.31747904
A25: =+'GEN-502 Pot'!A25 -> PTP-Isla Colón Nº 001-00 (1) & PTP 05-04 (3,2) | B25: =+IFERROR('GEN-502 Cos_Gen'!B25/'GEN-502 Gen'!B25,0) -> 0 | C25: =+IFERROR('GEN-502 Cos_Gen'!C25/'GEN-502 Gen'!C25,0) -> 0 | D25: =+IFERROR('GEN-502 Cos_Gen'!D25/'GEN-502 Gen'!D25,0) -> 0 | E25: =+IFERROR('GEN-502 Cos_Gen'!E25/'GEN-502 Gen'!E25,0) -> 0 | F25: =+IFERROR('GEN-502 Cos_Gen'!F25/'GEN-502 Gen'!F25,0) -> 0 | G25: =+IFERROR('GEN-502 Cos_Gen'!G25/'GEN-502 Gen'!G25,0) -> 0
A26: =+'GEN-502 Pot'!A26 -> PTP-Chiriquí Grande Nº 001-99 (0.7) & 06-04 | B26: =+IFERROR('GEN-502 Cos_Gen'!B26/'GEN-502 Gen'!B26,0) -> 0 | C26: =+IFERROR('GEN-502 Cos_Gen'!C26/'GEN-502 Gen'!C26,0) -> 0 | D26: =+IFERROR('GEN-502 Cos_Gen'!D26/'GEN-502 Gen'!D26,0) -> 0 | E26: =+IFERROR('GEN-502 Cos_Gen'!E26/'GEN-502 Gen'!E26,0) -> 0 | F26: =+IFERROR('GEN-502 Cos_Gen'!F26/'GEN-502 Gen'!F26,0) -> 0 | G26: =+IFERROR('GEN-502 Cos_Gen'!G26/'GEN-502 Gen'!G26,0) -> 0
A27: =+'GEN-502 Pot'!A27 -> Edemet | B27: =+IFERROR('GEN-502 Cos_Gen'!B27/'GEN-502 Gen'!B27,0) -> 0 | C27: =+IFERROR('GEN-502 Cos_Gen'!C27/'GEN-502 Gen'!C27,0) -> 0 | D27: =+IFERROR('GEN-502 Cos_Gen'!D27/'GEN-502 Gen'!D27,0) -> 0 | E27: =+IFERROR('GEN-502 Cos_Gen'!E27/'GEN-502 Gen'!E27,0) -> 0 | F27: =+IFERROR('GEN-502 Cos_Gen'!F27/'GEN-502 Gen'!F27,0) -> 0 | G27: =+IFERROR('GEN-502 Cos_Gen'!G27/'GEN-502 Gen'!G27,0) -> 0
A28: =+'GEN-502 Pot'!A28 -> Autoridad del Canal No. 04-03 (30) Gen | B28: =+IFERROR('GEN-502 Cos_Gen'!B28/'GEN-502 Gen'!B28,0) -> 0 | C28: =+IFERROR('GEN-502 Cos_Gen'!C28/'GEN-502 Gen'!C28,0) -> 0 | D28: =+IFERROR('GEN-502 Cos_Gen'!D28/'GEN-502 Gen'!D28,0) -> 0 | E28: =+IFERROR('GEN-502 Cos_Gen'!E28/'GEN-502 Gen'!E28,0) -> 0 | F28: =+IFERROR('GEN-502 Cos_Gen'!F28/'GEN-502 Gen'!F28,0) -> 0 | G28: =+IFERROR('GEN-502 Cos_Gen'!G28/'GEN-502 Gen'!G28,0) -> 0
A29: =+'GEN-502 Pot'!A29 -> Autoridad del Canal No. 04-03 (30) Trans | B29: =+IFERROR('GEN-502 Cos_Gen'!B29/'GEN-502 Gen'!B29,0) -> 0 | C29: =+IFERROR('GEN-502 Cos_Gen'!C29/'GEN-502 Gen'!C29,0) -> 0 | D29: =+IFERROR('GEN-502 Cos_Gen'!D29/'GEN-502 Gen'!D29,0) -> 0 | E29: =+IFERROR('GEN-502 Cos_Gen'!E29/'GEN-502 Gen'!E29,0) -> 0 | F29: =+IFERROR('GEN-502 Cos_Gen'!F29/'GEN-502 Gen'!F29,0) -> 0 | G29: =+IFERROR('GEN-502 Cos_Gen'!G29/'GEN-502 Gen'!G29,0) -> 0
A30: =+'GEN-502 Pot'!A30 -> PTP-Isla Colón Nº 05-04 (3,2) | B30: =+IFERROR('GEN-502 Cos_Gen'!B30/'GEN-502 Gen'!B30,0) -> 0 | C30: =+IFERROR('GEN-502 Cos_Gen'!C30/'GEN-502 Gen'!C30,0) -> 0 | D30: =+IFERROR('GEN-502 Cos_Gen'!D30/'GEN-502 Gen'!D30,0) -> 0 | E30: =+IFERROR('GEN-502 Cos_Gen'!E30/'GEN-502 Gen'!E30,0) -> 0 | F30: =+IFERROR('GEN-502 Cos_Gen'!F30/'GEN-502 Gen'!F30,0) -> 0 | G30: =+IFERROR('GEN-502 Cos_Gen'!G30/'GEN-502 Gen'!G30,0) -> 0
A31: =+'GEN-502 Pot'!A31 -> Fortuna No. 12-98 (24) | B31: =+IFERROR('GEN-502 Cos_Gen'!B31/'GEN-502 Gen'!B31,0) -> 0 | C31: =+IFERROR('GEN-502 Cos_Gen'!C31/'GEN-502 Gen'!C31,0) -> 0 | D31: =+IFERROR('GEN-502 Cos_Gen'!D31/'GEN-502 Gen'!D31,0) -> 0 | E31: =+IFERROR('GEN-502 Cos_Gen'!E31/'GEN-502 Gen'!E31,0) -> 0 | F31: =+IFERROR('GEN-502 Cos_Gen'!F31/'GEN-502 Gen'!F31,0) -> 0 | G31: =+IFERROR('GEN-502 Cos_Gen'!G31/'GEN-502 Gen'!G31,0) -> 0
A32: =+'GEN-502 Pot'!A32 -> Aes No.13-98 (22) | B32: =+IFERROR('GEN-502 Cos_Gen'!B32/'GEN-502 Gen'!B32,0) -> 0 | C32: =+IFERROR('GEN-502 Cos_Gen'!C32/'GEN-502 Gen'!C32,0) -> 0 | D32: =+IFERROR('GEN-502 Cos_Gen'!D32/'GEN-502 Gen'!D32,0) -> 0 | E32: =+IFERROR('GEN-502 Cos_Gen'!E32/'GEN-502 Gen'!E32,0) -> 0 | F32: =+IFERROR('GEN-502 Cos_Gen'!F32/'GEN-502 Gen'!F32,0) -> 0 | G32: =+IFERROR('GEN-502 Cos_Gen'!G32/'GEN-502 Gen'!G32,0) -> 0
A33: =+'GEN-502 Pot'!A33 -> Fortuna No.09-04 (10) | B33: =+IFERROR('GEN-502 Cos_Gen'!B33/'GEN-502 Gen'!B33,0) -> 0 | C33: =+IFERROR('GEN-502 Cos_Gen'!C33/'GEN-502 Gen'!C33,0) -> 0 | D33: =+IFERROR('GEN-502 Cos_Gen'!D33/'GEN-502 Gen'!D33,0) -> 0 | E33: =+IFERROR('GEN-502 Cos_Gen'!E33/'GEN-502 Gen'!E33,0) -> 0 | F33: =+IFERROR('GEN-502 Cos_Gen'!F33/'GEN-502 Gen'!F33,0) -> 0 | G33: =+IFERROR('GEN-502 Cos_Gen'!G33/'GEN-502 Gen'!G33,0) -> 0
A34: =+'GEN-502 Pot'!A34 -> Fortuna No.15-04 (5 y 34) | B34: =+IFERROR('GEN-502 Cos_Gen'!B34/'GEN-502 Gen'!B34,0) -> 0 | C34: =+IFERROR('GEN-502 Cos_Gen'!C34/'GEN-502 Gen'!C34,0) -> 0 | D34: =+IFERROR('GEN-502 Cos_Gen'!D34/'GEN-502 Gen'!D34,0) -> 0 | E34: =+IFERROR('GEN-502 Cos_Gen'!E34/'GEN-502 Gen'!E34,0) -> 0 | F34: =+IFERROR('GEN-502 Cos_Gen'!F34/'GEN-502 Gen'!F34,0) -> 0 | G34: =+IFERROR('GEN-502 Cos_Gen'!G34/'GEN-502 Gen'!G34,0) -> 0
A35: =+'GEN-502 Pot'!A35 -> Fortuna No.15-04 (19, 4, 0 y 7) | B35: =+IFERROR('GEN-502 Cos_Gen'!B35/'GEN-502 Gen'!B35,0) -> 0 | C35: =+IFERROR('GEN-502 Cos_Gen'!C35/'GEN-502 Gen'!C35,0) -> 0 | D35: =+IFERROR('GEN-502 Cos_Gen'!D35/'GEN-502 Gen'!D35,0) -> 0 | E35: =+IFERROR('GEN-502 Cos_Gen'!E35/'GEN-502 Gen'!E35,0) -> 0 | F35: =+IFERROR('GEN-502 Cos_Gen'!F35/'GEN-502 Gen'!F35,0) -> 0 | G35: =+IFERROR('GEN-502 Cos_Gen'!G35/'GEN-502 Gen'!G35,0) -> 0
A36: =+'GEN-502 Pot'!A36 -> ACP No. 07-05 (Solo Energía) | B36: =+IFERROR('GEN-502 Cos_Gen'!B36/'GEN-502 Gen'!B36,0) -> 0 | C36: =+IFERROR('GEN-502 Cos_Gen'!C36/'GEN-502 Gen'!C36,0) -> 0 | D36: =+IFERROR('GEN-502 Cos_Gen'!D36/'GEN-502 Gen'!D36,0) -> 0 | E36: =+IFERROR('GEN-502 Cos_Gen'!E36/'GEN-502 Gen'!E36,0) -> 0 | F36: =+IFERROR('GEN-502 Cos_Gen'!F36/'GEN-502 Gen'!F36,0) -> 0 | G36: =+IFERROR('GEN-502 Cos_Gen'!G36/'GEN-502 Gen'!G36,0) -> 0
A37: =+'GEN-502 Pot'!A37 -> BLM No.15-05 (Solo Energía) | B37: =+IFERROR('GEN-502 Cos_Gen'!B37/'GEN-502 Gen'!B37,0) -> 0 | C37: =+IFERROR('GEN-502 Cos_Gen'!C37/'GEN-502 Gen'!C37,0) -> 0 | D37: =+IFERROR('GEN-502 Cos_Gen'!D37/'GEN-502 Gen'!D37,0) -> 0 | E37: =+IFERROR('GEN-502 Cos_Gen'!E37/'GEN-502 Gen'!E37,0) -> 0 | F37: =+IFERROR('GEN-502 Cos_Gen'!F37/'GEN-502 Gen'!F37,0) -> 0 | G37: =+IFERROR('GEN-502 Cos_Gen'!G37/'GEN-502 Gen'!G37,0) -> 0
A38: =+'GEN-502 Pot'!A38 -> Arkapal No.10-05 | B38: =+IFERROR('GEN-502 Cos_Gen'!B38/'GEN-502 Gen'!B38,0) -> 0 | C38: =+IFERROR('GEN-502 Cos_Gen'!C38/'GEN-502 Gen'!C38,0) -> 0 | D38: =+IFERROR('GEN-502 Cos_Gen'!D38/'GEN-502 Gen'!D38,0) -> 0 | E38: =+IFERROR('GEN-502 Cos_Gen'!E38/'GEN-502 Gen'!E38,0) -> 0 | F38: =+IFERROR('GEN-502 Cos_Gen'!F38/'GEN-502 Gen'!F38,0) -> 0 | G38: =+IFERROR('GEN-502 Cos_Gen'!G38/'GEN-502 Gen'!G38,0) -> 0
A39: =+'GEN-502 Pot'!A39 -> Fortuna No.09-04 (71) | B39: =+IFERROR('GEN-502 Cos_Gen'!B39/'GEN-502 Gen'!B39,0) -> 0 | C39: =+IFERROR('GEN-502 Cos_Gen'!C39/'GEN-502 Gen'!C39,0) -> 0 | D39: =+IFERROR('GEN-502 Cos_Gen'!D39/'GEN-502 Gen'!D39,0) -> 0 | E39: =+IFERROR('GEN-502 Cos_Gen'!E39/'GEN-502 Gen'!E39,0) -> 0 | F39: =+IFERROR('GEN-502 Cos_Gen'!F39/'GEN-502 Gen'!F39,0) -> 0 | G39: =+IFERROR('GEN-502 Cos_Gen'!G39/'GEN-502 Gen'!G39,0) -> 0
A40: =+'GEN-502 Pot'!A40 -> AES No.13-05 (16, 17, 29) | B40: =+IFERROR('GEN-502 Cos_Gen'!B40/'GEN-502 Gen'!B40,0) -> 0 | C40: =+IFERROR('GEN-502 Cos_Gen'!C40/'GEN-502 Gen'!C40,0) -> 0 | D40: =+IFERROR('GEN-502 Cos_Gen'!D40/'GEN-502 Gen'!D40,0) -> 0 | E40: =+IFERROR('GEN-502 Cos_Gen'!E40/'GEN-502 Gen'!E40,0) -> 0 | F40: =+IFERROR('GEN-502 Cos_Gen'!F40/'GEN-502 Gen'!F40,0) -> 0 | G40: =+IFERROR('GEN-502 Cos_Gen'!G40/'GEN-502 Gen'!G40,0) -> 0
A41: =+'GEN-502 Pot'!A41 -> Fortuna No. 15-05 | B41: =+IFERROR('GEN-502 Cos_Gen'!B41/'GEN-502 Gen'!B41,0) -> 0 | C41: =+IFERROR('GEN-502 Cos_Gen'!C41/'GEN-502 Gen'!C41,0) -> 0 | D41: =+IFERROR('GEN-502 Cos_Gen'!D41/'GEN-502 Gen'!D41,0) -> 0 | E41: =+IFERROR('GEN-502 Cos_Gen'!E41/'GEN-502 Gen'!E41,0) -> 0 | F41: =+IFERROR('GEN-502 Cos_Gen'!F41/'GEN-502 Gen'!F41,0) -> 0 | G41: =+IFERROR('GEN-502 Cos_Gen'!G41/'GEN-502 Gen'!G41,0) -> 0
A42: =+'GEN-502 Pot'!A42 -> Los Estrechos No. 17-06 (2,5) | B42: =+IFERROR('GEN-502 Cos_Gen'!B42/'GEN-502 Gen'!B42,0) -> 0 | C42: =+IFERROR('GEN-502 Cos_Gen'!C42/'GEN-502 Gen'!C42,0) -> 0 | D42: =+IFERROR('GEN-502 Cos_Gen'!D42/'GEN-502 Gen'!D42,0) -> 0 | E42: =+IFERROR('GEN-502 Cos_Gen'!E42/'GEN-502 Gen'!E42,0) -> 0 | F42: =+IFERROR('GEN-502 Cos_Gen'!F42/'GEN-502 Gen'!F42,0) -> 0 | G42: =+IFERROR('GEN-502 Cos_Gen'!G42/'GEN-502 Gen'!G42,0) -> 0
A43: =+'GEN-502 Pot'!A43 -> Saltos de Francolí No. 18-06 (0,7125) | B43: =+IFERROR('GEN-502 Cos_Gen'!B43/'GEN-502 Gen'!B43,0) -> 0 | C43: =+IFERROR('GEN-502 Cos_Gen'!C43/'GEN-502 Gen'!C43,0) -> 0 | D43: =+IFERROR('GEN-502 Cos_Gen'!D43/'GEN-502 Gen'!D43,0) -> 0 | E43: =+IFERROR('GEN-502 Cos_Gen'!E43/'GEN-502 Gen'!E43,0) -> 0 | F43: =+IFERROR('GEN-502 Cos_Gen'!F43/'GEN-502 Gen'!F43,0) -> 0 | G43: =+IFERROR('GEN-502 Cos_Gen'!G43/'GEN-502 Gen'!G43,0) -> 0
A44: =+'GEN-502 Pot'!A44 -> AES No. 19-06 (35) | B44: =+IFERROR('GEN-502 Cos_Gen'!B44/'GEN-502 Gen'!B44,0) -> 0 | C44: =+IFERROR('GEN-502 Cos_Gen'!C44/'GEN-502 Gen'!C44,0) -> 0 | D44: =+IFERROR('GEN-502 Cos_Gen'!D44/'GEN-502 Gen'!D44,0) -> 0 | E44: =+IFERROR('GEN-502 Cos_Gen'!E44/'GEN-502 Gen'!E44,0) -> 0 | F44: =+IFERROR('GEN-502 Cos_Gen'!F44/'GEN-502 Gen'!F44,0) -> 0 | G44: =+IFERROR('GEN-502 Cos_Gen'!G44/'GEN-502 Gen'!G44,0) -> 0
A45: =+'GEN-502 Pot'!A45 -> Generadora del Atlantico No. 05-07 | B45: =+IFERROR('GEN-502 Cos_Gen'!B45/'GEN-502 Gen'!B45,0) -> 0 | C45: =+IFERROR('GEN-502 Cos_Gen'!C45/'GEN-502 Gen'!C45,0) -> 0 | D45: =+IFERROR('GEN-502 Cos_Gen'!D45/'GEN-502 Gen'!D45,0) -> 0 | E45: =+IFERROR('GEN-502 Cos_Gen'!E45/'GEN-502 Gen'!E45,0) -> 0 | F45: =+IFERROR('GEN-502 Cos_Gen'!F45/'GEN-502 Gen'!F45,0) -> 0 | G45: =+IFERROR('GEN-502 Cos_Gen'!G45/'GEN-502 Gen'!G45,0) -> 0
A46: =+'GEN-502 Pot'!A46 -> Inversiones y Desarrollo Balboa No. 06-07 | B46: =+IFERROR('GEN-502 Cos_Gen'!B46/'GEN-502 Gen'!B46,0) -> 0 | C46: =+IFERROR('GEN-502 Cos_Gen'!C46/'GEN-502 Gen'!C46,0) -> 0 | D46: =+IFERROR('GEN-502 Cos_Gen'!D46/'GEN-502 Gen'!D46,0) -> 0 | E46: =+IFERROR('GEN-502 Cos_Gen'!E46/'GEN-502 Gen'!E46,0) -> 0 | F46: =+IFERROR('GEN-502 Cos_Gen'!F46/'GEN-502 Gen'!F46,0) -> 0 | G46: =+IFERROR('GEN-502 Cos_Gen'!G46/'GEN-502 Gen'!G46,0) -> 0
A47: =+'GEN-502 Pot'!A47 -> Térmica del Cariba No. 07-07 (4,275) | B47: =+IFERROR('GEN-502 Cos_Gen'!B47/'GEN-502 Gen'!B47,0) -> 0 | C47: =+IFERROR('GEN-502 Cos_Gen'!C47/'GEN-502 Gen'!C47,0) -> 0 | D47: =+IFERROR('GEN-502 Cos_Gen'!D47/'GEN-502 Gen'!D47,0) -> 0 | E47: =+IFERROR('GEN-502 Cos_Gen'!E47/'GEN-502 Gen'!E47,0) -> 0 | F47: =+IFERROR('GEN-502 Cos_Gen'!F47/'GEN-502 Gen'!F47,0) -> 0 | G47: =+IFERROR('GEN-502 Cos_Gen'!G47/'GEN-502 Gen'!G47,0) -> 0
A48: =+'GEN-502 Pot'!A48 -> Fortuna No. 15-05 (Traspaso) | B48: =+IFERROR('GEN-502 Cos_Gen'!B48/'GEN-502 Gen'!B48,0) -> 0 | C48: =+IFERROR('GEN-502 Cos_Gen'!C48/'GEN-502 Gen'!C48,0) -> 0 | D48: =+IFERROR('GEN-502 Cos_Gen'!D48/'GEN-502 Gen'!D48,0) -> 0 | E48: =+IFERROR('GEN-502 Cos_Gen'!E48/'GEN-502 Gen'!E48,0) -> 0 | F48: =+IFERROR('GEN-502 Cos_Gen'!F48/'GEN-502 Gen'!F48,0) -> 0 | G48: =+IFERROR('GEN-502 Cos_Gen'!G48/'GEN-502 Gen'!G48,0) -> 0
A49: =+'GEN-502 Pot'!A49 -> ACP No. 12-08 (Sólo Energía) | B49: =+IFERROR('GEN-502 Cos_Gen'!B49/'GEN-502 Gen'!B49,0) -> 0 | C49: =+IFERROR('GEN-502 Cos_Gen'!C49/'GEN-502 Gen'!C49,0) -> 0 | D49: =+IFERROR('GEN-502 Cos_Gen'!D49/'GEN-502 Gen'!D49,0) -> 0 | E49: =+IFERROR('GEN-502 Cos_Gen'!E49/'GEN-502 Gen'!E49,0) -> 0 | F49: =+IFERROR('GEN-502 Cos_Gen'!F49/'GEN-502 Gen'!F49,0) -> 0 | G49: =+IFERROR('GEN-502 Cos_Gen'!G49/'GEN-502 Gen'!G49,0) -> 0
A50: =+'GEN-502 Pot'!A50 -> ACP No. 13-08 (Sólo Energía) | B50: =+IFERROR('GEN-502 Cos_Gen'!B50/'GEN-502 Gen'!B50,0) -> 0 | C50: =+IFERROR('GEN-502 Cos_Gen'!C50/'GEN-502 Gen'!C50,0) -> 0 | D50: =+IFERROR('GEN-502 Cos_Gen'!D50/'GEN-502 Gen'!D50,0) -> 0 | E50: =+IFERROR('GEN-502 Cos_Gen'!E50/'GEN-502 Gen'!E50,0) -> 0 | F50: =+IFERROR('GEN-502 Cos_Gen'!F50/'GEN-502 Gen'!F50,0) -> 0 | G50: =+IFERROR('GEN-502 Cos_Gen'!G50/'GEN-502 Gen'!G50,0) -> 0
A51: =+'GEN-502 Pot'!A51 -> ACP No 15-08 (Sólo Energía) | B51: =+IFERROR('GEN-502 Cos_Gen'!B51/'GEN-502 Gen'!B51,0) -> 0 | C51: =+IFERROR('GEN-502 Cos_Gen'!C51/'GEN-502 Gen'!C51,0) -> 0 | D51: =+IFERROR('GEN-502 Cos_Gen'!D51/'GEN-502 Gen'!D51,0) -> 0 | E51: =+IFERROR('GEN-502 Cos_Gen'!E51/'GEN-502 Gen'!E51,0) -> 0 | F51: =+IFERROR('GEN-502 Cos_Gen'!F51/'GEN-502 Gen'!F51,0) -> 0 | G51: =+IFERROR('GEN-502 Cos_Gen'!G51/'GEN-502 Gen'!G51,0) -> 0
A52: =+'GEN-502 Pot'!A52 -> ACP(H) | B52: =+IFERROR('GEN-502 Cos_Gen'!B52/'GEN-502 Gen'!B52,0) -> 0 | C52: =+IFERROR('GEN-502 Cos_Gen'!C52/'GEN-502 Gen'!C52,0) -> 0 | D52: =+IFERROR('GEN-502 Cos_Gen'!D52/'GEN-502 Gen'!D52,0) -> 0 | E52: =+IFERROR('GEN-502 Cos_Gen'!E52/'GEN-502 Gen'!E52,0) -> 0 | F52: =+IFERROR('GEN-502 Cos_Gen'!F52/'GEN-502 Gen'!F52,0) -> 0 | G52: =+IFERROR('GEN-502 Cos_Gen'!G52/'GEN-502 Gen'!G52,0) -> 0
A53: =+'GEN-502 Pot'!A53 -> Fortuna | B53: =+IFERROR('GEN-502 Cos_Gen'!B53/'GEN-502 Gen'!B53,0) -> 0 | C53: =+IFERROR('GEN-502 Cos_Gen'!C53/'GEN-502 Gen'!C53,0) -> 0 | D53: =+IFERROR('GEN-502 Cos_Gen'!D53/'GEN-502 Gen'!D53,0) -> 0 | E53: =+IFERROR('GEN-502 Cos_Gen'!E53/'GEN-502 Gen'!E53,0) -> 0 | F53: =+IFERROR('GEN-502 Cos_Gen'!F53/'GEN-502 Gen'!F53,0) -> 0 | G53: =+IFERROR('GEN-502 Cos_Gen'!G53/'GEN-502 Gen'!G53,0) -> 0
A54: =+'GEN-502 Pot'!A54 -> AES | B54: =+IFERROR('GEN-502 Cos_Gen'!B54/'GEN-502 Gen'!B54,0) -> 0 | C54: =+IFERROR('GEN-502 Cos_Gen'!C54/'GEN-502 Gen'!C54,0) -> 0 | D54: =+IFERROR('GEN-502 Cos_Gen'!D54/'GEN-502 Gen'!D54,0) -> 0 | E54: =+IFERROR('GEN-502 Cos_Gen'!E54/'GEN-502 Gen'!E54,0) -> 0 | F54: =+IFERROR('GEN-502 Cos_Gen'!F54/'GEN-502 Gen'!F54,0) -> 0 | G54: =+IFERROR('GEN-502 Cos_Gen'!G54/'GEN-502 Gen'!G54,0) -> 0
A55: =+'GEN-502 Pot'!A55 -> Mendre | B55: =+IFERROR('GEN-502 Cos_Gen'!B55/'GEN-502 Gen'!B55,0) -> 0 | C55: =+IFERROR('GEN-502 Cos_Gen'!C55/'GEN-502 Gen'!C55,0) -> 0 | D55: =+IFERROR('GEN-502 Cos_Gen'!D55/'GEN-502 Gen'!D55,0) -> 0 | E55: =+IFERROR('GEN-502 Cos_Gen'!E55/'GEN-502 Gen'!E55,0) -> 0 | F55: =+IFERROR('GEN-502 Cos_Gen'!F55/'GEN-502 Gen'!F55,0) -> 0 | G55: =+IFERROR('GEN-502 Cos_Gen'!G55/'GEN-502 Gen'!G55,0) -> 0
A56: =+'GEN-502 Pot'!A56 -> ACP | B56: =+IFERROR('GEN-502 Cos_Gen'!B56/'GEN-502 Gen'!B56,0) -> 0 | C56: =+IFERROR('GEN-502 Cos_Gen'!C56/'GEN-502 Gen'!C56,0) -> 0 | D56: =+IFERROR('GEN-502 Cos_Gen'!D56/'GEN-502 Gen'!D56,0) -> 0 | E56: =+IFERROR('GEN-502 Cos_Gen'!E56/'GEN-502 Gen'!E56,0) -> 0 | F56: =+IFERROR('GEN-502 Cos_Gen'!F56/'GEN-502 Gen'!F56,0) -> 0 | G56: =+IFERROR('GEN-502 Cos_Gen'!G56/'GEN-502 Gen'!G56,0) -> 0
A57: =+'GEN-502 Pot'!A57 -> GenPro | B57: =+IFERROR('GEN-502 Cos_Gen'!B57/'GEN-502 Gen'!B57,0) -> 0 | C57: =+IFERROR('GEN-502 Cos_Gen'!C57/'GEN-502 Gen'!C57,0) -> 0 | D57: =+IFERROR('GEN-502 Cos_Gen'!D57/'GEN-502 Gen'!D57,0) -> 0 | E57: =+IFERROR('GEN-502 Cos_Gen'!E57/'GEN-502 Gen'!E57,0) -> 0 | F57: =+IFERROR('GEN-502 Cos_Gen'!F57/'GEN-502 Gen'!F57,0) -> 0 | G57: =+IFERROR('GEN-502 Cos_Gen'!G57/'GEN-502 Gen'!G57,0) -> 0
A58: =+'GEN-502 Pot'!A58 -> Concepción | B58: =+IFERROR('GEN-502 Cos_Gen'!B58/'GEN-502 Gen'!B58,0) -> 0 | C58: =+IFERROR('GEN-502 Cos_Gen'!C58/'GEN-502 Gen'!C58,0) -> 0 | D58: =+IFERROR('GEN-502 Cos_Gen'!D58/'GEN-502 Gen'!D58,0) -> 0 | E58: =+IFERROR('GEN-502 Cos_Gen'!E58/'GEN-502 Gen'!E58,0) -> 0 | F58: =+IFERROR('GEN-502 Cos_Gen'!F58/'GEN-502 Gen'!F58,0) -> 0 | G58: =+IFERROR('GEN-502 Cos_Gen'!G58/'GEN-502 Gen'!G58,0) -> 0
A59: =+'GEN-502 Pot'!A59 -> ESEPSA | B59: =+IFERROR('GEN-502 Cos_Gen'!B59/'GEN-502 Gen'!B59,0) -> 0 | C59: =+IFERROR('GEN-502 Cos_Gen'!C59/'GEN-502 Gen'!C59,0) -> 0 | D59: =+IFERROR('GEN-502 Cos_Gen'!D59/'GEN-502 Gen'!D59,0) -> 0 | E59: =+IFERROR('GEN-502 Cos_Gen'!E59/'GEN-502 Gen'!E59,0) -> 0 | F59: =+IFERROR('GEN-502 Cos_Gen'!F59/'GEN-502 Gen'!F59,0) -> 0 | G59: =+IFERROR('GEN-502 Cos_Gen'!G59/'GEN-502 Gen'!G59,0) -> 0
A60: =+'GEN-502 Pot'!A60 -> EGESA | B60: =+IFERROR('GEN-502 Cos_Gen'!B60/'GEN-502 Gen'!B60,0) -> 0 | C60: =+IFERROR('GEN-502 Cos_Gen'!C60/'GEN-502 Gen'!C60,0) -> 0 | D60: =+IFERROR('GEN-502 Cos_Gen'!D60/'GEN-502 Gen'!D60,0) -> 0 | E60: =+IFERROR('GEN-502 Cos_Gen'!E60/'GEN-502 Gen'!E60,0) -> 0 | F60: =+IFERROR('GEN-502 Cos_Gen'!F60/'GEN-502 Gen'!F60,0) -> 0 | G60: =+IFERROR('GEN-502 Cos_Gen'!G60/'GEN-502 Gen'!G60,0) -> 0
A61: =+'GEN-502 Pot'!A61 -> MER | B61: =+IFERROR('GEN-502 Cos_Gen'!B61/'GEN-502 Gen'!B61,0) -> 0 | C61: =+IFERROR('GEN-502 Cos_Gen'!C61/'GEN-502 Gen'!C61,0) -> 0 | D61: =+IFERROR('GEN-502 Cos_Gen'!D61/'GEN-502 Gen'!D61,0) -> 0 | E61: =+IFERROR('GEN-502 Cos_Gen'!E61/'GEN-502 Gen'!E61,0) -> 0 | F61: =+IFERROR('GEN-502 Cos_Gen'!F61/'GEN-502 Gen'!F61,0) -> 0 | G61: =+IFERROR('GEN-502 Cos_Gen'!G61/'GEN-502 Gen'!G61,0) -> 0
A62: =+'GEN-502 Pot'!A62 -> TerCar | B62: =+IFERROR('GEN-502 Cos_Gen'!B62/'GEN-502 Gen'!B62,0) -> 0 | C62: =+IFERROR('GEN-502 Cos_Gen'!C62/'GEN-502 Gen'!C62,0) -> 0 | D62: =+IFERROR('GEN-502 Cos_Gen'!D62/'GEN-502 Gen'!D62,0) -> 0 | E62: =+IFERROR('GEN-502 Cos_Gen'!E62/'GEN-502 Gen'!E62,0) -> 0 | F62: =+IFERROR('GEN-502 Cos_Gen'!F62/'GEN-502 Gen'!F62,0) -> 0 | G62: =+IFERROR('GEN-502 Cos_Gen'!G62/'GEN-502 Gen'!G62,0) -> 0
A63: =+'GEN-502 Pot'!A63 -> IDB | B63: =+IFERROR('GEN-502 Cos_Gen'!B63/'GEN-502 Gen'!B63,0) -> 0 | C63: =+IFERROR('GEN-502 Cos_Gen'!C63/'GEN-502 Gen'!C63,0) -> 0 | D63: =+IFERROR('GEN-502 Cos_Gen'!D63/'GEN-502 Gen'!D63,0) -> 0 | E63: =+IFERROR('GEN-502 Cos_Gen'!E63/'GEN-502 Gen'!E63,0) -> 0 | F63: =+IFERROR('GEN-502 Cos_Gen'!F63/'GEN-502 Gen'!F63,0) -> 0 | G63: =+IFERROR('GEN-502 Cos_Gen'!G63/'GEN-502 Gen'!G63,0) -> 0
A64: =+'GEN-502 Pot'!A64 -> Pan Am | B64: =+IFERROR('GEN-502 Cos_Gen'!B64/'GEN-502 Gen'!B64,0) -> 0 | C64: =+IFERROR('GEN-502 Cos_Gen'!C64/'GEN-502 Gen'!C64,0) -> 0 | D64: =+IFERROR('GEN-502 Cos_Gen'!D64/'GEN-502 Gen'!D64,0) -> 0 | E64: =+IFERROR('GEN-502 Cos_Gen'!E64/'GEN-502 Gen'!E64,0) -> 0 | F64: =+IFERROR('GEN-502 Cos_Gen'!F64/'GEN-502 Gen'!F64,0) -> 0 | G64: =+IFERROR('GEN-502 Cos_Gen'!G64/'GEN-502 Gen'!G64,0) -> 0
A65: =+'GEN-502 Pot'!A65 -> COPESA | B65: =+IFERROR('GEN-502 Cos_Gen'!B65/'GEN-502 Gen'!B65,0) -> 0 | C65: =+IFERROR('GEN-502 Cos_Gen'!C65/'GEN-502 Gen'!C65,0) -> 0 | D65: =+IFERROR('GEN-502 Cos_Gen'!D65/'GEN-502 Gen'!D65,0) -> 0 | E65: =+IFERROR('GEN-502 Cos_Gen'!E65/'GEN-502 Gen'!E65,0) -> 0 | F65: =+IFERROR('GEN-502 Cos_Gen'!F65/'GEN-502 Gen'!F65,0) -> 0 | G65: =+IFERROR('GEN-502 Cos_Gen'!G65/'GEN-502 Gen'!G65,0) -> 0
A66: =+'GEN-502 Pot'!A66 -> BLM | B66: =+IFERROR('GEN-502 Cos_Gen'!B66/'GEN-502 Gen'!B66,0) -> 0 | C66: =+IFERROR('GEN-502 Cos_Gen'!C66/'GEN-502 Gen'!C66,0) -> 0 | D66: =+IFERROR('GEN-502 Cos_Gen'!D66/'GEN-502 Gen'!D66,0) -> 0 | E66: =+IFERROR('GEN-502 Cos_Gen'!E66/'GEN-502 Gen'!E66,0) -> 0 | F66: =+IFERROR('GEN-502 Cos_Gen'!F66/'GEN-502 Gen'!F66,0) -> 0 | G66: =+IFERROR('GEN-502 Cos_Gen'!G66/'GEN-502 Gen'!G66,0) -> 0
A67: =+'GEN-502 Pot'!A67 -> Pedregal | B67: =+IFERROR('GEN-502 Cos_Gen'!B67/'GEN-502 Gen'!B67,0) -> 0 | C67: =+IFERROR('GEN-502 Cos_Gen'!C67/'GEN-502 Gen'!C67,0) -> 0 | D67: =+IFERROR('GEN-502 Cos_Gen'!D67/'GEN-502 Gen'!D67,0) -> 0 | E67: =+IFERROR('GEN-502 Cos_Gen'!E67/'GEN-502 Gen'!E67,0) -> 0 | F67: =+IFERROR('GEN-502 Cos_Gen'!F67/'GEN-502 Gen'!F67,0) -> 0 | G67: =+IFERROR('GEN-502 Cos_Gen'!G67/'GEN-502 Gen'!G67,0) -> 0
A68: =+'GEN-502 Pot'!A68 -> GENA | B68: =+IFERROR('GEN-502 Cos_Gen'!B68/'GEN-502 Gen'!B68,0) -> 0 | C68: =+IFERROR('GEN-502 Cos_Gen'!C68/'GEN-502 Gen'!C68,0) -> 0 | D68: =+IFERROR('GEN-502 Cos_Gen'!D68/'GEN-502 Gen'!D68,0) -> 0 | E68: =+IFERROR('GEN-502 Cos_Gen'!E68/'GEN-502 Gen'!E68,0) -> 0 | F68: =+IFERROR('GEN-502 Cos_Gen'!F68/'GEN-502 Gen'!F68,0) -> 0 | G68: =+IFERROR('GEN-502 Cos_Gen'!G68/'GEN-502 Gen'!G68,0) -> 0
A69: =+'GEN-502 Pot'!A69 -> 0 | B69: =+IFERROR('GEN-502 Cos_Gen'!B69/'GEN-502 Gen'!B69,0) -> 0 | C69: =+IFERROR('GEN-502 Cos_Gen'!C69/'GEN-502 Gen'!C69,0) -> 0 | D69: =+IFERROR('GEN-502 Cos_Gen'!D69/'GEN-502 Gen'!D69,0) -> 0 | E69: =+IFERROR('GEN-502 Cos_Gen'!E69/'GEN-502 Gen'!E69,0) -> 0 | F69: =+IFERROR('GEN-502 Cos_Gen'!F69/'GEN-502 Gen'!F69,0) -> 0 | G69: =+IFERROR('GEN-502 Cos_Gen'!G69/'GEN-502 Gen'!G69,0) -> 0
A70: =+'GEN-502 Pot'!A70 -> 0 | B70: =+IFERROR('GEN-502 Cos_Gen'!B70/'GEN-502 Gen'!B70,0) -> 0 | C70: =+IFERROR('GEN-502 Cos_Gen'!C70/'GEN-502 Gen'!C70,0) -> 0 | D70: =+IFERROR('GEN-502 Cos_Gen'!D70/'GEN-502 Gen'!D70,0) -> 0 | E70: =+IFERROR('GEN-502 Cos_Gen'!E70/'GEN-502 Gen'!E70,0) -> 0 | F70: =+IFERROR('GEN-502 Cos_Gen'!F70/'GEN-502 Gen'!F70,0) -> 0 | G70: =+IFERROR('GEN-502 Cos_Gen'!G70/'GEN-502 Gen'!G70,0) -> 0
A71: =+'GEN-502 Pot'!A71 -> 0 | B71: =+IFERROR('GEN-502 Cos_Gen'!B71/'GEN-502 Gen'!B71,0) -> 0 | C71: =+IFERROR('GEN-502 Cos_Gen'!C71/'GEN-502 Gen'!C71,0) -> 0 | D71: =+IFERROR('GEN-502 Cos_Gen'!D71/'GEN-502 Gen'!D71,0) -> 0 | E71: =+IFERROR('GEN-502 Cos_Gen'!E71/'GEN-502 Gen'!E71,0) -> 0 | F71: =+IFERROR('GEN-502 Cos_Gen'!F71/'GEN-502 Gen'!F71,0) -> 0 | G71: =+IFERROR('GEN-502 Cos_Gen'!G71/'GEN-502 Gen'!G71,0) -> 0
A72: =+'GEN-502 Pot'!A72 -> 0 | B72: =+IFERROR('GEN-502 Cos_Gen'!B72/'GEN-502 Gen'!B72,0) -> 0 | C72: =+IFERROR('GEN-502 Cos_Gen'!C72/'GEN-502 Gen'!C72,0) -> 0 | D72: =+IFERROR('GEN-502 Cos_Gen'!D72/'GEN-502 Gen'!D72,0) -> 0 | E72: =+IFERROR('GEN-502 Cos_Gen'!E72/'GEN-502 Gen'!E72,0) -> 0 | F72: =+IFERROR('GEN-502 Cos_Gen'!F72/'GEN-502 Gen'!F72,0) -> 0 | G72: =+IFERROR('GEN-502 Cos_Gen'!G72/'GEN-502 Gen'!G72,0) -> 0
A73: =+'GEN-502 Pot'!A73 -> 0 | B73: =+IFERROR('GEN-502 Cos_Gen'!B73/'GEN-502 Gen'!B73,0) -> 0 | C73: =+IFERROR('GEN-502 Cos_Gen'!C73/'GEN-502 Gen'!C73,0) -> 0 | D73: =+IFERROR('GEN-502 Cos_Gen'!D73/'GEN-502 Gen'!D73,0) -> 0 | E73: =+IFERROR('GEN-502 Cos_Gen'!E73/'GEN-502 Gen'!E73,0) -> 0 | F73: =+IFERROR('GEN-502 Cos_Gen'!F73/'GEN-502 Gen'!F73,0) -> 0 | G73: =+IFERROR('GEN-502 Cos_Gen'!G73/'GEN-502 Gen'!G73,0) -> 0
A74: =+'GEN-502 Pot'!A74 -> 0 | B74: =+IFERROR('GEN-502 Cos_Gen'!B74/'GEN-502 Gen'!B74,0) -> 0 | C74: =+IFERROR('GEN-502 Cos_Gen'!C74/'GEN-502 Gen'!C74,0) -> 0 | D74: =+IFERROR('GEN-502 Cos_Gen'!D74/'GEN-502 Gen'!D74,0) -> 0 | E74: =+IFERROR('GEN-502 Cos_Gen'!E74/'GEN-502 Gen'!E74,0) -> 0 | F74: =+IFERROR('GEN-502 Cos_Gen'!F74/'GEN-502 Gen'!F74,0) -> 0 | G74: =+IFERROR('GEN-502 Cos_Gen'!G74/'GEN-502 Gen'!G74,0) -> 0
A75: =+'GEN-502 Pot'!A75 -> 0 | B75: =+IFERROR('GEN-502 Cos_Gen'!B75/'GEN-502 Gen'!B75,0) -> 0 | C75: =+IFERROR('GEN-502 Cos_Gen'!C75/'GEN-502 Gen'!C75,0) -> 0 | D75: =+IFERROR('GEN-502 Cos_Gen'!D75/'GEN-502 Gen'!D75,0) -> 0 | E75: =+IFERROR('GEN-502 Cos_Gen'!E75/'GEN-502 Gen'!E75,0) -> 0 | F75: =+IFERROR('GEN-502 Cos_Gen'!F75/'GEN-502 Gen'!F75,0) -> 0 | G75: =+IFERROR('GEN-502 Cos_Gen'!G75/'GEN-502 Gen'!G75,0) -> 0
A76: =+'GEN-502 Pot'!A76 -> 0 | B76: =+IFERROR('GEN-502 Cos_Gen'!B76/'GEN-502 Gen'!B76,0) -> 0 | C76: =+IFERROR('GEN-502 Cos_Gen'!C76/'GEN-502 Gen'!C76,0) -> 0 | D76: =+IFERROR('GEN-502 Cos_Gen'!D76/'GEN-502 Gen'!D76,0) -> 0 | E76: =+IFERROR('GEN-502 Cos_Gen'!E76/'GEN-502 Gen'!E76,0) -> 0 | F76: =+IFERROR('GEN-502 Cos_Gen'!F76/'GEN-502 Gen'!F76,0) -> 0 | G76: =+IFERROR('GEN-502 Cos_Gen'!G76/'GEN-502 Gen'!G76,0) -> 0
A77: =+'GEN-502 Pot'!A77 -> 0 | B77: =+IFERROR('GEN-502 Cos_Gen'!B77/'GEN-502 Gen'!B77,0) -> 0 | C77: =+IFERROR('GEN-502 Cos_Gen'!C77/'GEN-502 Gen'!C77,0) -> 0 | D77: =+IFERROR('GEN-502 Cos_Gen'!D77/'GEN-502 Gen'!D77,0) -> 0 | E77: =+IFERROR('GEN-502 Cos_Gen'!E77/'GEN-502 Gen'!E77,0) -> 0 | F77: =+IFERROR('GEN-502 Cos_Gen'!F77/'GEN-502 Gen'!F77,0) -> 0 | G77: =+IFERROR('GEN-502 Cos_Gen'!G77/'GEN-502 Gen'!G77,0) -> 0
A78: =+'GEN-502 Pot'!A78 -> 0 | B78: =+IFERROR('GEN-502 Cos_Gen'!B78/'GEN-502 Gen'!B78,0) -> 0 | C78: =+IFERROR('GEN-502 Cos_Gen'!C78/'GEN-502 Gen'!C78,0) -> 0 | D78: =+IFERROR('GEN-502 Cos_Gen'!D78/'GEN-502 Gen'!D78,0) -> 0 | E78: =+IFERROR('GEN-502 Cos_Gen'!E78/'GEN-502 Gen'!E78,0) -> 0 | F78: =+IFERROR('GEN-502 Cos_Gen'!F78/'GEN-502 Gen'!F78,0) -> 0 | G78: =+IFERROR('GEN-502 Cos_Gen'!G78/'GEN-502 Gen'!G78,0) -> 0
A79: =+'GEN-502 Pot'!A79 -> 0 | B79: =+IFERROR('GEN-502 Cos_Gen'!B79/'GEN-502 Gen'!B79,0) -> 0 | C79: =+IFERROR('GEN-502 Cos_Gen'!C79/'GEN-502 Gen'!C79,0) -> 0 | D79: =+IFERROR('GEN-502 Cos_Gen'!D79/'GEN-502 Gen'!D79,0) -> 0 | E79: =+IFERROR('GEN-502 Cos_Gen'!E79/'GEN-502 Gen'!E79,0) -> 0 | F79: =+IFERROR('GEN-502 Cos_Gen'!F79/'GEN-502 Gen'!F79,0) -> 0 | G79: =+IFERROR('GEN-502 Cos_Gen'!G79/'GEN-502 Gen'!G79,0) -> 0
A80: =+'GEN-502 Pot'!A80 -> 0 | B80: =+IFERROR('GEN-502 Cos_Gen'!B80/'GEN-502 Gen'!B80,0) -> 0 | C80: =+IFERROR('GEN-502 Cos_Gen'!C80/'GEN-502 Gen'!C80,0) -> 0 | D80: =+IFERROR('GEN-502 Cos_Gen'!D80/'GEN-502 Gen'!D80,0) -> 0 | E80: =+IFERROR('GEN-502 Cos_Gen'!E80/'GEN-502 Gen'!E80,0) -> 0 | F80: =+IFERROR('GEN-502 Cos_Gen'!F80/'GEN-502 Gen'!F80,0) -> 0 | G80: =+IFERROR('GEN-502 Cos_Gen'!G80/'GEN-502 Gen'!G80,0) -> 0
A81: =+'GEN-502 Pot'!A81 -> 0 | B81: =+IFERROR('GEN-502 Cos_Gen'!B81/'GEN-502 Gen'!B81,0) -> 0 | C81: =+IFERROR('GEN-502 Cos_Gen'!C81/'GEN-502 Gen'!C81,0) -> 0 | D81: =+IFERROR('GEN-502 Cos_Gen'!D81/'GEN-502 Gen'!D81,0) -> 0 | E81: =+IFERROR('GEN-502 Cos_Gen'!E81/'GEN-502 Gen'!E81,0) -> 0 | F81: =+IFERROR('GEN-502 Cos_Gen'!F81/'GEN-502 Gen'!F81,0) -> 0 | G81: =+IFERROR('GEN-502 Cos_Gen'!G81/'GEN-502 Gen'!G81,0) -> 0
A82: =+'GEN-502 Pot'!A82 -> 0 | B82: =+IFERROR('GEN-502 Cos_Gen'!B82/'GEN-502 Gen'!B82,0) -> 0 | C82: =+IFERROR('GEN-502 Cos_Gen'!C82/'GEN-502 Gen'!C82,0) -> 0 | D82: =+IFERROR('GEN-502 Cos_Gen'!D82/'GEN-502 Gen'!D82,0) -> 0 | E82: =+IFERROR('GEN-502 Cos_Gen'!E82/'GEN-502 Gen'!E82,0) -> 0 | F82: =+IFERROR('GEN-502 Cos_Gen'!F82/'GEN-502 Gen'!F82,0) -> 0 | G82: =+IFERROR('GEN-502 Cos_Gen'!G82/'GEN-502 Gen'!G82,0) -> 0
A83: =+'GEN-502 Pot'!A83 -> 0 | B83: =+IFERROR('GEN-502 Cos_Gen'!B83/'GEN-502 Gen'!B83,0) -> 0 | C83: =+IFERROR('GEN-502 Cos_Gen'!C83/'GEN-502 Gen'!C83,0) -> 0 | D83: =+IFERROR('GEN-502 Cos_Gen'!D83/'GEN-502 Gen'!D83,0) -> 0 | E83: =+IFERROR('GEN-502 Cos_Gen'!E83/'GEN-502 Gen'!E83,0) -> 0 | F83: =+IFERROR('GEN-502 Cos_Gen'!F83/'GEN-502 Gen'!F83,0) -> 0 | G83: =+IFERROR('GEN-502 Cos_Gen'!G83/'GEN-502 Gen'!G83,0) -> 0
A84: =+'GEN-502 Pot'!A84 -> 0 | B84: =+IFERROR('GEN-502 Cos_Gen'!B84/'GEN-502 Gen'!B84,0) -> 0 | C84: =+IFERROR('GEN-502 Cos_Gen'!C84/'GEN-502 Gen'!C84,0) -> 0 | D84: =+IFERROR('GEN-502 Cos_Gen'!D84/'GEN-502 Gen'!D84,0) -> 0 | E84: =+IFERROR('GEN-502 Cos_Gen'!E84/'GEN-502 Gen'!E84,0) -> 0 | F84: =+IFERROR('GEN-502 Cos_Gen'!F84/'GEN-502 Gen'!F84,0) -> 0 | G84: =+IFERROR('GEN-502 Cos_Gen'!G84/'GEN-502 Gen'!G84,0) -> 0
A85: =+'GEN-502 Pot'!A85 -> 0 | B85: =+IFERROR('GEN-502 Cos_Gen'!B85/'GEN-502 Gen'!B85,0) -> 0 | C85: =+IFERROR('GEN-502 Cos_Gen'!C85/'GEN-502 Gen'!C85,0) -> 0 | D85: =+IFERROR('GEN-502 Cos_Gen'!D85/'GEN-502 Gen'!D85,0) -> 0 | E85: =+IFERROR('GEN-502 Cos_Gen'!E85/'GEN-502 Gen'!E85,0) -> 0 | F85: =+IFERROR('GEN-502 Cos_Gen'!F85/'GEN-502 Gen'!F85,0) -> 0 | G85: =+IFERROR('GEN-502 Cos_Gen'!G85/'GEN-502 Gen'!G85,0) -> 0
A86: =+'GEN-502 Pot'!A86 -> 0 | B86: =+IFERROR('GEN-502 Cos_Gen'!B86/'GEN-502 Gen'!B86,0) -> 0 | C86: =+IFERROR('GEN-502 Cos_Gen'!C86/'GEN-502 Gen'!C86,0) -> 0 | D86: =+IFERROR('GEN-502 Cos_Gen'!D86/'GEN-502 Gen'!D86,0) -> 0 | E86: =+IFERROR('GEN-502 Cos_Gen'!E86/'GEN-502 Gen'!E86,0) -> 0 | F86: =+IFERROR('GEN-502 Cos_Gen'!F86/'GEN-502 Gen'!F86,0) -> 0 | G86: =+IFERROR('GEN-502 Cos_Gen'!G86/'GEN-502 Gen'!G86,0) -> 0
A87: =+'GEN-502 Pot'!A87 -> 0 | B87: =+IFERROR('GEN-502 Cos_Gen'!B87/'GEN-502 Gen'!B87,0) -> 0 | C87: =+IFERROR('GEN-502 Cos_Gen'!C87/'GEN-502 Gen'!C87,0) -> 0 | D87: =+IFERROR('GEN-502 Cos_Gen'!D87/'GEN-502 Gen'!D87,0) -> 0 | E87: =+IFERROR('GEN-502 Cos_Gen'!E87/'GEN-502 Gen'!E87,0) -> 0 | F87: =+IFERROR('GEN-502 Cos_Gen'!F87/'GEN-502 Gen'!F87,0) -> 0 | G87: =+IFERROR('GEN-502 Cos_Gen'!G87/'GEN-502 Gen'!G87,0) -> 0
A88: =+'GEN-502 Pot'!A88 -> 0 | B88: =+IFERROR('GEN-502 Cos_Gen'!B88/'GEN-502 Gen'!B88,0) -> 0 | C88: =+IFERROR('GEN-502 Cos_Gen'!C88/'GEN-502 Gen'!C88,0) -> 0 | D88: =+IFERROR('GEN-502 Cos_Gen'!D88/'GEN-502 Gen'!D88,0) -> 0 | E88: =+IFERROR('GEN-502 Cos_Gen'!E88/'GEN-502 Gen'!E88,0) -> 0 | F88: =+IFERROR('GEN-502 Cos_Gen'!F88/'GEN-502 Gen'!F88,0) -> 0 | G88: =+IFERROR('GEN-502 Cos_Gen'!G88/'GEN-502 Gen'!G88,0) -> 0
A89: =+'GEN-502 Pot'!A89 -> 0 | B89: =+IFERROR('GEN-502 Cos_Gen'!B89/'GEN-502 Gen'!B89,0) -> 0 | C89: =+IFERROR('GEN-502 Cos_Gen'!C89/'GEN-502 Gen'!C89,0) -> 0 | D89: =+IFERROR('GEN-502 Cos_Gen'!D89/'GEN-502 Gen'!D89,0) -> 0 | E89: =+IFERROR('GEN-502 Cos_Gen'!E89/'GEN-502 Gen'!E89,0) -> 0 | F89: =+IFERROR('GEN-502 Cos_Gen'!F89/'GEN-502 Gen'!F89,0) -> 0 | G89: =+IFERROR('GEN-502 Cos_Gen'!G89/'GEN-502 Gen'!G89,0) -> 0
A90: =+'GEN-502 Pot'!A90 -> 0 | B90: =+IFERROR('GEN-502 Cos_Gen'!B90/'GEN-502 Gen'!B90,0) -> 0 | C90: =+IFERROR('GEN-502 Cos_Gen'!C90/'GEN-502 Gen'!C90,0) -> 0 | D90: =+IFERROR('GEN-502 Cos_Gen'!D90/'GEN-502 Gen'!D90,0) -> 0 | E90: =+IFERROR('GEN-502 Cos_Gen'!E90/'GEN-502 Gen'!E90,0) -> 0 | F90: =+IFERROR('GEN-502 Cos_Gen'!F90/'GEN-502 Gen'!F90,0) -> 0 | G90: =+IFERROR('GEN-502 Cos_Gen'!G90/'GEN-502 Gen'!G90,0) -> 0
A91: =+'GEN-502 Pot'!A91 -> 0 | B91: =+IFERROR('GEN-502 Cos_Gen'!B91/'GEN-502 Gen'!B91,0) -> 0 | C91: =+IFERROR('GEN-502 Cos_Gen'!C91/'GEN-502 Gen'!C91,0) -> 0 | D91: =+IFERROR('GEN-502 Cos_Gen'!D91/'GEN-502 Gen'!D91,0) -> 0 | E91: =+IFERROR('GEN-502 Cos_Gen'!E91/'GEN-502 Gen'!E91,0) -> 0 | F91: =+IFERROR('GEN-502 Cos_Gen'!F91/'GEN-502 Gen'!F91,0) -> 0 | G91: =+IFERROR('GEN-502 Cos_Gen'!G91/'GEN-502 Gen'!G91,0) -> 0
A92: =+'GEN-502 Pot'!A92 -> 0 | B92: =+IFERROR('GEN-502 Cos_Gen'!B92/'GEN-502 Gen'!B92,0) -> 0 | C92: =+IFERROR('GEN-502 Cos_Gen'!C92/'GEN-502 Gen'!C92,0) -> 0 | D92: =+IFERROR('GEN-502 Cos_Gen'!D92/'GEN-502 Gen'!D92,0) -> 0 | E92: =+IFERROR('GEN-502 Cos_Gen'!E92/'GEN-502 Gen'!E92,0) -> 0 | F92: =+IFERROR('GEN-502 Cos_Gen'!F92/'GEN-502 Gen'!F92,0) -> 0 | G92: =+IFERROR('GEN-502 Cos_Gen'!G92/'GEN-502 Gen'!G92,0) -> 0
A93: =+'GEN-502 Pot'!A93 -> 0 | B93: =+IFERROR('GEN-502 Cos_Gen'!B93/'GEN-502 Gen'!B93,0) -> 0 | C93: =+IFERROR('GEN-502 Cos_Gen'!C93/'GEN-502 Gen'!C93,0) -> 0 | D93: =+IFERROR('GEN-502 Cos_Gen'!D93/'GEN-502 Gen'!D93,0) -> 0 | E93: =+IFERROR('GEN-502 Cos_Gen'!E93/'GEN-502 Gen'!E93,0) -> 0 | F93: =+IFERROR('GEN-502 Cos_Gen'!F93/'GEN-502 Gen'!F93,0) -> 0 | G93: =+IFERROR('GEN-502 Cos_Gen'!G93/'GEN-502 Gen'!G93,0) -> 0
A94: =+'GEN-502 Pot'!A94 -> 0 | B94: =+IFERROR('GEN-502 Cos_Gen'!B94/'GEN-502 Gen'!B94,0) -> 0 | C94: =+IFERROR('GEN-502 Cos_Gen'!C94/'GEN-502 Gen'!C94,0) -> 0 | D94: =+IFERROR('GEN-502 Cos_Gen'!D94/'GEN-502 Gen'!D94,0) -> 0 | E94: =+IFERROR('GEN-502 Cos_Gen'!E94/'GEN-502 Gen'!E94,0) -> 0 | F94: =+IFERROR('GEN-502 Cos_Gen'!F94/'GEN-502 Gen'!F94,0) -> 0 | G94: =+IFERROR('GEN-502 Cos_Gen'!G94/'GEN-502 Gen'!G94,0) -> 0
A95: =+'GEN-502 Pot'!A95 -> 0 | B95: =+IFERROR('GEN-502 Cos_Gen'!B95/'GEN-502 Gen'!B95,0) -> 0 | C95: =+IFERROR('GEN-502 Cos_Gen'!C95/'GEN-502 Gen'!C95,0) -> 0 | D95: =+IFERROR('GEN-502 Cos_Gen'!D95/'GEN-502 Gen'!D95,0) -> 0 | E95: =+IFERROR('GEN-502 Cos_Gen'!E95/'GEN-502 Gen'!E95,0) -> 0 | F95: =+IFERROR('GEN-502 Cos_Gen'!F95/'GEN-502 Gen'!F95,0) -> 0 | G95: =+IFERROR('GEN-502 Cos_Gen'!G95/'GEN-502 Gen'!G95,0) -> 0
A96: =+'GEN-502 Pot'!A96 -> 0 | B96: =+IFERROR('GEN-502 Cos_Gen'!B96/'GEN-502 Gen'!B96,0) -> 0 | C96: =+IFERROR('GEN-502 Cos_Gen'!C96/'GEN-502 Gen'!C96,0) -> 0 | D96: =+IFERROR('GEN-502 Cos_Gen'!D96/'GEN-502 Gen'!D96,0) -> 0 | E96: =+IFERROR('GEN-502 Cos_Gen'!E96/'GEN-502 Gen'!E96,0) -> 0 | F96: =+IFERROR('GEN-502 Cos_Gen'!F96/'GEN-502 Gen'!F96,0) -> 0 | G96: =+IFERROR('GEN-502 Cos_Gen'!G96/'GEN-502 Gen'!G96,0) -> 0
A97: =+'GEN-502 Pot'!A97 -> 0 | B97: =+IFERROR('GEN-502 Cos_Gen'!B97/'GEN-502 Gen'!B97,0) -> 0 | C97: =+IFERROR('GEN-502 Cos_Gen'!C97/'GEN-502 Gen'!C97,0) -> 0 | D97: =+IFERROR('GEN-502 Cos_Gen'!D97/'GEN-502 Gen'!D97,0) -> 0 | E97: =+IFERROR('GEN-502 Cos_Gen'!E97/'GEN-502 Gen'!E97,0) -> 0 | F97: =+IFERROR('GEN-502 Cos_Gen'!F97/'GEN-502 Gen'!F97,0) -> 0 | G97: =+IFERROR('GEN-502 Cos_Gen'!G97/'GEN-502 Gen'!G97,0) -> 0
A98: =+'GEN-502 Pot'!A98 -> 0 | B98: =+IFERROR('GEN-502 Cos_Gen'!B98/'GEN-502 Gen'!B98,0) -> 0 | C98: =+IFERROR('GEN-502 Cos_Gen'!C98/'GEN-502 Gen'!C98,0) -> 0 | D98: =+IFERROR('GEN-502 Cos_Gen'!D98/'GEN-502 Gen'!D98,0) -> 0 | E98: =+IFERROR('GEN-502 Cos_Gen'!E98/'GEN-502 Gen'!E98,0) -> 0 | F98: =+IFERROR('GEN-502 Cos_Gen'!F98/'GEN-502 Gen'!F98,0) -> 0 | G98: =+IFERROR('GEN-502 Cos_Gen'!G98/'GEN-502 Gen'!G98,0) -> 0
A99: =+'GEN-502 Pot'!A99 -> 0 | B99: =+IFERROR('GEN-502 Cos_Gen'!B99/'GEN-502 Gen'!B99,0) -> 0 | C99: =+IFERROR('GEN-502 Cos_Gen'!C99/'GEN-502 Gen'!C99,0) -> 0 | D99: =+IFERROR('GEN-502 Cos_Gen'!D99/'GEN-502 Gen'!D99,0) -> 0 | E99: =+IFERROR('GEN-502 Cos_Gen'!E99/'GEN-502 Gen'!E99,0) -> 0 | F99: =+IFERROR('GEN-502 Cos_Gen'!F99/'GEN-502 Gen'!F99,0) -> 0 | G99: =+IFERROR('GEN-502 Cos_Gen'!G99/'GEN-502 Gen'!G99,0) -> 0
A100: =+'GEN-502 Pot'!A100 -> 0 | B100: =+IFERROR('GEN-502 Cos_Gen'!B100/'GEN-502 Gen'!B100,0) -> 0 | C100: =+IFERROR('GEN-502 Cos_Gen'!C100/'GEN-502 Gen'!C100,0) -> 0 | D100: =+IFERROR('GEN-502 Cos_Gen'!D100/'GEN-502 Gen'!D100,0) -> 0 | E100: =+IFERROR('GEN-502 Cos_Gen'!E100/'GEN-502 Gen'!E100,0) -> 0 | F100: =+IFERROR('GEN-502 Cos_Gen'!F100/'GEN-502 Gen'!F100,0) -> 0 | G100: =+IFERROR('GEN-502 Cos_Gen'!G100/'GEN-502 Gen'!G100,0) -> 0
A101: =+'GEN-502 Pot'!A101 -> 0 | B101: =+IFERROR('GEN-502 Cos_Gen'!B101/'GEN-502 Gen'!B101,0) -> 0 | C101: =+IFERROR('GEN-502 Cos_Gen'!C101/'GEN-502 Gen'!C101,0) -> 0 | D101: =+IFERROR('GEN-502 Cos_Gen'!D101/'GEN-502 Gen'!D101,0) -> 0 | E101: =+IFERROR('GEN-502 Cos_Gen'!E101/'GEN-502 Gen'!E101,0) -> 0 | F101: =+IFERROR('GEN-502 Cos_Gen'!F101/'GEN-502 Gen'!F101,0) -> 0 | G101: =+IFERROR('GEN-502 Cos_Gen'!G101/'GEN-502 Gen'!G101,0) -> 0
A102: =+'GEN-502 Pot'!A102 -> 0 | B102: =+IFERROR('GEN-502 Cos_Gen'!B102/'GEN-502 Gen'!B102,0) -> 0 | C102: =+IFERROR('GEN-502 Cos_Gen'!C102/'GEN-502 Gen'!C102,0) -> 0 | D102: =+IFERROR('GEN-502 Cos_Gen'!D102/'GEN-502 Gen'!D102,0) -> 0 | E102: =+IFERROR('GEN-502 Cos_Gen'!E102/'GEN-502 Gen'!E102,0) -> 0 | F102: =+IFERROR('GEN-502 Cos_Gen'!F102/'GEN-502 Gen'!F102,0) -> 0 | G102: =+IFERROR('GEN-502 Cos_Gen'!G102/'GEN-502 Gen'!G102,0) -> 0
A103: =+'GEN-502 Pot'!A103 -> 0 | B103: =+IFERROR('GEN-502 Cos_Gen'!B103/'GEN-502 Gen'!B103,0) -> 0 | C103: =+IFERROR('GEN-502 Cos_Gen'!C103/'GEN-502 Gen'!C103,0) -> 0 | D103: =+IFERROR('GEN-502 Cos_Gen'!D103/'GEN-502 Gen'!D103,0) -> 0 | E103: =+IFERROR('GEN-502 Cos_Gen'!E103/'GEN-502 Gen'!E103,0) -> 0 | F103: =+IFERROR('GEN-502 Cos_Gen'!F103/'GEN-502 Gen'!F103,0) -> 0 | G103: =+IFERROR('GEN-502 Cos_Gen'!G103/'GEN-502 Gen'!G103,0) -> 0
A104: =+'GEN-502 Pot'!A104 -> 0 | B104: =+IFERROR('GEN-502 Cos_Gen'!B104/'GEN-502 Gen'!B104,0) -> 0 | C104: =+IFERROR('GEN-502 Cos_Gen'!C104/'GEN-502 Gen'!C104,0) -> 0 | D104: =+IFERROR('GEN-502 Cos_Gen'!D104/'GEN-502 Gen'!D104,0) -> 0 | E104: =+IFERROR('GEN-502 Cos_Gen'!E104/'GEN-502 Gen'!E104,0) -> 0 | F104: =+IFERROR('GEN-502 Cos_Gen'!F104/'GEN-502 Gen'!F104,0) -> 0 | G104: =+IFERROR('GEN-502 Cos_Gen'!G104/'GEN-502 Gen'!G104,0) -> 0
A105: =+'GEN-502 Pot'!A105 -> 0 | B105: =+IFERROR('GEN-502 Cos_Gen'!B105/'GEN-502 Gen'!B105,0) -> 0 | C105: =+IFERROR('GEN-502 Cos_Gen'!C105/'GEN-502 Gen'!C105,0) -> 0 | D105: =+IFERROR('GEN-502 Cos_Gen'!D105/'GEN-502 Gen'!D105,0) -> 0 | E105: =+IFERROR('GEN-502 Cos_Gen'!E105/'GEN-502 Gen'!E105,0) -> 0 | F105: =+IFERROR('GEN-502 Cos_Gen'!F105/'GEN-502 Gen'!F105,0) -> 0 | G105: =+IFERROR('GEN-502 Cos_Gen'!G105/'GEN-502 Gen'!G105,0) -> 0
A106: =+'GEN-502 Pot'!A106 -> 0 | B106: =+IFERROR('GEN-502 Cos_Gen'!B106/'GEN-502 Gen'!B106,0) -> 0 | C106: =+IFERROR('GEN-502 Cos_Gen'!C106/'GEN-502 Gen'!C106,0) -> 0 | D106: =+IFERROR('GEN-502 Cos_Gen'!D106/'GEN-502 Gen'!D106,0) -> 0 | E106: =+IFERROR('GEN-502 Cos_Gen'!E106/'GEN-502 Gen'!E106,0) -> 0 | F106: =+IFERROR('GEN-502 Cos_Gen'!F106/'GEN-502 Gen'!F106,0) -> 0 | G106: =+IFERROR('GEN-502 Cos_Gen'!G106/'GEN-502 Gen'!G106,0) -> 0
A107: =+'GEN-502 Pot'!A107 -> 0 | B107: =+IFERROR('GEN-502 Cos_Gen'!B107/'GEN-502 Gen'!B107,0) -> 0 | C107: =+IFERROR('GEN-502 Cos_Gen'!C107/'GEN-502 Gen'!C107,0) -> 0 | D107: =+IFERROR('GEN-502 Cos_Gen'!D107/'GEN-502 Gen'!D107,0) -> 0 | E107: =+IFERROR('GEN-502 Cos_Gen'!E107/'GEN-502 Gen'!E107,0) -> 0 | F107: =+IFERROR('GEN-502 Cos_Gen'!F107/'GEN-502 Gen'!F107,0) -> 0 | G107: =+IFERROR('GEN-502 Cos_Gen'!G107/'GEN-502 Gen'!G107,0) -> 0
A108: =+'GEN-502 Pot'!A108 -> ESEPSA No. 18-10 | B108: =+IFERROR('GEN-502 Cos_Gen'!B108/'GEN-502 Gen'!B108,0) -> 0 | C108: =+IFERROR('GEN-502 Cos_Gen'!C108/'GEN-502 Gen'!C108,0) -> 0 | D108: =+IFERROR('GEN-502 Cos_Gen'!D108/'GEN-502 Gen'!D108,0) -> 0 | E108: =+IFERROR('GEN-502 Cos_Gen'!E108/'GEN-502 Gen'!E108,0) -> 0 | F108: =+IFERROR('GEN-502 Cos_Gen'!F108/'GEN-502 Gen'!F108,0) -> 0 | G108: =+IFERROR('GEN-502 Cos_Gen'!G108/'GEN-502 Gen'!G108,0) -> 0
A109: =+'GEN-502 Pot'!A109 -> Enel Fortuna No. 20-10 | B109: =+IFERROR('GEN-502 Cos_Gen'!B109/'GEN-502 Gen'!B109,0) -> 0 | C109: =+IFERROR('GEN-502 Cos_Gen'!C109/'GEN-502 Gen'!C109,0) -> 0 | D109: =+IFERROR('GEN-502 Cos_Gen'!D109/'GEN-502 Gen'!D109,0) -> 0 | E109: =+IFERROR('GEN-502 Cos_Gen'!E109/'GEN-502 Gen'!E109,0) -> 0 | F109: =+IFERROR('GEN-502 Cos_Gen'!F109/'GEN-502 Gen'!F109,0) -> 0 | G109: =+IFERROR('GEN-502 Cos_Gen'!G109/'GEN-502 Gen'!G109,0) -> 0
A110: =+'GEN-502 Pot'!A110 -> GENA No. 22-10 | B110: =+IFERROR('GEN-502 Cos_Gen'!B110/'GEN-502 Gen'!B110,0) -> 0 | C110: =+IFERROR('GEN-502 Cos_Gen'!C110/'GEN-502 Gen'!C110,0) -> 0 | D110: =+IFERROR('GEN-502 Cos_Gen'!D110/'GEN-502 Gen'!D110,0) -> 0 | E110: =+IFERROR('GEN-502 Cos_Gen'!E110/'GEN-502 Gen'!E110,0) -> 0 | F110: =+IFERROR('GEN-502 Cos_Gen'!F110/'GEN-502 Gen'!F110,0) -> 0 | G110: =+IFERROR('GEN-502 Cos_Gen'!G110/'GEN-502 Gen'!G110,0) -> 0
A111: =+'GEN-502 Pot'!A111 -> ACP No. 24-10 | B111: =+IFERROR('GEN-502 Cos_Gen'!B111/'GEN-502 Gen'!B111,0) -> 0 | C111: =+IFERROR('GEN-502 Cos_Gen'!C111/'GEN-502 Gen'!C111,0) -> 0 | D111: =+IFERROR('GEN-502 Cos_Gen'!D111/'GEN-502 Gen'!D111,0) -> 0 | E111: =+IFERROR('GEN-502 Cos_Gen'!E111/'GEN-502 Gen'!E111,0) -> 0 | F111: =+IFERROR('GEN-502 Cos_Gen'!F111/'GEN-502 Gen'!F111,0) -> 0 | G111: =+IFERROR('GEN-502 Cos_Gen'!G111/'GEN-502 Gen'!G111,0) -> 0
A112: =+'GEN-502 Pot'!A112 -> Fortuna No.14-05 Tras | B112: =+IFERROR('GEN-502 Cos_Gen'!B112/'GEN-502 Gen'!B112,0) -> 0 | C112: =+IFERROR('GEN-502 Cos_Gen'!C112/'GEN-502 Gen'!C112,0) -> 0 | D112: =+IFERROR('GEN-502 Cos_Gen'!D112/'GEN-502 Gen'!D112,0) -> 0 | E112: =+IFERROR('GEN-502 Cos_Gen'!E112/'GEN-502 Gen'!E112,0) -> 0 | F112: =+IFERROR('GEN-502 Cos_Gen'!F112/'GEN-502 Gen'!F112,0) -> 0 | G112: =+IFERROR('GEN-502 Cos_Gen'!G112/'GEN-502 Gen'!G112,0) -> 0
A113: =+'GEN-502 Pot'!A113 -> Enel Fortuna No. 64-11 | B113: =+IFERROR('GEN-502 Cos_Gen'!B113/'GEN-502 Gen'!B113,0) -> 0 | C113: =+IFERROR('GEN-502 Cos_Gen'!C113/'GEN-502 Gen'!C113,0) -> 0 | D113: =+IFERROR('GEN-502 Cos_Gen'!D113/'GEN-502 Gen'!D113,0) -> 0 | E113: =+IFERROR('GEN-502 Cos_Gen'!E113/'GEN-502 Gen'!E113,0) -> 0 | F113: =+IFERROR('GEN-502 Cos_Gen'!F113/'GEN-502 Gen'!F113,0) -> 0 | G113: =+IFERROR('GEN-502 Cos_Gen'!G113/'GEN-502 Gen'!G113,0) -> 0
A114: =+'GEN-502 Pot'!A114 -> AES PANAMA No. 61-11 | B114: =+IFERROR('GEN-502 Cos_Gen'!B114/'GEN-502 Gen'!B114,0) -> 0 | C114: =+IFERROR('GEN-502 Cos_Gen'!C114/'GEN-502 Gen'!C114,0) -> 0 | D114: =+IFERROR('GEN-502 Cos_Gen'!D114/'GEN-502 Gen'!D114,0) -> 0 | E114: =+IFERROR('GEN-502 Cos_Gen'!E114/'GEN-502 Gen'!E114,0) -> 0 | F114: =+IFERROR('GEN-502 Cos_Gen'!F114/'GEN-502 Gen'!F114,0) -> 0 | G114: =+IFERROR('GEN-502 Cos_Gen'!G114/'GEN-502 Gen'!G114,0) -> 0
A115: =+'GEN-502 Pot'!A115 -> ESEPSA (La Yeguada) No. 62-11 | B115: =+IFERROR('GEN-502 Cos_Gen'!B115/'GEN-502 Gen'!B115,0) -> 0 | C115: =+IFERROR('GEN-502 Cos_Gen'!C115/'GEN-502 Gen'!C115,0) -> 0 | D115: =+IFERROR('GEN-502 Cos_Gen'!D115/'GEN-502 Gen'!D115,0) -> 0 | E115: =+IFERROR('GEN-502 Cos_Gen'!E115/'GEN-502 Gen'!E115,0) -> 0 | F115: =+IFERROR('GEN-502 Cos_Gen'!F115/'GEN-502 Gen'!F115,0) -> 0 | G115: =+IFERROR('GEN-502 Cos_Gen'!G115/'GEN-502 Gen'!G115,0) -> 0
A116: =+'GEN-502 Pot'!A116 -> Pedregalito No.18-11 | B116: =+IFERROR('GEN-502 Cos_Gen'!B116/'GEN-502 Gen'!B116,0) -> 0 | C116: =+IFERROR('GEN-502 Cos_Gen'!C116/'GEN-502 Gen'!C116,0) -> 0 | D116: =+IFERROR('GEN-502 Cos_Gen'!D116/'GEN-502 Gen'!D116,0) -> 0 | E116: =+IFERROR('GEN-502 Cos_Gen'!E116/'GEN-502 Gen'!E116,0) -> 0 | F116: =+IFERROR('GEN-502 Cos_Gen'!F116/'GEN-502 Gen'!F116,0) -> 0 | G116: =+IFERROR('GEN-502 Cos_Gen'!G116/'GEN-502 Gen'!G116,0) -> 0
A117: =+'GEN-502 Pot'!A117 -> Rio Chico No. 19-11 | B117: =+IFERROR('GEN-502 Cos_Gen'!B117/'GEN-502 Gen'!B117,0) -> 0 | C117: =+IFERROR('GEN-502 Cos_Gen'!C117/'GEN-502 Gen'!C117,0) -> 0 | D117: =+IFERROR('GEN-502 Cos_Gen'!D117/'GEN-502 Gen'!D117,0) -> 0 | E117: =+IFERROR('GEN-502 Cos_Gen'!E117/'GEN-502 Gen'!E117,0) -> 0 | F117: =+IFERROR('GEN-502 Cos_Gen'!F117/'GEN-502 Gen'!F117,0) -> 0 | G117: =+IFERROR('GEN-502 Cos_Gen'!G117/'GEN-502 Gen'!G117,0) -> 0
A118: =+'GEN-502 Pot'!A118 -> Alto Valle No. 20-11 | B118: =+IFERROR('GEN-502 Cos_Gen'!B118/'GEN-502 Gen'!B118,0) -> 0 | C118: =+IFERROR('GEN-502 Cos_Gen'!C118/'GEN-502 Gen'!C118,0) -> 0 | D118: =+IFERROR('GEN-502 Cos_Gen'!D118/'GEN-502 Gen'!D118,0) -> 0 | E118: =+IFERROR('GEN-502 Cos_Gen'!E118/'GEN-502 Gen'!E118,0) -> 0 | F118: =+IFERROR('GEN-502 Cos_Gen'!F118/'GEN-502 Gen'!F118,0) -> 0 | G118: =+IFERROR('GEN-502 Cos_Gen'!G118/'GEN-502 Gen'!G118,0) -> 0
A119: =+'GEN-502 Pot'!A119 -> Electrogeneradora del Istmo No. 21-11 | B119: =+IFERROR('GEN-502 Cos_Gen'!B119/'GEN-502 Gen'!B119,0) -> 0 | C119: =+IFERROR('GEN-502 Cos_Gen'!C119/'GEN-502 Gen'!C119,0) -> 0 | D119: =+IFERROR('GEN-502 Cos_Gen'!D119/'GEN-502 Gen'!D119,0) -> 0 | E119: =+IFERROR('GEN-502 Cos_Gen'!E119/'GEN-502 Gen'!E119,0) -> 0 | F119: =+IFERROR('GEN-502 Cos_Gen'!F119/'GEN-502 Gen'!F119,0) -> 0 | G119: =+IFERROR('GEN-502 Cos_Gen'!G119/'GEN-502 Gen'!G119,0) -> 0
A120: =+'GEN-502 Pot'!A120 -> Caldera Energy Corp. No. 22-11 | B120: =+IFERROR('GEN-502 Cos_Gen'!B120/'GEN-502 Gen'!B120,0) -> 0 | C120: =+IFERROR('GEN-502 Cos_Gen'!C120/'GEN-502 Gen'!C120,0) -> 0 | D120: =+IFERROR('GEN-502 Cos_Gen'!D120/'GEN-502 Gen'!D120,0) -> 0 | E120: =+IFERROR('GEN-502 Cos_Gen'!E120/'GEN-502 Gen'!E120,0) -> 0 | F120: =+IFERROR('GEN-502 Cos_Gen'!F120/'GEN-502 Gen'!F120,0) -> 0 | G120: =+IFERROR('GEN-502 Cos_Gen'!G120/'GEN-502 Gen'!G120,0) -> 0
A121: =+'GEN-502 Pot'!A121 -> Hidro Piedra No. 23-11 | B121: =+IFERROR('GEN-502 Cos_Gen'!B121/'GEN-502 Gen'!B121,0) -> 0 | C121: =+IFERROR('GEN-502 Cos_Gen'!C121/'GEN-502 Gen'!C121,0) -> 0 | D121: =+IFERROR('GEN-502 Cos_Gen'!D121/'GEN-502 Gen'!D121,0) -> 0 | E121: =+IFERROR('GEN-502 Cos_Gen'!E121/'GEN-502 Gen'!E121,0) -> 0 | F121: =+IFERROR('GEN-502 Cos_Gen'!F121/'GEN-502 Gen'!F121,0) -> 0 | G121: =+IFERROR('GEN-502 Cos_Gen'!G121/'GEN-502 Gen'!G121,0) -> 0
A122: =+'GEN-502 Pot'!A122 -> Empresa Nacional de Energía No. 36-11 (Cesión) | B122: =+IFERROR('GEN-502 Cos_Gen'!B122/'GEN-502 Gen'!B122,0) -> 79.7 | C122: =+IFERROR('GEN-502 Cos_Gen'!C122/'GEN-502 Gen'!C122,0) -> 79.7 | D122: =+IFERROR('GEN-502 Cos_Gen'!D122/'GEN-502 Gen'!D122,0) -> 79.7 | E122: =+IFERROR('GEN-502 Cos_Gen'!E122/'GEN-502 Gen'!E122,0) -> 79.7 | F122: =+IFERROR('GEN-502 Cos_Gen'!F122/'GEN-502 Gen'!F122,0) -> 79.7 | G122: =+IFERROR('GEN-502 Cos_Gen'!G122/'GEN-502 Gen'!G122,0) -> 79.7
A123: =+'GEN-502 Pot'!A123 -> Enel Fortuna No. 37-11 | B123: =+IFERROR('GEN-502 Cos_Gen'!B123/'GEN-502 Gen'!B123,0) -> 101.9 | C123: =+IFERROR('GEN-502 Cos_Gen'!C123/'GEN-502 Gen'!C123,0) -> 101.9 | D123: =+IFERROR('GEN-502 Cos_Gen'!D123/'GEN-502 Gen'!D123,0) -> 101.9 | E123: =+IFERROR('GEN-502 Cos_Gen'!E123/'GEN-502 Gen'!E123,0) -> 101.9 | F123: =+IFERROR('GEN-502 Cos_Gen'!F123/'GEN-502 Gen'!F123,0) -> 101.9 | G123: =+IFERROR('GEN-502 Cos_Gen'!G123/'GEN-502 Gen'!G123,0) -> 101.9
A124: =+'GEN-502 Pot'!A124 -> Electrogeneradora del Istmo No. 38-11 | B124: =+IFERROR('GEN-502 Cos_Gen'!B124/'GEN-502 Gen'!B124,0) -> 63.3 | C124: =+IFERROR('GEN-502 Cos_Gen'!C124/'GEN-502 Gen'!C124,0) -> 63.3 | D124: =+IFERROR('GEN-502 Cos_Gen'!D124/'GEN-502 Gen'!D124,0) -> 63.3 | E124: =+IFERROR('GEN-502 Cos_Gen'!E124/'GEN-502 Gen'!E124,0) -> 63.3 | F124: =+IFERROR('GEN-502 Cos_Gen'!F124/'GEN-502 Gen'!F124,0) -> 63.3 | G124: =+IFERROR('GEN-502 Cos_Gen'!G124/'GEN-502 Gen'!G124,0) -> 63.3
A125: =+'GEN-502 Pot'!A125 -> ESEPSA No. 39-11 | B125: =+IFERROR('GEN-502 Cos_Gen'!B125/'GEN-502 Gen'!B125,0) -> 91 | C125: =+IFERROR('GEN-502 Cos_Gen'!C125/'GEN-502 Gen'!C125,0) -> 91 | D125: =+IFERROR('GEN-502 Cos_Gen'!D125/'GEN-502 Gen'!D125,0) -> 91 | E125: =+IFERROR('GEN-502 Cos_Gen'!E125/'GEN-502 Gen'!E125,0) -> 91 | F125: =+IFERROR('GEN-502 Cos_Gen'!F125/'GEN-502 Gen'!F125,0) -> 91 | G125: =+IFERROR('GEN-502 Cos_Gen'!G125/'GEN-502 Gen'!G125,0) -> 91
A126: =+'GEN-502 Pot'!A126 -> Pedregalito No. 40-11 | B126: =+IFERROR('GEN-502 Cos_Gen'!B126/'GEN-502 Gen'!B126,0) -> 54.2 | C126: =+IFERROR('GEN-502 Cos_Gen'!C126/'GEN-502 Gen'!C126,0) -> 54.2 | D126: =+IFERROR('GEN-502 Cos_Gen'!D126/'GEN-502 Gen'!D126,0) -> 54.2 | E126: =+IFERROR('GEN-502 Cos_Gen'!E126/'GEN-502 Gen'!E126,0) -> 54.2 | F126: =+IFERROR('GEN-502 Cos_Gen'!F126/'GEN-502 Gen'!F126,0) -> 54.2 | G126: =+IFERROR('GEN-502 Cos_Gen'!G126/'GEN-502 Gen'!G126,0) -> 54.2
A127: =+'GEN-502 Pot'!A127 -> Río Chico No. 41-11 | B127: =+IFERROR('GEN-502 Cos_Gen'!B127/'GEN-502 Gen'!B127,0) -> 54.2 | C127: =+IFERROR('GEN-502 Cos_Gen'!C127/'GEN-502 Gen'!C127,0) -> 54.2 | D127: =+IFERROR('GEN-502 Cos_Gen'!D127/'GEN-502 Gen'!D127,0) -> 54.2 | E127: =+IFERROR('GEN-502 Cos_Gen'!E127/'GEN-502 Gen'!E127,0) -> 54.2 | F127: =+IFERROR('GEN-502 Cos_Gen'!F127/'GEN-502 Gen'!F127,0) -> 54.2 | G127: =+IFERROR('GEN-502 Cos_Gen'!G127/'GEN-502 Gen'!G127,0) -> 54.2
A128: =+'GEN-502 Pot'!A128 -> Alto Valle No. 42-11 | B128: =+IFERROR('GEN-502 Cos_Gen'!B128/'GEN-502 Gen'!B128,0) -> 54.2 | C128: =+IFERROR('GEN-502 Cos_Gen'!C128/'GEN-502 Gen'!C128,0) -> 54.2 | D128: =+IFERROR('GEN-502 Cos_Gen'!D128/'GEN-502 Gen'!D128,0) -> 54.2 | E128: =+IFERROR('GEN-502 Cos_Gen'!E128/'GEN-502 Gen'!E128,0) -> 54.2 | F128: =+IFERROR('GEN-502 Cos_Gen'!F128/'GEN-502 Gen'!F128,0) -> 54.2 | G128: =+IFERROR('GEN-502 Cos_Gen'!G128/'GEN-502 Gen'!G128,0) -> 54.2
A129: =+'GEN-502 Pot'!A129 -> Hidroecológica del Teribe No. 43-11 | B129: =+IFERROR('GEN-502 Cos_Gen'!B129/'GEN-502 Gen'!B129,0) -> 105.8 | C129: =+IFERROR('GEN-502 Cos_Gen'!C129/'GEN-502 Gen'!C129,0) -> 105.8 | D129: =+IFERROR('GEN-502 Cos_Gen'!D129/'GEN-502 Gen'!D129,0) -> 105.8 | E129: =+IFERROR('GEN-502 Cos_Gen'!E129/'GEN-502 Gen'!E129,0) -> 105.8 | F129: =+IFERROR('GEN-502 Cos_Gen'!F129/'GEN-502 Gen'!F129,0) -> 105.8 | G129: =+IFERROR('GEN-502 Cos_Gen'!G129/'GEN-502 Gen'!G129,0) -> 105.8
A130: =+'GEN-502 Pot'!A130 -> Desarrollos Hidroeléctricos Corp. No. 44-11 | B130: =+IFERROR('GEN-502 Cos_Gen'!B130/'GEN-502 Gen'!B130,0) -> 96.5 | C130: =+IFERROR('GEN-502 Cos_Gen'!C130/'GEN-502 Gen'!C130,0) -> 96.5 | D130: =+IFERROR('GEN-502 Cos_Gen'!D130/'GEN-502 Gen'!D130,0) -> 96.5 | E130: =+IFERROR('GEN-502 Cos_Gen'!E130/'GEN-502 Gen'!E130,0) -> 96.5 | F130: =+IFERROR('GEN-502 Cos_Gen'!F130/'GEN-502 Gen'!F130,0) -> 96.5 | G130: =+IFERROR('GEN-502 Cos_Gen'!G130/'GEN-502 Gen'!G130,0) -> 96.5
A131: =+'GEN-502 Pot'!A131 -> Las Perlas Norte No. 45-11 | B131: =+IFERROR('GEN-502 Cos_Gen'!B131/'GEN-502 Gen'!B131,0) -> 100.8 | C131: =+IFERROR('GEN-502 Cos_Gen'!C131/'GEN-502 Gen'!C131,0) -> 100.8 | D131: =+IFERROR('GEN-502 Cos_Gen'!D131/'GEN-502 Gen'!D131,0) -> 100.8 | E131: =+IFERROR('GEN-502 Cos_Gen'!E131/'GEN-502 Gen'!E131,0) -> 100.8 | F131: =+IFERROR('GEN-502 Cos_Gen'!F131/'GEN-502 Gen'!F131,0) -> 100.8 | G131: =+IFERROR('GEN-502 Cos_Gen'!G131/'GEN-502 Gen'!G131,0) -> 100.8
A132: =+'GEN-502 Pot'!A132 -> Hidroeléctrica San Lorenzo No. 46-11 | B132: =+IFERROR('GEN-502 Cos_Gen'!B132/'GEN-502 Gen'!B132,0) -> 89.5 | C132: =+IFERROR('GEN-502 Cos_Gen'!C132/'GEN-502 Gen'!C132,0) -> 89.5 | D132: =+IFERROR('GEN-502 Cos_Gen'!D132/'GEN-502 Gen'!D132,0) -> 89.5 | E132: =+IFERROR('GEN-502 Cos_Gen'!E132/'GEN-502 Gen'!E132,0) -> 89.5 | F132: =+IFERROR('GEN-502 Cos_Gen'!F132/'GEN-502 Gen'!F132,0) -> 89.5 | G132: =+IFERROR('GEN-502 Cos_Gen'!G132/'GEN-502 Gen'!G132,0) -> 89.5
A133: =+'GEN-502 Pot'!A133 -> Caldera Energy Corp. No. 47-11 | B133: =+IFERROR('GEN-502 Cos_Gen'!B133/'GEN-502 Gen'!B133,0) -> 63.3 | C133: =+IFERROR('GEN-502 Cos_Gen'!C133/'GEN-502 Gen'!C133,0) -> 63.3 | D133: =+IFERROR('GEN-502 Cos_Gen'!D133/'GEN-502 Gen'!D133,0) -> 63.3 | E133: =+IFERROR('GEN-502 Cos_Gen'!E133/'GEN-502 Gen'!E133,0) -> 63.3 | F133: =+IFERROR('GEN-502 Cos_Gen'!F133/'GEN-502 Gen'!F133,0) -> 63.3 | G133: =+IFERROR('GEN-502 Cos_Gen'!G133/'GEN-502 Gen'!G133,0) -> 63.3
A134: =+'GEN-502 Pot'!A134 -> ACP No. 63-11 Motores | B134: =+IFERROR('GEN-502 Cos_Gen'!B134/'GEN-502 Gen'!B134,0) -> 0 | C134: =+IFERROR('GEN-502 Cos_Gen'!C134/'GEN-502 Gen'!C134,0) -> 0 | D134: =+IFERROR('GEN-502 Cos_Gen'!D134/'GEN-502 Gen'!D134,0) -> 0 | E134: =+IFERROR('GEN-502 Cos_Gen'!E134/'GEN-502 Gen'!E134,0) -> 0 | F134: =+IFERROR('GEN-502 Cos_Gen'!F134/'GEN-502 Gen'!F134,0) -> 0 | G134: =+IFERROR('GEN-502 Cos_Gen'!G134/'GEN-502 Gen'!G134,0) -> 0
A135: =+'GEN-502 Pot'!A135 -> ACP No. 63-11 Hidro | B135: =+IFERROR('GEN-502 Cos_Gen'!B135/'GEN-502 Gen'!B135,0) -> 0 | C135: =+IFERROR('GEN-502 Cos_Gen'!C135/'GEN-502 Gen'!C135,0) -> 0 | D135: =+IFERROR('GEN-502 Cos_Gen'!D135/'GEN-502 Gen'!D135,0) -> 0 | E135: =+IFERROR('GEN-502 Cos_Gen'!E135/'GEN-502 Gen'!E135,0) -> 0 | F135: =+IFERROR('GEN-502 Cos_Gen'!F135/'GEN-502 Gen'!F135,0) -> 0 | G135: =+IFERROR('GEN-502 Cos_Gen'!G135/'GEN-502 Gen'!G135,0) -> 0
A136: =+'GEN-502 Pot'!A136 -> Hidro Caldera No. 65-11 | B136: =+IFERROR('GEN-502 Cos_Gen'!B136/'GEN-502 Gen'!B136,0) -> 0 | C136: =+IFERROR('GEN-502 Cos_Gen'!C136/'GEN-502 Gen'!C136,0) -> 0 | D136: =+IFERROR('GEN-502 Cos_Gen'!D136/'GEN-502 Gen'!D136,0) -> 0 | E136: =+IFERROR('GEN-502 Cos_Gen'!E136/'GEN-502 Gen'!E136,0) -> 0 | F136: =+IFERROR('GEN-502 Cos_Gen'!F136/'GEN-502 Gen'!F136,0) -> 0 | G136: =+IFERROR('GEN-502 Cos_Gen'!G136/'GEN-502 Gen'!G136,0) -> 0
A137: =+'GEN-502 Pot'!A137 -> Pedregalito No.66-11 | B137: =+IFERROR('GEN-502 Cos_Gen'!B137/'GEN-502 Gen'!B137,0) -> 0 | C137: =+IFERROR('GEN-502 Cos_Gen'!C137/'GEN-502 Gen'!C137,0) -> 0 | D137: =+IFERROR('GEN-502 Cos_Gen'!D137/'GEN-502 Gen'!D137,0) -> 0 | E137: =+IFERROR('GEN-502 Cos_Gen'!E137/'GEN-502 Gen'!E137,0) -> 0 | F137: =+IFERROR('GEN-502 Cos_Gen'!F137/'GEN-502 Gen'!F137,0) -> 0 | G137: =+IFERROR('GEN-502 Cos_Gen'!G137/'GEN-502 Gen'!G137,0) -> 0
A138: =+'GEN-502 Pot'!A138 -> Rio Chico No. 67-11 | B138: =+IFERROR('GEN-502 Cos_Gen'!B138/'GEN-502 Gen'!B138,0) -> 0 | C138: =+IFERROR('GEN-502 Cos_Gen'!C138/'GEN-502 Gen'!C138,0) -> 0 | D138: =+IFERROR('GEN-502 Cos_Gen'!D138/'GEN-502 Gen'!D138,0) -> 0 | E138: =+IFERROR('GEN-502 Cos_Gen'!E138/'GEN-502 Gen'!E138,0) -> 0 | F138: =+IFERROR('GEN-502 Cos_Gen'!F138/'GEN-502 Gen'!F138,0) -> 0 | G138: =+IFERROR('GEN-502 Cos_Gen'!G138/'GEN-502 Gen'!G138,0) -> 0
A139: =+'GEN-502 Pot'!A139 -> Alternegy No. 68-11 | B139: =+IFERROR('GEN-502 Cos_Gen'!B139/'GEN-502 Gen'!B139,0) -> 0 | C139: =+IFERROR('GEN-502 Cos_Gen'!C139/'GEN-502 Gen'!C139,0) -> 0 | D139: =+IFERROR('GEN-502 Cos_Gen'!D139/'GEN-502 Gen'!D139,0) -> 0 | E139: =+IFERROR('GEN-502 Cos_Gen'!E139/'GEN-502 Gen'!E139,0) -> 0 | F139: =+IFERROR('GEN-502 Cos_Gen'!F139/'GEN-502 Gen'!F139,0) -> 0 | G139: =+IFERROR('GEN-502 Cos_Gen'!G139/'GEN-502 Gen'!G139,0) -> 0
A140: =+'GEN-502 Pot'!A140 -> Bontex No. 69-11 | B140: =+IFERROR('GEN-502 Cos_Gen'!B140/'GEN-502 Gen'!B140,0) -> 0 | C140: =+IFERROR('GEN-502 Cos_Gen'!C140/'GEN-502 Gen'!C140,0) -> 0 | D140: =+IFERROR('GEN-502 Cos_Gen'!D140/'GEN-502 Gen'!D140,0) -> 0 | E140: =+IFERROR('GEN-502 Cos_Gen'!E140/'GEN-502 Gen'!E140,0) -> 0 | F140: =+IFERROR('GEN-502 Cos_Gen'!F140/'GEN-502 Gen'!F140,0) -> 0 | G140: =+IFERROR('GEN-502 Cos_Gen'!G140/'GEN-502 Gen'!G140,0) -> 0
A141: =+'GEN-502 Pot'!A141 -> Istmus No. 70-11 | B141: =+IFERROR('GEN-502 Cos_Gen'!B141/'GEN-502 Gen'!B141,0) -> 0 | C141: =+IFERROR('GEN-502 Cos_Gen'!C141/'GEN-502 Gen'!C141,0) -> 0 | D141: =+IFERROR('GEN-502 Cos_Gen'!D141/'GEN-502 Gen'!D141,0) -> 0 | E141: =+IFERROR('GEN-502 Cos_Gen'!E141/'GEN-502 Gen'!E141,0) -> 0 | F141: =+IFERROR('GEN-502 Cos_Gen'!F141/'GEN-502 Gen'!F141,0) -> 0 | G141: =+IFERROR('GEN-502 Cos_Gen'!G141/'GEN-502 Gen'!G141,0) -> 0
A142: =+'GEN-502 Pot'!A142 -> BLM (Carbón) No. 71-11 | B142: =+IFERROR('GEN-502 Cos_Gen'!B142/'GEN-502 Gen'!B142,0) -> 0 | C142: =+IFERROR('GEN-502 Cos_Gen'!C142/'GEN-502 Gen'!C142,0) -> 0 | D142: =+IFERROR('GEN-502 Cos_Gen'!D142/'GEN-502 Gen'!D142,0) -> 0 | E142: =+IFERROR('GEN-502 Cos_Gen'!E142/'GEN-502 Gen'!E142,0) -> 0 | F142: =+IFERROR('GEN-502 Cos_Gen'!F142/'GEN-502 Gen'!F142,0) -> 0 | G142: =+IFERROR('GEN-502 Cos_Gen'!G142/'GEN-502 Gen'!G142,0) -> 0
A143: =+'GEN-502 Pot'!A143 -> IDB No. 72-11 | B143: =+IFERROR('GEN-502 Cos_Gen'!B143/'GEN-502 Gen'!B143,0) -> 0 | C143: =+IFERROR('GEN-502 Cos_Gen'!C143/'GEN-502 Gen'!C143,0) -> 0 | D143: =+IFERROR('GEN-502 Cos_Gen'!D143/'GEN-502 Gen'!D143,0) -> 0 | E143: =+IFERROR('GEN-502 Cos_Gen'!E143/'GEN-502 Gen'!E143,0) -> 0 | F143: =+IFERROR('GEN-502 Cos_Gen'!F143/'GEN-502 Gen'!F143,0) -> 0 | G143: =+IFERROR('GEN-502 Cos_Gen'!G143/'GEN-502 Gen'!G143,0) -> 0
A144: =+'GEN-502 Pot'!A144 -> Pedregal No. 73-11 | B144: =+IFERROR('GEN-502 Cos_Gen'!B144/'GEN-502 Gen'!B144,0) -> 0 | C144: =+IFERROR('GEN-502 Cos_Gen'!C144/'GEN-502 Gen'!C144,0) -> 0 | D144: =+IFERROR('GEN-502 Cos_Gen'!D144/'GEN-502 Gen'!D144,0) -> 0 | E144: =+IFERROR('GEN-502 Cos_Gen'!E144/'GEN-502 Gen'!E144,0) -> 0 | F144: =+IFERROR('GEN-502 Cos_Gen'!F144/'GEN-502 Gen'!F144,0) -> 0 | G144: =+IFERROR('GEN-502 Cos_Gen'!G144/'GEN-502 Gen'!G144,0) -> 0
A145: =+'GEN-502 Pot'!A145 -> ESEPSA (Algarrobos) No. 62-11 | B145: =+IFERROR('GEN-502 Cos_Gen'!B145/'GEN-502 Gen'!B145,0) -> 0 | C145: =+IFERROR('GEN-502 Cos_Gen'!C145/'GEN-502 Gen'!C145,0) -> 0 | D145: =+IFERROR('GEN-502 Cos_Gen'!D145/'GEN-502 Gen'!D145,0) -> 0 | E145: =+IFERROR('GEN-502 Cos_Gen'!E145/'GEN-502 Gen'!E145,0) -> 0 | F145: =+IFERROR('GEN-502 Cos_Gen'!F145/'GEN-502 Gen'!F145,0) -> 0 | G145: =+IFERROR('GEN-502 Cos_Gen'!G145/'GEN-502 Gen'!G145,0) -> 0
A146: =+'GEN-502 Pot'!A146 -> ESEPSA (Dolega) No. 62-11 | B146: =+IFERROR('GEN-502 Cos_Gen'!B146/'GEN-502 Gen'!B146,0) -> 0 | C146: =+IFERROR('GEN-502 Cos_Gen'!C146/'GEN-502 Gen'!C146,0) -> 0 | D146: =+IFERROR('GEN-502 Cos_Gen'!D146/'GEN-502 Gen'!D146,0) -> 0 | E146: =+IFERROR('GEN-502 Cos_Gen'!E146/'GEN-502 Gen'!E146,0) -> 0 | F146: =+IFERROR('GEN-502 Cos_Gen'!F146/'GEN-502 Gen'!F146,0) -> 0 | G146: =+IFERROR('GEN-502 Cos_Gen'!G146/'GEN-502 Gen'!G146,0) -> 0
A147: =+'GEN-502 Pot'!A147 -> ESEPSA (Macho de Monte) No. 62-11 | B147: =+IFERROR('GEN-502 Cos_Gen'!B147/'GEN-502 Gen'!B147,0) -> 0 | C147: =+IFERROR('GEN-502 Cos_Gen'!C147/'GEN-502 Gen'!C147,0) -> 0 | D147: =+IFERROR('GEN-502 Cos_Gen'!D147/'GEN-502 Gen'!D147,0) -> 0 | E147: =+IFERROR('GEN-502 Cos_Gen'!E147/'GEN-502 Gen'!E147,0) -> 0 | F147: =+IFERROR('GEN-502 Cos_Gen'!F147/'GEN-502 Gen'!F147,0) -> 0 | G147: =+IFERROR('GEN-502 Cos_Gen'!G147/'GEN-502 Gen'!G147,0) -> 0
A148: =+'GEN-502 Pot'!A148 -> Hidroibérica No. 80-11 | B148: =+IFERROR('GEN-502 Cos_Gen'!B148/'GEN-502 Gen'!B148,0) -> 0 | C148: =+IFERROR('GEN-502 Cos_Gen'!C148/'GEN-502 Gen'!C148,0) -> 0 | D148: =+IFERROR('GEN-502 Cos_Gen'!D148/'GEN-502 Gen'!D148,0) -> 0 | E148: =+IFERROR('GEN-502 Cos_Gen'!E148/'GEN-502 Gen'!E148,0) -> 0 | F148: =+IFERROR('GEN-502 Cos_Gen'!F148/'GEN-502 Gen'!F148,0) -> 0 | G148: =+IFERROR('GEN-502 Cos_Gen'!G148/'GEN-502 Gen'!G148,0) -> 0
A149: =+'GEN-502 Pot'!A149 -> Enel Fortuna No. 81-11 | B149: =+IFERROR('GEN-502 Cos_Gen'!B149/'GEN-502 Gen'!B149,0) -> 0 | C149: =+IFERROR('GEN-502 Cos_Gen'!C149/'GEN-502 Gen'!C149,0) -> 0 | D149: =+IFERROR('GEN-502 Cos_Gen'!D149/'GEN-502 Gen'!D149,0) -> 0 | E149: =+IFERROR('GEN-502 Cos_Gen'!E149/'GEN-502 Gen'!E149,0) -> 0 | F149: =+IFERROR('GEN-502 Cos_Gen'!F149/'GEN-502 Gen'!F149,0) -> 0 | G149: =+IFERROR('GEN-502 Cos_Gen'!G149/'GEN-502 Gen'!G149,0) -> 0
A150: =+'GEN-502 Pot'!A150 -> Hidro Boquerón No. 82-11 | B150: =+IFERROR('GEN-502 Cos_Gen'!B150/'GEN-502 Gen'!B150,0) -> 0 | C150: =+IFERROR('GEN-502 Cos_Gen'!C150/'GEN-502 Gen'!C150,0) -> 0 | D150: =+IFERROR('GEN-502 Cos_Gen'!D150/'GEN-502 Gen'!D150,0) -> 0 | E150: =+IFERROR('GEN-502 Cos_Gen'!E150/'GEN-502 Gen'!E150,0) -> 0 | F150: =+IFERROR('GEN-502 Cos_Gen'!F150/'GEN-502 Gen'!F150,0) -> 0 | G150: =+IFERROR('GEN-502 Cos_Gen'!G150/'GEN-502 Gen'!G150,0) -> 0
A151: =+'GEN-502 Pot'!A151 -> Pedregal Power No. 83-11 | B151: =+IFERROR('GEN-502 Cos_Gen'!B151/'GEN-502 Gen'!B151,0) -> 0 | C151: =+IFERROR('GEN-502 Cos_Gen'!C151/'GEN-502 Gen'!C151,0) -> 0 | D151: =+IFERROR('GEN-502 Cos_Gen'!D151/'GEN-502 Gen'!D151,0) -> 0 | E151: =+IFERROR('GEN-502 Cos_Gen'!E151/'GEN-502 Gen'!E151,0) -> 0 | F151: =+IFERROR('GEN-502 Cos_Gen'!F151/'GEN-502 Gen'!F151,0) -> 0 | G151: =+IFERROR('GEN-502 Cos_Gen'!G151/'GEN-502 Gen'!G151,0) -> 0
A152: =+'GEN-502 Pot'!A152 -> EGESA No. 84-11 | B152: =+IFERROR('GEN-502 Cos_Gen'!B152/'GEN-502 Gen'!B152,0) -> 0 | C152: =+IFERROR('GEN-502 Cos_Gen'!C152/'GEN-502 Gen'!C152,0) -> 0 | D152: =+IFERROR('GEN-502 Cos_Gen'!D152/'GEN-502 Gen'!D152,0) -> 0 | E152: =+IFERROR('GEN-502 Cos_Gen'!E152/'GEN-502 Gen'!E152,0) -> 0 | F152: =+IFERROR('GEN-502 Cos_Gen'!F152/'GEN-502 Gen'!F152,0) -> 0 | G152: =+IFERROR('GEN-502 Cos_Gen'!G152/'GEN-502 Gen'!G152,0) -> 0
A153: =+'GEN-502 Pot'!A153 -> ACP No. 85-11 | B153: =+IFERROR('GEN-502 Cos_Gen'!B153/'GEN-502 Gen'!B153,0) -> 0 | C153: =+IFERROR('GEN-502 Cos_Gen'!C153/'GEN-502 Gen'!C153,0) -> 0 | D153: =+IFERROR('GEN-502 Cos_Gen'!D153/'GEN-502 Gen'!D153,0) -> 0 | E153: =+IFERROR('GEN-502 Cos_Gen'!E153/'GEN-502 Gen'!E153,0) -> 0 | F153: =+IFERROR('GEN-502 Cos_Gen'!F153/'GEN-502 Gen'!F153,0) -> 0 | G153: =+IFERROR('GEN-502 Cos_Gen'!G153/'GEN-502 Gen'!G153,0) -> 0
A154: =+'GEN-502 Pot'!A154 -> Istmus Hydro Power No. 08-12 | B154: =+IFERROR('GEN-502 Cos_Gen'!B154/'GEN-502 Gen'!B154,0) -> 0 | C154: =+IFERROR('GEN-502 Cos_Gen'!C154/'GEN-502 Gen'!C154,0) -> 0 | D154: =+IFERROR('GEN-502 Cos_Gen'!D154/'GEN-502 Gen'!D154,0) -> 0 | E154: =+IFERROR('GEN-502 Cos_Gen'!E154/'GEN-502 Gen'!E154,0) -> 0 | F154: =+IFERROR('GEN-502 Cos_Gen'!F154/'GEN-502 Gen'!F154,0) -> 0 | G154: =+IFERROR('GEN-502 Cos_Gen'!G154/'GEN-502 Gen'!G154,0) -> 0
A155: =+'GEN-502 Pot'!A155 -> Hidro Panamá No. 09-12 | B155: =+IFERROR('GEN-502 Cos_Gen'!B155/'GEN-502 Gen'!B155,0) -> 0 | C155: =+IFERROR('GEN-502 Cos_Gen'!C155/'GEN-502 Gen'!C155,0) -> 0 | D155: =+IFERROR('GEN-502 Cos_Gen'!D155/'GEN-502 Gen'!D155,0) -> 0 | E155: =+IFERROR('GEN-502 Cos_Gen'!E155/'GEN-502 Gen'!E155,0) -> 0 | F155: =+IFERROR('GEN-502 Cos_Gen'!F155/'GEN-502 Gen'!F155,0) -> 0 | G155: =+IFERROR('GEN-502 Cos_Gen'!G155/'GEN-502 Gen'!G155,0) -> 0
A156: =+'GEN-502 Pot'!A156 -> Pedregal Power No. 10-12 | B156: =+IFERROR('GEN-502 Cos_Gen'!B156/'GEN-502 Gen'!B156,0) -> 0 | C156: =+IFERROR('GEN-502 Cos_Gen'!C156/'GEN-502 Gen'!C156,0) -> 0 | D156: =+IFERROR('GEN-502 Cos_Gen'!D156/'GEN-502 Gen'!D156,0) -> 0 | E156: =+IFERROR('GEN-502 Cos_Gen'!E156/'GEN-502 Gen'!E156,0) -> 0 | F156: =+IFERROR('GEN-502 Cos_Gen'!F156/'GEN-502 Gen'!F156,0) -> 0 | G156: =+IFERROR('GEN-502 Cos_Gen'!G156/'GEN-502 Gen'!G156,0) -> 0
A157: =+'GEN-502 Pot'!A157 -> Pedregal Power No. 11-12 | B157: =+IFERROR('GEN-502 Cos_Gen'!B157/'GEN-502 Gen'!B157,0) -> 0 | C157: =+IFERROR('GEN-502 Cos_Gen'!C157/'GEN-502 Gen'!C157,0) -> 0 | D157: =+IFERROR('GEN-502 Cos_Gen'!D157/'GEN-502 Gen'!D157,0) -> 0 | E157: =+IFERROR('GEN-502 Cos_Gen'!E157/'GEN-502 Gen'!E157,0) -> 0 | F157: =+IFERROR('GEN-502 Cos_Gen'!F157/'GEN-502 Gen'!F157,0) -> 0 | G157: =+IFERROR('GEN-502 Cos_Gen'!G157/'GEN-502 Gen'!G157,0) -> 0
A158: =+'GEN-502 Pot'!A158 -> Café de Eleta No. 12-12 | B158: =+IFERROR('GEN-502 Cos_Gen'!B158/'GEN-502 Gen'!B158,0) -> 0 | C158: =+IFERROR('GEN-502 Cos_Gen'!C158/'GEN-502 Gen'!C158,0) -> 0 | D158: =+IFERROR('GEN-502 Cos_Gen'!D158/'GEN-502 Gen'!D158,0) -> 0 | E158: =+IFERROR('GEN-502 Cos_Gen'!E158/'GEN-502 Gen'!E158,0) -> 0 | F158: =+IFERROR('GEN-502 Cos_Gen'!F158/'GEN-502 Gen'!F158,0) -> 0 | G158: =+IFERROR('GEN-502 Cos_Gen'!G158/'GEN-502 Gen'!G158,0) -> 0
A159: =+'GEN-502 Pot'!A159 -> Bahías Las Minas No. 13-12 | B159: =+IFERROR('GEN-502 Cos_Gen'!B159/'GEN-502 Gen'!B159,0) -> 0 | C159: =+IFERROR('GEN-502 Cos_Gen'!C159/'GEN-502 Gen'!C159,0) -> 0 | D159: =+IFERROR('GEN-502 Cos_Gen'!D159/'GEN-502 Gen'!D159,0) -> 0 | E159: =+IFERROR('GEN-502 Cos_Gen'!E159/'GEN-502 Gen'!E159,0) -> 0 | F159: =+IFERROR('GEN-502 Cos_Gen'!F159/'GEN-502 Gen'!F159,0) -> 0 | G159: =+IFERROR('GEN-502 Cos_Gen'!G159/'GEN-502 Gen'!G159,0) -> 0
A160: =+'GEN-502 Pot'!A160 -> Generadora del Atlántico No. 14-12 | B160: =+IFERROR('GEN-502 Cos_Gen'!B160/'GEN-502 Gen'!B160,0) -> 0 | C160: =+IFERROR('GEN-502 Cos_Gen'!C160/'GEN-502 Gen'!C160,0) -> 0 | D160: =+IFERROR('GEN-502 Cos_Gen'!D160/'GEN-502 Gen'!D160,0) -> 0 | E160: =+IFERROR('GEN-502 Cos_Gen'!E160/'GEN-502 Gen'!E160,0) -> 0 | F160: =+IFERROR('GEN-502 Cos_Gen'!F160/'GEN-502 Gen'!F160,0) -> 0 | G160: =+IFERROR('GEN-502 Cos_Gen'!G160/'GEN-502 Gen'!G160,0) -> 0
A161: =+'GEN-502 Pot'!A161 -> Unión Eólica de Panamá (PE Nuevo Chagres) No. 19-12' | B161: =+IFERROR('GEN-502 Cos_Gen'!B161/'GEN-502 Gen'!B161,0) -> 95 | C161: =+IFERROR('GEN-502 Cos_Gen'!C161/'GEN-502 Gen'!C161,0) -> 95 | D161: =+IFERROR('GEN-502 Cos_Gen'!D161/'GEN-502 Gen'!D161,0) -> 95 | E161: =+IFERROR('GEN-502 Cos_Gen'!E161/'GEN-502 Gen'!E161,0) -> 95 | F161: =+IFERROR('GEN-502 Cos_Gen'!F161/'GEN-502 Gen'!F161,0) -> 95 | G161: =+IFERROR('GEN-502 Cos_Gen'!G161/'GEN-502 Gen'!G161,0) -> 95
A162: =+'GEN-502 Pot'!A162 -> Unión Eólica de Panamá (PE Rosa de los Vientos) No. 20-12' | B162: =+IFERROR('GEN-502 Cos_Gen'!B162/'GEN-502 Gen'!B162,0) -> 98 | C162: =+IFERROR('GEN-502 Cos_Gen'!C162/'GEN-502 Gen'!C162,0) -> 98 | D162: =+IFERROR('GEN-502 Cos_Gen'!D162/'GEN-502 Gen'!D162,0) -> 98 | E162: =+IFERROR('GEN-502 Cos_Gen'!E162/'GEN-502 Gen'!E162,0) -> 98 | F162: =+IFERROR('GEN-502 Cos_Gen'!F162/'GEN-502 Gen'!F162,0) -> 98 | G162: =+IFERROR('GEN-502 Cos_Gen'!G162/'GEN-502 Gen'!G162,0) -> 98
A163: =+'GEN-502 Pot'!A163 -> Unión Eólica de Panamá (PE Portobelo Ballestillas) No. 21-12' | B163: =+IFERROR('GEN-502 Cos_Gen'!B163/'GEN-502 Gen'!B163,0) -> 108 | C163: =+IFERROR('GEN-502 Cos_Gen'!C163/'GEN-502 Gen'!C163,0) -> 108 | D163: =+IFERROR('GEN-502 Cos_Gen'!D163/'GEN-502 Gen'!D163,0) -> 108 | E163: =+IFERROR('GEN-502 Cos_Gen'!E163/'GEN-502 Gen'!E163,0) -> 108 | F163: =+IFERROR('GEN-502 Cos_Gen'!F163/'GEN-502 Gen'!F163,0) -> 108 | G163: =+IFERROR('GEN-502 Cos_Gen'!G163/'GEN-502 Gen'!G163,0) -> 108
A164: =+'GEN-502 Pot'!A164 -> Unión Eólica de Panamá (PE Marañon) No. 22-12' | B164: =+IFERROR('GEN-502 Cos_Gen'!B164/'GEN-502 Gen'!B164,0) -> 110 | C164: =+IFERROR('GEN-502 Cos_Gen'!C164/'GEN-502 Gen'!C164,0) -> 110 | D164: =+IFERROR('GEN-502 Cos_Gen'!D164/'GEN-502 Gen'!D164,0) -> 110 | E164: =+IFERROR('GEN-502 Cos_Gen'!E164/'GEN-502 Gen'!E164,0) -> 110 | F164: =+IFERROR('GEN-502 Cos_Gen'!F164/'GEN-502 Gen'!F164,0) -> 110 | G164: =+IFERROR('GEN-502 Cos_Gen'!G164/'GEN-502 Gen'!G164,0) -> 110
A165: =+'GEN-502 Pot'!A165 -> Autoridad del Canal de Panamá No. 44-12 | B165: =+IFERROR('GEN-502 Cos_Gen'!B165/'GEN-502 Gen'!B165,0) -> 0 | C165: =+IFERROR('GEN-502 Cos_Gen'!C165/'GEN-502 Gen'!C165,0) -> 0 | D165: =+IFERROR('GEN-502 Cos_Gen'!D165/'GEN-502 Gen'!D165,0) -> 0 | E165: =+IFERROR('GEN-502 Cos_Gen'!E165/'GEN-502 Gen'!E165,0) -> 0 | F165: =+IFERROR('GEN-502 Cos_Gen'!F165/'GEN-502 Gen'!F165,0) -> 0 | G165: =+IFERROR('GEN-502 Cos_Gen'!G165/'GEN-502 Gen'!G165,0) -> 0
A166: =+'GEN-502 Pot'!A166 -> AES Panamá No. 45-12 | B166: =+IFERROR('GEN-502 Cos_Gen'!B166/'GEN-502 Gen'!B166,0) -> 0 | C166: =+IFERROR('GEN-502 Cos_Gen'!C166/'GEN-502 Gen'!C166,0) -> 0 | D166: =+IFERROR('GEN-502 Cos_Gen'!D166/'GEN-502 Gen'!D166,0) -> 0 | E166: =+IFERROR('GEN-502 Cos_Gen'!E166/'GEN-502 Gen'!E166,0) -> 0 | F166: =+IFERROR('GEN-502 Cos_Gen'!F166/'GEN-502 Gen'!F166,0) -> 0 | G166: =+IFERROR('GEN-502 Cos_Gen'!G166/'GEN-502 Gen'!G166,0) -> 0
A167: =+'GEN-502 Pot'!A167 -> Energía y Servicios de Panamá, S.A. No. 46-12 (La Yeguada) | B167: =+IFERROR('GEN-502 Cos_Gen'!B167/'GEN-502 Gen'!B167,0) -> 0 | C167: =+IFERROR('GEN-502 Cos_Gen'!C167/'GEN-502 Gen'!C167,0) -> 0 | D167: =+IFERROR('GEN-502 Cos_Gen'!D167/'GEN-502 Gen'!D167,0) -> 0 | E167: =+IFERROR('GEN-502 Cos_Gen'!E167/'GEN-502 Gen'!E167,0) -> 0 | F167: =+IFERROR('GEN-502 Cos_Gen'!F167/'GEN-502 Gen'!F167,0) -> 0 | G167: =+IFERROR('GEN-502 Cos_Gen'!G167/'GEN-502 Gen'!G167,0) -> 0
A168: =+'GEN-502 Pot'!A168 -> Enel Fortuna No. 47-12 | B168: =+IFERROR('GEN-502 Cos_Gen'!B168/'GEN-502 Gen'!B168,0) -> 0 | C168: =+IFERROR('GEN-502 Cos_Gen'!C168/'GEN-502 Gen'!C168,0) -> 0 | D168: =+IFERROR('GEN-502 Cos_Gen'!D168/'GEN-502 Gen'!D168,0) -> 0 | E168: =+IFERROR('GEN-502 Cos_Gen'!E168/'GEN-502 Gen'!E168,0) -> 0 | F168: =+IFERROR('GEN-502 Cos_Gen'!F168/'GEN-502 Gen'!F168,0) -> 0 | G168: =+IFERROR('GEN-502 Cos_Gen'!G168/'GEN-502 Gen'!G168,0) -> 0
A169: =+'GEN-502 Pot'!A169 -> FERSA Panamá, S.A. No. 48-12 | B169: =+IFERROR('GEN-502 Cos_Gen'!B169/'GEN-502 Gen'!B169,0) -> 0 | C169: =+IFERROR('GEN-502 Cos_Gen'!C169/'GEN-502 Gen'!C169,0) -> 0 | D169: =+IFERROR('GEN-502 Cos_Gen'!D169/'GEN-502 Gen'!D169,0) -> 0 | E169: =+IFERROR('GEN-502 Cos_Gen'!E169/'GEN-502 Gen'!E169,0) -> 0 | F169: =+IFERROR('GEN-502 Cos_Gen'!F169/'GEN-502 Gen'!F169,0) -> 0 | G169: =+IFERROR('GEN-502 Cos_Gen'!G169/'GEN-502 Gen'!G169,0) -> 0
A170: =+'GEN-502 Pot'!A170 -> Caldera Energy Corp. No. 49-12 | B170: =+IFERROR('GEN-502 Cos_Gen'!B170/'GEN-502 Gen'!B170,0) -> 0 | C170: =+IFERROR('GEN-502 Cos_Gen'!C170/'GEN-502 Gen'!C170,0) -> 0 | D170: =+IFERROR('GEN-502 Cos_Gen'!D170/'GEN-502 Gen'!D170,0) -> 0 | E170: =+IFERROR('GEN-502 Cos_Gen'!E170/'GEN-502 Gen'!E170,0) -> 0 | F170: =+IFERROR('GEN-502 Cos_Gen'!F170/'GEN-502 Gen'!F170,0) -> 0 | G170: =+IFERROR('GEN-502 Cos_Gen'!G170/'GEN-502 Gen'!G170,0) -> 0
A171: =+'GEN-502 Pot'!A171 -> Electrogeneradora del Istmo No. 50-12 | B171: =+IFERROR('GEN-502 Cos_Gen'!B171/'GEN-502 Gen'!B171,0) -> 0 | C171: =+IFERROR('GEN-502 Cos_Gen'!C171/'GEN-502 Gen'!C171,0) -> 0 | D171: =+IFERROR('GEN-502 Cos_Gen'!D171/'GEN-502 Gen'!D171,0) -> 0 | E171: =+IFERROR('GEN-502 Cos_Gen'!E171/'GEN-502 Gen'!E171,0) -> 0 | F171: =+IFERROR('GEN-502 Cos_Gen'!F171/'GEN-502 Gen'!F171,0) -> 0 | G171: =+IFERROR('GEN-502 Cos_Gen'!G171/'GEN-502 Gen'!G171,0) -> 0
A172: =+'GEN-502 Pot'!A172 -> Paso Ancho Hydro Power No. 51-12 | B172: =+IFERROR('GEN-502 Cos_Gen'!B172/'GEN-502 Gen'!B172,0) -> 0 | C172: =+IFERROR('GEN-502 Cos_Gen'!C172/'GEN-502 Gen'!C172,0) -> 0 | D172: =+IFERROR('GEN-502 Cos_Gen'!D172/'GEN-502 Gen'!D172,0) -> 0 | E172: =+IFERROR('GEN-502 Cos_Gen'!E172/'GEN-502 Gen'!E172,0) -> 0 | F172: =+IFERROR('GEN-502 Cos_Gen'!F172/'GEN-502 Gen'!F172,0) -> 0 | G172: =+IFERROR('GEN-502 Cos_Gen'!G172/'GEN-502 Gen'!G172,0) -> 0
A173: =+'GEN-502 Pot'!A173 -> Café de Eleta No. 52-12 | B173: =+IFERROR('GEN-502 Cos_Gen'!B173/'GEN-502 Gen'!B173,0) -> 0 | C173: =+IFERROR('GEN-502 Cos_Gen'!C173/'GEN-502 Gen'!C173,0) -> 0 | D173: =+IFERROR('GEN-502 Cos_Gen'!D173/'GEN-502 Gen'!D173,0) -> 0 | E173: =+IFERROR('GEN-502 Cos_Gen'!E173/'GEN-502 Gen'!E173,0) -> 0 | F173: =+IFERROR('GEN-502 Cos_Gen'!F173/'GEN-502 Gen'!F173,0) -> 0 | G173: =+IFERROR('GEN-502 Cos_Gen'!G173/'GEN-502 Gen'!G173,0) -> 0
A174: =+'GEN-502 Pot'!A174 -> Generadora del Istmo, S.A. No. 53-12 | B174: =+IFERROR('GEN-502 Cos_Gen'!B174/'GEN-502 Gen'!B174,0) -> 0 | C174: =+IFERROR('GEN-502 Cos_Gen'!C174/'GEN-502 Gen'!C174,0) -> 0 | D174: =+IFERROR('GEN-502 Cos_Gen'!D174/'GEN-502 Gen'!D174,0) -> 0 | E174: =+IFERROR('GEN-502 Cos_Gen'!E174/'GEN-502 Gen'!E174,0) -> 0 | F174: =+IFERROR('GEN-502 Cos_Gen'!F174/'GEN-502 Gen'!F174,0) -> 0 | G174: =+IFERROR('GEN-502 Cos_Gen'!G174/'GEN-502 Gen'!G174,0) -> 0
A175: =+'GEN-502 Pot'!A175 -> Bontex, S.A. No. 54-12 | B175: =+IFERROR('GEN-502 Cos_Gen'!B175/'GEN-502 Gen'!B175,0) -> 0 | C175: =+IFERROR('GEN-502 Cos_Gen'!C175/'GEN-502 Gen'!C175,0) -> 0 | D175: =+IFERROR('GEN-502 Cos_Gen'!D175/'GEN-502 Gen'!D175,0) -> 0 | E175: =+IFERROR('GEN-502 Cos_Gen'!E175/'GEN-502 Gen'!E175,0) -> 0 | F175: =+IFERROR('GEN-502 Cos_Gen'!F175/'GEN-502 Gen'!F175,0) -> 0 | G175: =+IFERROR('GEN-502 Cos_Gen'!G175/'GEN-502 Gen'!G175,0) -> 0
A176: =+'GEN-502 Pot'!A176 -> Alternegy, S.A. No. 55-12 | B176: =+IFERROR('GEN-502 Cos_Gen'!B176/'GEN-502 Gen'!B176,0) -> 0 | C176: =+IFERROR('GEN-502 Cos_Gen'!C176/'GEN-502 Gen'!C176,0) -> 0 | D176: =+IFERROR('GEN-502 Cos_Gen'!D176/'GEN-502 Gen'!D176,0) -> 0 | E176: =+IFERROR('GEN-502 Cos_Gen'!E176/'GEN-502 Gen'!E176,0) -> 0 | F176: =+IFERROR('GEN-502 Cos_Gen'!F176/'GEN-502 Gen'!F176,0) -> 0 | G176: =+IFERROR('GEN-502 Cos_Gen'!G176/'GEN-502 Gen'!G176,0) -> 0
A177: =+'GEN-502 Pot'!A177 -> Hidro Panamá, S.A. No. 56-12 | B177: =+IFERROR('GEN-502 Cos_Gen'!B177/'GEN-502 Gen'!B177,0) -> 0 | C177: =+IFERROR('GEN-502 Cos_Gen'!C177/'GEN-502 Gen'!C177,0) -> 0 | D177: =+IFERROR('GEN-502 Cos_Gen'!D177/'GEN-502 Gen'!D177,0) -> 0 | E177: =+IFERROR('GEN-502 Cos_Gen'!E177/'GEN-502 Gen'!E177,0) -> 0 | F177: =+IFERROR('GEN-502 Cos_Gen'!F177/'GEN-502 Gen'!F177,0) -> 0 | G177: =+IFERROR('GEN-502 Cos_Gen'!G177/'GEN-502 Gen'!G177,0) -> 0
A178: =+'GEN-502 Pot'!A178 -> Electron Investment, S.A. No. 57-12 | B178: =+IFERROR('GEN-502 Cos_Gen'!B178/'GEN-502 Gen'!B178,0) -> 0 | C178: =+IFERROR('GEN-502 Cos_Gen'!C178/'GEN-502 Gen'!C178,0) -> 0 | D178: =+IFERROR('GEN-502 Cos_Gen'!D178/'GEN-502 Gen'!D178,0) -> 0 | E178: =+IFERROR('GEN-502 Cos_Gen'!E178/'GEN-502 Gen'!E178,0) -> 0 | F178: =+IFERROR('GEN-502 Cos_Gen'!F178/'GEN-502 Gen'!F178,0) -> 0 | G178: =+IFERROR('GEN-502 Cos_Gen'!G178/'GEN-502 Gen'!G178,0) -> 0
A179: =+'GEN-502 Pot'!A179 -> Istmus Hydro Power No. 58-12 | B179: =+IFERROR('GEN-502 Cos_Gen'!B179/'GEN-502 Gen'!B179,0) -> 0 | C179: =+IFERROR('GEN-502 Cos_Gen'!C179/'GEN-502 Gen'!C179,0) -> 0 | D179: =+IFERROR('GEN-502 Cos_Gen'!D179/'GEN-502 Gen'!D179,0) -> 0 | E179: =+IFERROR('GEN-502 Cos_Gen'!E179/'GEN-502 Gen'!E179,0) -> 0 | F179: =+IFERROR('GEN-502 Cos_Gen'!F179/'GEN-502 Gen'!F179,0) -> 0 | G179: =+IFERROR('GEN-502 Cos_Gen'!G179/'GEN-502 Gen'!G179,0) -> 0
A180: =+'GEN-502 Pot'!A180 -> Las Perlas Norte, S.A. No. 59-12 | B180: =+IFERROR('GEN-502 Cos_Gen'!B180/'GEN-502 Gen'!B180,0) -> 0 | C180: =+IFERROR('GEN-502 Cos_Gen'!C180/'GEN-502 Gen'!C180,0) -> 0 | D180: =+IFERROR('GEN-502 Cos_Gen'!D180/'GEN-502 Gen'!D180,0) -> 0 | E180: =+IFERROR('GEN-502 Cos_Gen'!E180/'GEN-502 Gen'!E180,0) -> 0 | F180: =+IFERROR('GEN-502 Cos_Gen'!F180/'GEN-502 Gen'!F180,0) -> 0 | G180: =+IFERROR('GEN-502 Cos_Gen'!G180/'GEN-502 Gen'!G180,0) -> 0
A181: =+'GEN-502 Pot'!A181 -> Las Perlas Sur, S.A. No. 60-12 | B181: =+IFERROR('GEN-502 Cos_Gen'!B181/'GEN-502 Gen'!B181,0) -> 0 | C181: =+IFERROR('GEN-502 Cos_Gen'!C181/'GEN-502 Gen'!C181,0) -> 0 | D181: =+IFERROR('GEN-502 Cos_Gen'!D181/'GEN-502 Gen'!D181,0) -> 0 | E181: =+IFERROR('GEN-502 Cos_Gen'!E181/'GEN-502 Gen'!E181,0) -> 0 | F181: =+IFERROR('GEN-502 Cos_Gen'!F181/'GEN-502 Gen'!F181,0) -> 0 | G181: =+IFERROR('GEN-502 Cos_Gen'!G181/'GEN-502 Gen'!G181,0) -> 0
A182: =+'GEN-502 Pot'!A182 -> Generadora Río Chico No. 61-12 | B182: =+IFERROR('GEN-502 Cos_Gen'!B182/'GEN-502 Gen'!B182,0) -> 0 | C182: =+IFERROR('GEN-502 Cos_Gen'!C182/'GEN-502 Gen'!C182,0) -> 0 | D182: =+IFERROR('GEN-502 Cos_Gen'!D182/'GEN-502 Gen'!D182,0) -> 0 | E182: =+IFERROR('GEN-502 Cos_Gen'!E182/'GEN-502 Gen'!E182,0) -> 0 | F182: =+IFERROR('GEN-502 Cos_Gen'!F182/'GEN-502 Gen'!F182,0) -> 0 | G182: =+IFERROR('GEN-502 Cos_Gen'!G182/'GEN-502 Gen'!G182,0) -> 0
A183: =+'GEN-502 Pot'!A183 -> Generadora Alto Valle No. 62-12 | B183: =+IFERROR('GEN-502 Cos_Gen'!B183/'GEN-502 Gen'!B183,0) -> 0 | C183: =+IFERROR('GEN-502 Cos_Gen'!C183/'GEN-502 Gen'!C183,0) -> 0 | D183: =+IFERROR('GEN-502 Cos_Gen'!D183/'GEN-502 Gen'!D183,0) -> 0 | E183: =+IFERROR('GEN-502 Cos_Gen'!E183/'GEN-502 Gen'!E183,0) -> 0 | F183: =+IFERROR('GEN-502 Cos_Gen'!F183/'GEN-502 Gen'!F183,0) -> 0 | G183: =+IFERROR('GEN-502 Cos_Gen'!G183/'GEN-502 Gen'!G183,0) -> 0
A184: =+'GEN-502 Pot'!A184 -> Generadora Pedregalito No. 63-12 | B184: =+IFERROR('GEN-502 Cos_Gen'!B184/'GEN-502 Gen'!B184,0) -> 0 | C184: =+IFERROR('GEN-502 Cos_Gen'!C184/'GEN-502 Gen'!C184,0) -> 0 | D184: =+IFERROR('GEN-502 Cos_Gen'!D184/'GEN-502 Gen'!D184,0) -> 0 | E184: =+IFERROR('GEN-502 Cos_Gen'!E184/'GEN-502 Gen'!E184,0) -> 0 | F184: =+IFERROR('GEN-502 Cos_Gen'!F184/'GEN-502 Gen'!F184,0) -> 0 | G184: =+IFERROR('GEN-502 Cos_Gen'!G184/'GEN-502 Gen'!G184,0) -> 0
A185: =+'GEN-502 Pot'!A185 -> Hydro Caisán No. 64-12 | B185: =+IFERROR('GEN-502 Cos_Gen'!B185/'GEN-502 Gen'!B185,0) -> 0 | C185: =+IFERROR('GEN-502 Cos_Gen'!C185/'GEN-502 Gen'!C185,0) -> 0 | D185: =+IFERROR('GEN-502 Cos_Gen'!D185/'GEN-502 Gen'!D185,0) -> 0 | E185: =+IFERROR('GEN-502 Cos_Gen'!E185/'GEN-502 Gen'!E185,0) -> 0 | F185: =+IFERROR('GEN-502 Cos_Gen'!F185/'GEN-502 Gen'!F185,0) -> 0 | G185: =+IFERROR('GEN-502 Cos_Gen'!G185/'GEN-502 Gen'!G185,0) -> 0
A186: =+'GEN-502 Pot'!A186 -> Hidro Piedra No. 66-12 | B186: =+IFERROR('GEN-502 Cos_Gen'!B186/'GEN-502 Gen'!B186,0) -> 0 | C186: =+IFERROR('GEN-502 Cos_Gen'!C186/'GEN-502 Gen'!C186,0) -> 0 | D186: =+IFERROR('GEN-502 Cos_Gen'!D186/'GEN-502 Gen'!D186,0) -> 0 | E186: =+IFERROR('GEN-502 Cos_Gen'!E186/'GEN-502 Gen'!E186,0) -> 0 | F186: =+IFERROR('GEN-502 Cos_Gen'!F186/'GEN-502 Gen'!F186,0) -> 0 | G186: =+IFERROR('GEN-502 Cos_Gen'!G186/'GEN-502 Gen'!G186,0) -> 0
A187: =+'GEN-502 Pot'!A187 -> Hidro Panamá, S.A. No. 77-12 | B187: =+IFERROR('GEN-502 Cos_Gen'!B187/'GEN-502 Gen'!B187,0) -> 0 | C187: =+IFERROR('GEN-502 Cos_Gen'!C187/'GEN-502 Gen'!C187,0) -> 0 | D187: =+IFERROR('GEN-502 Cos_Gen'!D187/'GEN-502 Gen'!D187,0) -> 0 | E187: =+IFERROR('GEN-502 Cos_Gen'!E187/'GEN-502 Gen'!E187,0) -> 0 | F187: =+IFERROR('GEN-502 Cos_Gen'!F187/'GEN-502 Gen'!F187,0) -> 0 | G187: =+IFERROR('GEN-502 Cos_Gen'!G187/'GEN-502 Gen'!G187,0) -> 0
A188: =+'GEN-502 Pot'!A188 -> Hidroecológica del Teribe No. 78-12 | B188: =+IFERROR('GEN-502 Cos_Gen'!B188/'GEN-502 Gen'!B188,0) -> 0 | C188: =+IFERROR('GEN-502 Cos_Gen'!C188/'GEN-502 Gen'!C188,0) -> 0 | D188: =+IFERROR('GEN-502 Cos_Gen'!D188/'GEN-502 Gen'!D188,0) -> 0 | E188: =+IFERROR('GEN-502 Cos_Gen'!E188/'GEN-502 Gen'!E188,0) -> 0 | F188: =+IFERROR('GEN-502 Cos_Gen'!F188/'GEN-502 Gen'!F188,0) -> 0 | G188: =+IFERROR('GEN-502 Cos_Gen'!G188/'GEN-502 Gen'!G188,0) -> 0
A189: =+'GEN-502 Pot'!A189 -> Ideal Panamá No. 79-12 | B189: =+IFERROR('GEN-502 Cos_Gen'!B189/'GEN-502 Gen'!B189,0) -> 0 | C189: =+IFERROR('GEN-502 Cos_Gen'!C189/'GEN-502 Gen'!C189,0) -> 0 | D189: =+IFERROR('GEN-502 Cos_Gen'!D189/'GEN-502 Gen'!D189,0) -> 0 | E189: =+IFERROR('GEN-502 Cos_Gen'!E189/'GEN-502 Gen'!E189,0) -> 0 | F189: =+IFERROR('GEN-502 Cos_Gen'!F189/'GEN-502 Gen'!F189,0) -> 0 | G189: =+IFERROR('GEN-502 Cos_Gen'!G189/'GEN-502 Gen'!G189,0) -> 0
A190: =+'GEN-502 Pot'!A190 -> Istmus Hydro Power No. 80-12 | B190: =+IFERROR('GEN-502 Cos_Gen'!B190/'GEN-502 Gen'!B190,0) -> 0 | C190: =+IFERROR('GEN-502 Cos_Gen'!C190/'GEN-502 Gen'!C190,0) -> 0 | D190: =+IFERROR('GEN-502 Cos_Gen'!D190/'GEN-502 Gen'!D190,0) -> 0 | E190: =+IFERROR('GEN-502 Cos_Gen'!E190/'GEN-502 Gen'!E190,0) -> 0 | F190: =+IFERROR('GEN-502 Cos_Gen'!F190/'GEN-502 Gen'!F190,0) -> 0 | G190: =+IFERROR('GEN-502 Cos_Gen'!G190/'GEN-502 Gen'!G190,0) -> 0
A191: =+'GEN-502 Pot'!A191 -> Las Perlas Norte, S.A. No. 81-12 | B191: =+IFERROR('GEN-502 Cos_Gen'!B191/'GEN-502 Gen'!B191,0) -> 0 | C191: =+IFERROR('GEN-502 Cos_Gen'!C191/'GEN-502 Gen'!C191,0) -> 0 | D191: =+IFERROR('GEN-502 Cos_Gen'!D191/'GEN-502 Gen'!D191,0) -> 0 | E191: =+IFERROR('GEN-502 Cos_Gen'!E191/'GEN-502 Gen'!E191,0) -> 0 | F191: =+IFERROR('GEN-502 Cos_Gen'!F191/'GEN-502 Gen'!F191,0) -> 0 | G191: =+IFERROR('GEN-502 Cos_Gen'!G191/'GEN-502 Gen'!G191,0) -> 0
A192: =+'GEN-502 Pot'!A192 -> Las Perlas Sur, S.A. No. 82-12 | B192: =+IFERROR('GEN-502 Cos_Gen'!B192/'GEN-502 Gen'!B192,0) -> 0 | C192: =+IFERROR('GEN-502 Cos_Gen'!C192/'GEN-502 Gen'!C192,0) -> 0 | D192: =+IFERROR('GEN-502 Cos_Gen'!D192/'GEN-502 Gen'!D192,0) -> 0 | E192: =+IFERROR('GEN-502 Cos_Gen'!E192/'GEN-502 Gen'!E192,0) -> 0 | F192: =+IFERROR('GEN-502 Cos_Gen'!F192/'GEN-502 Gen'!F192,0) -> 0 | G192: =+IFERROR('GEN-502 Cos_Gen'!G192/'GEN-502 Gen'!G192,0) -> 0
A193: =+'GEN-502 Pot'!A193 -> Café de Eleta No. 83-12 | B193: =+IFERROR('GEN-502 Cos_Gen'!B193/'GEN-502 Gen'!B193,0) -> 0 | C193: =+IFERROR('GEN-502 Cos_Gen'!C193/'GEN-502 Gen'!C193,0) -> 0 | D193: =+IFERROR('GEN-502 Cos_Gen'!D193/'GEN-502 Gen'!D193,0) -> 0 | E193: =+IFERROR('GEN-502 Cos_Gen'!E193/'GEN-502 Gen'!E193,0) -> 0 | F193: =+IFERROR('GEN-502 Cos_Gen'!F193/'GEN-502 Gen'!F193,0) -> 0 | G193: =+IFERROR('GEN-502 Cos_Gen'!G193/'GEN-502 Gen'!G193,0) -> 0
A194: =+'GEN-502 Pot'!A194 -> Enel Fortuna No. 84-12 | B194: =+IFERROR('GEN-502 Cos_Gen'!B194/'GEN-502 Gen'!B194,0) -> 0 | C194: =+IFERROR('GEN-502 Cos_Gen'!C194/'GEN-502 Gen'!C194,0) -> 0 | D194: =+IFERROR('GEN-502 Cos_Gen'!D194/'GEN-502 Gen'!D194,0) -> 0 | E194: =+IFERROR('GEN-502 Cos_Gen'!E194/'GEN-502 Gen'!E194,0) -> 0 | F194: =+IFERROR('GEN-502 Cos_Gen'!F194/'GEN-502 Gen'!F194,0) -> 0 | G194: =+IFERROR('GEN-502 Cos_Gen'!G194/'GEN-502 Gen'!G194,0) -> 0
A195: =+'GEN-502 Pot'!A195 -> Generadora del Atlántico No. 85-12 | B195: =+IFERROR('GEN-502 Cos_Gen'!B195/'GEN-502 Gen'!B195,0) -> 0 | C195: =+IFERROR('GEN-502 Cos_Gen'!C195/'GEN-502 Gen'!C195,0) -> 0 | D195: =+IFERROR('GEN-502 Cos_Gen'!D195/'GEN-502 Gen'!D195,0) -> 0 | E195: =+IFERROR('GEN-502 Cos_Gen'!E195/'GEN-502 Gen'!E195,0) -> 0 | F195: =+IFERROR('GEN-502 Cos_Gen'!F195/'GEN-502 Gen'!F195,0) -> 0 | G195: =+IFERROR('GEN-502 Cos_Gen'!G195/'GEN-502 Gen'!G195,0) -> 0
A196: =+'GEN-502 Pot'!A196 -> Autoridad del Canal de Panamá No. 86-12 | B196: =+IFERROR('GEN-502 Cos_Gen'!B196/'GEN-502 Gen'!B196,0) -> 0 | C196: =+IFERROR('GEN-502 Cos_Gen'!C196/'GEN-502 Gen'!C196,0) -> 0 | D196: =+IFERROR('GEN-502 Cos_Gen'!D196/'GEN-502 Gen'!D196,0) -> 0 | E196: =+IFERROR('GEN-502 Cos_Gen'!E196/'GEN-502 Gen'!E196,0) -> 0 | F196: =+IFERROR('GEN-502 Cos_Gen'!F196/'GEN-502 Gen'!F196,0) -> 0 | G196: =+IFERROR('GEN-502 Cos_Gen'!G196/'GEN-502 Gen'!G196,0) -> 0
A197: =+'GEN-502 Pot'!A197 -> Hydro Caisán No. 101-12 | B197: =+IFERROR('GEN-502 Cos_Gen'!B197/'GEN-502 Gen'!B197,0) -> 0 | C197: =+IFERROR('GEN-502 Cos_Gen'!C197/'GEN-502 Gen'!C197,0) -> 0 | D197: =+IFERROR('GEN-502 Cos_Gen'!D197/'GEN-502 Gen'!D197,0) -> 0 | E197: =+IFERROR('GEN-502 Cos_Gen'!E197/'GEN-502 Gen'!E197,0) -> 0 | F197: =+IFERROR('GEN-502 Cos_Gen'!F197/'GEN-502 Gen'!F197,0) -> 0 | G197: =+IFERROR('GEN-502 Cos_Gen'!G197/'GEN-502 Gen'!G197,0) -> 0
A198: =+'GEN-502 Pot'!A198 -> Caldera Energy Corp. No. 102-12 | B198: =+IFERROR('GEN-502 Cos_Gen'!B198/'GEN-502 Gen'!B198,0) -> 0 | C198: =+IFERROR('GEN-502 Cos_Gen'!C198/'GEN-502 Gen'!C198,0) -> 0 | D198: =+IFERROR('GEN-502 Cos_Gen'!D198/'GEN-502 Gen'!D198,0) -> 0 | E198: =+IFERROR('GEN-502 Cos_Gen'!E198/'GEN-502 Gen'!E198,0) -> 0 | F198: =+IFERROR('GEN-502 Cos_Gen'!F198/'GEN-502 Gen'!F198,0) -> 0 | G198: =+IFERROR('GEN-502 Cos_Gen'!G198/'GEN-502 Gen'!G198,0) -> 0
A199: =+'GEN-502 Pot'!A199 -> Electrogeneradora del Istmo No. 103-12 | B199: =+IFERROR('GEN-502 Cos_Gen'!B199/'GEN-502 Gen'!B199,0) -> 0 | C199: =+IFERROR('GEN-502 Cos_Gen'!C199/'GEN-502 Gen'!C199,0) -> 0 | D199: =+IFERROR('GEN-502 Cos_Gen'!D199/'GEN-502 Gen'!D199,0) -> 0 | E199: =+IFERROR('GEN-502 Cos_Gen'!E199/'GEN-502 Gen'!E199,0) -> 0 | F199: =+IFERROR('GEN-502 Cos_Gen'!F199/'GEN-502 Gen'!F199,0) -> 0 | G199: =+IFERROR('GEN-502 Cos_Gen'!G199/'GEN-502 Gen'!G199,0) -> 0
A200: =+'GEN-502 Pot'!A200 -> Generadora Pedregalito No. 104-12 | B200: =+IFERROR('GEN-502 Cos_Gen'!B200/'GEN-502 Gen'!B200,0) -> 0 | C200: =+IFERROR('GEN-502 Cos_Gen'!C200/'GEN-502 Gen'!C200,0) -> 0 | D200: =+IFERROR('GEN-502 Cos_Gen'!D200/'GEN-502 Gen'!D200,0) -> 0 | E200: =+IFERROR('GEN-502 Cos_Gen'!E200/'GEN-502 Gen'!E200,0) -> 0 | F200: =+IFERROR('GEN-502 Cos_Gen'!F200/'GEN-502 Gen'!F200,0) -> 0 | G200: =+IFERROR('GEN-502 Cos_Gen'!G200/'GEN-502 Gen'!G200,0) -> 0
A201: =+'GEN-502 Pot'!A201 -> Generadora Río Chico No. 105-12 | B201: =+IFERROR('GEN-502 Cos_Gen'!B201/'GEN-502 Gen'!B201,0) -> 0 | C201: =+IFERROR('GEN-502 Cos_Gen'!C201/'GEN-502 Gen'!C201,0) -> 0 | D201: =+IFERROR('GEN-502 Cos_Gen'!D201/'GEN-502 Gen'!D201,0) -> 0 | E201: =+IFERROR('GEN-502 Cos_Gen'!E201/'GEN-502 Gen'!E201,0) -> 0 | F201: =+IFERROR('GEN-502 Cos_Gen'!F201/'GEN-502 Gen'!F201,0) -> 0 | G201: =+IFERROR('GEN-502 Cos_Gen'!G201/'GEN-502 Gen'!G201,0) -> 0
A202: =+'GEN-502 Pot'!A202 -> Hidroibérica No. 106-12 | B202: =+IFERROR('GEN-502 Cos_Gen'!B202/'GEN-502 Gen'!B202,0) -> 0 | C202: =+IFERROR('GEN-502 Cos_Gen'!C202/'GEN-502 Gen'!C202,0) -> 0 | D202: =+IFERROR('GEN-502 Cos_Gen'!D202/'GEN-502 Gen'!D202,0) -> 0 | E202: =+IFERROR('GEN-502 Cos_Gen'!E202/'GEN-502 Gen'!E202,0) -> 0 | F202: =+IFERROR('GEN-502 Cos_Gen'!F202/'GEN-502 Gen'!F202,0) -> 0 | G202: =+IFERROR('GEN-502 Cos_Gen'!G202/'GEN-502 Gen'!G202,0) -> 0
A203: =+'GEN-502 Pot'!A203 -> Generadora Alto Valle No. 107-12 | B203: =+IFERROR('GEN-502 Cos_Gen'!B203/'GEN-502 Gen'!B203,0) -> 0 | C203: =+IFERROR('GEN-502 Cos_Gen'!C203/'GEN-502 Gen'!C203,0) -> 0 | D203: =+IFERROR('GEN-502 Cos_Gen'!D203/'GEN-502 Gen'!D203,0) -> 0 | E203: =+IFERROR('GEN-502 Cos_Gen'!E203/'GEN-502 Gen'!E203,0) -> 0 | F203: =+IFERROR('GEN-502 Cos_Gen'!F203/'GEN-502 Gen'!F203,0) -> 0 | G203: =+IFERROR('GEN-502 Cos_Gen'!G203/'GEN-502 Gen'!G203,0) -> 0
A204: =+'GEN-502 Pot'!A204 -> Energía y Servicios de Panamá, S.A. No. 108-12 | B204: =+IFERROR('GEN-502 Cos_Gen'!B204/'GEN-502 Gen'!B204,0) -> 0 | C204: =+IFERROR('GEN-502 Cos_Gen'!C204/'GEN-502 Gen'!C204,0) -> 0 | D204: =+IFERROR('GEN-502 Cos_Gen'!D204/'GEN-502 Gen'!D204,0) -> 0 | E204: =+IFERROR('GEN-502 Cos_Gen'!E204/'GEN-502 Gen'!E204,0) -> 0 | F204: =+IFERROR('GEN-502 Cos_Gen'!F204/'GEN-502 Gen'!F204,0) -> 0 | G204: =+IFERROR('GEN-502 Cos_Gen'!G204/'GEN-502 Gen'!G204,0) -> 0
A205: =+'GEN-502 Pot'!A205 -> Hidro Panamá, S.A. No. 109-12 | B205: =+IFERROR('GEN-502 Cos_Gen'!B205/'GEN-502 Gen'!B205,0) -> 0 | C205: =+IFERROR('GEN-502 Cos_Gen'!C205/'GEN-502 Gen'!C205,0) -> 0 | D205: =+IFERROR('GEN-502 Cos_Gen'!D205/'GEN-502 Gen'!D205,0) -> 0 | E205: =+IFERROR('GEN-502 Cos_Gen'!E205/'GEN-502 Gen'!E205,0) -> 0 | F205: =+IFERROR('GEN-502 Cos_Gen'!F205/'GEN-502 Gen'!F205,0) -> 0 | G205: =+IFERROR('GEN-502 Cos_Gen'!G205/'GEN-502 Gen'!G205,0) -> 0
A206: =+'GEN-502 Pot'!A206 -> Las Perlas Norte, S.A. No. 110-12 | B206: =+IFERROR('GEN-502 Cos_Gen'!B206/'GEN-502 Gen'!B206,0) -> 0 | C206: =+IFERROR('GEN-502 Cos_Gen'!C206/'GEN-502 Gen'!C206,0) -> 0 | D206: =+IFERROR('GEN-502 Cos_Gen'!D206/'GEN-502 Gen'!D206,0) -> 0 | E206: =+IFERROR('GEN-502 Cos_Gen'!E206/'GEN-502 Gen'!E206,0) -> 0 | F206: =+IFERROR('GEN-502 Cos_Gen'!F206/'GEN-502 Gen'!F206,0) -> 0 | G206: =+IFERROR('GEN-502 Cos_Gen'!G206/'GEN-502 Gen'!G206,0) -> 0
A207: =+'GEN-502 Pot'!A207 -> Las Perlas Sur, S.A. No. 111-12 | B207: =+IFERROR('GEN-502 Cos_Gen'!B207/'GEN-502 Gen'!B207,0) -> 0 | C207: =+IFERROR('GEN-502 Cos_Gen'!C207/'GEN-502 Gen'!C207,0) -> 0 | D207: =+IFERROR('GEN-502 Cos_Gen'!D207/'GEN-502 Gen'!D207,0) -> 0 | E207: =+IFERROR('GEN-502 Cos_Gen'!E207/'GEN-502 Gen'!E207,0) -> 0 | F207: =+IFERROR('GEN-502 Cos_Gen'!F207/'GEN-502 Gen'!F207,0) -> 0 | G207: =+IFERROR('GEN-502 Cos_Gen'!G207/'GEN-502 Gen'!G207,0) -> 0
A208: =+'GEN-502 Pot'!A208 -> Generadora del Istmo, S.A. No. 112-12 | B208: =+IFERROR('GEN-502 Cos_Gen'!B208/'GEN-502 Gen'!B208,0) -> 0 | C208: =+IFERROR('GEN-502 Cos_Gen'!C208/'GEN-502 Gen'!C208,0) -> 0 | D208: =+IFERROR('GEN-502 Cos_Gen'!D208/'GEN-502 Gen'!D208,0) -> 0 | E208: =+IFERROR('GEN-502 Cos_Gen'!E208/'GEN-502 Gen'!E208,0) -> 0 | F208: =+IFERROR('GEN-502 Cos_Gen'!F208/'GEN-502 Gen'!F208,0) -> 0 | G208: =+IFERROR('GEN-502 Cos_Gen'!G208/'GEN-502 Gen'!G208,0) -> 0
A209: =+'GEN-502 Pot'!A209 -> Istmus Hydro Power No. 113-12 | B209: =+IFERROR('GEN-502 Cos_Gen'!B209/'GEN-502 Gen'!B209,0) -> 0 | C209: =+IFERROR('GEN-502 Cos_Gen'!C209/'GEN-502 Gen'!C209,0) -> 0 | D209: =+IFERROR('GEN-502 Cos_Gen'!D209/'GEN-502 Gen'!D209,0) -> 0 | E209: =+IFERROR('GEN-502 Cos_Gen'!E209/'GEN-502 Gen'!E209,0) -> 0 | F209: =+IFERROR('GEN-502 Cos_Gen'!F209/'GEN-502 Gen'!F209,0) -> 0 | G209: =+IFERROR('GEN-502 Cos_Gen'!G209/'GEN-502 Gen'!G209,0) -> 0
A210: =+'GEN-502 Pot'!A210 -> Fountain Intertrade Corp. No. 114-12 | B210: =+IFERROR('GEN-502 Cos_Gen'!B210/'GEN-502 Gen'!B210,0) -> 0 | C210: =+IFERROR('GEN-502 Cos_Gen'!C210/'GEN-502 Gen'!C210,0) -> 0 | D210: =+IFERROR('GEN-502 Cos_Gen'!D210/'GEN-502 Gen'!D210,0) -> 0 | E210: =+IFERROR('GEN-502 Cos_Gen'!E210/'GEN-502 Gen'!E210,0) -> 0 | F210: =+IFERROR('GEN-502 Cos_Gen'!F210/'GEN-502 Gen'!F210,0) -> 0 | G210: =+IFERROR('GEN-502 Cos_Gen'!G210/'GEN-502 Gen'!G210,0) -> 0
A211: =+'GEN-502 Pot'!A211 -> Energía y Servicios de Panamá, S.A. No. 46-12 (Algarrobos) | B211: =+IFERROR('GEN-502 Cos_Gen'!B211/'GEN-502 Gen'!B211,0) -> 0 | C211: =+IFERROR('GEN-502 Cos_Gen'!C211/'GEN-502 Gen'!C211,0) -> 0 | D211: =+IFERROR('GEN-502 Cos_Gen'!D211/'GEN-502 Gen'!D211,0) -> 0 | E211: =+IFERROR('GEN-502 Cos_Gen'!E211/'GEN-502 Gen'!E211,0) -> 0 | F211: =+IFERROR('GEN-502 Cos_Gen'!F211/'GEN-502 Gen'!F211,0) -> 0 | G211: =+IFERROR('GEN-502 Cos_Gen'!G211/'GEN-502 Gen'!G211,0) -> 0
A212: =+'GEN-502 Pot'!A212 -> Energía y Servicios de Panamá, S.A. No. 46-12 (Dolega) | B212: =+IFERROR('GEN-502 Cos_Gen'!B212/'GEN-502 Gen'!B212,0) -> 0 | C212: =+IFERROR('GEN-502 Cos_Gen'!C212/'GEN-502 Gen'!C212,0) -> 0 | D212: =+IFERROR('GEN-502 Cos_Gen'!D212/'GEN-502 Gen'!D212,0) -> 0 | E212: =+IFERROR('GEN-502 Cos_Gen'!E212/'GEN-502 Gen'!E212,0) -> 0 | F212: =+IFERROR('GEN-502 Cos_Gen'!F212/'GEN-502 Gen'!F212,0) -> 0 | G212: =+IFERROR('GEN-502 Cos_Gen'!G212/'GEN-502 Gen'!G212,0) -> 0
A213: =+'GEN-502 Pot'!A213 -> Energía y Servicios de Panamá, S.A. No. 46-12 (Macho de Monte) | B213: =+IFERROR('GEN-502 Cos_Gen'!B213/'GEN-502 Gen'!B213,0) -> 0 | C213: =+IFERROR('GEN-502 Cos_Gen'!C213/'GEN-502 Gen'!C213,0) -> 0 | D213: =+IFERROR('GEN-502 Cos_Gen'!D213/'GEN-502 Gen'!D213,0) -> 0 | E213: =+IFERROR('GEN-502 Cos_Gen'!E213/'GEN-502 Gen'!E213,0) -> 0 | F213: =+IFERROR('GEN-502 Cos_Gen'!F213/'GEN-502 Gen'!F213,0) -> 0 | G213: =+IFERROR('GEN-502 Cos_Gen'!G213/'GEN-502 Gen'!G213,0) -> 0
A214: =+'GEN-502 Pot'!A214 -> Ideal Panamá No. 116-12 | B214: =+IFERROR('GEN-502 Cos_Gen'!B214/'GEN-502 Gen'!B214,0) -> 0 | C214: =+IFERROR('GEN-502 Cos_Gen'!C214/'GEN-502 Gen'!C214,0) -> 0 | D214: =+IFERROR('GEN-502 Cos_Gen'!D214/'GEN-502 Gen'!D214,0) -> 0 | E214: =+IFERROR('GEN-502 Cos_Gen'!E214/'GEN-502 Gen'!E214,0) -> 0 | F214: =+IFERROR('GEN-502 Cos_Gen'!F214/'GEN-502 Gen'!F214,0) -> 0 | G214: =+IFERROR('GEN-502 Cos_Gen'!G214/'GEN-502 Gen'!G214,0) -> 0
... 266 more rows

Sheet GEN-502 Cos_Gen
A1: INFORMACION PARA ACTUALIZAR: CARGO POR GENERACION
A2: =+'Compras (p)'!A2 -> EDECHI
A3: Compra Mensual de Energía para atender Clientes Regulados (B/.)
B4: COSTO DE ENERGIA
A5: Detalle | B5: 2026-07-01 | C5: 2026-08-01 | D5: 2026-09-01 | E5: 2026-10-01 | F5: 2026-11-01 | G5: 2026-12-01
A7: Generación en Punta
A8: Total Compra de Energía en Horas de Punta | B8: =+B9+B15 -> 6205214.321 | C8: 6292306.957 | D8: 6326858.834 | E8: 5648125.667 | F8: 5715550.918 | G8: 7160393.181
A9: Generación Propia
A15: Sub-Total Mercado Mayorista | B15: =+SUM(B16:B22,-B23,B24) -> 6205214.321 | C15: =+SUM(C16:C22,-C23,C24) -> 6292306.957 | D15: 6326858.834 | E15: 5648125.667 | F15: 5715550.918 | G15: 7160393.181
A16: =+'GEN-502 Cos_Gen_P'!A16 -> Mercado Ocasional | B16: =+'GEN-502 Cos_Gen_P'!B16+'GEN-502 Cos_Gen_FP'!B16 -> -317803.1839 | C16: =+'GEN-502 Cos_Gen_P'!C16+'GEN-502 Cos_Gen_FP'!C16 -> -273012.7577 | D16: =+'GEN-502 Cos_Gen_P'!D16+'GEN-502 Cos_Gen_FP'!D16 -> -378266.1868 | E16: =+'GEN-502 Cos_Gen_P'!E16+'GEN-502 Cos_Gen_FP'!E16 -> -1523284.115 | F16: =+'GEN-502 Cos_Gen_P'!F16+'GEN-502 Cos_Gen_FP'!F16 -> -1155993.971 | G16: =+'GEN-502 Cos_Gen_P'!G16+'GEN-502 Cos_Gen_FP'!G16 -> -205170.7567
A17: =+'GEN-502 Cos_Gen_P'!A17 -> Servicios Auxiliares de Corto Plazo | B17: =+'GEN-502 Cos_Gen_P'!B17+'GEN-502 Cos_Gen_FP'!B17 -> 50056.80167 | C17: =+'GEN-502 Cos_Gen_P'!C17+'GEN-502 Cos_Gen_FP'!C17 -> 50056.80167 | D17: =+'GEN-502 Cos_Gen_P'!D17+'GEN-502 Cos_Gen_FP'!D17 -> 50056.80167 | E17: =+'GEN-502 Cos_Gen_P'!E17+'GEN-502 Cos_Gen_FP'!E17 -> 50056.80167 | F17: =+'GEN-502 Cos_Gen_P'!F17+'GEN-502 Cos_Gen_FP'!F17 -> 50056.80167 | G17: =+'GEN-502 Cos_Gen_P'!G17+'GEN-502 Cos_Gen_FP'!G17 -> 50056.80167
A18: =+'GEN-502 Cos_Gen_P'!A18 -> Generación Obligada | B18: =+'GEN-502 Cos_Gen_P'!B18+'GEN-502 Cos_Gen_FP'!B18 -> 46711.81167 | C18: =+'GEN-502 Cos_Gen_P'!C18+'GEN-502 Cos_Gen_FP'!C18 -> 46711.81167 | D18: =+'GEN-502 Cos_Gen_P'!D18+'GEN-502 Cos_Gen_FP'!D18 -> 46711.81167 | E18: =+'GEN-502 Cos_Gen_P'!E18+'GEN-502 Cos_Gen_FP'!E18 -> 46711.81167 | F18: =+'GEN-502 Cos_Gen_P'!F18+'GEN-502 Cos_Gen_FP'!F18 -> 46711.81167 | G18: =+'GEN-502 Cos_Gen_P'!G18+'GEN-502 Cos_Gen_FP'!G18 -> 46711.81167
A19: =+'GEN-502 Cos_Gen_P'!A19 -> Costos relacionados con el Mercado Regional | B19: =+'GEN-502 Cos_Gen_P'!B19+'GEN-502 Cos_Gen_FP'!B19 -> 0 | C19: =+'GEN-502 Cos_Gen_P'!C19+'GEN-502 Cos_Gen_FP'!C19 -> 0 | D19: =+'GEN-502 Cos_Gen_P'!D19+'GEN-502 Cos_Gen_FP'!D19 -> 0 | E19: =+'GEN-502 Cos_Gen_P'!E19+'GEN-502 Cos_Gen_FP'!E19 -> 0 | F19: =+'GEN-502 Cos_Gen_P'!F19+'GEN-502 Cos_Gen_FP'!F19 -> 0 | G19: =+'GEN-502 Cos_Gen_P'!G19+'GEN-502 Cos_Gen_FP'!G19 -> 0
A20: =+'GEN-502 Cos_Gen_P'!A20 -> Otros Ajustes | B20: =+'GEN-502 Cos_Gen_P'!B20+'GEN-502 Cos_Gen_FP'!B20 -> 58654.03833 | C20: =+'GEN-502 Cos_Gen_P'!C20+'GEN-502 Cos_Gen_FP'!C20 -> 58654.03833 | D20: =+'GEN-502 Cos_Gen_P'!D20+'GEN-502 Cos_Gen_FP'!D20 -> 58654.03833 | E20: =+'GEN-502 Cos_Gen_P'!E20+'GEN-502 Cos_Gen_FP'!E20 -> 58654.03833 | F20: =+'GEN-502 Cos_Gen_P'!F20+'GEN-502 Cos_Gen_FP'!F20 -> 58654.03833 | G20: =+'GEN-502 Cos_Gen_P'!G20+'GEN-502 Cos_Gen_FP'!G20 -> 58654.03833
A21: =+'GEN-502 Cos_Gen_P'!A21 -> Costos de Fianzas | B21: =+'GEN-502 Cos_Gen_P'!B21+'GEN-502 Cos_Gen_FP'!B21 -> 0 | C21: =+'GEN-502 Cos_Gen_P'!C21+'GEN-502 Cos_Gen_FP'!C21 -> 0 | D21: =+'GEN-502 Cos_Gen_P'!D21+'GEN-502 Cos_Gen_FP'!D21 -> 0 | E21: =+'GEN-502 Cos_Gen_P'!E21+'GEN-502 Cos_Gen_FP'!E21 -> 0 | F21: =+'GEN-502 Cos_Gen_P'!F21+'GEN-502 Cos_Gen_FP'!F21 -> 0 | G21: =+'GEN-502 Cos_Gen_P'!G21+'GEN-502 Cos_Gen_FP'!G21 -> 0
A22: =+'GEN-502 Cos_Gen_P'!A22 -> Costos de Autoabastecimiento autorizados por ASEP | B22: =+'GEN-502 Cos_Gen_P'!B22+'GEN-502 Cos_Gen_FP'!B22 -> 0 | C22: =+'GEN-502 Cos_Gen_P'!C22+'GEN-502 Cos_Gen_FP'!C22 -> 0 | D22: =+'GEN-502 Cos_Gen_P'!D22+'GEN-502 Cos_Gen_FP'!D22 -> 0 | E22: =+'GEN-502 Cos_Gen_P'!E22+'GEN-502 Cos_Gen_FP'!E22 -> 0 | F22: =+'GEN-502 Cos_Gen_P'!F22+'GEN-502 Cos_Gen_FP'!F22 -> 0 | G22: =+'GEN-502 Cos_Gen_P'!G22+'GEN-502 Cos_Gen_FP'!G22 -> 0
